Workbook

Sheet 4.12-4.12.3
C1: Rocky Mountain Power
C2: Utah General Rate Case - May 2013
C3: O&M Escalation
G6: TOTAL | J6: Utah
A7: Code | E7: ACCOUNT | F7: Type | G7: COMPANY | H7: FACTOR | I7: FACTOR % | J7: ALLOCATED | K7: REF# | L7: MA | M7: RI | N7: RP | O7: Total | P7: System | Q7: CA | R7: OR | S7: WA | T7: WY-ALL | U7: WYP | V7: UT | W7: ID | X7: WYU
C8: Adjustment to Expense:
A9: =+E9&H9 -> 500SG | B9: =E9&L9 -> 500SNPPS | C9: Steam Operations | E9: 500 | F9: 3 | G9: =SUM(P9:S9,U9:X9) -> 166271.5434 | H9: =N9 -> SG | I9: =VLOOKUP(M9,Factors!$B$4:$H$92,7,FALSE) -> 0.4315468105 | J9: =I9*G9 -> 71753.95424 | L9: SNPPS | M9: SNPPS | N9: SG | O9: =+P9+Q9+R9+S9+U9+V9+W9+X9 -> 166271.5434 | P9: =VLOOKUP(A9,'Test Period - May 2013'!$F$10:$T$406,15,FALSE) -> 166271.5434
A10: =+E10&H10 -> 500SSGCH | B10: 500SNPPS | C10: Steam Operations | E10: 500 | F10: 3 | G10: =SUM(P10:S10,U10:X10) -> 160390.0313 | H10: =N10 -> SSGCH | I10: =VLOOKUP(M10,Factors!$B$4:$H$92,7,FALSE) -> 0.4315468105 | J10: =I10*G10 -> 69215.80643 | L10: SNPPS | M10: SNPPS | N10: SSGCH | O10: =+P10+Q10+R10+S10+U10+V10+W10+X10 -> 160390.0313 | P10: =VLOOKUP(A10,'Test Period - May 2013'!$F$10:$T$406,15,FALSE) -> 160390.0313
A11: 501SE | B11: 501SE | C11: Steam Operations | E11: 501 | F11: 3 | G11: 1304871.246 | H11: SE | I11: =VLOOKUP(M11,Factors!$B$4:$H$92,7,FALSE) -> 0.4295336734 | J11: 560486.1394 | L11: SE | M11: SE | N11: SE | O11: 1304871.246 | P11: =VLOOKUP(A11,'Test Period - May 2013'!$F$10:$T$406,15,FALSE) -> 1304871.246
A12: 501SSECH | B12: 501SE | C12: Steam Operations | E12: 501 | F12: 3 | G12: 233283.8261 | H12: SSECH | I12: =VLOOKUP(M12,Factors!$B$4:$H$92,7,FALSE) -> 0.4295336734 | J12: 100203.2587 | L12: SE | M12: SE | N12: SSECH | O12: 233283.8261 | P12: =VLOOKUP(A12,'Test Period - May 2013'!$F$10:$T$406,15,FALSE) -> 233283.8261
A13: 502SG | B13: 502SNPPS | C13: Steam Operations | E13: 502 | F13: 3 | G13: 1070190.733 | H13: SG | I13: =VLOOKUP(M13,Factors!$B$4:$H$92,7,FALSE) -> 0.4315468105 | J13: 461837.3973 | L13: SNPPS | M13: SNPPS | N13: SG | O13: 1070190.733 | P13: =VLOOKUP(A13,'Test Period - May 2013'!$F$10:$T$406,15,FALSE) -> 1070190.733
A14: 502SSGCH | B14: 502SNPPS | C14: Steam Operations | E14: 502 | F14: 3 | G14: 553008.0231 | H14: SSGCH | I14: =VLOOKUP(M14,Factors!$B$4:$H$92,7,FALSE) -> 0.4315468105 | J14: 238648.8486 | L14: SNPPS | M14: SNPPS | N14: SSGCH | O14: 553008.0231 | P14: =VLOOKUP(A14,'Test Period - May 2013'!$F$10:$T$406,15,FALSE) -> 553008.0231
A15: 503SE | B15: 503SE | C15: Steam Operations | E15: 503 | F15: 3 | G15: -5100.690043 | H15: SE | I15: =VLOOKUP(M15,Factors!$B$4:$H$92,7,FALSE) -> 0.4295336734 | J15: -2190.918131 | L15: SE | M15: SE | N15: SE | O15: -5100.690043 | P15: =VLOOKUP(A15,'Test Period - May 2013'!$F$10:$T$406,15,FALSE) -> -5100.690043
A16: 505SG | B16: 505SNPPS | C16: Steam Operations | E16: 505 | F16: 3 | G16: 95840.38565 | H16: SG | I16: =VLOOKUP(M16,Factors!$B$4:$H$92,7,FALSE) -> 0.4315468105 | J16: 41359.61274 | L16: SNPPS | M16: SNPPS | N16: SG | O16: 95840.38565 | P16: =VLOOKUP(A16,'Test Period - May 2013'!$F$10:$T$406,15,FALSE) -> 95840.38565
A17: 505SSGCH | B17: 505SNPPS | C17: Steam Operations | E17: 505 | F17: 3 | G17: 82277.24365 | H17: SSGCH | I17: =VLOOKUP(M17,Factors!$B$4:$H$92,7,FALSE) -> 0.4315468105 | J17: 35506.48207 | L17: SNPPS | M17: SNPPS | N17: SSGCH | O17: 82277.24365 | P17: =VLOOKUP(A17,'Test Period - May 2013'!$F$10:$T$406,15,FALSE) -> 82277.24365
A18: 506SG | B18: 506SNPPS | C18: Steam Operations | E18: 506 | F18: 3 | G18: 321419.34 | H18: SG | I18: =VLOOKUP(M18,Factors!$B$4:$H$92,7,FALSE) -> 0.4315468105 | J18: 138707.491 | L18: SNPPS | M18: SNPPS | N18: SG | O18: 321419.34 | P18: =VLOOKUP(A18,'Test Period - May 2013'!$F$10:$T$406,15,FALSE) -> 321419.34
A19: 506SSGCH | B19: 506SNPPS | C19: Steam Operations | E19: 506 | F19: 3 | G19: 137908.5288 | H19: SSGCH | I19: =VLOOKUP(M19,Factors!$B$4:$H$92,7,FALSE) -> 0.4315468105 | J19: 59513.98575 | L19: SNPPS | M19: SNPPS | N19: SSGCH | O19: 137908.5288 | P19: =VLOOKUP(A19,'Test Period - May 2013'!$F$10:$T$406,15,FALSE) -> 137908.5288
A20: 507SG | B20: 507SNPPS | C20: Steam Operations | E20: 507 | F20: 3 | G20: 20722.50176 | H20: SG | I20: =VLOOKUP(M20,Factors!$B$4:$H$92,7,FALSE) -> 0.4315468105 | J20: 8942.729541 | L20: SNPPS | M20: SNPPS | N20: SG | O20: 20722.50176 | P20: =VLOOKUP(A20,'Test Period - May 2013'!$F$10:$T$406,15,FALSE) -> 20722.50176
A21: 507SSGCH | B21: 507SNPPS | C21: Steam Operations | E21: 507 | F21: 3 | G21: 45.07512883 | H21: SSGCH | I21: =VLOOKUP(M21,Factors!$B$4:$H$92,7,FALSE) -> 0.4315468105 | J21: 19.45202808 | L21: SNPPS | M21: SNPPS | N21: SSGCH | O21: 45.07512883 | P21: =VLOOKUP(A21,'Test Period - May 2013'!$F$10:$T$406,15,FALSE) -> 45.07512883
A22: 510SG | B22: 510SNPPS | C22: Steam Maintenance | E22: 510 | F22: 3 | G22: -91509.50331 | H22: SG | I22: =VLOOKUP(M22,Factors!$B$4:$H$92,7,FALSE) -> 0.4315468105 | J22: -39490.63428 | L22: SNPPS | M22: SNPPS | N22: SG | O22: -91509.50331 | P22: =VLOOKUP(A22,'Test Period - May 2013'!$F$10:$T$406,15,FALSE) -> -91509.50331
A23: 510SSGCH | B23: 510SNPPS | C23: Steam Maintenance | E23: 510 | F23: 3 | G23: 144606.1542 | H23: SSGCH | I23: =VLOOKUP(M23,Factors!$B$4:$H$92,7,FALSE) -> 0.4315468105 | J23: 62404.32463 | L23: SNPPS | M23: SNPPS | N23: SSGCH | O23: 144606.1542 | P23: =VLOOKUP(A23,'Test Period - May 2013'!$F$10:$T$406,15,FALSE) -> 144606.1542
A24: 511SG | B24: 511SNPPS | C24: Steam Maintenance | E24: 511 | F24: 3 | G24: 638260.1406 | H24: SG | I24: =VLOOKUP(M24,Factors!$B$4:$H$92,7,FALSE) -> 0.4315468105 | J24: 275439.1279 | L24: SNPPS | M24: SNPPS | N24: SG | O24: =+P24+Q24+R24+S24+U24+V24+W24+X24 -> 638260.1406 | P24: =VLOOKUP(A24,'Test Period - May 2013'!$F$10:$T$406,15,FALSE) -> 638260.1406
A25: 511SSGCH | B25: 511SNPPS | C25: Steam Maintenance | E25: 511 | F25: 3 | G25: 15813.00367 | H25: SSGCH | I25: =VLOOKUP(M25,Factors!$B$4:$H$92,7,FALSE) -> 0.4315468105 | J25: 6824.051299 | L25: SNPPS | M25: SNPPS | N25: SSGCH | O25: 15813.00367 | P25: =VLOOKUP(A25,'Test Period - May 2013'!$F$10:$T$406,15,FALSE) -> 15813.00367
A26: 512SG | B26: 512SNPPS | C26: Steam Maintenance | E26: 512 | F26: 3 | G26: 2823975.63 | H26: SG | I26: =VLOOKUP(M26,Factors!$B$4:$H$92,7,FALSE) -> 0.4315468105 | J26: 1218677.676 | L26: SNPPS | M26: SNPPS | N26: SG | O26: 2823975.63 | P26: =VLOOKUP(A26,'Test Period - May 2013'!$F$10:$T$406,15,FALSE) -> 2823975.63
A27: 512SSGCH | B27: 512SNPPS | C27: Steam Maintenance | E27: 512 | F27: 3 | G27: 185534.3398 | H27: SSGCH | I27: =VLOOKUP(M27,Factors!$B$4:$H$92,7,FALSE) -> 0.4315468105 | J27: 80066.75258 | L27: SNPPS | M27: SNPPS | N27: SSGCH | O27: 185534.3398 | P27: =VLOOKUP(A27,'Test Period - May 2013'!$F$10:$T$406,15,FALSE) -> 185534.3398
A28: 513SG | B28: 513SNPPS | C28: Steam Maintenance | E28: 513 | F28: 3 | G28: 1050912.37 | H28: SG | I28: =VLOOKUP(M28,Factors!$B$4:$H$92,7,FALSE) -> 0.4315468105 | J28: 453517.8812 | L28: SNPPS | M28: SNPPS | N28: SG | O28: 1050912.37 | P28: =VLOOKUP(A28,'Test Period - May 2013'!$F$10:$T$406,15,FALSE) -> 1050912.37
A29: 513SSGCH | B29: 513SNPPS | C29: Steam Maintenance | E29: 513 | F29: 3 | G29: 23979.41293 | H29: SSGCH | I29: =VLOOKUP(M29,Factors!$B$4:$H$92,7,FALSE) -> 0.4315468105 | J29: 10348.23917 | L29: SNPPS | M29: SNPPS | N29: SSGCH | O29: 23979.41293 | P29: =VLOOKUP(A29,'Test Period - May 2013'!$F$10:$T$406,15,FALSE) -> 23979.41293
A30: 514SG | B30: 514SNPPS | C30: Steam Maintenance | E30: 514 | F30: 3 | G30: 279336.2794 | H30: SG | I30: =VLOOKUP(M30,Factors!$B$4:$H$92,7,FALSE) -> 0.4315468105 | J30: 120546.6804 | L30: SNPPS | M30: SNPPS | N30: SG | O30: 279336.2794 | P30: =VLOOKUP(A30,'Test Period - May 2013'!$F$10:$T$406,15,FALSE) -> 279336.2794
A31: 514SSGCH | B31: 514SNPPS | C31: Steam Maintenance | E31: 514 | F31: 3 | G31: 75885.45066 | H31: SSGCH | I31: =VLOOKUP(M31,Factors!$B$4:$H$92,7,FALSE) -> 0.4315468105 | J31: 32748.12419 | L31: SNPPS | M31: SNPPS | N31: SSGCH | O31: 75885.45066 | P31: =VLOOKUP(A31,'Test Period - May 2013'!$F$10:$T$406,15,FALSE) -> 75885.45066
A32: 535SG-P | B32: 535SNPPH | C32: Hydro Operations | E32: 535 | F32: 3 | G32: 225576.0666 | H32: SG-P | I32: =VLOOKUP(M32,Factors!$B$4:$H$92,7,FALSE) -> 0.4315468105 | J32: 97346.63206 | L32: SNPPH | M32: SNPPH | N32: SG-P | O32: 225576.0666 | P32: =VLOOKUP(A32,'Test Period - May 2013'!$F$10:$T$406,15,FALSE) -> 225576.0666
A33: 535SG-U | B33: 535SNPPH | C33: Hydro Operations | E33: 535 | F33: 3 | G33: -172959.5689 | H33: SG-U | I33: =VLOOKUP(M33,Factors!$B$4:$H$92,7,FALSE) -> 0.4315468105 | J33: -74640.15032 | L33: SNPPH | M33: SNPPH | N33: SG-U | O33: -172959.5689 | P33: =VLOOKUP(A33,'Test Period - May 2013'!$F$10:$T$406,15,FALSE) -> -172959.5689
A34: 536SG-P | B34: 536SNPPH | C34: Hydro Operations | E34: 536 | F34: 3 | G34: 8765.731701 | H34: SG-P | I34: =VLOOKUP(M34,Factors!$B$4:$H$92,7,FALSE) -> 0.4315468105 | J34: 3782.823557 | L34: SNPPH | M34: SNPPH | N34: SG-P | O34: 8765.731701 | P34: =VLOOKUP(A34,'Test Period - May 2013'!$F$10:$T$406,15,FALSE) -> 8765.731701
A35: 536SG-U | B35: 536SNPPH | C35: Hydro Operations | E35: 536 | F35: 3 | G35: 0 | H35: SG-U | I35: =VLOOKUP(M35,Factors!$B$4:$H$92,7,FALSE) -> 0.4315468105 | J35: 0 | L35: SNPPH | M35: SNPPH | N35: SG-U | O35: 0 | P35: =VLOOKUP(A35,'Test Period - May 2013'!$F$10:$T$406,15,FALSE) -> 0
A36: 537SG-P | B36: 537SNPPH | C36: Hydro Operations | E36: 537 | F36: 3 | G36: 215993.5692 | H36: SG-P | I36: =VLOOKUP(M36,Factors!$B$4:$H$92,7,FALSE) -> 0.4315468105 | J36: 93211.33587 | L36: SNPPH | M36: SNPPH | N36: SG-P | O36: 215993.5692 | P36: =VLOOKUP(A36,'Test Period - May 2013'!$F$10:$T$406,15,FALSE) -> 215993.5692
A37: 537SG-U | B37: 537SNPPH | C37: Hydro Operations | E37: 537 | F37: 3 | G37: 15051.60523 | H37: SG-U | I37: =VLOOKUP(M37,Factors!$B$4:$H$92,7,FALSE) -> 0.4315468105 | J37: 6495.472231 | L37: SNPPH | M37: SNPPH | N37: SG-U | O37: 15051.60523 | P37: =VLOOKUP(A37,'Test Period - May 2013'!$F$10:$T$406,15,FALSE) -> 15051.60523
A38: 539SG-P | B38: 539SNPPH | C38: Hydro Operations | E38: 539 | F38: 3 | G38: 987667.0144 | H38: SG-P | I38: =VLOOKUP(M38,Factors!$B$4:$H$92,7,FALSE) -> 0.4315468105 | J38: 426224.5499 | L38: SNPPH | M38: SNPPH | N38: SG-P | O38: 987667.0144 | P38: =VLOOKUP(A38,'Test Period - May 2013'!$F$10:$T$406,15,FALSE) -> 987667.0144
A39: 539SG-U | B39: 539SNPPH | C39: Hydro Operations | E39: 539 | F39: 3 | G39: 193637.42 | H39: SG-U | I39: =VLOOKUP(M39,Factors!$B$4:$H$92,7,FALSE) -> 0.4315468105 | J39: 83563.611 | L39: SNPPH | M39: SNPPH | N39: SG-U | O39: 193637.42 | P39: =VLOOKUP(A39,'Test Period - May 2013'!$F$10:$T$406,15,FALSE) -> 193637.42
A40: 540SG-P | B40: 540SNPPH | C40: Hydro Operations | E40: 540 | F40: 3 | G40: 23265.60923 | H40: SG-P | I40: =VLOOKUP(M40,Factors!$B$4:$H$92,7,FALSE) -> 0.4315468105 | J40: 10040.19946 | L40: SNPPH | M40: SNPPH | N40: SG-P | O40: 23265.60923 | P40: =VLOOKUP(A40,'Test Period - May 2013'!$F$10:$T$406,15,FALSE) -> 23265.60923
A41: =+E41&H41 -> 540SG-U | B41: =E41&L41 -> 540SNPPH | C41: Hydro Operations | E41: 540 | F41: 3 | G41: 71.43022744 | H41: SG-U | I41: =VLOOKUP(M41,Factors!$B$4:$H$92,7,FALSE) -> 0.4315468105 | J41: 30.82548683 | L41: SNPPH | M41: SNPPH | N41: SG-U | O41: =+P41+Q41+R41+S41+U41+V41+W41+X41 -> 71.43022744 | P41: =VLOOKUP(A41,'Test Period - May 2013'!$F$10:$T$406,15,FALSE) -> 71.43022744
A42: =+E42&H42 -> 541SG-P | B42: 541SNPPH | C42: Hydro Maintenance | E42: 541 | F42: 3 | G42: 15.35522011 | H42: SG-P | I42: =VLOOKUP(M42,Factors!$B$4:$H$92,7,FALSE) -> 0.4315468105 | J42: 6.626496263 | L42: SNPPH | M42: SNPPH | N42: SG-P | O42: =+P42+Q42+R42+S42+U42+V42+W42+X42 -> 15.35522011 | P42: =VLOOKUP(A42,'Test Period - May 2013'!$F$10:$T$406,15,FALSE) -> 15.35522011
A43: =+E43&H43 -> 541SG-U | B43: 541SNPPH | C43: Hydro Maintenance | E43: 541 | F43: 3 | G43: 0 | H43: SG-U | I43: =VLOOKUP(M43,Factors!$B$4:$H$92,7,FALSE) -> 0.4315468105 | J43: 0 | L43: SNPPH | M43: SNPPH | N43: SG-U | O43: =+P43+Q43+R43+S43+U43+V43+W43+X43 -> 0 | P43: =VLOOKUP(A43,'Test Period - May 2013'!$F$10:$T$406,15,FALSE) -> 0
A44: 542SG-P | B44: 542SNPPH | C44: Hydro Maintenance | E44: 542 | F44: 3 | G44: 23293.05333 | H44: SG-P | I44: =VLOOKUP(M44,Factors!$B$4:$H$92,7,FALSE) -> 0.4315468105 | J44: 10052.04287 | L44: SNPPH | M44: SNPPH | N44: SG-P | O44: 23293.05333 | P44: =VLOOKUP(A44,'Test Period - May 2013'!$F$10:$T$406,15,FALSE) -> 23293.05333
A45: 542SG-U | B45: 542SNPPH | C45: Hydro Maintenance | E45: 542 | F45: 3 | G45: -2316.465686 | H45: SG-U | I45: =VLOOKUP(M45,Factors!$B$4:$H$92,7,FALSE) -> 0.4315468105 | J45: -999.6633784 | L45: SNPPH | M45: SNPPH | N45: SG-U | O45: -2316.465686 | P45: =VLOOKUP(A45,'Test Period - May 2013'!$F$10:$T$406,15,FALSE) -> -2316.465686
A46: 543SG-P | B46: 543SNPPH | C46: Hydro Maintenance | E46: 543 | F46: 3 | G46: 41326.68347 | H46: SG-P | I46: =VLOOKUP(M46,Factors!$B$4:$H$92,7,FALSE) -> 0.4315468105 | J46: 17834.39844 | L46: SNPPH | M46: SNPPH | N46: SG-P | O46: 41326.68347 | P46: =VLOOKUP(A46,'Test Period - May 2013'!$F$10:$T$406,15,FALSE) -> 41326.68347
A47: 543SG-U | B47: 543SNPPH | C47: Hydro Maintenance | E47: 543 | F47: 3 | G47: 6835.010223 | H47: SG-U | I47: =VLOOKUP(M47,Factors!$B$4:$H$92,7,FALSE) -> 0.4315468105 | J47: 2949.626861 | L47: SNPPH | M47: SNPPH | N47: SG-U | O47: 6835.010223 | P47: =VLOOKUP(A47,'Test Period - May 2013'!$F$10:$T$406,15,FALSE) -> 6835.010223
A48: 544SG-P | B48: 544SNPPH | C48: Hydro Maintenance | E48: 544 | F48: 3 | G48: 18878.98606 | H48: SG-P | I48: =VLOOKUP(M48,Factors!$B$4:$H$92,7,FALSE) -> 0.4315468105 | J48: 8147.166219 | L48: SNPPH | M48: SNPPH | N48: SG-P | O48: 18878.98606 | P48: =VLOOKUP(A48,'Test Period - May 2013'!$F$10:$T$406,15,FALSE) -> 18878.98606
A49: 544SG-U | B49: 544SNPPH | C49: Hydro Maintenance | E49: 544 | F49: 3 | G49: 3708.469175 | H49: SG-U | I49: =VLOOKUP(M49,Factors!$B$4:$H$92,7,FALSE) -> 0.4315468105 | J49: 1600.378044 | L49: SNPPH | M49: SNPPH | N49: SG-U | O49: 3708.469175 | P49: =VLOOKUP(A49,'Test Period - May 2013'!$F$10:$T$406,15,FALSE) -> 3708.469175
A50: 545SG-P | B50: 545SNPPH | C50: Hydro Maintenance | E50: 545 | F50: 3 | G50: 48139.60776 | H50: SG-P | I50: =VLOOKUP(M50,Factors!$B$4:$H$92,7,FALSE) -> 0.4315468105 | J50: 20774.49419 | L50: SNPPH | M50: SNPPH | N50: SG-P | O50: 48139.60776 | P50: =VLOOKUP(A50,'Test Period - May 2013'!$F$10:$T$406,15,FALSE) -> 48139.60776
A51: 545SG-U | B51: 545SNPPH | C51: Hydro Maintenance | E51: 545 | F51: 3 | G51: 24099.38433 | H51: SG-U | I51: =VLOOKUP(M51,Factors!$B$4:$H$92,7,FALSE) -> 0.4315468105 | J51: 10400.01244 | L51: SNPPH | M51: SNPPH | N51: SG-U | O51: 24099.38433 | P51: =VLOOKUP(A51,'Test Period - May 2013'!$F$10:$T$406,15,FALSE) -> 24099.38433
A52: 546SG | B52: 546SNPPO | C52: Other Operations | E52: 546 | F52: 3 | G52: 26372.8124 | H52: SG | I52: =VLOOKUP(M52,Factors!$B$4:$H$92,7,FALSE) -> 0.4315468105 | J52: 11381.10307 | L52: SNPPO | M52: SNPPO | N52: SG | O52: 26372.8124 | P52: =VLOOKUP(A52,'Test Period - May 2013'!$F$10:$T$406,15,FALSE) -> 26372.8124
A53: 547SE | B53: 547SE | C53: Other Operations | E53: 547 | F53: 3 | G53: 0 | H53: SE | I53: =VLOOKUP(M53,Factors!$B$4:$H$92,7,FALSE) -> 0.4295336734 | J53: 0 | L53: SE | M53: SE | N53: SE | O53: 0 | P53: =VLOOKUP(A53,'Test Period - May 2013'!$F$10:$T$406,15,FALSE) -> 0
A54: 547SSECT | B54: 547SE | C54: Other Operations | E54: 547 | F54: 3 | G54: 0 | H54: SSECT | I54: =VLOOKUP(M54,Factors!$B$4:$H$92,7,FALSE) -> 0.4295336734 | J54: 0 | L54: SE | M54: SE | N54: SSECT | O54: 0 | P54: =VLOOKUP(A54,'Test Period - May 2013'!$F$10:$T$406,15,FALSE) -> 0
A55: 548SG | B55: 548SNPPO | C55: Other Operations | E55: 548 | F55: 3 | G55: 534225.2797 | H55: SG | I55: =VLOOKUP(M55,Factors!$B$4:$H$92,7,FALSE) -> 0.4315468105 | J55: 230543.2156 | L55: SNPPO | M55: SNPPO | N55: SG | O55: 534225.2797 | P55: =VLOOKUP(A55,'Test Period - May 2013'!$F$10:$T$406,15,FALSE) -> 534225.2797
A56: 548SSGCT | B56: 548SNPPO | C56: Other Operations | E56: 548 | F56: 3 | G56: 43085.65416 | H56: SSGCT | I56: =VLOOKUP(M56,Factors!$B$4:$H$92,7,FALSE) -> 0.4315468105 | J56: 18593.47663 | L56: SNPPO | M56: SNPPO | N56: SSGCT | O56: 43085.65416 | P56: =VLOOKUP(A56,'Test Period - May 2013'!$F$10:$T$406,15,FALSE) -> 43085.65416
A57: 549SG | B57: 549SNPPO | C57: Other Operations | E57: 549 | F57: 3 | G57: 73705.1516 | H57: SG | I57: =VLOOKUP(M57,Factors!$B$4:$H$92,7,FALSE) -> 0.4315468105 | J57: 31807.22309 | L57: SNPPO | M57: SNPPO | N57: SG | O57: 73705.1516 | P57: =VLOOKUP(A57,'Test Period - May 2013'!$F$10:$T$406,15,FALSE) -> 73705.1516
A58: =+E58&H58 -> 549SG-W | B58: 549SNPPO-W | C58: Other Operations | E58: 549 | F58: 3 | G58: 1163228.621 | H58: SG-W | I58: =VLOOKUP(M58,Factors!$B$4:$H$92,7,FALSE) -> 0.4315468105 | J58: 501987.6014 | L58: SNPPO-W | M58: SNPPO-W | N58: SG-W | O58: =+P58+Q58+R58+S58+U58+V58+W58+X58 -> 1163228.621 | P58: =VLOOKUP(A58,'Test Period - May 2013'!$F$10:$T$406,15,FALSE) -> 1163228.621
A59: 550SG | B59: 550SNPPO | C59: Other Operations | E59: 550 | F59: 3 | G59: 4059.182633 | H59: SG | I59: =VLOOKUP(M59,Factors!$B$4:$H$92,7,FALSE) -> 0.4315468105 | J59: 1751.727318 | L59: SNPPO | M59: SNPPO | N59: SG | O59: 4059.182633 | P59: =VLOOKUP(A59,'Test Period - May 2013'!$F$10:$T$406,15,FALSE) -> 4059.182633
A60: =+E60&H60 -> 550SG-W | B60: 550SNPPO-W | C60: Other Operations | E60: 550 | F60: 3 | G60: 251370.7315 | H60: SG-W | I60: =VLOOKUP(M60,Factors!$B$4:$H$92,7,FALSE) -> 0.4315468105 | J60: 108478.2374 | L60: SNPPO-W | M60: SNPPO-W | N60: SG-W | O60: =+P60+Q60+R60+S60+U60+V60+W60+X60 -> 251370.7315 | P60: =VLOOKUP(A60,'Test Period - May 2013'!$F$10:$T$406,15,FALSE) -> 251370.7315
A61: =+E61&H61 -> 550SSGCT | B61: 550SNPPO | C61: Other Operations | E61: 550 | F61: 3 | G61: 0 | H61: SSGCT | I61: =VLOOKUP(M61,Factors!$B$4:$H$92,7,FALSE) -> 0.4315468105 | J61: 0 | L61: SNPPO | M61: SNPPO | N61: SSGCT | O61: =+P61+Q61+R61+S61+U61+V61+W61+X61 -> 0 | P61: =VLOOKUP(A61,'Test Period - May 2013'!$F$10:$T$406,15,FALSE) -> 0
A62: 552SG | B62: 552SNPPO | C62: Other Maintenance | E62: 552 | F62: 3 | G62: 103907.4128 | H62: SG | I62: =VLOOKUP(M62,Factors!$B$4:$H$92,7,FALSE) -> 0.4315468105 | J62: 44840.91257 | L62: SNPPO | M62: SNPPO | N62: SG | O62: 103907.4128 | P62: =VLOOKUP(A62,'Test Period - May 2013'!$F$10:$T$406,15,FALSE) -> 103907.4128
A63: 552SSGCT | B63: 552SNPPO | C63: Other Maintenance | E63: 552 | F63: 3 | G63: 3577.470139 | H63: SSGCT | I63: =VLOOKUP(M63,Factors!$B$4:$H$92,7,FALSE) -> 0.4315468105 | J63: 1543.845828 | L63: SNPPO | M63: SNPPO | N63: SSGCT | O63: 3577.470139 | P63: =VLOOKUP(A63,'Test Period - May 2013'!$F$10:$T$406,15,FALSE) -> 3577.470139
A64: 553SG | B64: 553SNPPO | C64: Other Maintenance | E64: 553 | F64: 3 | G64: 201645.5957 | H64: SG | I64: =VLOOKUP(M64,Factors!$B$4:$H$92,7,FALSE) -> 0.4315468105 | J64: 87019.51366 | L64: SNPPO | M64: SNPPO | N64: SG | O64: 201645.5957 | P64: =VLOOKUP(A64,'Test Period - May 2013'!$F$10:$T$406,15,FALSE) -> 201645.5957
A65: =+E65&H65 -> 553SG-W | B65: 553SNPPO-W | C65: Other Maintenance | E65: 553 | F65: 3 | G65: 117432.4504 | H65: SG-W | I65: =VLOOKUP(M65,Factors!$B$4:$H$92,7,FALSE) -> 0.4315468105 | J65: 50677.59943 | L65: SNPPO-W | M65: SNPPO-W | N65: SG-W | O65: =+P65+Q65+R65+S65+U65+V65+W65+X65 -> 117432.4504 | P65: =VLOOKUP(A65,'Test Period - May 2013'!$F$10:$T$406,15,FALSE) -> 117432.4504
A66: 553SSGCT | B66: 553SNPPO | C66: Other Maintenance | E66: 553 | F66: 3 | G66: 16869.38527 | H66: SSGCT | I66: =VLOOKUP(M66,Factors!$B$4:$H$92,7,FALSE) -> 0.4315468105 | J66: 7279.929408 | L66: SNPPO | M66: SNPPO | N66: SSGCT | O66: 16869.38527 | P66: =VLOOKUP(A66,'Test Period - May 2013'!$F$10:$T$406,15,FALSE) -> 16869.38527
A67: 554SG | B67: 554SNPPO | C67: Other Maintenance | E67: 554 | F67: 3 | G67: 10811.96756 | H67: SG | I67: =VLOOKUP(M67,Factors!$B$4:$H$92,7,FALSE) -> 0.4315468105 | J67: 4665.870115 | L67: SNPPO | M67: SNPPO | N67: SG | O67: 10811.96756 | P67: =VLOOKUP(A67,'Test Period - May 2013'!$F$10:$T$406,15,FALSE) -> 10811.96756
A68: =+E68&H68 -> 554SG-W | B68: 554SNPPO-W | C68: Other Maintenance | E68: 554 | F68: 3 | G68: 103812.1428 | H68: SG-W | I68: =VLOOKUP(M68,Factors!$B$4:$H$92,7,FALSE) -> 0.4315468105 | J68: 44799.79911 | L68: SNPPO-W | M68: SNPPO-W | N68: SG-W | O68: =+P68+Q68+R68+S68+U68+V68+W68+X68 -> 103812.1428 | P68: =VLOOKUP(A68,'Test Period - May 2013'!$F$10:$T$406,15,FALSE) -> 103812.1428
A69: 554SSGCT | B69: 554SNPPO | C69: Other Maintenance | E69: 554 | F69: 3 | G69: 2816.999804 | H69: SSGCT | I69: =VLOOKUP(M69,Factors!$B$4:$H$92,7,FALSE) -> 0.4315468105 | J69: 1215.66728 | L69: SNPPO | M69: SNPPO | N69: SSGCT | O69: 2816.999804 | P69: =VLOOKUP(A69,'Test Period - May 2013'!$F$10:$T$406,15,FALSE) -> 2816.999804
A70: 556SG | B70: 556SG | C70: Other Operations | E70: 556 | F70: 3 | G70: 42652.75449 | H70: SG | I70: =VLOOKUP(M70,Factors!$B$4:$H$92,7,FALSE) -> 0.4315468105 | J70: 18406.66016 | L70: SG | M70: SG | N70: SG | O70: 42652.75449 | P70: =VLOOKUP(A70,'Test Period - May 2013'!$F$10:$T$406,15,FALSE) -> 42652.75449
A71: 557Situs | B71: 557Situs | C71: Other Operations | E71: 557 | F71: 3 | G71: 587301.963 | H71: Situs | J71: =V71 -> 0 | L71: Situs | M71: Situs | N71: Situs | O71: 587301.963 | P71: 0 | Q71: 0 | R71: =VLOOKUP($E$71&R7,'Test Period - May 2013'!$F$10:$T$407,15,FALSE) -> -3573.093424 | S71: =VLOOKUP($E$71&S7,'Test Period - May 2013'!$F$10:$T$407,15,FALSE) -> -6441.045056 | T71: =+U71+X71 -> 0 | U71: 0 | V71: 0 | W71: =VLOOKUP($E$71&W7,'Test Period - May 2013'!$F$10:$T$407,15,FALSE) -> 597316.1014 | X71: 0
A72: 557SG | B72: 557SG | C72: Other Operations | E72: 557 | F72: 3 | G72: 1048340.539 | H72: SG | I72: =VLOOKUP(M72,Factors!$B$4:$H$92,7,FALSE) -> 0.4315468105 | J72: 452408.0157 | L72: SG | M72: SG | N72: SG | O72: 1048340.539 | P72: =VLOOKUP(A72,'Test Period - May 2013'!$F$10:$T$406,15,FALSE) -> 1048340.539
A73: 557SGCT | B73: =E73&L73 -> 557SGCT | C73: Other Operations | E73: 557 | F73: 3 | G73: 74527.09471 | H73: SGCT | I73: =VLOOKUP(M73,Factors!$B$4:$H$92,7,FALSE) -> 0.4330047884 | J73: 32270.58888 | L73: SGCT | M73: SGCT | N73: SGCT | O73: 74527.09471 | P73: =VLOOKUP(A73,'Test Period - May 2013'!$F$10:$T$406,15,FALSE) -> 74527.09471
A74: 557SSGCT | B74: 557SG | C74: Other Operations | E74: 557 | F74: 3 | G74: =SUM(P74:S74,U74:X74) -> 0 | H74: =N74 -> SSGCT | I74: =VLOOKUP(M74,Factors!$B$4:$H$92,7,FALSE) -> 0.4315468105 | J74: =I74*G74 -> 0 | L74: SG | M74: SG | N74: SSGCT | O74: 0 | P74: =VLOOKUP(A74,'Test Period - May 2013'!$F$10:$T$406,15,FALSE) -> 0
A75: 560SG | B75: 560SNPT | C75: Transmission Operations | E75: 560 | F75: 3 | G75: 40104.30782 | H75: SG | I75: =VLOOKUP(M75,Factors!$B$4:$H$92,7,FALSE) -> 0.4315468105 | J75: 17306.88613 | L75: SNPT | M75: SNPT | N75: SG | O75: 40104.30782 | P75: =VLOOKUP(A75,'Test Period - May 2013'!$F$10:$T$406,15,FALSE) -> 40104.30782
A76: 561SG | B76: 561SNPT | C76: Transmission Operations | E76: 561 | F76: 3 | G76: 82068.33904 | H76: SG | I76: =VLOOKUP(M76,Factors!$B$4:$H$92,7,FALSE) -> 0.4315468105 | J76: 35416.32995 | L76: SNPT | M76: SNPT | N76: SG | O76: 82068.33904 | P76: =VLOOKUP(A76,'Test Period - May 2013'!$F$10:$T$406,15,FALSE) -> 82068.33904
A77: 562SG | B77: 562SNPT | C77: Transmission Operations | E77: 562 | F77: 3 | G77: 81446.64275 | H77: SG | I77: =VLOOKUP(M77,Factors!$B$4:$H$92,7,FALSE) -> 0.4315468105 | J77: 35148.0389 | L77: SNPT | M77: SNPT | N77: SG | O77: 81446.64275 | P77: =VLOOKUP(A77,'Test Period - May 2013'!$F$10:$T$406,15,FALSE) -> 81446.64275
A78: 563SG | B78: 563SNPT | C78: Transmission Operations | E78: 563 | F78: 3 | G78: 1572.149065 | H78: SG | I78: =VLOOKUP(M78,Factors!$B$4:$H$92,7,FALSE) -> 0.4315468105 | J78: 678.4559148 | L78: SNPT | M78: SNPT | N78: SG | O78: 1572.149065 | P78: =VLOOKUP(A78,'Test Period - May 2013'!$F$10:$T$406,15,FALSE) -> 1572.149065
A79: 566SG | B79: 566SNPT | C79: Transmission Operations | E79: 566 | F79: 3 | G79: 158089.5874 | H79: SG | I79: =VLOOKUP(M79,Factors!$B$4:$H$92,7,FALSE) -> 0.4315468105 | J79: 68223.05722 | L79: SNPT | M79: SNPT | N79: SG | O79: 158089.5874 | P79: =VLOOKUP(A79,'Test Period - May 2013'!$F$10:$T$406,15,FALSE) -> 158089.5874
A80: 567SG | B80: 567SNPT | C80: Transmission Operations | E80: 567 | F80: 3 | G80: 86617.99644 | H80: SG | I80: =VLOOKUP(M80,Factors!$B$4:$H$92,7,FALSE) -> 0.4315468105 | J80: 37379.72009 | L80: SNPT | M80: SNPT | N80: SG | O80: 86617.99644 | P80: =VLOOKUP(A80,'Test Period - May 2013'!$F$10:$T$406,15,FALSE) -> 86617.99644
A81: =+E81&H81 -> 568SG | B81: 568SNPT | C81: Transmission Maintenance | E81: 568 | F81: 3 | G81: 19478.25301 | H81: SG | I81: =VLOOKUP(M81,Factors!$B$4:$H$92,7,FALSE) -> 0.4315468105 | J81: 8405.777962 | L81: SNPT | M81: SNPT | N81: SG | O81: =+P81+Q81+R81+S81+U81+V81+W81+X81 -> 19478.25301 | P81: =VLOOKUP(A81,'Test Period - May 2013'!$F$10:$T$406,15,FALSE) -> 19478.25301
A82: 569SG | B82: 569SNPT | C82: Transmission Maintenance | E82: 569 | F82: 3 | G82: 118423.2396 | H82: SG | I82: =VLOOKUP(M82,Factors!$B$4:$H$92,7,FALSE) -> 0.4315468105 | J82: 51105.17133 | L82: SNPT | M82: SNPT | N82: SG | O82: 118423.2396 | P82: =VLOOKUP(A82,'Test Period - May 2013'!$F$10:$T$406,15,FALSE) -> 118423.2396
A83: 570SG | B83: 570SNPT | C83: Transmission Maintenance | E83: 570 | F83: 3 | G83: 186940.2198 | H83: SG | I83: =VLOOKUP(M83,Factors!$B$4:$H$92,7,FALSE) -> 0.4315468105 | J83: 80673.45562 | L83: SNPT | M83: SNPT | N83: SG | O83: 186940.2198 | P83: =VLOOKUP(A83,'Test Period - May 2013'!$F$10:$T$406,15,FALSE) -> 186940.2198
A84: 571SG | B84: 571SNPT | C84: Transmission Maintenance | E84: 571 | F84: 3 | G84: 1236948.567 | H84: SG | I84: =VLOOKUP(M84,Factors!$B$4:$H$92,7,FALSE) -> 0.4315468105 | J84: 533801.2086 | L84: SNPT | M84: SNPT | N84: SG | O84: 1236948.567 | P84: =VLOOKUP(A84,'Test Period - May 2013'!$F$10:$T$406,15,FALSE) -> 1236948.567
A85: 572SG | B85: 572SNPT | C85: Transmission Maintenance | E85: 572 | F85: 3 | G85: 3505.920155 | H85: SG | I85: =VLOOKUP(M85,Factors!$B$4:$H$92,7,FALSE) -> 0.4315468105 | J85: 1512.968661 | L85: SNPT | M85: SNPT | N85: SG | O85: 3505.920155 | P85: =VLOOKUP(A85,'Test Period - May 2013'!$F$10:$T$406,15,FALSE) -> 3505.920155
A86: 573SG | B86: 573SNPT | C86: Transmission Maintenance | E86: 573 | F86: 3 | G86: 14316.42748 | H86: SG | I86: =VLOOKUP(M86,Factors!$B$4:$H$92,7,FALSE) -> 0.4315468105 | J86: 6178.208615 | L86: SNPT | M86: SNPT | N86: SG | O86: 14316.42748 | P86: =VLOOKUP(A86,'Test Period - May 2013'!$F$10:$T$406,15,FALSE) -> 14316.42748
A87: 580Situs | B87: 580Situs | C87: Distribution Operations | E87: 580 | F87: 3 | G87: 2303.446709 | H87: Situs | J87: =V87 -> 2282.60349 | L87: Situs | M87: Situs | N87: Situs | O87: 2303.446709 | P87: 0 | Q87: =VLOOKUP($E$87&Q7,'Test Period - May 2013'!$F$10:$T$407,15,FALSE) -> 1549.183948 | R87: =VLOOKUP($E$87&R7,'Test Period - May 2013'!$F$10:$T$407,15,FALSE) -> -41.65982066 | S87: =VLOOKUP($E$87&S7,'Test Period - May 2013'!$F$10:$T$407,15,FALSE) -> 919.8732584 | T87: =+U87+X87 -> -749.1014788 | U87: =VLOOKUP($E$87&U7,'Test Period - May 2013'!$F$10:$T$407,15,FALSE) -> -749.1014788 | V87: =VLOOKUP($E$87&V7,'Test Period - May 2013'!$F$10:$T$407,15,FALSE) -> 2282.60349 | W87: =VLOOKUP($E$87&W7,'Test Period - May 2013'!$F$10:$T$407,15,FALSE) -> -1657.452689 | X87: =VLOOKUP($E$87&X7,'Test Period - May 2013'!$F$10:$T$407,15,FALSE) -> 0
A88: 580SNPD | B88: 580SNPD | C88: Distribution Operations | E88: 580 | F88: 3 | G88: 13220.27962 | H88: SNPD | I88: =VLOOKUP(M88,Factors!$B$4:$H$92,7,FALSE) -> 0.4809193371 | J88: 6357.888111 | L88: SNPD | M88: SNPD | N88: SNPD | O88: 13220.27962 | P88: =VLOOKUP(A88,'Test Period - May 2013'!$F$10:$T$406,15,FALSE) -> 13220.27962
A89: 581SNPD | B89: 581SNPD | C89: Distribution Operations | E89: 581 | F89: 3 | G89: 23610.41816 | H89: SNPD | I89: =VLOOKUP(M89,Factors!$B$4:$H$92,7,FALSE) -> 0.4809193371 | J89: 11354.70665 | L89: SNPD | M89: SNPD | N89: SNPD | O89: 23610.41816 | P89: =VLOOKUP(A89,'Test Period - May 2013'!$F$10:$T$406,15,FALSE) -> 23610.41816
A90: 582Situs | B90: 582Situs | C90: Distribution Operations | E90: 582 | F90: 3 | G90: 92666.67315 | H90: Situs | J90: =V90 -> 44087.59436 | L90: Situs | M90: Situs | N90: Situs | O90: 92666.67315 | P90: 0 | Q90: =VLOOKUP($E$90&Q7,'Test Period - May 2013'!$F$10:$T$407,15,FALSE) -> 2207.805047 | R90: =VLOOKUP($E$90&R7,'Test Period - May 2013'!$F$10:$T$407,15,FALSE) -> 20968.48473 | S90: =VLOOKUP($E$90&S7,'Test Period - May 2013'!$F$10:$T$407,15,FALSE) -> 6484.552001 | T90: =+U90+X90 -> 11201.84212 | U90: =VLOOKUP($E$90&U7,'Test Period - May 2013'!$F$10:$T$407,15,FALSE) -> 11201.84212 | V90: =VLOOKUP($E$90&V7,'Test Period - May 2013'!$F$10:$T$407,15,FALSE) -> 44087.59436 | W90: =VLOOKUP($E$90&W7,'Test Period - May 2013'!$F$10:$T$407,15,FALSE) -> 7716.394882 | X90: 0
A91: 582SNPD | B91: 582SNPD | C91: Distribution Operations | E91: 582 | F91: 3 | G91: 338.4840709 | H91: SNPD | I91: =VLOOKUP(M91,Factors!$B$4:$H$92,7,FALSE) -> 0.4809193371 | J91: 162.783535 | L91: SNPD | M91: SNPD | N91: SNPD | O91: 338.4840709 | P91: =VLOOKUP(A91,'Test Period - May 2013'!$F$10:$T$406,15,FALSE) -> 338.4840709
A92: 583Situs | B92: 583Situs | C92: Distribution Operations | E92: 583 | F92: 3 | G92: 46964.86449 | H92: Situs | J92: =V92 -> 14820.05309 | L92: Situs | M92: Situs | N92: Situs | O92: 46964.86449 | P92: 0 | Q92: =VLOOKUP($E$92&Q7,'Test Period - May 2013'!$F$10:$T$407,15,FALSE) -> 1893.563948 | R92: =VLOOKUP($E$92&R7,'Test Period - May 2013'!$F$10:$T$407,15,FALSE) -> 20924.92238 | S92: =VLOOKUP($E$92&S7,'Test Period - May 2013'!$F$10:$T$407,15,FALSE) -> 2390.854107 | T92: =+U92+X92 -> 5407.586687 | U92: =VLOOKUP($E$92&U7,'Test Period - May 2013'!$F$10:$T$407,15,FALSE) -> 4074.357626 | V92: =VLOOKUP($E$92&V7,'Test Period - May 2013'!$F$10:$T$407,15,FALSE) -> 14820.05309 | W92: =VLOOKUP($E$92&W7,'Test Period - May 2013'!$F$10:$T$407,15,FALSE) -> 1527.884277 | X92: =VLOOKUP($E$92&X7,'Test Period - May 2013'!$F$10:$T$407,15,FALSE) -> 1333.229061
A93: 583SNPD | B93: 583SNPD | C93: Distribution Operations | E93: 583 | F93: 3 | G93: 358.9358956 | H93: SNPD | I93: =VLOOKUP(M93,Factors!$B$4:$H$92,7,FALSE) -> 0.4809193371 | J93: 172.619213 | L93: SNPD | M93: SNPD | N93: SNPD | O93: 358.9358956 | P93: =VLOOKUP(A93,'Test Period - May 2013'!$F$10:$T$406,15,FALSE) -> 358.9358956
A94: 584Situs | B94: 584Situs | C94: Distribution Operations | E94: 584 | F94: 3 | G94: 13.9909702 | H94: Situs | J94: =V94 -> 13.413701 | L94: Situs | M94: Situs | N94: Situs | O94: 13.9909702 | P94: 0 | Q94: =VLOOKUP($E$94&Q7,'Test Period - May 2013'!$F$10:$T$407,15,FALSE) -> 0 | R94: =VLOOKUP($E$94&R7,'Test Period - May 2013'!$F$10:$T$407,15,FALSE) -> 0 | S94: =VLOOKUP($E$94&S7,'Test Period - May 2013'!$F$10:$T$407,15,FALSE) -> 0 | T94: =+U94+X94 -> 0 | U94: =VLOOKUP($E$94&U7,'Test Period - May 2013'!$F$10:$T$407,15,FALSE) -> 0 | V94: =VLOOKUP($E$94&V7,'Test Period - May 2013'!$F$10:$T$407,15,FALSE) -> 13.413701 | W94: =VLOOKUP($E$94&W7,'Test Period - May 2013'!$F$10:$T$407,15,FALSE) -> 0.5772691934 | X94: =VLOOKUP($E$94&X7,'Test Period - May 2013'!$F$10:$T$407,15,FALSE) -> 0
A95: 585SNPD | B95: 585SNPD | C95: Distribution Operations | E95: 585 | F95: 3 | G95: -92.70818048 | H95: SNPD | I95: =VLOOKUP(M95,Factors!$B$4:$H$92,7,FALSE) -> 0.4809193371 | J95: -44.5851567 | L95: SNPD | M95: SNPD | N95: SNPD | O95: -92.70818048 | P95: =VLOOKUP(A95,'Test Period - May 2013'!$F$10:$T$406,15,FALSE) -> -92.70818048
A96: 586Situs | B96: 586Situs | C96: Distribution Operations | E96: 586 | F96: 3 | G96: 46883.88409 | H96: Situs | J96: =V96 -> 11248.12384 | L96: Situs | M96: Situs | N96: Situs | O96: 46883.88409 | P96: 0 | Q96: =VLOOKUP($E$96&Q7,'Test Period - May 2013'!$F$10:$T$407,15,FALSE) -> 1773.896573 | R96: =VLOOKUP($E$96&R7,'Test Period - May 2013'!$F$10:$T$407,15,FALSE) -> 23199.01775 | S96: =VLOOKUP($E$96&S7,'Test Period - May 2013'!$F$10:$T$407,15,FALSE) -> 3826.012611 | T96: =+U96+X96 -> 4377.648032 | U96: =VLOOKUP($E$96&U7,'Test Period - May 2013'!$F$10:$T$407,15,FALSE) -> 3962.829737 | V96: =VLOOKUP($E$96&V7,'Test Period - May 2013'!$F$10:$T$407,15,FALSE) -> 11248.12384 | W96: =VLOOKUP($E$96&W7,'Test Period - May 2013'!$F$10:$T$407,15,FALSE) -> 2459.185286 | X96: =VLOOKUP($E$96&X7,'Test Period - May 2013'!$F$10:$T$407,15,FALSE) -> 414.8182957
A97: 586SNPD | B97: 586SNPD | C97: Distribution Operations | E97: 586 | F97: 3 | G97: 12935.17561 | H97: SNPD | I97: =VLOOKUP(M97,Factors!$B$4:$H$92,7,FALSE) -> 0.4809193371 | J97: 6220.776077 | L97: SNPD | M97: SNPD | N97: SNPD | O97: 12935.17561 | P97: =VLOOKUP(A97,'Test Period - May 2013'!$F$10:$T$406,15,FALSE) -> 12935.17561
A98: 587Situs | B98: 587Situs | C98: Distribution Operations | E98: 587 | F98: 3 | G98: 102347.7074 | H98: Situs | J98: =V98 -> 46096.11436 | L98: Situs | M98: Situs | N98: Situs | O98: 102347.7074 | P98: 0 | Q98: =VLOOKUP($E$98&Q7,'Test Period - May 2013'!$F$10:$T$407,15,FALSE) -> 4472.3452 | R98: =VLOOKUP($E$98&R7,'Test Period - May 2013'!$F$10:$T$407,15,FALSE) -> 32660.74414 | S98: =VLOOKUP($E$98&S7,'Test Period - May 2013'!$F$10:$T$407,15,FALSE) -> 7910.259216 | T98: =+U98+X98 -> 8254.572412 | U98: =VLOOKUP($E$98&U7,'Test Period - May 2013'!$F$10:$T$407,15,FALSE) -> 7771.224951 | V98: =VLOOKUP($E$98&V7,'Test Period - May 2013'!$F$10:$T$407,15,FALSE) -> 46096.11436 | W98: =VLOOKUP($E$98&W7,'Test Period - May 2013'!$F$10:$T$407,15,FALSE) -> 2953.672025 | X98: =VLOOKUP($E$98&X7,'Test Period - May 2013'!$F$10:$T$407,15,FALSE) -> 483.3474606
A99: =+E99&H99 -> 587SNPD | B99: 587SNPD | C99: Distribution Operations | E99: 587 | F99: 3 | G99: 0 | H99: SNPD | I99: =VLOOKUP(M99,Factors!$B$4:$H$92,7,FALSE) -> 0.4809193371 | J99: 0 | L99: SNPD | M99: SNPD | N99: SNPD | O99: =+P99+Q99+R99+S99+U99+V99+W99+X99 -> 0 | P99: =VLOOKUP(A99,'Test Period - May 2013'!$F$10:$T$406,15,FALSE) -> 0
A100: 588Situs | B100: 588Situs | C100: Distribution Operations | E100: 588 | F100: 3 | G100: 26445.43905 | H100: Situs | J100: =V100 -> 16221.67222 | L100: Situs | M100: Situs | N100: Situs | O100: 26445.43905 | P100: 0 | Q100: =VLOOKUP($E$100&Q7,'Test Period - May 2013'!$F$10:$T$407,15,FALSE) -> 1624.618558 | R100: =VLOOKUP($E$100&R7,'Test Period - May 2013'!$F$10:$T$407,15,FALSE) -> 9398.397617 | S100: =VLOOKUP($E$100&S7,'Test Period - May 2013'!$F$10:$T$407,15,FALSE) -> 2286.822037 | T100: =+U100+X100 -> -1866.49068 | U100: =VLOOKUP($E$100&U7,'Test Period - May 2013'!$F$10:$T$407,15,FALSE) -> -1648.217576 | V100: =VLOOKUP($E$100&V7,'Test Period - May 2013'!$F$10:$T$407,15,FALSE) -> 16221.67222 | W100: =VLOOKUP($E$100&W7,'Test Period - May 2013'!$F$10:$T$407,15,FALSE) -> -1219.5807 | X100: =VLOOKUP($E$100&X7,'Test Period - May 2013'!$F$10:$T$407,15,FALSE) -> -218.2731044
A101: 588SNPD | B101: 588SNPD | C101: Distribution Operations | E101: 588 | F101: 3 | G101: 122926.941 | H101: SNPD | I101: =VLOOKUP(M101,Factors!$B$4:$H$92,7,FALSE) -> 0.4809193371 | J101: 59117.943 | L101: SNPD | M101: SNPD | N101: SNPD | O101: 122926.941 | P101: =VLOOKUP(A101,'Test Period - May 2013'!$F$10:$T$406,15,FALSE) -> 122926.941
A102: 589Situs | B102: 589Situs | C102: Distribution Operations | E102: 589 | F102: 3 | G102: 150064.4446 | H102: Situs | J102: =V102 -> 28001.52704 | L102: Situs | M102: Situs | N102: Situs | O102: 150064.4446 | P102: 0 | Q102: =VLOOKUP($E$102&Q7,'Test Period - May 2013'!$F$10:$T$407,15,FALSE) -> 3488.592723 | R102: =VLOOKUP($E$102&R7,'Test Period - May 2013'!$F$10:$T$407,15,FALSE) -> 83858.30031 | S102: =VLOOKUP($E$102&S7,'Test Period - May 2013'!$F$10:$T$407,15,FALSE) -> 5679.276422 | T102: =+U102+X102 -> 28259.13019 | U102: =VLOOKUP($E$102&U7,'Test Period - May 2013'!$F$10:$T$407,15,FALSE) -> 25733.4903 | V102: =VLOOKUP($E$102&V7,'Test Period - May 2013'!$F$10:$T$407,15,FALSE) -> 28001.52704 | W102: =VLOOKUP($E$102&W7,'Test Period - May 2013'!$F$10:$T$407,15,FALSE) -> 777.6178717 | X102: =VLOOKUP($E$102&X7,'Test Period - May 2013'!$F$10:$T$407,15,FALSE) -> 2525.639895
A103: 589SNPD | B103: 589SNPD | C103: Distribution Operations | E103: 589 | F103: 3 | G103: 3240.836602 | H103: SNPD | I103: =VLOOKUP(M103,Factors!$B$4:$H$92,7,FALSE) -> 0.4809193371 | J103: 1558.58099 | L103: SNPD | M103: SNPD | N103: SNPD | O103: 3240.836602 | P103: =VLOOKUP(A103,'Test Period - May 2013'!$F$10:$T$406,15,FALSE) -> 3240.836602
A104: 590Situs | B104: 590Situs | C104: Distribution Maintenance | E104: 590 | F104: 3 | G104: 9837.162 | H104: Situs | J104: =V104 -> 3173.988336 | L104: Situs | M104: Situs | N104: Situs | O104: 9837.162 | P104: 0 | Q104: =VLOOKUP($E$104&Q7,'Test Period - May 2013'!$F$10:$T$407,15,FALSE) -> 255.4036117 | R104: =VLOOKUP($E$104&R7,'Test Period - May 2013'!$F$10:$T$407,15,FALSE) -> 4316.460067 | S104: =VLOOKUP($E$104&S7,'Test Period - May 2013'!$F$10:$T$407,15,FALSE) -> 296.0686152 | T104: =+U104+X104 -> 1231.199501 | U104: =VLOOKUP($E$104&U7,'Test Period - May 2013'!$F$10:$T$407,15,FALSE) -> 1231.199501 | V104: =VLOOKUP($E$104&V7,'Test Period - May 2013'!$F$10:$T$407,15,FALSE) -> 3173.988336 | W104: =VLOOKUP($E$104&W7,'Test Period - May 2013'!$F$10:$T$407,15,FALSE) -> 564.0418685 | X104: 0
A105: 590SNPD | B105: =E105&L105 -> 590SNPD | C105: Distribution Maintenance | E105: 590 | F105: 3 | G105: 3183.150972 | H105: SNPD | I105: =VLOOKUP(M105,Factors!$B$4:$H$92,7,FALSE) -> 0.4809193371 | J105: 1530.838855 | L105: SNPD | M105: SNPD | N105: SNPD | O105: 3183.150972 | P105: =VLOOKUP(A105,'Test Period - May 2013'!$F$10:$T$406,15,FALSE) -> 3183.150972
A106: 591Situs | B106: 591Situs | C106: Distribution Maintenance | E106: 591 | F106: 3 | G106: 107742.438 | H106: Situs | J106: =V106 -> 44101.49737 | L106: Situs | M106: Situs | N106: Situs | O106: 107742.438 | P106: 0 | Q106: =VLOOKUP($E$106&Q7,'Test Period - May 2013'!$F$10:$T$407,15,FALSE) -> 1619.555893 | R106: =VLOOKUP($E$106&R7,'Test Period - May 2013'!$F$10:$T$407,15,FALSE) -> 30717.06226 | S106: =VLOOKUP($E$106&S7,'Test Period - May 2013'!$F$10:$T$407,15,FALSE) -> 5717.219572 | T106: =+U106+X106 -> 17395.35223 | U106: =VLOOKUP($E$106&U7,'Test Period - May 2013'!$F$10:$T$407,15,FALSE) -> 12193.81194 | V106: =VLOOKUP($E$106&V7,'Test Period - May 2013'!$F$10:$T$407,15,FALSE) -> 44101.49737 | W106: =VLOOKUP($E$106&W7,'Test Period - May 2013'!$F$10:$T$407,15,FALSE) -> 8191.750667 | X106: =VLOOKUP($E$106&X7,'Test Period - May 2013'!$F$10:$T$407,15,FALSE) -> 5201.54029
A107: 591SNPD | B107: 591SNPD | C107: Distribution Maintenance | E107: 591 | F107: 3 | G107: 5189.866098 | H107: SNPD | I107: =VLOOKUP(M107,Factors!$B$4:$H$92,7,FALSE) -> 0.4809193371 | J107: 2495.906963 | L107: SNPD | M107: SNPD | N107: SNPD | O107: 5189.866098 | P107: =VLOOKUP(A107,'Test Period - May 2013'!$F$10:$T$406,15,FALSE) -> 5189.866098
A108: 592Situs | B108: 592Situs | C108: Distribution Maintenance | E108: 592 | F108: 3 | G108: 320203.5265 | H108: Situs | J108: =V108 -> 108696.6503 | L108: Situs | M108: Situs | N108: Situs | O108: 320203.5265 | P108: 0 | Q108: =VLOOKUP($E$108&Q7,'Test Period - May 2013'!$F$10:$T$407,15,FALSE) -> 14453.59427 | R108: =VLOOKUP($E$108&R7,'Test Period - May 2013'!$F$10:$T$407,15,FALSE) -> 122505.7271 | S108: =VLOOKUP($E$108&S7,'Test Period - May 2013'!$F$10:$T$407,15,FALSE) -> 17858.86863 | T108: =+U108+X108 -> 35933.14563 | U108: =VLOOKUP($E$108&U7,'Test Period - May 2013'!$F$10:$T$407,15,FALSE) -> 35972.92338 | V108: =VLOOKUP($E$108&V7,'Test Period - May 2013'!$F$10:$T$407,15,FALSE) -> 108696.6503 | W108: =VLOOKUP($E$108&W7,'Test Period - May 2013'!$F$10:$T$407,15,FALSE) -> 20755.54059 | X108: =VLOOKUP($E$108&X7,'Test Period - May 2013'!$F$10:$T$407,15,FALSE) -> -39.77775303
A109: 592SNPD | B109: 592SNPD | C109: Distribution Maintenance | E109: 592 | F109: 3 | G109: 1841.239343 | H109: SNPD | I109: =VLOOKUP(M109,Factors!$B$4:$H$92,7,FALSE) -> 0.4809193371 | J109: 885.4876044 | L109: SNPD | M109: SNPD | N109: SNPD | O109: 1841.239343 | P109: =VLOOKUP(A109,'Test Period - May 2013'!$F$10:$T$406,15,FALSE) -> 1841.239343
A110: 593Situs | B110: 593Situs | C110: Distribution Maintenance | E110: 593 | F110: 3 | G110: 3990887.568 | H110: Situs | J110: =V110 -> 1683989.826 | L110: Situs | M110: Situs | N110: Situs | O110: 3990887.568 | P110: 0 | Q110: =VLOOKUP($E$110&Q7,'Test Period - May 2013'!$F$10:$T$407,15,FALSE) -> 265515.035 | R110: =VLOOKUP($E$110&R7,'Test Period - May 2013'!$F$10:$T$407,15,FALSE) -> 1243783.828 | S110: =VLOOKUP($E$110&S7,'Test Period - May 2013'!$F$10:$T$407,15,FALSE) -> 244987.8052 | T110: =+U110+X110 -> 355745.0245 | U110: =VLOOKUP($E$110&U7,'Test Period - May 2013'!$F$10:$T$407,15,FALSE) -> 283998.1023 | V110: =VLOOKUP($E$110&V7,'Test Period - May 2013'!$F$10:$T$407,15,FALSE) -> 1683989.826 | W110: =VLOOKUP($E$110&W7,'Test Period - May 2013'!$F$10:$T$407,15,FALSE) -> 196866.0486 | X110: =VLOOKUP($E$110&X7,'Test Period - May 2013'!$F$10:$T$407,15,FALSE) -> 71746.92225
A111: 593SNPD | B111: 593SNPD | C111: Distribution Maintenance | E111: 593 | F111: 3 | G111: 46292.27792 | H111: SNPD | I111: =VLOOKUP(M111,Factors!$B$4:$H$92,7,FALSE) -> 0.4809193371 | J111: 22262.85161 | L111: SNPD | M111: SNPD | N111: SNPD | O111: 46292.27792 | P111: =VLOOKUP(A111,'Test Period - May 2013'!$F$10:$T$406,15,FALSE) -> 46292.27792
A112: 594Situs | B112: 594Situs | C112: Distribution Maintenance | E112: 594 | F112: 3 | G112: 594080.4362 | H112: Situs | J112: =V112 -> 331014.3035 | L112: Situs | M112: Situs | N112: Situs | O112: 594080.4362 | P112: 0 | Q112: =VLOOKUP($E$112&Q7,'Test Period - May 2013'!$F$10:$T$407,15,FALSE) -> 7506.603722 | R112: =VLOOKUP($E$112&R7,'Test Period - May 2013'!$F$10:$T$407,15,FALSE) -> 123828.7156 | S112: =VLOOKUP($E$112&S7,'Test Period - May 2013'!$F$10:$T$407,15,FALSE) -> 21945.60931 | T112: =+U112+X112 -> 91837.28109 | U112: =VLOOKUP($E$112&U7,'Test Period - May 2013'!$F$10:$T$407,15,FALSE) -> 82682.00692 | V112: =VLOOKUP($E$112&V7,'Test Period - May 2013'!$F$10:$T$407,15,FALSE) -> 331014.3035 | W112: =VLOOKUP($E$112&W7,'Test Period - May 2013'!$F$10:$T$407,15,FALSE) -> 17947.92297 | X112: =VLOOKUP($E$112&X7,'Test Period - May 2013'!$F$10:$T$407,15,FALSE) -> 9155.27417
A113: 594SNPD | B113: 594SNPD | C113: Distribution Maintenance | E113: 594 | F113: 3 | G113: 12.84224746 | H113: SNPD | I113: =VLOOKUP(M113,Factors!$B$4:$H$92,7,FALSE) -> 0.4809193371 | J113: 6.176085135 | L113: SNPD | M113: SNPD | N113: SNPD | O113: 12.84224746 | P113: =VLOOKUP(A113,'Test Period - May 2013'!$F$10:$T$406,15,FALSE) -> 12.84224746
A114: 595Situs | B114: 595Situs | C114: Distribution Maintenance | E114: 595 | F114: 3 | G114: 0 | H114: Situs | J114: =V114 -> 0 | L114: Situs | M114: Situs | N114: Situs | O114: 0 | P114: 0 | Q114: =VLOOKUP($E$114&Q7,'Test Period - May 2013'!$F$10:$T$407,15,FALSE) -> 0 | R114: =VLOOKUP($E$114&R7,'Test Period - May 2013'!$F$10:$T$407,15,FALSE) -> 0 | S114: =VLOOKUP($E$114&S7,'Test Period - May 2013'!$F$10:$T$407,15,FALSE) -> 0 | T114: =+U114+X114 -> 0 | U114: =VLOOKUP($E$114&U7,'Test Period - May 2013'!$F$10:$T$407,15,FALSE) -> 0 | V114: =VLOOKUP($E$114&V7,'Test Period - May 2013'!$F$10:$T$407,15,FALSE) -> 0 | W114: =VLOOKUP($E$114&W7,'Test Period - May 2013'!$F$10:$T$407,15,FALSE) -> 0 | X114: 0
A115: 595SNPD | B115: 595SNPD | C115: Distribution Maintenance | E115: 595 | F115: 3 | G115: 13827.71558 | H115: SNPD | I115: =VLOOKUP(M115,Factors!$B$4:$H$92,7,FALSE) -> 0.4809193371 | J115: 6650.01581 | L115: SNPD | M115: SNPD | N115: SNPD | O115: 13827.71558 | P115: =VLOOKUP(A115,'Test Period - May 2013'!$F$10:$T$406,15,FALSE) -> 13827.71558
A116: 596Situs | B116: 596Situs | C116: Distribution Maintenance | E116: 596 | F116: 3 | G116: 133109.4131 | H116: Situs | J116: =V116 -> 99983.39339 | L116: Situs | M116: Situs | N116: Situs | O116: 133109.4131 | P116: 0 | Q116: =VLOOKUP($E$116&Q7,'Test Period - May 2013'!$F$10:$T$407,15,FALSE) -> 1419.55274 | R116: =VLOOKUP($E$116&R7,'Test Period - May 2013'!$F$10:$T$407,15,FALSE) -> 16475.55675 | S116: =VLOOKUP($E$116&S7,'Test Period - May 2013'!$F$10:$T$407,15,FALSE) -> 2194.541982 | T116: =+U116+X116 -> 11014.64276 | U116: =VLOOKUP($E$116&U7,'Test Period - May 2013'!$F$10:$T$407,15,FALSE) -> 7634.146068 | V116: =VLOOKUP($E$116&V7,'Test Period - May 2013'!$F$10:$T$407,15,FALSE) -> 99983.39339 | W116: =VLOOKUP($E$116&W7,'Test Period - May 2013'!$F$10:$T$407,15,FALSE) -> 2021.725449 | X116: =VLOOKUP($E$116&X7,'Test Period - May 2013'!$F$10:$T$407,15,FALSE) -> 3380.496695
A117: 597Situs | B117: 597Situs | C117: Distribution Maintenance | E117: 597 | F117: 3 | G117: 55190.98918 | H117: Situs | J117: 29607.29341 | L117: Situs | M117: Situs | N117: Situs | O117: 55190.98918 | P117: 0 | Q117: =VLOOKUP($E$117&Q7,'Test Period - May 2013'!$F$10:$T$407,15,FALSE) -> 700.8313932 | R117: =VLOOKUP($E$117&R7,'Test Period - May 2013'!$F$10:$T$407,15,FALSE) -> 10085.87538 | S117: =VLOOKUP($E$117&S7,'Test Period - May 2013'!$F$10:$T$407,15,FALSE) -> 6058.715797 | T117: =+U117+X117 -> 5832.979033 | U117: =VLOOKUP($E$117&U7,'Test Period - May 2013'!$F$10:$T$407,15,FALSE) -> 4927.8047 | V117: =VLOOKUP($E$117&V7,'Test Period - May 2013'!$F$10:$T$407,15,FALSE) -> 29607.29341 | W117: =VLOOKUP($E$117&W7,'Test Period - May 2013'!$F$10:$T$407,15,FALSE) -> 2905.294158 | X117: =VLOOKUP($E$117&X7,'Test Period - May 2013'!$F$10:$T$407,15,FALSE) -> 905.1743333
A118: 597SNPD | B118: 597SNPD | C118: Distribution Maintenance | E118: 597 | F118: 3 | G118: 7382.203849 | H118: SNPD | I118: =VLOOKUP(M118,Factors!$B$4:$H$92,7,FALSE) -> 0.4809193371 | J118: 3550.244581 | L118: SNPD | M118: SNPD | N118: SNPD | O118: 7382.203849 | P118: =VLOOKUP(A118,'Test Period - May 2013'!$F$10:$T$406,15,FALSE) -> 7382.203849
A119: 598Situs | B119: 598Situs | C119: Distribution Maintenance | E119: 598 | F119: 3 | G119: 124500.439 | H119: Situs | J119: =V119 -> 69353.01973 | L119: Situs | M119: Situs | N119: Situs | O119: 124500.439 | P119: 0 | Q119: =VLOOKUP($E$119&Q7,'Test Period - May 2013'!$F$10:$T$407,15,FALSE) -> 10239.3912 | R119: =VLOOKUP($E$119&R7,'Test Period - May 2013'!$F$10:$T$407,15,FALSE) -> 24501.15583 | S119: =VLOOKUP($E$119&S7,'Test Period - May 2013'!$F$10:$T$407,15,FALSE) -> -4773.492921 | T119: =+U119+X119 -> 22421.12754 | U119: =VLOOKUP($E$119&U7,'Test Period - May 2013'!$F$10:$T$407,15,FALSE) -> 22303.72016 | V119: =VLOOKUP($E$119&V7,'Test Period - May 2013'!$F$10:$T$407,15,FALSE) -> 69353.01973 | W119: =VLOOKUP($E$119&W7,'Test Period - May 2013'!$F$10:$T$407,15,FALSE) -> 2759.2376 | X119: =VLOOKUP($E$119&X7,'Test Period - May 2013'!$F$10:$T$407,15,FALSE) -> 117.4073813
A120: 598SNPD | B120: 598SNPD | C120: Distribution Maintenance | E120: 598 | F120: 3 | G120: -89319.5237 | H120: SNPD | I120: =VLOOKUP(M120,Factors!$B$4:$H$92,7,FALSE) -> 0.4809193371 | J120: -42955.48612 | L120: SNPD | M120: SNPD | N120: SNPD | O120: -89319.5237 | P120: =VLOOKUP(A120,'Test Period - May 2013'!$F$10:$T$406,15,FALSE) -> -89319.5237
A121: 901Situs | B121: 901Situs | C121: Customer Accounts Operations | E121: 901 | F121: 3 | G121: 81.81063784 | H121: Situs | J121: =V121 -> 0 | L121: Situs | M121: Situs | N121: Situs | O121: 81.81063784 | P121: 0 | Q121: =VLOOKUP($E$121&Q7,'Test Period - May 2013'!$F$10:$T$407,15,FALSE) -> 0 | R121: =VLOOKUP($E$121&R7,'Test Period - May 2013'!$F$10:$T$407,15,FALSE) -> 7.510715229 | S121: =VLOOKUP($E$121&S7,'Test Period - May 2013'!$F$10:$T$407,15,FALSE) -> 0 | T121: =+U121+X121 -> 74.29992261 | U121: =VLOOKUP($E$121&U7,'Test Period - May 2013'!$F$10:$T$407,15,FALSE) -> 74.29992261 | V121: =VLOOKUP($E$121&V7,'Test Period - May 2013'!$F$10:$T$407,15,FALSE) -> 0 | W121: =VLOOKUP($E$121&W7,'Test Period - May 2013'!$F$10:$T$407,15,FALSE) -> 0 | X121: =VLOOKUP($E$121&X7,'Test Period - May 2013'!$F$10:$T$407,15,FALSE) -> 0
A122: 901CN | B122: 901CN | C122: Customer Accounts Operations | E122: 901 | F122: 3 | G122: 24311.16147 | H122: CN | I122: =VLOOKUP(M122,Factors!$B$4:$H$92,7,FALSE) -> 0.4989276546 | J122: 12129.51077 | L122: CN | M122: CN | N122: CN | O122: 24311.16147 | P122: =VLOOKUP(A122,'Test Period - May 2013'!$F$10:$T$406,15,FALSE) -> 24311.16147
A123: 902Situs | B123: 902Situs | C123: Customer Accounts Operations | E123: 902 | F123: 3 | G123: 166239.6673 | H123: Situs | J123: =V123 -> 36306.22122 | L123: Situs | M123: Situs | N123: Situs | O123: 166239.6673 | P123: 0 | Q123: =VLOOKUP($E$123&Q7,'Test Period - May 2013'!$F$10:$T$407,15,FALSE) -> 6250.114538 | R123: =VLOOKUP($E$123&R7,'Test Period - May 2013'!$F$10:$T$407,15,FALSE) -> 73851.92012 | S123: =VLOOKUP($E$123&S7,'Test Period - May 2013'!$F$10:$T$407,15,FALSE) -> 10805.02607 | T123: =+U123+X123 -> 23879.54929 | U123: =VLOOKUP($E$123&U7,'Test Period - May 2013'!$F$10:$T$407,15,FALSE) -> 20633.75634 | V123: =VLOOKUP($E$123&V7,'Test Period - May 2013'!$F$10:$T$407,15,FALSE) -> 36306.22122 | W123: =VLOOKUP($E$123&W7,'Test Period - May 2013'!$F$10:$T$407,15,FALSE) -> 15146.83604 | X123: =VLOOKUP($E$123&X7,'Test Period - May 2013'!$F$10:$T$407,15,FALSE) -> 3245.792946
A124: 902CN | B124: 902CN | C124: Customer Accounts Operations | E124: 902 | F124: 3 | G124: 22756.65649 | H124: CN | I124: =VLOOKUP(M124,Factors!$B$4:$H$92,7,FALSE) -> 0.4989276546 | J124: 11353.92525 | L124: CN | M124: CN | N124: CN | O124: 22756.65649 | P124: =VLOOKUP(A124,'Test Period - May 2013'!$F$10:$T$406,15,FALSE) -> 22756.65649
A125: 903Situs | B125: 903Situs | C125: Customer Accounts Operations | E125: 903 | F125: 3 | G125: 111874.8235 | H125: Situs | J125: =V125 -> 53725.32642 | L125: Situs | M125: Situs | N125: Situs | O125: 111874.8235 | P125: 0 | Q125: =VLOOKUP($E$125&Q7,'Test Period - May 2013'!$F$10:$T$407,15,FALSE) -> 2344.282296 | R125: =VLOOKUP($E$125&R7,'Test Period - May 2013'!$F$10:$T$407,15,FALSE) -> 31294.76425 | S125: =VLOOKUP($E$125&S7,'Test Period - May 2013'!$F$10:$T$407,15,FALSE) -> 10812.7454 | T125: =+U125+X125 -> 7387.813779 | U125: =VLOOKUP($E$125&U7,'Test Period - May 2013'!$F$10:$T$407,15,FALSE) -> 6553.115317 | V125: =VLOOKUP($E$125&V7,'Test Period - May 2013'!$F$10:$T$407,15,FALSE) -> 53725.32642 | W125: =VLOOKUP($E$125&W7,'Test Period - May 2013'!$F$10:$T$407,15,FALSE) -> 6309.891321 | X125: =VLOOKUP($E$125&X7,'Test Period - May 2013'!$F$10:$T$407,15,FALSE) -> 834.6984616
A126: 903CN | B126: 903CN | C126: Customer Accounts Operations | E126: 903 | F126: 3 | G126: 750656.9215 | H126: CN | I126: =VLOOKUP(M126,Factors!$B$4:$H$92,7,FALSE) -> 0.4989276546 | J126: 374523.4972 | L126: CN | M126: CN | N126: CN | O126: 750656.9215 | P126: =VLOOKUP(A126,'Test Period - May 2013'!$F$10:$T$406,15,FALSE) -> 750656.9215
A127: 904Situs | B127: 904Situs | C127: Customer Accounts Operations | E127: 904 | F127: 3 | G127: 612870.0536 | H127: Situs | J127: =V127 -> 163990.8871 | L127: Situs | M127: Situs | N127: Situs | O127: 612870.0536 | P127: 0 | Q127: =VLOOKUP($E$127&Q7,'Test Period - May 2013'!$F$10:$T$407,15,FALSE) -> 24804.44617 | R127: =VLOOKUP($E$127&R7,'Test Period - May 2013'!$F$10:$T$407,15,FALSE) -> 291718.7795 | S127: =VLOOKUP($E$127&S7,'Test Period - May 2013'!$F$10:$T$407,15,FALSE) -> 81144.63704 | T127: =+U127+X127 -> 30802.98052 | U127: =VLOOKUP($E$127&U7,'Test Period - May 2013'!$F$10:$T$407,15,FALSE) -> 30802.98052 | V127: =VLOOKUP($E$127&V7,'Test Period - May 2013'!$F$10:$T$407,15,FALSE) -> 163990.8871 | W127: =VLOOKUP($E$127&W7,'Test Period - May 2013'!$F$10:$T$407,15,FALSE) -> 20408.32323 | X127: =VLOOKUP($E$127&X7,'Test Period - May 2013'!$F$10:$T$407,15,FALSE) -> 0
A128: 904CN | B128: 904CN | C128: Customer Accounts Operations | E128: 904 | F128: 3 | G128: 19012.05656 | H128: CN | I128: =VLOOKUP(M128,Factors!$B$4:$H$92,7,FALSE) -> 0.4989276546 | J128: 9485.640789 | L128: CN | M128: CN | N128: CN | O128: 19012.05656 | P128: =VLOOKUP(A128,'Test Period - May 2013'!$F$10:$T$406,15,FALSE) -> 19012.05656
A129: 905Situs | B129: 905Situs | C129: Customer Accounts Operations | E129: 905 | F129: 3 | G129: 509.4538419 | H129: Situs | J129: =V129 -> 0 | L129: Situs | M129: Situs | N129: Situs | O129: 509.4538419 | P129: 0 | Q129: =VLOOKUP($E$129&Q7,'Test Period - May 2013'!$F$10:$T$407,15,FALSE) -> 0 | R129: =VLOOKUP($E$129&R7,'Test Period - May 2013'!$F$10:$T$407,15,FALSE) -> 509.4538419 | S129: 0 | T129: =+U129+X129 -> 0 | U129: =VLOOKUP($E$129&U7,'Test Period - May 2013'!$F$10:$T$407,15,FALSE) -> 0 | V129: =VLOOKUP($E$129&V7,'Test Period - May 2013'!$F$10:$T$407,15,FALSE) -> 0 | W129: =VLOOKUP($E$129&W7,'Test Period - May 2013'!$F$10:$T$407,15,FALSE) -> 0 | X129: 0
A130: 905CN | B130: 905CN | C130: Customer Accounts Operations | E130: 905 | F130: 3 | G130: 4551.484458 | H130: CN | I130: =VLOOKUP(M130,Factors!$B$4:$H$92,7,FALSE) -> 0.4989276546 | J130: 2270.861466 | L130: CN | M130: CN | N130: CN | O130: 4551.484458 | P130: =VLOOKUP(A130,'Test Period - May 2013'!$F$10:$T$406,15,FALSE) -> 4551.484458
A131: 907CN | B131: 907CN | C131: Customer Service Operations | E131: 907 | F131: 3 | G131: 952.9809924 | H131: CN | I131: =VLOOKUP(M131,Factors!$B$4:$H$92,7,FALSE) -> 0.4989276546 | J131: 475.4685714 | L131: CN | M131: CN | N131: CN | O131: 952.9809924 | P131: =VLOOKUP(A131,'Test Period - May 2013'!$F$10:$T$406,15,FALSE) -> 952.9809924
A132: 908Situs | B132: 908Situs | C132: Customer Service Operations | E132: 908 | F132: 3 | G132: 79348.6842 | H132: Situs | J132: =V132 -> 36213.47173 | L132: Situs | M132: Situs | N132: Situs | O132: 79348.6842 | P132: 0 | Q132: =VLOOKUP($E$132&Q7,'Test Period - May 2013'!$F$10:$T$407,15,FALSE) -> 10680.4722 | R132: =VLOOKUP($E$132&R7,'Test Period - May 2013'!$F$10:$T$407,15,FALSE) -> 3386.745563 | S132: =VLOOKUP($E$132&S7,'Test Period - May 2013'!$F$10:$T$407,15,FALSE) -> 3230.318145 | T132: =+U132+X132 -> 6793.075413 | U132: =VLOOKUP($E$132&U7,'Test Period - May 2013'!$F$10:$T$407,15,FALSE) -> 6793.075413 | V132: =VLOOKUP($E$132&V7,'Test Period - May 2013'!$F$10:$T$407,15,FALSE) -> 36213.47173 | W132: =VLOOKUP($E$132&W7,'Test Period - May 2013'!$F$10:$T$407,15,FALSE) -> 19044.60115 | X132: 0
A133: 908CN | B133: 908CN | C133: Customer Service Operations | E133: 908 | F133: 3 | G133: 5918.700751 | H133: CN | I133: =VLOOKUP(M133,Factors!$B$4:$H$92,7,FALSE) -> 0.4989276546 | J133: 2953.003484 | L133: CN | M133: CN | N133: CN | O133: 5918.700751 | P133: =VLOOKUP(A133,'Test Period - May 2013'!$F$10:$T$406,15,FALSE) -> 5918.700751
A134: 908OTHER | B134: 908OTHER | C134: Customer Service Operations | E134: 908 | F134: 3 | G134: 239791.9484 | H134: OTHER | I134: =VLOOKUP(M134,Factors!$B$4:$H$92,7,FALSE) -> 0 | J134: 0 | L134: OTHER | M134: OTHER | N134: OTHER | O134: 239791.9484 | P134: =VLOOKUP(A134,'Test Period - May 2013'!$F$10:$T$406,15,FALSE) -> 239791.9484
A135: 909Situs | B135: 909Situs | C135: Customer Service Operations | E135: 909 | F135: 3 | G135: 26445.29106 | H135: Situs | J135: =V135 -> 3457.11763 | L135: Situs | M135: Situs | N135: Situs | O135: 26445.29106 | P135: 0 | Q135: =VLOOKUP($E$135&Q7,'Test Period - May 2013'!$F$10:$T$407,15,FALSE) -> 1553.027492 | R135: =VLOOKUP($E$135&R7,'Test Period - May 2013'!$F$10:$T$407,15,FALSE) -> 10411.87027 | S135: =VLOOKUP($E$135&S7,'Test Period - May 2013'!$F$10:$T$407,15,FALSE) -> 866.7012946 | T135: =+U135+X135 -> 7526.347542 | U135: =VLOOKUP($E$135&U7,'Test Period - May 2013'!$F$10:$T$407,15,FALSE) -> 7526.347542 | V135: =VLOOKUP($E$135&V7,'Test Period - May 2013'!$F$10:$T$407,15,FALSE) -> 3457.11763 | W135: =VLOOKUP($E$135&W7,'Test Period - May 2013'!$F$10:$T$407,15,FALSE) -> 2630.226839 | X135: =VLOOKUP($E$135&X7,'Test Period - May 2013'!$F$10:$T$407,15,FALSE) -> 0
A136: 909CN | B136: 909CN | C136: Customer Service Operations | E136: 909 | F136: 3 | G136: 177167.4388 | H136: CN | I136: =VLOOKUP(M136,Factors!$B$4:$H$92,7,FALSE) -> 0.4989276546 | J136: 88393.73469 | L136: CN | M136: CN | N136: CN | O136: 177167.4388 | P136: =VLOOKUP(A136,'Test Period - May 2013'!$F$10:$T$406,15,FALSE) -> 177167.4388
A137: 910Situs | B137: =E137&L137 -> 910Situs | C137: Customer Service Operations | E137: 910 | F137: 3 | G137: 0 | H137: Situs | J137: =V137 -> 0 | L137: Situs | M137: Situs | N137: Situs | O137: 0 | P137: 0 | Q137: 0 | R137: =VLOOKUP($E$137&R7,'Test Period - May 2013'!$F$10:$T$407,15,FALSE) -> 0 | S137: =VLOOKUP($E$137&S7,'Test Period - May 2013'!$F$10:$T$407,15,FALSE) -> 0 | T137: =+U137+X137 -> 0 | U137: =VLOOKUP($E$137&U7,'Test Period - May 2013'!$F$10:$T$407,15,FALSE) -> 0 | V137: =VLOOKUP($E$137&V7,'Test Period - May 2013'!$F$10:$T$407,15,FALSE) -> 0 | W137: =VLOOKUP($E$137&W7,'Test Period - May 2013'!$F$10:$T$407,15,FALSE) -> 0 | X137: 0
A138: 910CN | B138: 910CN | C138: Customer Service Operations | E138: 910 | F138: 3 | G138: =SUM(P138:S138,U138:X138) -> 11194.89865 | H138: =N138 -> CN | I138: =VLOOKUP(M138,Factors!$B$4:$H$92,7,FALSE) -> 0.4989276546 | J138: =I138*G138 -> 5585.444525 | L138: CN | M138: CN | N138: CN | O138: 11194.89865 | P138: =VLOOKUP(A138,'Test Period - May 2013'!$F$10:$T$406,15,FALSE) -> 11194.89865
A139: 920Situs | B139: 920Situs | C139: A&G Operations | E139: 920 | F139: 3 | G139: -330013.3319 | H139: Situs | J139: =V139 -> -290260.8531 | L139: Situs | M139: Situs | N139: Situs | O139: -330013.3319 | P139: 0 | Q139: =VLOOKUP($E$139&Q7,'Test Period - May 2013'!$F$10:$T$407,15,FALSE) -> -11195.68685 | R139: =VLOOKUP($E$139&R7,'Test Period - May 2013'!$F$10:$T$407,15,FALSE) -> 68886.50775 | S139: =VLOOKUP($E$139&S7,'Test Period - May 2013'!$F$10:$T$407,15,FALSE) -> -55028.66174 | T139: =+U139+X139 -> -58907.46724 | U139: =VLOOKUP($E$139&U7,'Test Period - May 2013'!$F$10:$T$407,15,FALSE) -> -58907.46724 | V139: =VLOOKUP($E$139&V7,'Test Period - May 2013'!$F$10:$T$407,15,FALSE) -> -290260.8531 | W139: =VLOOKUP($E$139&W7,'Test Period - May 2013'!$F$10:$T$407,15,FALSE) -> 16492.82932 | X139: 0
A140: 920SO | B140: 920SO | C140: A&G Operations | E140: 920 | F140: 3 | G140: -88501.77163 | H140: SO | I140: =VLOOKUP(M140,Factors!$B$4:$H$92,7,FALSE) -> 0.4285360611 | J140: -37926.20062 | L140: SO | M140: SO | N140: SO | O140: -88501.77163 | P140: =VLOOKUP(A140,'Test Period - May 2013'!$F$10:$T$406,15,FALSE) -> -88501.77163
A141: 921Situs | B141: 921Situs | C141: A&G Operations | E141: 921 | F141: 3 | G141: 37931.92414 | H141: Situs | J141: =V141 -> 11162.72704 | L141: Situs | M141: Situs | N141: Situs | O141: 37931.92414 | P141: 0 | Q141: =VLOOKUP($E$141&Q7,'Test Period - May 2013'!$F$10:$T$407,15,FALSE) -> 976.5859733 | R141: =VLOOKUP($E$141&R7,'Test Period - May 2013'!$F$10:$T$407,15,FALSE) -> 13994.30553 | S141: =VLOOKUP($E$141&S7,'Test Period - May 2013'!$F$10:$T$407,15,FALSE) -> 2655.297832 | T141: =+U141+X141 -> 6690.406596 | U141: =VLOOKUP($E$141&U7,'Test Period - May 2013'!$F$10:$T$407,15,FALSE) -> 5883.346017 | V141: =VLOOKUP($E$141&V7,'Test Period - May 2013'!$F$10:$T$407,15,FALSE) -> 11162.72704 | W141: =VLOOKUP($E$141&W7,'Test Period - May 2013'!$F$10:$T$407,15,FALSE) -> 2452.601173 | X141: =VLOOKUP($E$141&X7,'Test Period - May 2013'!$F$10:$T$407,15,FALSE) -> 807.0605794
A142: 921SO | B142: 921SO | C142: A&G Operations | E142: 921 | F142: 3 | G142: 419571.2483 | H142: SO | I142: =VLOOKUP(M142,Factors!$B$4:$H$92,7,FALSE) -> 0.4285360611 | J142: 179801.4101 | L142: SO | M142: SO | N142: SO | O142: 419571.2483 | P142: =VLOOKUP(A142,'Test Period - May 2013'!$F$10:$T$406,15,FALSE) -> 419571.2483
A143: 922SO | B143: 922SO | C143: A&G Operations | E143: 922 | F143: 3 | G143: -3118431.993 | H143: SO | I143: =VLOOKUP(M143,Factors!$B$4:$H$92,7,FALSE) -> 0.4285360611 | J143: -1336360.563 | L143: SO | M143: SO | N143: SO | O143: -3118431.993 | P143: =VLOOKUP(A143,'Test Period - May 2013'!$F$10:$T$406,15,FALSE) -> -3118431.993
A144: 923Situs | B144: 923Situs | C144: A&G Operations | E144: 923 | F144: 3 | G144: 883.7323863 | H144: Situs | J144: =V144 -> 87.57521034 | L144: Situs | M144: Situs | N144: Situs | O144: 883.7323863 | P144: 0 | Q144: =VLOOKUP($E$144&Q7,'Test Period - May 2013'!$F$10:$T$407,15,FALSE) -> 78.87188455 | R144: =VLOOKUP($E$144&R7,'Test Period - May 2013'!$F$10:$T$407,15,FALSE) -> 569.5515997 | S144: =VLOOKUP($E$144&S7,'Test Period - May 2013'!$F$10:$T$407,15,FALSE) -> 19.91202792 | T144: =+U144+X144 -> 120.6778249 | U144: =VLOOKUP($E$144&U7,'Test Period - May 2013'!$F$10:$T$407,15,FALSE) -> 91.84094322 | V144: =VLOOKUP($E$144&V7,'Test Period - May 2013'!$F$10:$T$407,15,FALSE) -> 87.57521034 | W144: =VLOOKUP($E$144&W7,'Test Period - May 2013'!$F$10:$T$407,15,FALSE) -> 7.143838898 | X144: =VLOOKUP($E$144&X7,'Test Period - May 2013'!$F$10:$T$407,15,FALSE) -> 28.83688172
A145: 923SO | B145: 923SO | C145: A&G Operations | E145: 923 | F145: 3 | G145: 616908.1491 | H145: SO | I145: =VLOOKUP(M145,Factors!$B$4:$H$92,7,FALSE) -> 0.4285360611 | J145: 264367.3883 | L145: SO | M145: SO | N145: SO | O145: 616908.1491 | P145: =VLOOKUP(A145,'Test Period - May 2013'!$F$10:$T$406,15,FALSE) -> 616908.1491
A146: =+E146&H146 -> 924SO | B146: 924SO | C146: A&G Operations | E146: 924 | F146: 3 | G146: 0 | H146: SO | I146: =VLOOKUP(M146,Factors!$B$4:$H$92,7,FALSE) -> 0.4285360611 | J146: 0 | L146: SO | M146: SO | N146: SO | O146: =+P146+Q146+R146+S146+U146+V146+W146+X146 -> 0 | P146: =VLOOKUP(A146,'Test Period - May 2013'!$F$10:$T$406,15,FALSE) -> 0
A147: 925SO | B147: 925SO | C147: A&G Operations | E147: 925 | F147: 3 | G147: 0 | H147: SO | I147: =VLOOKUP(M147,Factors!$B$4:$H$92,7,FALSE) -> 0.4285360611 | J147: 0 | L147: SO | M147: SO | N147: SO | O147: 0 | P147: =VLOOKUP(A147,'Test Period - May 2013'!$F$10:$T$406,15,FALSE) -> 0
A148: 928Situs | B148: 928Situs | C148: A&G Operations | E148: 928 | F148: 3 | G148: 557975.1275 | H148: Situs | J148: =V148 -> 202679.5463 | L148: Situs | M148: Situs | N148: Situs | O148: 557975.1275 | P148: 0 | Q148: =VLOOKUP($E$148&Q7,'Test Period - May 2013'!$F$10:$T$407,15,FALSE) -> 34533.22424 | R148: =VLOOKUP($E$148&R7,'Test Period - May 2013'!$F$10:$T$407,15,FALSE) -> 136587.5113 | S148: =VLOOKUP($E$148&S7,'Test Period - May 2013'!$F$10:$T$407,15,FALSE) -> 54603.13773 | T148: =+U148+X148 -> 80333.54128 | U148: =VLOOKUP($E$148&U7,'Test Period - May 2013'!$F$10:$T$407,15,FALSE) -> 80333.54128 | V148: =VLOOKUP($E$148&V7,'Test Period - May 2013'!$F$10:$T$407,15,FALSE) -> 202679.5463 | W148: =VLOOKUP($E$148&W7,'Test Period - May 2013'!$F$10:$T$407,15,FALSE) -> 49238.16665 | X148: =VLOOKUP($E$148&X7,'Test Period - May 2013'!$F$10:$T$407,15,FALSE) -> 0
A149: 928SG | B149: 928SG | C149: A&G Operations | E149: 928 | F149: 3 | G149: 80593.12288 | H149: SG | I149: =VLOOKUP(M149,Factors!$B$4:$H$92,7,FALSE) -> 0.4315468105 | J149: 34779.70513 | L149: SG | M149: SG | N149: SG | O149: 80593.12288 | P149: =VLOOKUP(A149,'Test Period - May 2013'!$F$10:$T$406,15,FALSE) -> 80593.12288
A150: 928SO | B150: 928SO | C150: A&G Operations | E150: 928 | F150: 3 | G150: 67800.70806 | H150: SO | I150: =VLOOKUP(M150,Factors!$B$4:$H$92,7,FALSE) -> 0.4285360611 | J150: 29055.04838 | L150: SO | M150: SO | N150: SO | O150: 67800.70806 | P150: =VLOOKUP(A150,'Test Period - May 2013'!$F$10:$T$406,15,FALSE) -> 67800.70806
A151: 929SO | B151: 929SO | C151: A&G Operations | E151: 929 | F151: 3 | G151: -310647.4347 | H151: SO | I151: =VLOOKUP(M151,Factors!$B$4:$H$92,7,FALSE) -> 0.4285360611 | J151: -133123.6281 | L151: SO | M151: SO | N151: SO | O151: -310647.4347 | P151: =VLOOKUP(A151,'Test Period - May 2013'!$F$10:$T$406,15,FALSE) -> -310647.4347
A152: 930Situs | B152: 930Situs | C152: A&G Operations | E152: 930 | F152: 3 | G152: 63324.03773 | H152: Situs | J152: =V152 -> 3169.697132 | L152: Situs | M152: Situs | N152: Situs | O152: 63324.03773 | P152: 0 | Q152: =VLOOKUP($E$152&Q7,'Test Period - May 2013'!$F$10:$T$407,15,FALSE) -> -30.37089736 | R152: =VLOOKUP($E$152&R7,'Test Period - May 2013'!$F$10:$T$407,15,FALSE) -> 56749.4101 | S152: =VLOOKUP($E$152&S7,'Test Period - May 2013'!$F$10:$T$407,15,FALSE) -> 208.7174759 | T152: =+U152+X152 -> 2965.68707 | U152: =VLOOKUP($E$152&U7,'Test Period - May 2013'!$F$10:$T$407,15,FALSE) -> 2965.68707 | V152: =VLOOKUP($E$152&V7,'Test Period - May 2013'!$F$10:$T$407,15,FALSE) -> 3169.697132 | W152: =VLOOKUP($E$152&W7,'Test Period - May 2013'!$F$10:$T$407,15,FALSE) -> 260.8968449 | X152: 0
A153: 930CN | B153: 930CN | C153: A&G Operations | E153: 930 | F153: 3 | G153: 0 | H153: CN | I153: =VLOOKUP(M153,Factors!$B$4:$H$92,7,FALSE) -> 0.4989276546 | J153: 0 | L153: CN | M153: CN | N153: CN | O153: 0 | P153: =VLOOKUP(A153,'Test Period - May 2013'!$F$10:$T$406,15,FALSE) -> 0
A154: 930SO | B154: 930SO | C154: A&G Operations | E154: 930 | F154: 3 | G154: 606318.2244 | H154: SO | I154: =VLOOKUP(M154,Factors!$B$4:$H$92,7,FALSE) -> 0.4285360611 | J154: 259829.2237 | L154: SO | M154: SO | N154: SO | O154: 606318.2244 | P154: =VLOOKUP(A154,'Test Period - May 2013'!$F$10:$T$406,15,FALSE) -> 606318.2244
A155: 931Situs | B155: 931Situs | C155: A&G Operations | E155: 931 | F155: 3 | G155: 5170.442706 | H155: Situs | J155: =V155 -> 208.9110538 | L155: Situs | M155: Situs | N155: Situs | O155: 5170.442706 | P155: 0 | Q155: =VLOOKUP($E$155&Q7,'Test Period - May 2013'!$F$10:$T$407,15,FALSE) -> 139.1296468 | R155: =VLOOKUP($E$155&R7,'Test Period - May 2013'!$F$10:$T$407,15,FALSE) -> 3486.236572 | S155: =VLOOKUP($E$155&S7,'Test Period - May 2013'!$F$10:$T$407,15,FALSE) -> 283.6187422 | T155: =+U155+X155 -> 1027.989184 | U155: =VLOOKUP($E$155&U7,'Test Period - May 2013'!$F$10:$T$407,15,FALSE) -> 1027.989184 | V155: =VLOOKUP($E$155&V7,'Test Period - May 2013'!$F$10:$T$407,15,FALSE) -> 208.9110538 | W155: =VLOOKUP($E$155&W7,'Test Period - May 2013'!$F$10:$T$407,15,FALSE) -> 24.55750708 | X155: 0
A156: 931SO | B156: 931SO | C156: A&G Operations | E156: 931 | F156: 3 | G156: 359116.5019 | H156: SO | I156: =VLOOKUP(M156,Factors!$B$4:$H$92,7,FALSE) -> 0.4285360611 | J156: 153894.3712 | L156: SO | M156: SO | N156: SO | O156: 359116.5019 | P156: =VLOOKUP(A156,'Test Period - May 2013'!$F$10:$T$406,15,FALSE) -> 359116.5019
A157: 935Situs | B157: 935Situs | C157: A&G Operations | E157: 935 | F157: 3 | G157: 4694.12804 | H157: Situs | J157: =V157 -> 1353.479562 | L157: Situs | M157: Situs | N157: Situs | O157: 4694.12804 | P157: 0 | Q157: =VLOOKUP($E157&$Q$7,'Test Period - May 2013'!$F$10:$T$407,15,FALSE) -> 196.4487291 | R157: =VLOOKUP($E$157&R7,'Test Period - May 2013'!$F$10:$T$407,15,FALSE) -> 1543.911536 | S157: =VLOOKUP($E$157&S7,'Test Period - May 2013'!$F$10:$T$407,15,FALSE) -> 339.6981377 | T157: =+U157+X157 -> 868.8102757 | U157: =VLOOKUP($E$157&U7,'Test Period - May 2013'!$F$10:$T$407,15,FALSE) -> 593.6791138 | V157: =VLOOKUP($E$157&V7,'Test Period - May 2013'!$F$10:$T$407,15,FALSE) -> 1353.479562 | W157: =VLOOKUP($E$157&W7,'Test Period - May 2013'!$F$10:$T$407,15,FALSE) -> 391.7797991 | X157: =VLOOKUP($E$157&X7,'Test Period - May 2013'!$F$10:$T$407,15,FALSE) -> 275.1311619
A158: 935SO | B158: 935SO | C158: A&G Operations | E158: 935 | F158: 3 | G158: 433512.8961 | H158: SO | I158: =VLOOKUP(M158,Factors!$B$4:$H$92,7,FALSE) -> 0.4285360611 | J158: 185775.909 | L158: SO | M158: SO | N158: SO | O158: 433512.8961 | P158: =VLOOKUP(A158,'Test Period - May 2013'!$F$10:$T$406,15,FALSE) -> 433512.8961
G159: =SUM(G9:G158) -> 25016305.18 | J159: =SUM(J9:J158) -> 10188782.79 | K159: 4.12 | O159: =SUM(O9:O158) -> 25016305.18 | P159: =SUM(P9:P158) -> 17288424.96 | Q159: 389050.5193 | R159: 2456607.973 | S159: 427283.0889 | T159: 705859.6511 | U159: =SUM(U9:U158) -> 605662.3321 | V159: 2754785.181 | W159: 994293.8153 | X159: =SUM(X9:X158) -> 100197.319
C161: Description of Adjustment:

Sheet 4.12.4-4.12.7
D1: Rocky Mountain Power
D2: Utah General Rate Case - May 2013
D3: O&M Expense Escalation
D4: 12 months ending May 2013
G5: =+'Test Period - May 2013'!H5 -> 3.2 | H5: =+'Test Period - May 2013'!I5 -> 4.1 | I5: =+'Test Period - May 2013'!J5 -> 4.2 | J5: =+'Test Period - May 2013'!K5 -> 4.3 | K5: =+'Test Period - May 2013'!L5 -> 4.4 | L5: =+'Test Period - May 2013'!M5 -> 4.6 | M5: =+'Test Period - May 2013'!N5 -> 4.7 | N5: =+'Test Period - May 2013'!O5 -> 4.8 | O5: =+'Test Period - May 2013'!P5 -> 4.10 | P5: =+'Test Period - May 2013'!Q5 -> 5.1 | Q5: =+'Test Period - May 2013'!R5 -> 8.9 | R5: =+'Test Period - May 2013'!S5 -> 8.12 | U5: 4.12
F6: =+'Test Period - May 2013'!G6 -> Jun 2011 | G6: =+'Test Period - May 2013'!H6 ->  | H6: =+'Test Period - May 2013'!I6 -> Miscellaneous | I6: =+'Test Period - May 2013'!J6 -> Remove | J6: =+'Test Period - May 2013'!K6 -> Idaho Irrigation | K6: =+'Test Period - May 2013'!L6 -> Remove | L6: =+'Test Period - May 2013'!M6 -> 0 | M6: =+'Test Period - May 2013'!N6 -> 0 | N6: =+'Test Period - May 2013'!O6 -> Generation | O6: =+'Test Period - May 2013'!P6 -> Solar | P6: =+'Test Period - May 2013'!Q6 -> Net | Q6: =+'Test Period - May 2013'!R6 -> Regulatory | R6: =+'Test Period - May 2013'!S6 -> Misc. Asset | S6: O&M | T6: =+'Test Period - May 2013'!U6 ->  | V6: O&M
E7: Allocation | F7: =+'Test Period - May 2013'!G7 -> Unadjusted | G7: =+'Test Period - May 2013'!H7 -> Wheeling | H7: =+'Test Period - May 2013'!I7 -> General | I7: =+'Test Period - May 2013'!J7 -> Unadjusted | J7: =+'Test Period - May 2013'!K7 -> Load Control | K7: =+'Test Period - May 2013'!L7 -> Non-Recurring | L7: =+'Test Period - May 2013'!M7 -> DSM Revenue | M7: =+'Test Period - May 2013'!N7 -> Insurance | N7: =+'Test Period - May 2013'!O7 -> Overhaul | O7: =+'Test Period - May 2013'!P7 -> Photovoltaic | P7: =+'Test Period - May 2013'!Q7 -> Power Cost | Q7: =+'Test Period - May 2013'!R7 -> Asset | R7: =+'Test Period - May 2013'!S7 -> Sales and | S7: Before | T7: =+'Test Period - May 2013'!U7 -> Escalation | U7: =+'Test Period - May 2013'!T7 -> O&M | V7: After
D8: =+'Test Period - May 2013'!C8 -> Function | E8: Code | F8: =+'Test Period - May 2013'!G8 -> O&M | G8: =+'Test Period - May 2013'!H8 -> Revenue | H8: =+'Test Period - May 2013'!I8 -> Expense | I8: =+'Test Period - May 2013'!J8 -> Labor | J8: =+'Test Period - May 2013'!K8 -> Program | K8: =+'Test Period - May 2013'!L8 -> Entries | L8: =+'Test Period - May 2013'!M8 -> and Expense | M8: =+'Test Period - May 2013'!N8 -> Expense | N8: =+'Test Period - May 2013'!O8 -> Expense | O8: =+'Test Period - May 2013'!P8 -> Program | P8: =+'Test Period - May 2013'!Q8 -> Study | Q8: =+'Test Period - May 2013'!R8 -> Amortization | R8: =+'Test Period - May 2013'!S8 -> Removals | S8: Escalation | T8: =+'Test Period - May 2013'!U8 -> Percentages | U8: =+'Test Period - May 2013'!T8 -> Escalation | V8: Escalation
D9: Steam Operation
C10: =+$D$9&E10 -> Steam OperationNPCSE | E10: NPCSE | F10: =SUMIF('Test Period - May 2013'!$E$10:$E$406,$C10,'Test Period - May 2013'!$G$10:$G$406) -> 617817175.7 | G10: =SUMIF('Test Period - May 2013'!$E$10:$E$406,$C10,'Test Period - May 2013'!$H$10:$H$406) -> 0 | H10: =SUMIF('Test Period - May 2013'!$E$10:$E$406,$C10,'Test Period - May 2013'!$I$10:$I$406) -> 0 | I10: =SUMIF('Test Period - May 2013'!$E$10:$E$406,$C10,'Test Period - May 2013'!$J$10:$J$406) -> 0 | J10: =SUMIF('Test Period - May 2013'!$E$10:$E$406,$C10,'Test Period - May 2013'!$K$10:$K$406) -> 0 | K10: =SUMIF('Test Period - May 2013'!$E$10:$E$406,$C10,'Test Period - May 2013'!$L$10:$L$406) -> 0 | L10: =SUMIF('Test Period - May 2013'!$E$10:$E$406,$C10,'Test Period - May 2013'!$M$10:$M$406) -> 0 | M10: =SUMIF('Test Period - May 2013'!$E$10:$E$406,$C10,'Test Period - May 2013'!$N$10:$N$406) -> 0 | N10: =SUMIF('Test Period - May 2013'!$E$10:$E$406,$C10,'Test Period - May 2013'!$O$10:$O$406) -> 0 | O10: =SUMIF('Test Period - May 2013'!$E$10:$E$406,$C10,'Test Period - May 2013'!$P$10:$P$406) -> 0 | P10: =SUMIF('Test Period - May 2013'!$E$10:$E$406,$C10,'Test Period - May 2013'!$Q$10:$Q$406) -> 0 | Q10: =SUMIF('Test Period - May 2013'!$E$10:$E$406,$C10,'Test Period - May 2013'!$R$10:$R$406) -> 0 | R10: =SUMIF('Test Period - May 2013'!$E$10:$E$406,$C10,'Test Period - May 2013'!$S$10:$S$406) -> 0 | S10: =SUM(F10:R10) -> 617817175.7 | T10: 0 | U10: =S10*T10 -> 0 | V10: =S10+U10 -> 617817175.7
C11: Steam OperationNPCSSECH | E11: NPCSSECH | F11: =SUMIF('Test Period - May 2013'!$E$10:$E$406,$C11,'Test Period - May 2013'!$G$10:$G$406) -> 49297564.45 | G11: =SUMIF('Test Period - May 2013'!$E$10:$E$406,$C11,'Test Period - May 2013'!$H$10:$H$406) -> 0 | H11: =SUMIF('Test Period - May 2013'!$E$10:$E$406,$C11,'Test Period - May 2013'!$I$10:$I$406) -> 0 | I11: =SUMIF('Test Period - May 2013'!$E$10:$E$406,$C11,'Test Period - May 2013'!$J$10:$J$406) -> 0 | J11: =SUMIF('Test Period - May 2013'!$E$10:$E$406,$C11,'Test Period - May 2013'!$K$10:$K$406) -> 0 | K11: =SUMIF('Test Period - May 2013'!$E$10:$E$406,$C11,'Test Period - May 2013'!$L$10:$L$406) -> 0 | L11: =SUMIF('Test Period - May 2013'!$E$10:$E$406,$C11,'Test Period - May 2013'!$M$10:$M$406) -> 0 | M11: =SUMIF('Test Period - May 2013'!$E$10:$E$406,$C11,'Test Period - May 2013'!$N$10:$N$406) -> 0 | N11: =SUMIF('Test Period - May 2013'!$E$10:$E$406,$C11,'Test Period - May 2013'!$O$10:$O$406) -> 0 | O11: =SUMIF('Test Period - May 2013'!$E$10:$E$406,$C11,'Test Period - May 2013'!$P$10:$P$406) -> 0 | P11: =SUMIF('Test Period - May 2013'!$E$10:$E$406,$C11,'Test Period - May 2013'!$Q$10:$Q$406) -> 0 | Q11: =SUMIF('Test Period - May 2013'!$E$10:$E$406,$C11,'Test Period - May 2013'!$R$10:$R$406) -> 0 | R11: =SUMIF('Test Period - May 2013'!$E$10:$E$406,$C11,'Test Period - May 2013'!$S$10:$S$406) -> 0 | S11: 49297564.45 | T11: 0 | U11: =S11*T11 -> 0 | V11: =S11+U11 -> 49297564.45
C12: =+$D$9&E12 -> Steam OperationNPCID | E12: NPCID | F12: =SUMIF('Test Period - May 2013'!$E$10:$E$406,$C12,'Test Period - May 2013'!$G$10:$G$406) -> -103365.08 | G12: =SUMIF('Test Period - May 2013'!$E$10:$E$406,$C12,'Test Period - May 2013'!$H$10:$H$406) -> 0 | H12: =SUMIF('Test Period - May 2013'!$E$10:$E$406,$C12,'Test Period - May 2013'!$I$10:$I$406) -> 0 | I12: =SUMIF('Test Period - May 2013'!$E$10:$E$406,$C12,'Test Period - May 2013'!$J$10:$J$406) -> 0 | J12: =SUMIF('Test Period - May 2013'!$E$10:$E$406,$C12,'Test Period - May 2013'!$K$10:$K$406) -> 0 | K12: =SUMIF('Test Period - May 2013'!$E$10:$E$406,$C12,'Test Period - May 2013'!$L$10:$L$406) -> 0 | L12: =SUMIF('Test Period - May 2013'!$E$10:$E$406,$C12,'Test Period - May 2013'!$M$10:$M$406) -> 0 | M12: =SUMIF('Test Period - May 2013'!$E$10:$E$406,$C12,'Test Period - May 2013'!$N$10:$N$406) -> 0 | N12: =SUMIF('Test Period - May 2013'!$E$10:$E$406,$C12,'Test Period - May 2013'!$O$10:$O$406) -> 0 | O12: =SUMIF('Test Period - May 2013'!$E$10:$E$406,$C12,'Test Period - May 2013'!$P$10:$P$406) -> 0 | P12: =SUMIF('Test Period - May 2013'!$E$10:$E$406,$C12,'Test Period - May 2013'!$Q$10:$Q$406) -> 0 | Q12: =SUMIF('Test Period - May 2013'!$E$10:$E$406,$C12,'Test Period - May 2013'!$R$10:$R$406) -> 0 | R12: =SUMIF('Test Period - May 2013'!$E$10:$E$406,$C12,'Test Period - May 2013'!$S$10:$S$406) -> 0 | S12: -103365.08 | T12: 0 | U12: 0 | V12: -103365.08
C13: Steam OperationNPCWYP | E13: NPCWYP | F13: =SUMIF('Test Period - May 2013'!$E$10:$E$406,$C13,'Test Period - May 2013'!$G$10:$G$406) -> -305916.84 | G13: =SUMIF('Test Period - May 2013'!$E$10:$E$406,$C13,'Test Period - May 2013'!$H$10:$H$406) -> 0 | H13: =SUMIF('Test Period - May 2013'!$E$10:$E$406,$C13,'Test Period - May 2013'!$I$10:$I$406) -> 0 | I13: =SUMIF('Test Period - May 2013'!$E$10:$E$406,$C13,'Test Period - May 2013'!$J$10:$J$406) -> 0 | J13: =SUMIF('Test Period - May 2013'!$E$10:$E$406,$C13,'Test Period - May 2013'!$K$10:$K$406) -> 0 | K13: =SUMIF('Test Period - May 2013'!$E$10:$E$406,$C13,'Test Period - May 2013'!$L$10:$L$406) -> 0 | L13: =SUMIF('Test Period - May 2013'!$E$10:$E$406,$C13,'Test Period - May 2013'!$M$10:$M$406) -> 0 | M13: =SUMIF('Test Period - May 2013'!$E$10:$E$406,$C13,'Test Period - May 2013'!$N$10:$N$406) -> 0 | N13: =SUMIF('Test Period - May 2013'!$E$10:$E$406,$C13,'Test Period - May 2013'!$O$10:$O$406) -> 0 | O13: =SUMIF('Test Period - May 2013'!$E$10:$E$406,$C13,'Test Period - May 2013'!$P$10:$P$406) -> 0 | P13: =SUMIF('Test Period - May 2013'!$E$10:$E$406,$C13,'Test Period - May 2013'!$Q$10:$Q$406) -> 0 | Q13: =SUMIF('Test Period - May 2013'!$E$10:$E$406,$C13,'Test Period - May 2013'!$R$10:$R$406) -> 0 | R13: =SUMIF('Test Period - May 2013'!$E$10:$E$406,$C13,'Test Period - May 2013'!$S$10:$S$406) -> 0 | S13: -305916.84 | T13: 0 | U13: 0 | V13: -305916.84
C14: Steam OperationSE | E14: SE | F14: =SUMIF('Test Period - May 2013'!$E$10:$E$406,$C14,'Test Period - May 2013'!$G$10:$G$406) -> 18028764.55 | G14: =SUMIF('Test Period - May 2013'!$E$10:$E$406,$C14,'Test Period - May 2013'!$H$10:$H$406) -> 0 | H14: =SUMIF('Test Period - May 2013'!$E$10:$E$406,$C14,'Test Period - May 2013'!$I$10:$I$406) -> 0 | I14: =SUMIF('Test Period - May 2013'!$E$10:$E$406,$C14,'Test Period - May 2013'!$J$10:$J$406) -> -57811.9076 | J14: =SUMIF('Test Period - May 2013'!$E$10:$E$406,$C14,'Test Period - May 2013'!$K$10:$K$406) -> 0 | K14: =SUMIF('Test Period - May 2013'!$E$10:$E$406,$C14,'Test Period - May 2013'!$L$10:$L$406) -> 0 | L14: =SUMIF('Test Period - May 2013'!$E$10:$E$406,$C14,'Test Period - May 2013'!$M$10:$M$406) -> 0 | M14: =SUMIF('Test Period - May 2013'!$E$10:$E$406,$C14,'Test Period - May 2013'!$N$10:$N$406) -> 0 | N14: =SUMIF('Test Period - May 2013'!$E$10:$E$406,$C14,'Test Period - May 2013'!$O$10:$O$406) -> 0 | O14: =SUMIF('Test Period - May 2013'!$E$10:$E$406,$C14,'Test Period - May 2013'!$P$10:$P$406) -> 0 | P14: =SUMIF('Test Period - May 2013'!$E$10:$E$406,$C14,'Test Period - May 2013'!$Q$10:$Q$406) -> 0 | Q14: =SUMIF('Test Period - May 2013'!$E$10:$E$406,$C14,'Test Period - May 2013'!$R$10:$R$406) -> 0 | R14: =SUMIF('Test Period - May 2013'!$E$10:$E$406,$C14,'Test Period - May 2013'!$S$10:$S$406) -> 0 | S14: 17970952.64 | T14: 0.07232619112 | U14: 1299770.555 | V14: 19270723.2
C15: Steam OperationSG | E15: SG | F15: =SUMIF('Test Period - May 2013'!$E$10:$E$406,$C15,'Test Period - May 2013'!$G$10:$G$406) -> 101269706.8 | G15: =SUMIF('Test Period - May 2013'!$E$10:$E$406,$C15,'Test Period - May 2013'!$H$10:$H$406) -> 0 | H15: =SUMIF('Test Period - May 2013'!$E$10:$E$406,$C15,'Test Period - May 2013'!$I$10:$I$406) -> 0 | I15: =SUMIF('Test Period - May 2013'!$E$10:$E$406,$C15,'Test Period - May 2013'!$J$10:$J$406) -> -78166530.66 | J15: =SUMIF('Test Period - May 2013'!$E$10:$E$406,$C15,'Test Period - May 2013'!$K$10:$K$406) -> 0 | K15: =SUMIF('Test Period - May 2013'!$E$10:$E$406,$C15,'Test Period - May 2013'!$L$10:$L$406) -> 48112.15 | L15: =SUMIF('Test Period - May 2013'!$E$10:$E$406,$C15,'Test Period - May 2013'!$M$10:$M$406) -> 0 | M15: =SUMIF('Test Period - May 2013'!$E$10:$E$406,$C15,'Test Period - May 2013'!$N$10:$N$406) -> 0 | N15: =SUMIF('Test Period - May 2013'!$E$10:$E$406,$C15,'Test Period - May 2013'!$O$10:$O$406) -> 0 | O15: =SUMIF('Test Period - May 2013'!$E$10:$E$406,$C15,'Test Period - May 2013'!$P$10:$P$406) -> 0 | P15: =SUMIF('Test Period - May 2013'!$E$10:$E$406,$C15,'Test Period - May 2013'!$Q$10:$Q$406) -> 0 | Q15: =SUMIF('Test Period - May 2013'!$E$10:$E$406,$C15,'Test Period - May 2013'!$R$10:$R$406) -> 0 | R15: =SUMIF('Test Period - May 2013'!$E$10:$E$406,$C15,'Test Period - May 2013'!$S$10:$S$406) -> 0 | S15: 23151288.32 | T15: 0.07232619112 | U15: 1674444.503 | V15: 24825732.82
C16: Steam OperationSSECH | E16: SSECH | F16: =SUMIF('Test Period - May 2013'!$E$10:$E$406,$C16,'Test Period - May 2013'!$G$10:$G$406) -> 3225440.5 | G16: =SUMIF('Test Period - May 2013'!$E$10:$E$406,$C16,'Test Period - May 2013'!$H$10:$H$406) -> 0 | H16: =SUMIF('Test Period - May 2013'!$E$10:$E$406,$C16,'Test Period - May 2013'!$I$10:$I$406) -> 0 | I16: =SUMIF('Test Period - May 2013'!$E$10:$E$406,$C16,'Test Period - May 2013'!$J$10:$J$406) -> 0 | J16: =SUMIF('Test Period - May 2013'!$E$10:$E$406,$C16,'Test Period - May 2013'!$K$10:$K$406) -> 0 | K16: =SUMIF('Test Period - May 2013'!$E$10:$E$406,$C16,'Test Period - May 2013'!$L$10:$L$406) -> 0 | L16: =SUMIF('Test Period - May 2013'!$E$10:$E$406,$C16,'Test Period - May 2013'!$M$10:$M$406) -> 0 | M16: =SUMIF('Test Period - May 2013'!$E$10:$E$406,$C16,'Test Period - May 2013'!$N$10:$N$406) -> 0 | N16: =SUMIF('Test Period - May 2013'!$E$10:$E$406,$C16,'Test Period - May 2013'!$O$10:$O$406) -> 0 | O16: =SUMIF('Test Period - May 2013'!$E$10:$E$406,$C16,'Test Period - May 2013'!$P$10:$P$406) -> 0 | P16: =SUMIF('Test Period - May 2013'!$E$10:$E$406,$C16,'Test Period - May 2013'!$Q$10:$Q$406) -> 0 | Q16: =SUMIF('Test Period - May 2013'!$E$10:$E$406,$C16,'Test Period - May 2013'!$R$10:$R$406) -> 0 | R16: =SUMIF('Test Period - May 2013'!$E$10:$E$406,$C16,'Test Period - May 2013'!$S$10:$S$406) -> 0 | S16: 3225440.5 | T16: 0.07232619112 | U16: 233283.8261 | V16: 3458724.326
C17: Steam OperationSSGCH | E17: SSGCH | F17: =SUMIF('Test Period - May 2013'!$E$10:$E$406,$C17,'Test Period - May 2013'!$G$10:$G$406) -> 12906430.53 | G17: =SUMIF('Test Period - May 2013'!$E$10:$E$406,$C17,'Test Period - May 2013'!$H$10:$H$406) -> 0 | H17: =SUMIF('Test Period - May 2013'!$E$10:$E$406,$C17,'Test Period - May 2013'!$I$10:$I$406) -> 0 | I17: =SUMIF('Test Period - May 2013'!$E$10:$E$406,$C17,'Test Period - May 2013'!$J$10:$J$406) -> 2156.076512 | J17: =SUMIF('Test Period - May 2013'!$E$10:$E$406,$C17,'Test Period - May 2013'!$K$10:$K$406) -> 0 | K17: =SUMIF('Test Period - May 2013'!$E$10:$E$406,$C17,'Test Period - May 2013'!$L$10:$L$406) -> 0 | L17: =SUMIF('Test Period - May 2013'!$E$10:$E$406,$C17,'Test Period - May 2013'!$M$10:$M$406) -> 0 | M17: =SUMIF('Test Period - May 2013'!$E$10:$E$406,$C17,'Test Period - May 2013'!$N$10:$N$406) -> 0 | N17: =SUMIF('Test Period - May 2013'!$E$10:$E$406,$C17,'Test Period - May 2013'!$O$10:$O$406) -> 0 | O17: =SUMIF('Test Period - May 2013'!$E$10:$E$406,$C17,'Test Period - May 2013'!$P$10:$P$406) -> 0 | P17: =SUMIF('Test Period - May 2013'!$E$10:$E$406,$C17,'Test Period - May 2013'!$Q$10:$Q$406) -> 0 | Q17: =SUMIF('Test Period - May 2013'!$E$10:$E$406,$C17,'Test Period - May 2013'!$R$10:$R$406) -> 0 | R17: =SUMIF('Test Period - May 2013'!$E$10:$E$406,$C17,'Test Period - May 2013'!$S$10:$S$406) -> 0 | S17: 12908586.61 | T17: 0.07232619112 | U17: 933628.902 | V17: 13842215.51
E18: Steam Operation Total | F18: =SUBTOTAL(9,F10:F17) -> 802135800.7 | G18: =SUBTOTAL(9,G10:G17) -> 0 | H18: =SUBTOTAL(9,H10:H17) -> 0 | I18: -78222186.5 | J18: =SUBTOTAL(9,J10:J17) -> 0 | K18: 48112.15 | L18: =SUBTOTAL(9,L10:L17) -> 0 | M18: 0 | N18: 0 | O18: 0 | P18: =SUBTOTAL(9,P10:P17) -> 0 | Q18: 0 | R18: 0 | S18: =SUBTOTAL(9,S10:S17) -> 723961726.3 | U18: =SUBTOTAL(9,U10:U17) -> 4141127.787 | V18: =SUBTOTAL(9,V10:V17) -> 728102854.1
D20: Steam Maintenance
C21: =+$D$20&E21 -> Steam MaintenanceSG | E21: SG | F21: =SUMIF('Test Period - May 2013'!$E$10:$E$406,$C21,'Test Period - May 2013'!$G$10:$G$406) -> 178928431.3 | G21: =SUMIF('Test Period - May 2013'!$E$10:$E$406,$C21,'Test Period - May 2013'!$H$10:$H$406) -> 0 | H21: =SUMIF('Test Period - May 2013'!$E$10:$E$406,$C21,'Test Period - May 2013'!$I$10:$I$406) -> 0 | I21: =SUMIF('Test Period - May 2013'!$E$10:$E$406,$C21,'Test Period - May 2013'!$J$10:$J$406) -> -48448087.42 | J21: =SUMIF('Test Period - May 2013'!$E$10:$E$406,$C21,'Test Period - May 2013'!$K$10:$K$406) -> 0 | K21: =SUMIF('Test Period - May 2013'!$E$10:$E$406,$C21,'Test Period - May 2013'!$L$10:$L$406) -> 0 | L21: =SUMIF('Test Period - May 2013'!$E$10:$E$406,$C21,'Test Period - May 2013'!$M$10:$M$406) -> 0 | M21: =SUMIF('Test Period - May 2013'!$E$10:$E$406,$C21,'Test Period - May 2013'!$N$10:$N$406) -> 0 | N21: =SUMIF('Test Period - May 2013'!$E$10:$E$406,$C21,'Test Period - May 2013'!$O$10:$O$406) -> -4260121.537 | O21: =SUMIF('Test Period - May 2013'!$E$10:$E$406,$C21,'Test Period - May 2013'!$P$10:$P$406) -> 0 | P21: =SUMIF('Test Period - May 2013'!$E$10:$E$406,$C21,'Test Period - May 2013'!$Q$10:$Q$406) -> 0 | Q21: =SUMIF('Test Period - May 2013'!$E$10:$E$406,$C21,'Test Period - May 2013'!$R$10:$R$406) -> 0 | R21: =SUMIF('Test Period - May 2013'!$E$10:$E$406,$C21,'Test Period - May 2013'!$S$10:$S$406) -> 0 | S21: =SUM(F21:R21) -> 126220222.3 | T21: 0.03724422941 | U21: =S21*T21 -> 4700974.916 | V21: =S21+U21 -> 130921197.2
C22: =+$D$20&E22 -> Steam MaintenanceSSGCH | E22: SSGCH | F22: =SUMIF('Test Period - May 2013'!$E$10:$E$406,$C22,'Test Period - May 2013'!$G$10:$G$406) -> 9937914.96 | G22: =SUMIF('Test Period - May 2013'!$E$10:$E$406,$C22,'Test Period - May 2013'!$H$10:$H$406) -> 0 | H22: =SUMIF('Test Period - May 2013'!$E$10:$E$406,$C22,'Test Period - May 2013'!$I$10:$I$406) -> 0 | I22: =SUMIF('Test Period - May 2013'!$E$10:$E$406,$C22,'Test Period - May 2013'!$J$10:$J$406) -> 149414.3109 | J22: =SUMIF('Test Period - May 2013'!$E$10:$E$406,$C22,'Test Period - May 2013'!$K$10:$K$406) -> 0 | K22: =SUMIF('Test Period - May 2013'!$E$10:$E$406,$C22,'Test Period - May 2013'!$L$10:$L$406) -> 0 | L22: =SUMIF('Test Period - May 2013'!$E$10:$E$406,$C22,'Test Period - May 2013'!$M$10:$M$406) -> 0 | M22: =SUMIF('Test Period - May 2013'!$E$10:$E$406,$C22,'Test Period - May 2013'!$N$10:$N$406) -> 0 | N22: =SUMIF('Test Period - May 2013'!$E$10:$E$406,$C22,'Test Period - May 2013'!$O$10:$O$406) -> 1882803.239 | O22: =SUMIF('Test Period - May 2013'!$E$10:$E$406,$C22,'Test Period - May 2013'!$P$10:$P$406) -> 0 | P22: =SUMIF('Test Period - May 2013'!$E$10:$E$406,$C22,'Test Period - May 2013'!$Q$10:$Q$406) -> 0 | Q22: =SUMIF('Test Period - May 2013'!$E$10:$E$406,$C22,'Test Period - May 2013'!$R$10:$R$406) -> 0 | R22: =SUMIF('Test Period - May 2013'!$E$10:$E$406,$C22,'Test Period - May 2013'!$S$10:$S$406) -> 0 | S22: =SUM(F22:R22) -> 11970132.51 | T22: 0.03724422941 | U22: 445818.3613 | V22: 12415950.87
E23: Steam Maintenance Total | F23: =SUBTOTAL(9,F21:F22) -> 188866346.2 | G23: =SUBTOTAL(9,G21:G22) -> 0 | H23: =SUBTOTAL(9,H21:H22) -> 0 | I23: -48298673.11 | J23: =SUBTOTAL(9,J21:J22) -> 0 | K23: 0 | L23: =SUBTOTAL(9,L21:L22) -> 0 | M23: 0 | N23: -2377318.298 | O23: 0 | P23: =SUBTOTAL(9,P21:P22) -> 0 | Q23: 0 | R23: 0 | S23: =SUBTOTAL(9,S21:S22) -> 138190354.8 | U23: =SUBTOTAL(9,U21:U22) -> 5146793.278 | V23: =SUBTOTAL(9,V21:V22) -> 143337148.1
D25: Hydro Operations
C26: =+$D$25&E26 -> Hydro OperationsSG-P | E26: SG-P | F26: =SUMIF('Test Period - May 2013'!$E$10:$E$406,$C26,'Test Period - May 2013'!$G$10:$G$406) -> 28959606.5 | G26: =SUMIF('Test Period - May 2013'!$E$10:$E$406,$C26,'Test Period - May 2013'!$H$10:$H$406) -> 0 | H26: =SUMIF('Test Period - May 2013'!$E$10:$E$406,$C26,'Test Period - May 2013'!$I$10:$I$406) -> 0 | I26: =SUMIF('Test Period - May 2013'!$E$10:$E$406,$C26,'Test Period - May 2013'!$J$10:$J$406) -> -8843351.724 | J26: =SUMIF('Test Period - May 2013'!$E$10:$E$406,$C26,'Test Period - May 2013'!$K$10:$K$406) -> 0 | K26: =SUMIF('Test Period - May 2013'!$E$10:$E$406,$C26,'Test Period - May 2013'!$L$10:$L$406) -> 0 | L26: =SUMIF('Test Period - May 2013'!$E$10:$E$406,$C26,'Test Period - May 2013'!$M$10:$M$406) -> 0 | M26: =SUMIF('Test Period - May 2013'!$E$10:$E$406,$C26,'Test Period - May 2013'!$N$10:$N$406) -> 0 | N26: =SUMIF('Test Period - May 2013'!$E$10:$E$406,$C26,'Test Period - May 2013'!$O$10:$O$406) -> 0 | O26: =SUMIF('Test Period - May 2013'!$E$10:$E$406,$C26,'Test Period - May 2013'!$P$10:$P$406) -> 0 | P26: =SUMIF('Test Period - May 2013'!$E$10:$E$406,$C26,'Test Period - May 2013'!$Q$10:$Q$406) -> 0 | Q26: =SUMIF('Test Period - May 2013'!$E$10:$E$406,$C26,'Test Period - May 2013'!$R$10:$R$406) -> 0 | R26: =SUMIF('Test Period - May 2013'!$E$10:$E$406,$C26,'Test Period - May 2013'!$S$10:$S$406) -> 0 | S26: =SUM(F26:R26) -> 20116254.77 | T26: 0.07264115551 | U26: =S26*T26 -> 1461267.991 | V26: =S26+U26 -> 21577522.76
C27: =+$D$25&E27 -> Hydro OperationsSG-U | E27: SG-U | F27: =SUMIF('Test Period - May 2013'!$E$10:$E$406,$C27,'Test Period - May 2013'!$G$10:$G$406) -> 6725447.536 | G27: =SUMIF('Test Period - May 2013'!$E$10:$E$406,$C27,'Test Period - May 2013'!$H$10:$H$406) -> 0 | H27: =SUMIF('Test Period - May 2013'!$E$10:$E$406,$C27,'Test Period - May 2013'!$I$10:$I$406) -> 0 | I27: =SUMIF('Test Period - May 2013'!$E$10:$E$406,$C27,'Test Period - May 2013'!$J$10:$J$406) -> -6232601.761 | J27: =SUMIF('Test Period - May 2013'!$E$10:$E$406,$C27,'Test Period - May 2013'!$K$10:$K$406) -> 0 | K27: =SUMIF('Test Period - May 2013'!$E$10:$E$406,$C27,'Test Period - May 2013'!$L$10:$L$406) -> 0 | L27: =SUMIF('Test Period - May 2013'!$E$10:$E$406,$C27,'Test Period - May 2013'!$M$10:$M$406) -> 0 | M27: =SUMIF('Test Period - May 2013'!$E$10:$E$406,$C27,'Test Period - May 2013'!$N$10:$N$406) -> 0 | N27: =SUMIF('Test Period - May 2013'!$E$10:$E$406,$C27,'Test Period - May 2013'!$O$10:$O$406) -> 0 | O27: =SUMIF('Test Period - May 2013'!$E$10:$E$406,$C27,'Test Period - May 2013'!$P$10:$P$406) -> 0 | P27: =SUMIF('Test Period - May 2013'!$E$10:$E$406,$C27,'Test Period - May 2013'!$Q$10:$Q$406) -> 0 | Q27: =SUMIF('Test Period - May 2013'!$E$10:$E$406,$C27,'Test Period - May 2013'!$R$10:$R$406) -> 0 | R27: =SUMIF('Test Period - May 2013'!$E$10:$E$406,$C27,'Test Period - May 2013'!$S$10:$S$406) -> 0 | S27: =SUM(F27:R27) -> 492845.7745 | T27: 0.07264115551 | U27: 35800.88655 | V27: 528646.6611
E28: Hydro Operations Total | F28: =SUBTOTAL(9,F26:F27) -> 35685054.03 | G28: =SUBTOTAL(9,G26:G27) -> 0 | H28: 0 | I28: -15075953.49 | J28: =SUBTOTAL(9,J26:J27) -> 0 | K28: 0 | L28: =SUBTOTAL(9,L26:L27) -> 0 | M28: 0 | N28: 0 | O28: 0 | P28: =SUBTOTAL(9,P26:P27) -> 0 | Q28: 0 | R28: 0 | S28: =SUBTOTAL(9,S26:S27) -> 20609100.55 | U28: =SUBTOTAL(9,U26:U27) -> 1497068.878 | V28: =SUBTOTAL(9,V26:V27) -> 22106169.42
D30: Hydro Maintenance
C31: =+$D$30&E31 -> Hydro MaintenanceSG-P | E31: SG-P | F31: =SUMIF('Test Period - May 2013'!$E$10:$E$406,$C31,'Test Period - May 2013'!$G$10:$G$406) -> 5680020.74 | G31: =SUMIF('Test Period - May 2013'!$E$10:$E$406,$C31,'Test Period - May 2013'!$H$10:$H$406) -> 0 | H31: =SUMIF('Test Period - May 2013'!$E$10:$E$406,$C31,'Test Period - May 2013'!$I$10:$I$406) -> 0 | I31: =SUMIF('Test Period - May 2013'!$E$10:$E$406,$C31,'Test Period - May 2013'!$J$10:$J$406) -> -2420186.915 | J31: =SUMIF('Test Period - May 2013'!$E$10:$E$406,$C31,'Test Period - May 2013'!$K$10:$K$406) -> 0 | K31: =SUMIF('Test Period - May 2013'!$E$10:$E$406,$C31,'Test Period - May 2013'!$L$10:$L$406) -> 0 | L31: =SUMIF('Test Period - May 2013'!$E$10:$E$406,$C31,'Test Period - May 2013'!$M$10:$M$406) -> 0 | M31: =SUMIF('Test Period - May 2013'!$E$10:$E$406,$C31,'Test Period - May 2013'!$N$10:$N$406) -> 0 | N31: =SUMIF('Test Period - May 2013'!$E$10:$E$406,$C31,'Test Period - May 2013'!$O$10:$O$406) -> 0 | O31: =SUMIF('Test Period - May 2013'!$E$10:$E$406,$C31,'Test Period - May 2013'!$P$10:$P$406) -> 0 | P31: =SUMIF('Test Period - May 2013'!$E$10:$E$406,$C31,'Test Period - May 2013'!$Q$10:$Q$406) -> 0 | Q31: =SUMIF('Test Period - May 2013'!$E$10:$E$406,$C31,'Test Period - May 2013'!$R$10:$R$406) -> 0 | R31: =SUMIF('Test Period - May 2013'!$E$10:$E$406,$C31,'Test Period - May 2013'!$S$10:$S$406) -> 0 | S31: =SUM(F31:R31) -> 3259833.825 | T31: 0.04038662487 | U31: =S31*T31 -> 131653.6858 | V31: =S31+U31 -> 3391487.511
C32: =+$D$30&E32 -> Hydro MaintenanceSG-U | E32: SG-U | F32: =SUMIF('Test Period - May 2013'!$E$10:$E$406,$C32,'Test Period - May 2013'!$G$10:$G$406) -> 1884379.568 | G32: =SUMIF('Test Period - May 2013'!$E$10:$E$406,$C32,'Test Period - May 2013'!$H$10:$H$406) -> 0 | H32: =SUMIF('Test Period - May 2013'!$E$10:$E$406,$C32,'Test Period - May 2013'!$I$10:$I$406) -> 0 | I32: =SUMIF('Test Period - May 2013'!$E$10:$E$406,$C32,'Test Period - May 2013'!$J$10:$J$406) -> -1083956.206 | J32: =SUMIF('Test Period - May 2013'!$E$10:$E$406,$C32,'Test Period - May 2013'!$K$10:$K$406) -> 0 | K32: =SUMIF('Test Period - May 2013'!$E$10:$E$406,$C32,'Test Period - May 2013'!$L$10:$L$406) -> 0 | L32: =SUMIF('Test Period - May 2013'!$E$10:$E$406,$C32,'Test Period - May 2013'!$M$10:$M$406) -> 0 | M32: =SUMIF('Test Period - May 2013'!$E$10:$E$406,$C32,'Test Period - May 2013'!$N$10:$N$406) -> 0 | N32: =SUMIF('Test Period - May 2013'!$E$10:$E$406,$C32,'Test Period - May 2013'!$O$10:$O$406) -> 0 | O32: =SUMIF('Test Period - May 2013'!$E$10:$E$406,$C32,'Test Period - May 2013'!$P$10:$P$406) -> 0 | P32: =SUMIF('Test Period - May 2013'!$E$10:$E$406,$C32,'Test Period - May 2013'!$Q$10:$Q$406) -> 0 | Q32: =SUMIF('Test Period - May 2013'!$E$10:$E$406,$C32,'Test Period - May 2013'!$R$10:$R$406) -> 0 | R32: =SUMIF('Test Period - May 2013'!$E$10:$E$406,$C32,'Test Period - May 2013'!$S$10:$S$406) -> 0 | S32: =SUM(F32:R32) -> 800423.3615 | T32: 0.04038662487 | U32: 32326.39804 | V32: 832749.7595
E33: Hydro Maintenance Total | F33: =SUBTOTAL(9,F31:F32) -> 7564400.308 | G33: =SUBTOTAL(9,G31:G32) -> 0 | H33: 0 | I33: -3504143.121 | J33: =SUBTOTAL(9,J31:J32) -> 0 | K33: 0 | L33: =SUBTOTAL(9,L31:L32) -> 0 | M33: 0 | N33: 0 | O33: 0 | P33: =SUBTOTAL(9,P31:P32) -> 0 | Q33: 0 | R33: 0 | S33: =SUBTOTAL(9,S31:S32) -> 4060257.187 | U33: =SUBTOTAL(9,U31:U32) -> 163980.0839 | V33: =SUBTOTAL(9,V31:V32) -> 4224237.271
D35: Purchased Power
C36: =+$D$35&E36 -> Purchased PowerID | E36: ID | F36: =SUMIF('Test Period - May 2013'!$E$10:$E$406,$C36,'Test Period - May 2013'!$G$10:$G$406) -> 83840.19 | G36: =SUMIF('Test Period - May 2013'!$E$10:$E$406,$C36,'Test Period - May 2013'!$H$10:$H$406) -> 0 | H36: =SUMIF('Test Period - May 2013'!$E$10:$E$406,$C36,'Test Period - May 2013'!$I$10:$I$406) -> 0 | I36: =SUMIF('Test Period - May 2013'!$E$10:$E$406,$C36,'Test Period - May 2013'!$J$10:$J$406) -> 0 | J36: =SUMIF('Test Period - May 2013'!$E$10:$E$406,$C36,'Test Period - May 2013'!$K$10:$K$406) -> 0 | K36: =SUMIF('Test Period - May 2013'!$E$10:$E$406,$C36,'Test Period - May 2013'!$L$10:$L$406) -> 0 | L36: =SUMIF('Test Period - May 2013'!$E$10:$E$406,$C36,'Test Period - May 2013'!$M$10:$M$406) -> 0 | M36: =SUMIF('Test Period - May 2013'!$E$10:$E$406,$C36,'Test Period - May 2013'!$N$10:$N$406) -> 0 | N36: =SUMIF('Test Period - May 2013'!$E$10:$E$406,$C36,'Test Period - May 2013'!$O$10:$O$406) -> 0 | O36: =SUMIF('Test Period - May 2013'!$E$10:$E$406,$C36,'Test Period - May 2013'!$P$10:$P$406) -> 0 | P36: =SUMIF('Test Period - May 2013'!$E$10:$E$406,$C36,'Test Period - May 2013'!$Q$10:$Q$406) -> 0 | Q36: =SUMIF('Test Period - May 2013'!$E$10:$E$406,$C36,'Test Period - May 2013'!$R$10:$R$406) -> 0 | R36: =SUMIF('Test Period - May 2013'!$E$10:$E$406,$C36,'Test Period - May 2013'!$S$10:$S$406) -> 0 | S36: =SUM(F36:R36) -> 83840.19 | T36: 0 | U36: =S36*T36 -> 0 | V36: =S36+U36 -> 83840.19
C37: Purchased PowerNPCSE | E37: NPCSE | F37: =SUMIF('Test Period - May 2013'!$E$10:$E$406,$C37,'Test Period - May 2013'!$G$10:$G$406) -> 23644780.14 | G37: =SUMIF('Test Period - May 2013'!$E$10:$E$406,$C37,'Test Period - May 2013'!$H$10:$H$406) -> 0 | H37: =SUMIF('Test Period - May 2013'!$E$10:$E$406,$C37,'Test Period - May 2013'!$I$10:$I$406) -> 0 | I37: =SUMIF('Test Period - May 2013'!$E$10:$E$406,$C37,'Test Period - May 2013'!$J$10:$J$406) -> 0 | J37: =SUMIF('Test Period - May 2013'!$E$10:$E$406,$C37,'Test Period - May 2013'!$K$10:$K$406) -> 0 | K37: =SUMIF('Test Period - May 2013'!$E$10:$E$406,$C37,'Test Period - May 2013'!$L$10:$L$406) -> 0 | L37: =SUMIF('Test Period - May 2013'!$E$10:$E$406,$C37,'Test Period - May 2013'!$M$10:$M$406) -> 0 | M37: =SUMIF('Test Period - May 2013'!$E$10:$E$406,$C37,'Test Period - May 2013'!$N$10:$N$406) -> 0 | N37: =SUMIF('Test Period - May 2013'!$E$10:$E$406,$C37,'Test Period - May 2013'!$O$10:$O$406) -> 0 | O37: =SUMIF('Test Period - May 2013'!$E$10:$E$406,$C37,'Test Period - May 2013'!$P$10:$P$406) -> 0 | P37: =SUMIF('Test Period - May 2013'!$E$10:$E$406,$C37,'Test Period - May 2013'!$Q$10:$Q$406) -> 0 | Q37: =SUMIF('Test Period - May 2013'!$E$10:$E$406,$C37,'Test Period - May 2013'!$R$10:$R$406) -> 0 | R37: =SUMIF('Test Period - May 2013'!$E$10:$E$406,$C37,'Test Period - May 2013'!$S$10:$S$406) -> 0 | S37: 23644780.14 | T37: 0 | U37: 0 | V37: 23644780.14
C38: Purchased PowerNPCSG | E38: NPCSG | F38: =SUMIF('Test Period - May 2013'!$E$10:$E$406,$C38,'Test Period - May 2013'!$G$10:$G$406) -> 402775435.9 | G38: =SUMIF('Test Period - May 2013'!$E$10:$E$406,$C38,'Test Period - May 2013'!$H$10:$H$406) -> 0 | H38: =SUMIF('Test Period - May 2013'!$E$10:$E$406,$C38,'Test Period - May 2013'!$I$10:$I$406) -> 0 | I38: =SUMIF('Test Period - May 2013'!$E$10:$E$406,$C38,'Test Period - May 2013'!$J$10:$J$406) -> 0 | J38: =SUMIF('Test Period - May 2013'!$E$10:$E$406,$C38,'Test Period - May 2013'!$K$10:$K$406) -> 0 | K38: =SUMIF('Test Period - May 2013'!$E$10:$E$406,$C38,'Test Period - May 2013'!$L$10:$L$406) -> 0 | L38: =SUMIF('Test Period - May 2013'!$E$10:$E$406,$C38,'Test Period - May 2013'!$M$10:$M$406) -> 0 | M38: =SUMIF('Test Period - May 2013'!$E$10:$E$406,$C38,'Test Period - May 2013'!$N$10:$N$406) -> 0 | N38: =SUMIF('Test Period - May 2013'!$E$10:$E$406,$C38,'Test Period - May 2013'!$O$10:$O$406) -> 0 | O38: =SUMIF('Test Period - May 2013'!$E$10:$E$406,$C38,'Test Period - May 2013'!$P$10:$P$406) -> 0 | P38: =SUMIF('Test Period - May 2013'!$E$10:$E$406,$C38,'Test Period - May 2013'!$Q$10:$Q$406) -> 27567522.23 | Q38: =SUMIF('Test Period - May 2013'!$E$10:$E$406,$C38,'Test Period - May 2013'!$R$10:$R$406) -> 0 | R38: =SUMIF('Test Period - May 2013'!$E$10:$E$406,$C38,'Test Period - May 2013'!$S$10:$S$406) -> 0 | S38: 430342958.1 | T38: 0 | U38: 0 | V38: 430342958.1
C39: Purchased PowerOR | E39: OR | F39: =SUMIF('Test Period - May 2013'!$E$10:$E$406,$C39,'Test Period - May 2013'!$G$10:$G$406) -> -22356044.34 | G39: =SUMIF('Test Period - May 2013'!$E$10:$E$406,$C39,'Test Period - May 2013'!$H$10:$H$406) -> 0 | H39: =SUMIF('Test Period - May 2013'!$E$10:$E$406,$C39,'Test Period - May 2013'!$I$10:$I$406) -> 0 | I39: =SUMIF('Test Period - May 2013'!$E$10:$E$406,$C39,'Test Period - May 2013'!$J$10:$J$406) -> 0 | J39: =SUMIF('Test Period - May 2013'!$E$10:$E$406,$C39,'Test Period - May 2013'!$K$10:$K$406) -> 0 | K39: =SUMIF('Test Period - May 2013'!$E$10:$E$406,$C39,'Test Period - May 2013'!$L$10:$L$406) -> 0 | L39: =SUMIF('Test Period - May 2013'!$E$10:$E$406,$C39,'Test Period - May 2013'!$M$10:$M$406) -> 0 | M39: =SUMIF('Test Period - May 2013'!$E$10:$E$406,$C39,'Test Period - May 2013'!$N$10:$N$406) -> 0 | N39: =SUMIF('Test Period - May 2013'!$E$10:$E$406,$C39,'Test Period - May 2013'!$O$10:$O$406) -> 0 | O39: =SUMIF('Test Period - May 2013'!$E$10:$E$406,$C39,'Test Period - May 2013'!$P$10:$P$406) -> 0 | P39: =SUMIF('Test Period - May 2013'!$E$10:$E$406,$C39,'Test Period - May 2013'!$Q$10:$Q$406) -> 0 | Q39: =SUMIF('Test Period - May 2013'!$E$10:$E$406,$C39,'Test Period - May 2013'!$R$10:$R$406) -> 0 | R39: =SUMIF('Test Period - May 2013'!$E$10:$E$406,$C39,'Test Period - May 2013'!$S$10:$S$406) -> 0 | S39: -22356044.34 | T39: 0 | U39: 0 | V39: -22356044.34
C40: Purchased PowerSG | E40: SG | F40: =SUMIF('Test Period - May 2013'!$E$10:$E$406,$C40,'Test Period - May 2013'!$G$10:$G$406) -> 0 | G40: =SUMIF('Test Period - May 2013'!$E$10:$E$406,$C40,'Test Period - May 2013'!$H$10:$H$406) -> 0 | H40: =SUMIF('Test Period - May 2013'!$E$10:$E$406,$C40,'Test Period - May 2013'!$I$10:$I$406) -> 0 | I40: =SUMIF('Test Period - May 2013'!$E$10:$E$406,$C40,'Test Period - May 2013'!$J$10:$J$406) -> 0 | J40: =SUMIF('Test Period - May 2013'!$E$10:$E$406,$C40,'Test Period - May 2013'!$K$10:$K$406) -> 0 | K40: =SUMIF('Test Period - May 2013'!$E$10:$E$406,$C40,'Test Period - May 2013'!$L$10:$L$406) -> 0 | L40: =SUMIF('Test Period - May 2013'!$E$10:$E$406,$C40,'Test Period - May 2013'!$M$10:$M$406) -> 0 | M40: =SUMIF('Test Period - May 2013'!$E$10:$E$406,$C40,'Test Period - May 2013'!$N$10:$N$406) -> 0 | N40: =SUMIF('Test Period - May 2013'!$E$10:$E$406,$C40,'Test Period - May 2013'!$O$10:$O$406) -> 0 | O40: =SUMIF('Test Period - May 2013'!$E$10:$E$406,$C40,'Test Period - May 2013'!$P$10:$P$406) -> 0 | P40: =SUMIF('Test Period - May 2013'!$E$10:$E$406,$C40,'Test Period - May 2013'!$Q$10:$Q$406) -> 0 | Q40: =SUMIF('Test Period - May 2013'!$E$10:$E$406,$C40,'Test Period - May 2013'!$R$10:$R$406) -> 0 | R40: =SUMIF('Test Period - May 2013'!$E$10:$E$406,$C40,'Test Period - May 2013'!$S$10:$S$406) -> 0 | S40: 0 | T40: 0 | U40: 0 | V40: 0
C41: Purchased PowerWA | E41: WA | F41: =SUMIF('Test Period - May 2013'!$E$10:$E$406,$C41,'Test Period - May 2013'!$G$10:$G$406) -> -8714605.31 | G41: =SUMIF('Test Period - May 2013'!$E$10:$E$406,$C41,'Test Period - May 2013'!$H$10:$H$406) -> 0 | H41: =SUMIF('Test Period - May 2013'!$E$10:$E$406,$C41,'Test Period - May 2013'!$I$10:$I$406) -> 0 | I41: =SUMIF('Test Period - May 2013'!$E$10:$E$406,$C41,'Test Period - May 2013'!$J$10:$J$406) -> 0 | J41: =SUMIF('Test Period - May 2013'!$E$10:$E$406,$C41,'Test Period - May 2013'!$K$10:$K$406) -> 0 | K41: =SUMIF('Test Period - May 2013'!$E$10:$E$406,$C41,'Test Period - May 2013'!$L$10:$L$406) -> 0 | L41: =SUMIF('Test Period - May 2013'!$E$10:$E$406,$C41,'Test Period - May 2013'!$M$10:$M$406) -> 0 | M41: =SUMIF('Test Period - May 2013'!$E$10:$E$406,$C41,'Test Period - May 2013'!$N$10:$N$406) -> 0 | N41: =SUMIF('Test Period - May 2013'!$E$10:$E$406,$C41,'Test Period - May 2013'!$O$10:$O$406) -> 0 | O41: =SUMIF('Test Period - May 2013'!$E$10:$E$406,$C41,'Test Period - May 2013'!$P$10:$P$406) -> 0 | P41: =SUMIF('Test Period - May 2013'!$E$10:$E$406,$C41,'Test Period - May 2013'!$Q$10:$Q$406) -> 0 | Q41: =SUMIF('Test Period - May 2013'!$E$10:$E$406,$C41,'Test Period - May 2013'!$R$10:$R$406) -> 0 | R41: =SUMIF('Test Period - May 2013'!$E$10:$E$406,$C41,'Test Period - May 2013'!$S$10:$S$406) -> 0 | S41: -8714605.31 | T41: 0 | U41: 0 | V41: -8714605.31
E42: Purchase Power Total | F42: =SUBTOTAL(9,F36:F41) -> 395433406.6 | G42: =SUBTOTAL(9,G36:G41) -> 0 | H42: 0 | I42: 0 | J42: =SUBTOTAL(9,J36:J41) -> 0 | K42: 0 | L42: =SUBTOTAL(9,L36:L41) -> 0 | M42: 0 | N42: 0 | O42: 0 | P42: =SUBTOTAL(9,P36:P41) -> 27567522.23 | Q42: 0 | R42: =SUBTOTAL(9,R36:R41) -> 0 | S42: =SUBTOTAL(9,S36:S41) -> 423000928.8 | U42: =SUBTOTAL(9,U36:U41) -> 0 | V42: =SUBTOTAL(9,V36:V41) -> 423000928.8
D45: Other Operations
C46: =+$D$45&E46 -> Other OperationsID | E46: ID | F46: =SUMIF('Test Period - May 2013'!$E$10:$E$406,$C46,'Test Period - May 2013'!$G$10:$G$406) -> -32973.24 | G46: =SUMIF('Test Period - May 2013'!$E$10:$E$406,$C46,'Test Period - May 2013'!$H$10:$H$406) -> 0 | H46: =SUMIF('Test Period - May 2013'!$E$10:$E$406,$C46,'Test Period - May 2013'!$I$10:$I$406) -> 0 | I46: =SUMIF('Test Period - May 2013'!$E$10:$E$406,$C46,'Test Period - May 2013'!$J$10:$J$406) -> 0 | J46: =SUMIF('Test Period - May 2013'!$E$10:$E$406,$C46,'Test Period - May 2013'!$K$10:$K$406) -> 9028930.37 | K46: =SUMIF('Test Period - May 2013'!$E$10:$E$406,$C46,'Test Period - May 2013'!$L$10:$L$406) -> 0 | L46: =SUMIF('Test Period - May 2013'!$E$10:$E$406,$C46,'Test Period - May 2013'!$M$10:$M$406) -> 0 | M46: =SUMIF('Test Period - May 2013'!$E$10:$E$406,$C46,'Test Period - May 2013'!$N$10:$N$406) -> 0 | N46: =SUMIF('Test Period - May 2013'!$E$10:$E$406,$C46,'Test Period - May 2013'!$O$10:$O$406) -> 0 | O46: =SUMIF('Test Period - May 2013'!$E$10:$E$406,$C46,'Test Period - May 2013'!$P$10:$P$406) -> 0 | P46: =SUMIF('Test Period - May 2013'!$E$10:$E$406,$C46,'Test Period - May 2013'!$Q$10:$Q$406) -> 0 | Q46: =SUMIF('Test Period - May 2013'!$E$10:$E$406,$C46,'Test Period - May 2013'!$R$10:$R$406) -> 0 | R46: =SUMIF('Test Period - May 2013'!$E$10:$E$406,$C46,'Test Period - May 2013'!$S$10:$S$406) -> 0 | S46: =SUM(F46:R46) -> 8995957.13 | T46: 0.06639828234 | U46: =S46*T46 -> 597316.1014 | V46: =S46+U46 -> 9593273.231
C47: Other OperationsNPCSE | E47: NPCSE | F47: =SUMIF('Test Period - May 2013'!$E$10:$E$406,$C47,'Test Period - May 2013'!$G$10:$G$406) -> 365731150.6 | G47: =SUMIF('Test Period - May 2013'!$E$10:$E$406,$C47,'Test Period - May 2013'!$H$10:$H$406) -> 0 | H47: =SUMIF('Test Period - May 2013'!$E$10:$E$406,$C47,'Test Period - May 2013'!$I$10:$I$406) -> 0 | I47: =SUMIF('Test Period - May 2013'!$E$10:$E$406,$C47,'Test Period - May 2013'!$J$10:$J$406) -> 0 | J47: =SUMIF('Test Period - May 2013'!$E$10:$E$406,$C47,'Test Period - May 2013'!$K$10:$K$406) -> 0 | K47: =SUMIF('Test Period - May 2013'!$E$10:$E$406,$C47,'Test Period - May 2013'!$L$10:$L$406) -> 0 | L47: =SUMIF('Test Period - May 2013'!$E$10:$E$406,$C47,'Test Period - May 2013'!$M$10:$M$406) -> 0 | M47: =SUMIF('Test Period - May 2013'!$E$10:$E$406,$C47,'Test Period - May 2013'!$N$10:$N$406) -> 0 | N47: =SUMIF('Test Period - May 2013'!$E$10:$E$406,$C47,'Test Period - May 2013'!$O$10:$O$406) -> 0 | O47: =SUMIF('Test Period - May 2013'!$E$10:$E$406,$C47,'Test Period - May 2013'!$P$10:$P$406) -> 0 | P47: =SUMIF('Test Period - May 2013'!$E$10:$E$406,$C47,'Test Period - May 2013'!$Q$10:$Q$406) -> 0 | Q47: =SUMIF('Test Period - May 2013'!$E$10:$E$406,$C47,'Test Period - May 2013'!$R$10:$R$406) -> 0 | R47: =SUMIF('Test Period - May 2013'!$E$10:$E$406,$C47,'Test Period - May 2013'!$S$10:$S$406) -> 0 | S47: 365731150.6 | T47: 0 | U47: 0 | V47: 365731150.6
C48: Other OperationsNPCSSECT | E48: NPCSSECT | F48: =SUMIF('Test Period - May 2013'!$E$10:$E$406,$C48,'Test Period - May 2013'!$G$10:$G$406) -> 16065664.24 | G48: =SUMIF('Test Period - May 2013'!$E$10:$E$406,$C48,'Test Period - May 2013'!$H$10:$H$406) -> 0 | H48: =SUMIF('Test Period - May 2013'!$E$10:$E$406,$C48,'Test Period - May 2013'!$I$10:$I$406) -> 0 | I48: =SUMIF('Test Period - May 2013'!$E$10:$E$406,$C48,'Test Period - May 2013'!$J$10:$J$406) -> 0 | J48: =SUMIF('Test Period - May 2013'!$E$10:$E$406,$C48,'Test Period - May 2013'!$K$10:$K$406) -> 0 | K48: =SUMIF('Test Period - May 2013'!$E$10:$E$406,$C48,'Test Period - May 2013'!$L$10:$L$406) -> 0 | L48: =SUMIF('Test Period - May 2013'!$E$10:$E$406,$C48,'Test Period - May 2013'!$M$10:$M$406) -> 0 | M48: =SUMIF('Test Period - May 2013'!$E$10:$E$406,$C48,'Test Period - May 2013'!$N$10:$N$406) -> 0 | N48: =SUMIF('Test Period - May 2013'!$E$10:$E$406,$C48,'Test Period - May 2013'!$O$10:$O$406) -> 0 | O48: =SUMIF('Test Period - May 2013'!$E$10:$E$406,$C48,'Test Period - May 2013'!$P$10:$P$406) -> 0 | P48: =SUMIF('Test Period - May 2013'!$E$10:$E$406,$C48,'Test Period - May 2013'!$Q$10:$Q$406) -> 0 | Q48: =SUMIF('Test Period - May 2013'!$E$10:$E$406,$C48,'Test Period - May 2013'!$R$10:$R$406) -> 0 | R48: =SUMIF('Test Period - May 2013'!$E$10:$E$406,$C48,'Test Period - May 2013'!$S$10:$S$406) -> 0 | S48: 16065664.24 | T48: 0 | U48: 0 | V48: 16065664.24
C49: Other OperationsOR | E49: OR | F49: =SUMIF('Test Period - May 2013'!$E$10:$E$406,$C49,'Test Period - May 2013'!$G$10:$G$406) -> -53813.04 | G49: =SUMIF('Test Period - May 2013'!$E$10:$E$406,$C49,'Test Period - May 2013'!$H$10:$H$406) -> 0 | H49: =SUMIF('Test Period - May 2013'!$E$10:$E$406,$C49,'Test Period - May 2013'!$I$10:$I$406) -> 0 | I49: =SUMIF('Test Period - May 2013'!$E$10:$E$406,$C49,'Test Period - May 2013'!$J$10:$J$406) -> 0 | J49: =SUMIF('Test Period - May 2013'!$E$10:$E$406,$C49,'Test Period - May 2013'!$K$10:$K$406) -> 0 | K49: =SUMIF('Test Period - May 2013'!$E$10:$E$406,$C49,'Test Period - May 2013'!$L$10:$L$406) -> 0 | L49: =SUMIF('Test Period - May 2013'!$E$10:$E$406,$C49,'Test Period - May 2013'!$M$10:$M$406) -> 0 | M49: =SUMIF('Test Period - May 2013'!$E$10:$E$406,$C49,'Test Period - May 2013'!$N$10:$N$406) -> 0 | N49: =SUMIF('Test Period - May 2013'!$E$10:$E$406,$C49,'Test Period - May 2013'!$O$10:$O$406) -> 0 | O49: =SUMIF('Test Period - May 2013'!$E$10:$E$406,$C49,'Test Period - May 2013'!$P$10:$P$406) -> 0 | P49: =SUMIF('Test Period - May 2013'!$E$10:$E$406,$C49,'Test Period - May 2013'!$Q$10:$Q$406) -> 0 | Q49: =SUMIF('Test Period - May 2013'!$E$10:$E$406,$C49,'Test Period - May 2013'!$R$10:$R$406) -> 0 | R49: =SUMIF('Test Period - May 2013'!$E$10:$E$406,$C49,'Test Period - May 2013'!$S$10:$S$406) -> 0 | S49: -53813.04 | T49: 0.06639828234 | U49: -3573.093424 | V49: -57386.13342
C50: Other OperationsSG | E50: SG | F50: =SUMIF('Test Period - May 2013'!$E$10:$E$406,$C50,'Test Period - May 2013'!$G$10:$G$406) -> 80410213.06 | G50: =SUMIF('Test Period - May 2013'!$E$10:$E$406,$C50,'Test Period - May 2013'!$H$10:$H$406) -> 0 | H50: =SUMIF('Test Period - May 2013'!$E$10:$E$406,$C50,'Test Period - May 2013'!$I$10:$I$406) -> -2953.849537 | I50: =SUMIF('Test Period - May 2013'!$E$10:$E$406,$C50,'Test Period - May 2013'!$J$10:$J$406) -> -41481305.14 | J50: =SUMIF('Test Period - May 2013'!$E$10:$E$406,$C50,'Test Period - May 2013'!$K$10:$K$406) -> -9002888.48 | K50: =SUMIF('Test Period - May 2013'!$E$10:$E$406,$C50,'Test Period - May 2013'!$L$10:$L$406) -> -3033000 | L50: =SUMIF('Test Period - May 2013'!$E$10:$E$406,$C50,'Test Period - May 2013'!$M$10:$M$406) -> 0 | M50: =SUMIF('Test Period - May 2013'!$E$10:$E$406,$C50,'Test Period - May 2013'!$N$10:$N$406) -> 0 | N50: =SUMIF('Test Period - May 2013'!$E$10:$E$406,$C50,'Test Period - May 2013'!$O$10:$O$406) -> 0 | O50: =SUMIF('Test Period - May 2013'!$E$10:$E$406,$C50,'Test Period - May 2013'!$P$10:$P$406) -> 0 | P50: =SUMIF('Test Period - May 2013'!$E$10:$E$406,$C50,'Test Period - May 2013'!$Q$10:$Q$406) -> 0 | Q50: =SUMIF('Test Period - May 2013'!$E$10:$E$406,$C50,'Test Period - May 2013'!$R$10:$R$406) -> -844878 | R50: =SUMIF('Test Period - May 2013'!$E$10:$E$406,$C50,'Test Period - May 2013'!$S$10:$S$406) -> 0 | S50: 26045187.59 | T50: 0.06639828234 | U50: 1729355.719 | V50: 27774543.31
C51: =+$D$45&E51 -> Other OperationsSG-W | E51: SG-W | F51: =SUMIF('Test Period - May 2013'!$E$10:$E$406,$C51,'Test Period - May 2013'!$G$10:$G$406) -> 21304758.24 | G51: =SUMIF('Test Period - May 2013'!$E$10:$E$406,$C51,'Test Period - May 2013'!$H$10:$H$406) -> 0 | H51: =SUMIF('Test Period - May 2013'!$E$10:$E$406,$C51,'Test Period - May 2013'!$I$10:$I$406) -> 0 | I51: =SUMIF('Test Period - May 2013'!$E$10:$E$406,$C51,'Test Period - May 2013'!$J$10:$J$406) -> 0 | J51: =SUMIF('Test Period - May 2013'!$E$10:$E$406,$C51,'Test Period - May 2013'!$K$10:$K$406) -> 0 | K51: =SUMIF('Test Period - May 2013'!$E$10:$E$406,$C51,'Test Period - May 2013'!$L$10:$L$406) -> 0 | L51: =SUMIF('Test Period - May 2013'!$E$10:$E$406,$C51,'Test Period - May 2013'!$M$10:$M$406) -> 0 | M51: =SUMIF('Test Period - May 2013'!$E$10:$E$406,$C51,'Test Period - May 2013'!$N$10:$N$406) -> 0 | N51: =SUMIF('Test Period - May 2013'!$E$10:$E$406,$C51,'Test Period - May 2013'!$O$10:$O$406) -> 0 | O51: =SUMIF('Test Period - May 2013'!$E$10:$E$406,$C51,'Test Period - May 2013'!$P$10:$P$406) -> 0 | P51: =SUMIF('Test Period - May 2013'!$E$10:$E$406,$C51,'Test Period - May 2013'!$Q$10:$Q$406) -> 0 | Q51: =SUMIF('Test Period - May 2013'!$E$10:$E$406,$C51,'Test Period - May 2013'!$R$10:$R$406) -> 0 | R51: =SUMIF('Test Period - May 2013'!$E$10:$E$406,$C51,'Test Period - May 2013'!$S$10:$S$406) -> 0 | S51: 21304758.24 | T51: 0.06639828234 | U51: 1414599.353 | V51: 22719357.59
C52: Other OperationsSGCT | E52: SGCT | F52: =SUMIF('Test Period - May 2013'!$E$10:$E$406,$C52,'Test Period - May 2013'!$G$10:$G$406) -> 1122425.04 | G52: =SUMIF('Test Period - May 2013'!$E$10:$E$406,$C52,'Test Period - May 2013'!$H$10:$H$406) -> 0 | H52: =SUMIF('Test Period - May 2013'!$E$10:$E$406,$C52,'Test Period - May 2013'!$I$10:$I$406) -> 0 | I52: =SUMIF('Test Period - May 2013'!$E$10:$E$406,$C52,'Test Period - May 2013'!$J$10:$J$406) -> 0 | J52: =SUMIF('Test Period - May 2013'!$E$10:$E$406,$C52,'Test Period - May 2013'!$K$10:$K$406) -> 0 | K52: =SUMIF('Test Period - May 2013'!$E$10:$E$406,$C52,'Test Period - May 2013'!$L$10:$L$406) -> 0 | L52: =SUMIF('Test Period - May 2013'!$E$10:$E$406,$C52,'Test Period - May 2013'!$M$10:$M$406) -> 0 | M52: =SUMIF('Test Period - May 2013'!$E$10:$E$406,$C52,'Test Period - May 2013'!$N$10:$N$406) -> 0 | N52: =SUMIF('Test Period - May 2013'!$E$10:$E$406,$C52,'Test Period - May 2013'!$O$10:$O$406) -> 0 | O52: =SUMIF('Test Period - May 2013'!$E$10:$E$406,$C52,'Test Period - May 2013'!$P$10:$P$406) -> 0 | P52: =SUMIF('Test Period - May 2013'!$E$10:$E$406,$C52,'Test Period - May 2013'!$Q$10:$Q$406) -> 0 | Q52: =SUMIF('Test Period - May 2013'!$E$10:$E$406,$C52,'Test Period - May 2013'!$R$10:$R$406) -> 0 | R52: =SUMIF('Test Period - May 2013'!$E$10:$E$406,$C52,'Test Period - May 2013'!$S$10:$S$406) -> 0 | S52: 1122425.04 | T52: 0.06639828234 | U52: 74527.09471 | V52: 1196952.135
C53: Other OperationsSSGCT | E53: SSGCT | F53: =SUMIF('Test Period - May 2013'!$E$10:$E$406,$C53,'Test Period - May 2013'!$G$10:$G$406) -> 1195094.84 | G53: =SUMIF('Test Period - May 2013'!$E$10:$E$406,$C53,'Test Period - May 2013'!$H$10:$H$406) -> 0 | H53: =SUMIF('Test Period - May 2013'!$E$10:$E$406,$C53,'Test Period - May 2013'!$I$10:$I$406) -> 0 | I53: =SUMIF('Test Period - May 2013'!$E$10:$E$406,$C53,'Test Period - May 2013'!$J$10:$J$406) -> -546197.7203 | J53: =SUMIF('Test Period - May 2013'!$E$10:$E$406,$C53,'Test Period - May 2013'!$K$10:$K$406) -> 0 | K53: =SUMIF('Test Period - May 2013'!$E$10:$E$406,$C53,'Test Period - May 2013'!$L$10:$L$406) -> 0 | L53: =SUMIF('Test Period - May 2013'!$E$10:$E$406,$C53,'Test Period - May 2013'!$M$10:$M$406) -> 0 | M53: =SUMIF('Test Period - May 2013'!$E$10:$E$406,$C53,'Test Period - May 2013'!$N$10:$N$406) -> 0 | N53: =SUMIF('Test Period - May 2013'!$E$10:$E$406,$C53,'Test Period - May 2013'!$O$10:$O$406) -> 0 | O53: =SUMIF('Test Period - May 2013'!$E$10:$E$406,$C53,'Test Period - May 2013'!$P$10:$P$406) -> 0 | P53: =SUMIF('Test Period - May 2013'!$E$10:$E$406,$C53,'Test Period - May 2013'!$Q$10:$Q$406) -> 0 | Q53: =SUMIF('Test Period - May 2013'!$E$10:$E$406,$C53,'Test Period - May 2013'!$R$10:$R$406) -> 0 | R53: =SUMIF('Test Period - May 2013'!$E$10:$E$406,$C53,'Test Period - May 2013'!$S$10:$S$406) -> 0 | S53: 648897.1197 | T53: 0.06639828234 | U53: 43085.65416 | V53: 691982.7739
C54: Other OperationsWA | E54: WA | F54: =SUMIF('Test Period - May 2013'!$E$10:$E$406,$C54,'Test Period - May 2013'!$G$10:$G$406) -> -97006.2 | G54: =SUMIF('Test Period - May 2013'!$E$10:$E$406,$C54,'Test Period - May 2013'!$H$10:$H$406) -> 0 | H54: =SUMIF('Test Period - May 2013'!$E$10:$E$406,$C54,'Test Period - May 2013'!$I$10:$I$406) -> 0 | I54: =SUMIF('Test Period - May 2013'!$E$10:$E$406,$C54,'Test Period - May 2013'!$J$10:$J$406) -> 0 | J54: =SUMIF('Test Period - May 2013'!$E$10:$E$406,$C54,'Test Period - May 2013'!$K$10:$K$406) -> 0 | K54: =SUMIF('Test Period - May 2013'!$E$10:$E$406,$C54,'Test Period - May 2013'!$L$10:$L$406) -> 0 | L54: =SUMIF('Test Period - May 2013'!$E$10:$E$406,$C54,'Test Period - May 2013'!$M$10:$M$406) -> 0 | M54: =SUMIF('Test Period - May 2013'!$E$10:$E$406,$C54,'Test Period - May 2013'!$N$10:$N$406) -> 0 | N54: =SUMIF('Test Period - May 2013'!$E$10:$E$406,$C54,'Test Period - May 2013'!$O$10:$O$406) -> 0 | O54: =SUMIF('Test Period - May 2013'!$E$10:$E$406,$C54,'Test Period - May 2013'!$P$10:$P$406) -> 0 | P54: =SUMIF('Test Period - May 2013'!$E$10:$E$406,$C54,'Test Period - May 2013'!$Q$10:$Q$406) -> 0 | Q54: =SUMIF('Test Period - May 2013'!$E$10:$E$406,$C54,'Test Period - May 2013'!$R$10:$R$406) -> 0 | R54: =SUMIF('Test Period - May 2013'!$E$10:$E$406,$C54,'Test Period - May 2013'!$S$10:$S$406) -> 0 | S54: -97006.2 | T54: 0.06639828234 | U54: -6441.045056 | V54: -103447.2451
E55: Other Operations Total | F55: =SUBTOTAL(9,F46:F54) -> 485645513.5 | G55: =SUBTOTAL(9,G46:G54) -> 0 | H55: -2953.849537 | I55: -42027502.86 | J55: =SUBTOTAL(9,J46:J54) -> 26041.89 | K55: -3033000 | L55: =SUBTOTAL(9,L46:L54) -> 0 | M55: 0 | N55: 0 | O55: 0 | P55: =SUBTOTAL(9,P46:P54) -> 0 | Q55: -844878 | R55: 0 | S55: =SUBTOTAL(9,S46:S54) -> 439763220.7 | U55: =SUBTOTAL(9,U46:U54) -> 3848869.784 | V55: =SUBTOTAL(9,V46:V54) -> 443612090.5
D57: Other Maintenance
C58: =+$D$57&E58 -> Other MaintenanceSG | E58: SG | F58: =SUMIF('Test Period - May 2013'!$E$10:$E$406,$C58,'Test Period - May 2013'!$G$10:$G$406) -> 9696397.81 | G58: =SUMIF('Test Period - May 2013'!$E$10:$E$406,$C58,'Test Period - May 2013'!$H$10:$H$406) -> 0 | H58: =SUMIF('Test Period - May 2013'!$E$10:$E$406,$C58,'Test Period - May 2013'!$I$10:$I$406) -> 0 | I58: =SUMIF('Test Period - May 2013'!$E$10:$E$406,$C58,'Test Period - May 2013'!$J$10:$J$406) -> -2420146.443 | J58: =SUMIF('Test Period - May 2013'!$E$10:$E$406,$C58,'Test Period - May 2013'!$K$10:$K$406) -> 0 | K58: =SUMIF('Test Period - May 2013'!$E$10:$E$406,$C58,'Test Period - May 2013'!$L$10:$L$406) -> 0 | L58: =SUMIF('Test Period - May 2013'!$E$10:$E$406,$C58,'Test Period - May 2013'!$M$10:$M$406) -> 0 | M58: =SUMIF('Test Period - May 2013'!$E$10:$E$406,$C58,'Test Period - May 2013'!$N$10:$N$406) -> 0 | N58: =SUMIF('Test Period - May 2013'!$E$10:$E$406,$C58,'Test Period - May 2013'!$O$10:$O$406) -> -223218.2157 | O58: =SUMIF('Test Period - May 2013'!$E$10:$E$406,$C58,'Test Period - May 2013'!$P$10:$P$406) -> 0 | P58: =SUMIF('Test Period - May 2013'!$E$10:$E$406,$C58,'Test Period - May 2013'!$Q$10:$Q$406) -> 0 | Q58: =SUMIF('Test Period - May 2013'!$E$10:$E$406,$C58,'Test Period - May 2013'!$R$10:$R$406) -> 0 | R58: =SUMIF('Test Period - May 2013'!$E$10:$E$406,$C58,'Test Period - May 2013'!$S$10:$S$406) -> 0 | S58: =SUM(F58:R58) -> 7053033.152 | T58: 0.04485516645 | U58: =S58*T58 -> 316364.976 | V58: =S58+U58 -> 7369398.128
C59: =+$D$57&E59 -> Other MaintenanceSG-W | E59: SG-W | F59: =SUMIF('Test Period - May 2013'!$E$10:$E$406,$C59,'Test Period - May 2013'!$G$10:$G$406) -> 4932421.63 | G59: =SUMIF('Test Period - May 2013'!$E$10:$E$406,$C59,'Test Period - May 2013'!$H$10:$H$406) -> 0 | H59: =SUMIF('Test Period - May 2013'!$E$10:$E$406,$C59,'Test Period - May 2013'!$I$10:$I$406) -> 0 | I59: =SUMIF('Test Period - May 2013'!$E$10:$E$406,$C59,'Test Period - May 2013'!$J$10:$J$406) -> 0 | J59: =SUMIF('Test Period - May 2013'!$E$10:$E$406,$C59,'Test Period - May 2013'!$K$10:$K$406) -> 0 | K59: =SUMIF('Test Period - May 2013'!$E$10:$E$406,$C59,'Test Period - May 2013'!$L$10:$L$406) -> 0 | L59: =SUMIF('Test Period - May 2013'!$E$10:$E$406,$C59,'Test Period - May 2013'!$M$10:$M$406) -> 0 | M59: =SUMIF('Test Period - May 2013'!$E$10:$E$406,$C59,'Test Period - May 2013'!$N$10:$N$406) -> 0 | N59: =SUMIF('Test Period - May 2013'!$E$10:$E$406,$C59,'Test Period - May 2013'!$O$10:$O$406) -> 0 | O59: =SUMIF('Test Period - May 2013'!$E$10:$E$406,$C59,'Test Period - May 2013'!$P$10:$P$406) -> 0 | P59: =SUMIF('Test Period - May 2013'!$E$10:$E$406,$C59,'Test Period - May 2013'!$Q$10:$Q$406) -> 0 | Q59: =SUMIF('Test Period - May 2013'!$E$10:$E$406,$C59,'Test Period - May 2013'!$R$10:$R$406) -> 0 | R59: =SUMIF('Test Period - May 2013'!$E$10:$E$406,$C59,'Test Period - May 2013'!$S$10:$S$406) -> 0 | S59: =SUM(F59:R59) -> 4932421.63 | T59: 0.04485516645 | U59: 221244.5932 | V59: 5153666.223
C60: =+$D$57&E60 -> Other MaintenanceSSGCT | E60: SSGCT | F60: =SUMIF('Test Period - May 2013'!$E$10:$E$406,$C60,'Test Period - May 2013'!$G$10:$G$406) -> 792298.52 | G60: =SUMIF('Test Period - May 2013'!$E$10:$E$406,$C60,'Test Period - May 2013'!$H$10:$H$406) -> 0 | H60: =SUMIF('Test Period - May 2013'!$E$10:$E$406,$C60,'Test Period - May 2013'!$I$10:$I$406) -> 0 | I60: =SUMIF('Test Period - May 2013'!$E$10:$E$406,$C60,'Test Period - May 2013'!$J$10:$J$406) -> -273654.6925 | J60: =SUMIF('Test Period - May 2013'!$E$10:$E$406,$C60,'Test Period - May 2013'!$K$10:$K$406) -> 0 | K60: =SUMIF('Test Period - May 2013'!$E$10:$E$406,$C60,'Test Period - May 2013'!$L$10:$L$406) -> 0 | L60: =SUMIF('Test Period - May 2013'!$E$10:$E$406,$C60,'Test Period - May 2013'!$M$10:$M$406) -> 0 | M60: =SUMIF('Test Period - May 2013'!$E$10:$E$406,$C60,'Test Period - May 2013'!$N$10:$N$406) -> 0 | N60: =SUMIF('Test Period - May 2013'!$E$10:$E$406,$C60,'Test Period - May 2013'!$O$10:$O$406) -> 0 | O60: =SUMIF('Test Period - May 2013'!$E$10:$E$406,$C60,'Test Period - May 2013'!$P$10:$P$406) -> 0 | P60: =SUMIF('Test Period - May 2013'!$E$10:$E$406,$C60,'Test Period - May 2013'!$Q$10:$Q$406) -> 0 | Q60: =SUMIF('Test Period - May 2013'!$E$10:$E$406,$C60,'Test Period - May 2013'!$R$10:$R$406) -> 0 | R60: =SUMIF('Test Period - May 2013'!$E$10:$E$406,$C60,'Test Period - May 2013'!$S$10:$S$406) -> 0 | S60: =SUM(F60:R60) -> 518643.8275 | T60: 0.04485516645 | U60: 23263.85521 | V60: 541907.6828
E61: Other Maintenance Total | F61: =SUBTOTAL(9,F58:F60) -> 15421117.96 | G61: =SUBTOTAL(9,G58:G60) -> 0 | H61: 0 | I61: -2693801.135 | J61: =SUBTOTAL(9,J58:J60) -> 0 | K61: 0 | L61: =SUBTOTAL(9,L58:L60) -> 0 | M61: 0 | N61: -223218.2157 | O61: 0 | P61: =SUBTOTAL(9,P58:P60) -> 0 | Q61: 0 | R61: 0 | S61: =SUBTOTAL(9,S58:S60) -> 12504098.61 | U61: =SUBTOTAL(9,U58:U60) -> 560873.4244 | V61: =SUBTOTAL(9,V58:V60) -> 13064972.03
D63: Transmission Operations
C64: =+$D$63&E64 -> Transmission OperationsNPCSE | E64: NPCSE | F64: =SUMIF('Test Period - May 2013'!$E$10:$E$406,$C64,'Test Period - May 2013'!$G$10:$G$406) -> 6292489.88 | G64: =SUMIF('Test Period - May 2013'!$E$10:$E$406,$C64,'Test Period - May 2013'!$H$10:$H$406) -> 0 | H64: =SUMIF('Test Period - May 2013'!$E$10:$E$406,$C64,'Test Period - May 2013'!$I$10:$I$406) -> 0 | I64: =SUMIF('Test Period - May 2013'!$E$10:$E$406,$C64,'Test Period - May 2013'!$J$10:$J$406) -> 0 | J64: =SUMIF('Test Period - May 2013'!$E$10:$E$406,$C64,'Test Period - May 2013'!$K$10:$K$406) -> 0 | K64: =SUMIF('Test Period - May 2013'!$E$10:$E$406,$C64,'Test Period - May 2013'!$L$10:$L$406) -> 0 | L64: =SUMIF('Test Period - May 2013'!$E$10:$E$406,$C64,'Test Period - May 2013'!$M$10:$M$406) -> 0 | M64: =SUMIF('Test Period - May 2013'!$E$10:$E$406,$C64,'Test Period - May 2013'!$N$10:$N$406) -> 0 | N64: =SUMIF('Test Period - May 2013'!$E$10:$E$406,$C64,'Test Period - May 2013'!$O$10:$O$406) -> 0 | O64: =SUMIF('Test Period - May 2013'!$E$10:$E$406,$C64,'Test Period - May 2013'!$P$10:$P$406) -> 0 | P64: =SUMIF('Test Period - May 2013'!$E$10:$E$406,$C64,'Test Period - May 2013'!$Q$10:$Q$406) -> 0 | Q64: =SUMIF('Test Period - May 2013'!$E$10:$E$406,$C64,'Test Period - May 2013'!$R$10:$R$406) -> 0 | R64: =SUMIF('Test Period - May 2013'!$E$10:$E$406,$C64,'Test Period - May 2013'!$S$10:$S$406) -> 0 | S64: =SUM(F64:R64) -> 6292489.88 | T64: 0 | U64: =S64*T64 -> 0 | V64: =S64+U64 -> 6292489.88
C65: =+$D$63&E65 -> Transmission OperationsNPCSG | E65: NPCSG | F65: =SUMIF('Test Period - May 2013'!$E$10:$E$406,$C65,'Test Period - May 2013'!$G$10:$G$406) -> 131608085.8 | G65: =SUMIF('Test Period - May 2013'!$E$10:$E$406,$C65,'Test Period - May 2013'!$H$10:$H$406) -> 0 | H65: =SUMIF('Test Period - May 2013'!$E$10:$E$406,$C65,'Test Period - May 2013'!$I$10:$I$406) -> 0 | I65: =SUMIF('Test Period - May 2013'!$E$10:$E$406,$C65,'Test Period - May 2013'!$J$10:$J$406) -> 0 | J65: =SUMIF('Test Period - May 2013'!$E$10:$E$406,$C65,'Test Period - May 2013'!$K$10:$K$406) -> 0 | K65: =SUMIF('Test Period - May 2013'!$E$10:$E$406,$C65,'Test Period - May 2013'!$L$10:$L$406) -> 0 | L65: =SUMIF('Test Period - May 2013'!$E$10:$E$406,$C65,'Test Period - May 2013'!$M$10:$M$406) -> 0 | M65: =SUMIF('Test Period - May 2013'!$E$10:$E$406,$C65,'Test Period - May 2013'!$N$10:$N$406) -> 0 | N65: =SUMIF('Test Period - May 2013'!$E$10:$E$406,$C65,'Test Period - May 2013'!$O$10:$O$406) -> 0 | O65: =SUMIF('Test Period - May 2013'!$E$10:$E$406,$C65,'Test Period - May 2013'!$P$10:$P$406) -> 0 | P65: =SUMIF('Test Period - May 2013'!$E$10:$E$406,$C65,'Test Period - May 2013'!$Q$10:$Q$406) -> 0 | Q65: =SUMIF('Test Period - May 2013'!$E$10:$E$406,$C65,'Test Period - May 2013'!$R$10:$R$406) -> 0 | R65: =SUMIF('Test Period - May 2013'!$E$10:$E$406,$C65,'Test Period - May 2013'!$S$10:$S$406) -> 0 | S65: =SUM(F65:R65) -> 131608085.8 | T65: 0 | U65: 0 | V65: 131608085.8
C66: =+$D$63&E66 -> Transmission OperationsSG | E66: SG | F66: =SUMIF('Test Period - May 2013'!$E$10:$E$406,$C66,'Test Period - May 2013'!$G$10:$G$406) -> 25922230.41 | G66: =SUMIF('Test Period - May 2013'!$E$10:$E$406,$C66,'Test Period - May 2013'!$H$10:$H$406) -> -879133.07 | H66: =SUMIF('Test Period - May 2013'!$E$10:$E$406,$C66,'Test Period - May 2013'!$I$10:$I$406) -> 0 | I66: =SUMIF('Test Period - May 2013'!$E$10:$E$406,$C66,'Test Period - May 2013'!$J$10:$J$406) -> -16372623.02 | J66: =SUMIF('Test Period - May 2013'!$E$10:$E$406,$C66,'Test Period - May 2013'!$K$10:$K$406) -> 0 | K66: =SUMIF('Test Period - May 2013'!$E$10:$E$406,$C66,'Test Period - May 2013'!$L$10:$L$406) -> -600 | L66: =SUMIF('Test Period - May 2013'!$E$10:$E$406,$C66,'Test Period - May 2013'!$M$10:$M$406) -> 0 | M66: =SUMIF('Test Period - May 2013'!$E$10:$E$406,$C66,'Test Period - May 2013'!$N$10:$N$406) -> 0 | N66: =SUMIF('Test Period - May 2013'!$E$10:$E$406,$C66,'Test Period - May 2013'!$O$10:$O$406) -> 0 | O66: =SUMIF('Test Period - May 2013'!$E$10:$E$406,$C66,'Test Period - May 2013'!$P$10:$P$406) -> 0 | P66: =SUMIF('Test Period - May 2013'!$E$10:$E$406,$C66,'Test Period - May 2013'!$Q$10:$Q$406) -> 0 | Q66: =SUMIF('Test Period - May 2013'!$E$10:$E$406,$C66,'Test Period - May 2013'!$R$10:$R$406) -> 0 | R66: =SUMIF('Test Period - May 2013'!$E$10:$E$406,$C66,'Test Period - May 2013'!$S$10:$S$406) -> -53958.89 | S66: =SUM(F66:R66) -> 8615915.427 | T66: 0.05221720505 | U66: 449899.0225 | V66: 9065814.449
E67: Transmission Operations Total | F67: =SUBTOTAL(9,F64:F66) -> 163822806.1 | G67: -879133.07 | H67: 0 | I67: -16372623.02 | J67: 0 | K67: -600 | L67: 0 | M67: 0 | N67: 0 | O67: 0 | P67: 0 | Q67: 0 | R67: -53958.89 | S67: 146516491.1 | U67: =SUBTOTAL(9,U64:U66) -> 449899.0225 | V67: =SUBTOTAL(9,V64:V66) -> 146966390.2
D69: Transmission Maintenance
C70: =+$D$69&E70 -> Transmission MaintenanceSG | E70: SG | F70: =SUMIF('Test Period - May 2013'!$E$10:$E$406,$C70,'Test Period - May 2013'!$G$10:$G$406) -> 39572590.66 | G70: =SUMIF('Test Period - May 2013'!$E$10:$E$406,$C70,'Test Period - May 2013'!$H$10:$H$406) -> 0 | H70: =SUMIF('Test Period - May 2013'!$E$10:$E$406,$C70,'Test Period - May 2013'!$I$10:$I$406) -> 0 | I70: =SUMIF('Test Period - May 2013'!$E$10:$E$406,$C70,'Test Period - May 2013'!$J$10:$J$406) -> -10227413.1 | J70: =SUMIF('Test Period - May 2013'!$E$10:$E$406,$C70,'Test Period - May 2013'!$K$10:$K$406) -> 0 | K70: =SUMIF('Test Period - May 2013'!$E$10:$E$406,$C70,'Test Period - May 2013'!$L$10:$L$406) -> 0 | L70: =SUMIF('Test Period - May 2013'!$E$10:$E$406,$C70,'Test Period - May 2013'!$M$10:$M$406) -> 0 | M70: =SUMIF('Test Period - May 2013'!$E$10:$E$406,$C70,'Test Period - May 2013'!$N$10:$N$406) -> 0 | N70: =SUMIF('Test Period - May 2013'!$E$10:$E$406,$C70,'Test Period - May 2013'!$O$10:$O$406) -> 0 | O70: =SUMIF('Test Period - May 2013'!$E$10:$E$406,$C70,'Test Period - May 2013'!$P$10:$P$406) -> 0 | P70: =SUMIF('Test Period - May 2013'!$E$10:$E$406,$C70,'Test Period - May 2013'!$Q$10:$Q$406) -> 0 | Q70: =SUMIF('Test Period - May 2013'!$E$10:$E$406,$C70,'Test Period - May 2013'!$R$10:$R$406) -> 0 | R70: =SUMIF('Test Period - May 2013'!$E$10:$E$406,$C70,'Test Period - May 2013'!$S$10:$S$406) -> 0 | S70: =SUM(F70:R70) -> 29345177.56 | T70: 0.05382869548 | U70: =S70*T70 -> 1579612.627 | V70: =S70+U70 -> 30924790.19
E71: Transmission Maintenance Total | F71: =SUBTOTAL(9,F70:F70) -> 39572590.66 | G71: =SUBTOTAL(9,G70:G70) -> 0 | H71: 0 | I71: -10227413.1 | J71: =SUBTOTAL(9,J70:J70) -> 0 | K71: 0 | L71: =SUBTOTAL(9,L70:L70) -> 0 | M71: 0 | N71: 0 | O71: 0 | P71: =SUBTOTAL(9,P70:P70) -> 0 | Q71: 0 | R71: 0 | S71: =SUBTOTAL(9,S70:S70) -> 29345177.56 | U71: =SUBTOTAL(9,U70:U70) -> 1579612.627 | V71: =SUBTOTAL(9,V70:V70) -> 30924790.19
D73: Distribution Operations
C74: =+$D$73&E74 -> Distribution OperationsCA | E74: CA | F74: =SUMIF('Test Period - May 2013'!$E$10:$E$406,$C74,'Test Period - May 2013'!$G$10:$G$406) -> 1451132.75 | G74: =SUMIF('Test Period - May 2013'!$E$10:$E$406,$C74,'Test Period - May 2013'!$H$10:$H$406) -> 0 | H74: =SUMIF('Test Period - May 2013'!$E$10:$E$406,$C74,'Test Period - May 2013'!$I$10:$I$406) -> 0 | I74: =SUMIF('Test Period - May 2013'!$E$10:$E$406,$C74,'Test Period - May 2013'!$J$10:$J$406) -> -1113448.58 | J74: =SUMIF('Test Period - May 2013'!$E$10:$E$406,$C74,'Test Period - May 2013'!$K$10:$K$406) -> 0 | K74: =SUMIF('Test Period - May 2013'!$E$10:$E$406,$C74,'Test Period - May 2013'!$L$10:$L$406) -> 0 | L74: =SUMIF('Test Period - May 2013'!$E$10:$E$406,$C74,'Test Period - May 2013'!$M$10:$M$406) -> 0 | M74: =SUMIF('Test Period - May 2013'!$E$10:$E$406,$C74,'Test Period - May 2013'!$N$10:$N$406) -> 0 | N74: =SUMIF('Test Period - May 2013'!$E$10:$E$406,$C74,'Test Period - May 2013'!$O$10:$O$406) -> 0 | O74: =SUMIF('Test Period - May 2013'!$E$10:$E$406,$C74,'Test Period - May 2013'!$P$10:$P$406) -> 0 | P74: =SUMIF('Test Period - May 2013'!$E$10:$E$406,$C74,'Test Period - May 2013'!$Q$10:$Q$406) -> 0 | Q74: =SUMIF('Test Period - May 2013'!$E$10:$E$406,$C74,'Test Period - May 2013'!$R$10:$R$406) -> 0 | R74: =SUMIF('Test Period - May 2013'!$E$10:$E$406,$C74,'Test Period - May 2013'!$S$10:$S$406) -> 0 | S74: =SUM(F74:R74) -> 337684.1705 | T74: 0.05037252996 | U74: =S74*T74 -> 17010.006 | V74: =S74+U74 -> 354694.1765
C75: Distribution OperationsID | E75: ID | F75: =SUMIF('Test Period - May 2013'!$E$10:$E$406,$C75,'Test Period - May 2013'!$G$10:$G$406) -> 1131687.61 | G75: =SUMIF('Test Period - May 2013'!$E$10:$E$406,$C75,'Test Period - May 2013'!$H$10:$H$406) -> 0 | H75: =SUMIF('Test Period - May 2013'!$E$10:$E$406,$C75,'Test Period - May 2013'!$I$10:$I$406) -> 0 | I75: =SUMIF('Test Period - May 2013'!$E$10:$E$406,$C75,'Test Period - May 2013'!$J$10:$J$406) -> -882379.143 | J75: =SUMIF('Test Period - May 2013'!$E$10:$E$406,$C75,'Test Period - May 2013'!$K$10:$K$406) -> 0 | K75: =SUMIF('Test Period - May 2013'!$E$10:$E$406,$C75,'Test Period - May 2013'!$L$10:$L$406) -> 0 | L75: =SUMIF('Test Period - May 2013'!$E$10:$E$406,$C75,'Test Period - May 2013'!$M$10:$M$406) -> 0 | M75: =SUMIF('Test Period - May 2013'!$E$10:$E$406,$C75,'Test Period - May 2013'!$N$10:$N$406) -> 0 | N75: =SUMIF('Test Period - May 2013'!$E$10:$E$406,$C75,'Test Period - May 2013'!$O$10:$O$406) -> 0 | O75: =SUMIF('Test Period - May 2013'!$E$10:$E$406,$C75,'Test Period - May 2013'!$P$10:$P$406) -> 0 | P75: =SUMIF('Test Period - May 2013'!$E$10:$E$406,$C75,'Test Period - May 2013'!$Q$10:$Q$406) -> 0 | Q75: =SUMIF('Test Period - May 2013'!$E$10:$E$406,$C75,'Test Period - May 2013'!$R$10:$R$406) -> 0 | R75: =SUMIF('Test Period - May 2013'!$E$10:$E$406,$C75,'Test Period - May 2013'!$S$10:$S$406) -> 0 | S75: 249308.467 | T75: 0.05037252996 | U75: 12558.29822 | V75: 261866.7652
C76: Distribution OperationsOR | E76: OR | F76: =SUMIF('Test Period - May 2013'!$E$10:$E$406,$C76,'Test Period - May 2013'!$G$10:$G$406) -> 13246006.6 | G76: =SUMIF('Test Period - May 2013'!$E$10:$E$406,$C76,'Test Period - May 2013'!$H$10:$H$406) -> 0 | H76: =SUMIF('Test Period - May 2013'!$E$10:$E$406,$C76,'Test Period - May 2013'!$I$10:$I$406) -> 0 | I76: =SUMIF('Test Period - May 2013'!$E$10:$E$406,$C76,'Test Period - May 2013'!$J$10:$J$406) -> -9454886.758 | J76: =SUMIF('Test Period - May 2013'!$E$10:$E$406,$C76,'Test Period - May 2013'!$K$10:$K$406) -> 0 | K76: =SUMIF('Test Period - May 2013'!$E$10:$E$406,$C76,'Test Period - May 2013'!$L$10:$L$406) -> 0 | L76: =SUMIF('Test Period - May 2013'!$E$10:$E$406,$C76,'Test Period - May 2013'!$M$10:$M$406) -> 0 | M76: =SUMIF('Test Period - May 2013'!$E$10:$E$406,$C76,'Test Period - May 2013'!$N$10:$N$406) -> 0 | N76: =SUMIF('Test Period - May 2013'!$E$10:$E$406,$C76,'Test Period - May 2013'!$O$10:$O$406) -> 0 | O76: =SUMIF('Test Period - May 2013'!$E$10:$E$406,$C76,'Test Period - May 2013'!$P$10:$P$406) -> 0 | P76: =SUMIF('Test Period - May 2013'!$E$10:$E$406,$C76,'Test Period - May 2013'!$Q$10:$Q$406) -> 0 | Q76: =SUMIF('Test Period - May 2013'!$E$10:$E$406,$C76,'Test Period - May 2013'!$R$10:$R$406) -> 0 | R76: =SUMIF('Test Period - May 2013'!$E$10:$E$406,$C76,'Test Period - May 2013'!$S$10:$S$406) -> 0 | S76: 3791119.842 | T76: 0.05037252996 | U76: 190968.2979 | V76: 3982088.14
C77: Distribution OperationsSNPD | E77: SNPD | F77: =SUMIF('Test Period - May 2013'!$E$10:$E$406,$C77,'Test Period - May 2013'!$G$10:$G$406) -> 33394285.23 | G77: =SUMIF('Test Period - May 2013'!$E$10:$E$406,$C77,'Test Period - May 2013'!$H$10:$H$406) -> 0 | H77: =SUMIF('Test Period - May 2013'!$E$10:$E$406,$C77,'Test Period - May 2013'!$I$10:$I$406) -> -357.1796429 | I77: =SUMIF('Test Period - May 2013'!$E$10:$E$406,$C77,'Test Period - May 2013'!$J$10:$J$406) -> -29889872.58 | J77: =SUMIF('Test Period - May 2013'!$E$10:$E$406,$C77,'Test Period - May 2013'!$K$10:$K$406) -> 0 | K77: =SUMIF('Test Period - May 2013'!$E$10:$E$406,$C77,'Test Period - May 2013'!$L$10:$L$406) -> 600 | L77: =SUMIF('Test Period - May 2013'!$E$10:$E$406,$C77,'Test Period - May 2013'!$M$10:$M$406) -> 0 | M77: =SUMIF('Test Period - May 2013'!$E$10:$E$406,$C77,'Test Period - May 2013'!$N$10:$N$406) -> 0 | N77: =SUMIF('Test Period - May 2013'!$E$10:$E$406,$C77,'Test Period - May 2013'!$O$10:$O$406) -> 0 | O77: =SUMIF('Test Period - May 2013'!$E$10:$E$406,$C77,'Test Period - May 2013'!$P$10:$P$406) -> 0 | P77: =SUMIF('Test Period - May 2013'!$E$10:$E$406,$C77,'Test Period - May 2013'!$Q$10:$Q$406) -> 0 | Q77: =SUMIF('Test Period - May 2013'!$E$10:$E$406,$C77,'Test Period - May 2013'!$R$10:$R$406) -> 0 | R77: =SUMIF('Test Period - May 2013'!$E$10:$E$406,$C77,'Test Period - May 2013'!$S$10:$S$406) -> 0 | S77: 3504655.473 | T77: 0.05037252996 | U77: 176538.3628 | V77: 3681193.836
C78: Distribution OperationsUT | E78: UT | F78: =SUMIF('Test Period - May 2013'!$E$10:$E$406,$C78,'Test Period - May 2013'!$G$10:$G$406) -> 11543456.28 | G78: =SUMIF('Test Period - May 2013'!$E$10:$E$406,$C78,'Test Period - May 2013'!$H$10:$H$406) -> 0 | H78: =SUMIF('Test Period - May 2013'!$E$10:$E$406,$C78,'Test Period - May 2013'!$I$10:$I$406) -> 0 | I78: =SUMIF('Test Period - May 2013'!$E$10:$E$406,$C78,'Test Period - May 2013'!$J$10:$J$406) -> -8312109.706 | J78: =SUMIF('Test Period - May 2013'!$E$10:$E$406,$C78,'Test Period - May 2013'!$K$10:$K$406) -> 0 | K78: =SUMIF('Test Period - May 2013'!$E$10:$E$406,$C78,'Test Period - May 2013'!$L$10:$L$406) -> 0 | L78: =SUMIF('Test Period - May 2013'!$E$10:$E$406,$C78,'Test Period - May 2013'!$M$10:$M$406) -> 0 | M78: =SUMIF('Test Period - May 2013'!$E$10:$E$406,$C78,'Test Period - May 2013'!$N$10:$N$406) -> 0 | N78: =SUMIF('Test Period - May 2013'!$E$10:$E$406,$C78,'Test Period - May 2013'!$O$10:$O$406) -> 0 | O78: =SUMIF('Test Period - May 2013'!$E$10:$E$406,$C78,'Test Period - May 2013'!$P$10:$P$406) -> 0 | P78: =SUMIF('Test Period - May 2013'!$E$10:$E$406,$C78,'Test Period - May 2013'!$Q$10:$Q$406) -> 0 | Q78: =SUMIF('Test Period - May 2013'!$E$10:$E$406,$C78,'Test Period - May 2013'!$R$10:$R$406) -> 0 | R78: =SUMIF('Test Period - May 2013'!$E$10:$E$406,$C78,'Test Period - May 2013'!$S$10:$S$406) -> 0 | S78: 3231346.574 | T78: 0.05037252996 | U78: 162771.1021 | V78: 3394117.676
C79: Distribution OperationsWA | E79: WA | F79: =SUMIF('Test Period - May 2013'!$E$10:$E$406,$C79,'Test Period - May 2013'!$G$10:$G$406) -> 2281760.66 | G79: =SUMIF('Test Period - May 2013'!$E$10:$E$406,$C79,'Test Period - May 2013'!$H$10:$H$406) -> 0 | H79: =SUMIF('Test Period - May 2013'!$E$10:$E$406,$C79,'Test Period - May 2013'!$I$10:$I$406) -> 0 | I79: =SUMIF('Test Period - May 2013'!$E$10:$E$406,$C79,'Test Period - May 2013'!$J$10:$J$406) -> -1696170.663 | J79: =SUMIF('Test Period - May 2013'!$E$10:$E$406,$C79,'Test Period - May 2013'!$K$10:$K$406) -> 0 | K79: =SUMIF('Test Period - May 2013'!$E$10:$E$406,$C79,'Test Period - May 2013'!$L$10:$L$406) -> 0 | L79: =SUMIF('Test Period - May 2013'!$E$10:$E$406,$C79,'Test Period - May 2013'!$M$10:$M$406) -> 0 | M79: =SUMIF('Test Period - May 2013'!$E$10:$E$406,$C79,'Test Period - May 2013'!$N$10:$N$406) -> 0 | N79: =SUMIF('Test Period - May 2013'!$E$10:$E$406,$C79,'Test Period - May 2013'!$O$10:$O$406) -> 0 | O79: =SUMIF('Test Period - May 2013'!$E$10:$E$406,$C79,'Test Period - May 2013'!$P$10:$P$406) -> 0 | P79: =SUMIF('Test Period - May 2013'!$E$10:$E$406,$C79,'Test Period - May 2013'!$Q$10:$Q$406) -> 0 | Q79: =SUMIF('Test Period - May 2013'!$E$10:$E$406,$C79,'Test Period - May 2013'!$R$10:$R$406) -> 0 | R79: =SUMIF('Test Period - May 2013'!$E$10:$E$406,$C79,'Test Period - May 2013'!$S$10:$S$406) -> 0 | S79: 585589.9967 | T79: 0.05037252996 | U79: 29497.64965 | V79: 615087.6463
C80: Distribution OperationsWYP | E80: WYP | F80: =SUMIF('Test Period - May 2013'!$E$10:$E$406,$C80,'Test Period - May 2013'!$G$10:$G$406) -> 2833139.94 | G80: =SUMIF('Test Period - May 2013'!$E$10:$E$406,$C80,'Test Period - May 2013'!$H$10:$H$406) -> 0 | H80: =SUMIF('Test Period - May 2013'!$E$10:$E$406,$C80,'Test Period - May 2013'!$I$10:$I$406) -> 0 | I80: =SUMIF('Test Period - May 2013'!$E$10:$E$406,$C80,'Test Period - May 2013'!$J$10:$J$406) -> -1833658.165 | J80: =SUMIF('Test Period - May 2013'!$E$10:$E$406,$C80,'Test Period - May 2013'!$K$10:$K$406) -> 0 | K80: =SUMIF('Test Period - May 2013'!$E$10:$E$406,$C80,'Test Period - May 2013'!$L$10:$L$406) -> 0 | L80: =SUMIF('Test Period - May 2013'!$E$10:$E$406,$C80,'Test Period - May 2013'!$M$10:$M$406) -> 0 | M80: =SUMIF('Test Period - May 2013'!$E$10:$E$406,$C80,'Test Period - May 2013'!$N$10:$N$406) -> 0 | N80: =SUMIF('Test Period - May 2013'!$E$10:$E$406,$C80,'Test Period - May 2013'!$O$10:$O$406) -> 0 | O80: =SUMIF('Test Period - May 2013'!$E$10:$E$406,$C80,'Test Period - May 2013'!$P$10:$P$406) -> 0 | P80: =SUMIF('Test Period - May 2013'!$E$10:$E$406,$C80,'Test Period - May 2013'!$Q$10:$Q$406) -> 0 | Q80: =SUMIF('Test Period - May 2013'!$E$10:$E$406,$C80,'Test Period - May 2013'!$R$10:$R$406) -> 0 | R80: =SUMIF('Test Period - May 2013'!$E$10:$E$406,$C80,'Test Period - May 2013'!$S$10:$S$406) -> 0 | S80: 999481.7755 | T80: 0.05037252996 | U80: 50346.42568 | V80: 1049828.201
C81: Distribution OperationsWYU | E81: WYU | F81: =SUMIF('Test Period - May 2013'!$E$10:$E$406,$C81,'Test Period - May 2013'!$G$10:$G$406) -> 300402.55 | G81: =SUMIF('Test Period - May 2013'!$E$10:$E$406,$C81,'Test Period - May 2013'!$H$10:$H$406) -> 0 | H81: =SUMIF('Test Period - May 2013'!$E$10:$E$406,$C81,'Test Period - May 2013'!$I$10:$I$406) -> 0 | I81: =SUMIF('Test Period - May 2013'!$E$10:$E$406,$C81,'Test Period - May 2013'!$J$10:$J$406) -> -210298.6459 | J81: =SUMIF('Test Period - May 2013'!$E$10:$E$406,$C81,'Test Period - May 2013'!$K$10:$K$406) -> 0 | K81: =SUMIF('Test Period - May 2013'!$E$10:$E$406,$C81,'Test Period - May 2013'!$L$10:$L$406) -> 0 | L81: =SUMIF('Test Period - May 2013'!$E$10:$E$406,$C81,'Test Period - May 2013'!$M$10:$M$406) -> 0 | M81: =SUMIF('Test Period - May 2013'!$E$10:$E$406,$C81,'Test Period - May 2013'!$N$10:$N$406) -> 0 | N81: =SUMIF('Test Period - May 2013'!$E$10:$E$406,$C81,'Test Period - May 2013'!$O$10:$O$406) -> 0 | O81: =SUMIF('Test Period - May 2013'!$E$10:$E$406,$C81,'Test Period - May 2013'!$P$10:$P$406) -> 0 | P81: =SUMIF('Test Period - May 2013'!$E$10:$E$406,$C81,'Test Period - May 2013'!$Q$10:$Q$406) -> 0 | Q81: =SUMIF('Test Period - May 2013'!$E$10:$E$406,$C81,'Test Period - May 2013'!$R$10:$R$406) -> 0 | R81: =SUMIF('Test Period - May 2013'!$E$10:$E$406,$C81,'Test Period - May 2013'!$S$10:$S$406) -> 0 | S81: 90103.90407 | T81: 0.05037252996 | U81: 4538.761608 | V81: 94642.66568
E82: Distribution Operations Total | F82: =SUBTOTAL(9,F74:F81) -> 66181871.62 | G82: =SUBTOTAL(9,G74:G81) -> 0 | H82: -357.1796429 | I82: -53392824.24 | J82: =SUBTOTAL(9,J74:J81) -> 0 | K82: 600 | L82: =SUBTOTAL(9,L74:L81) -> 0 | M82: 0 | N82: 0 | O82: 0 | P82: =SUBTOTAL(9,P74:P81) -> 0 | Q82: 0 | R82: 0 | S82: =SUBTOTAL(9,S74:S81) -> 12789290.2 | U82: =SUBTOTAL(9,U74:U81) -> 644228.9039 | V82: =SUBTOTAL(9,V74:V81) -> 13433519.11
D84: Distribution Maintenance
C85: =+$D$84&E85 -> Distribution MaintenanceCA | E85: CA | F85: =SUMIF('Test Period - May 2013'!$E$10:$E$406,$C85,'Test Period - May 2013'!$G$10:$G$406) -> 7372701.45 | G85: =SUMIF('Test Period - May 2013'!$E$10:$E$406,$C85,'Test Period - May 2013'!$H$10:$H$406) -> 0 | H85: =SUMIF('Test Period - May 2013'!$E$10:$E$406,$C85,'Test Period - May 2013'!$I$10:$I$406) -> 0 | I85: =SUMIF('Test Period - May 2013'!$E$10:$E$406,$C85,'Test Period - May 2013'!$J$10:$J$406) -> -2630293.682 | J85: =SUMIF('Test Period - May 2013'!$E$10:$E$406,$C85,'Test Period - May 2013'!$K$10:$K$406) -> 0 | K85: =SUMIF('Test Period - May 2013'!$E$10:$E$406,$C85,'Test Period - May 2013'!$L$10:$L$406) -> 0 | L85: =SUMIF('Test Period - May 2013'!$E$10:$E$406,$C85,'Test Period - May 2013'!$M$10:$M$406) -> 0 | M85: =SUMIF('Test Period - May 2013'!$E$10:$E$406,$C85,'Test Period - May 2013'!$N$10:$N$406) -> 0 | N85: =SUMIF('Test Period - May 2013'!$E$10:$E$406,$C85,'Test Period - May 2013'!$O$10:$O$406) -> 0 | O85: =SUMIF('Test Period - May 2013'!$E$10:$E$406,$C85,'Test Period - May 2013'!$P$10:$P$406) -> 0 | P85: =SUMIF('Test Period - May 2013'!$E$10:$E$406,$C85,'Test Period - May 2013'!$Q$10:$Q$406) -> 0 | Q85: =SUMIF('Test Period - May 2013'!$E$10:$E$406,$C85,'Test Period - May 2013'!$R$10:$R$406) -> 0 | R85: =SUMIF('Test Period - May 2013'!$E$10:$E$406,$C85,'Test Period - May 2013'!$S$10:$S$406) -> 0 | S85: =SUM(F85:R85) -> 4742407.768 | T85: 0.06361957525 | U85: =S85*T85 -> 301709.9679 | V85: =S85+U85 -> 5044117.736
C86: Distribution MaintenanceID | E86: ID | F86: =SUMIF('Test Period - May 2013'!$E$10:$E$406,$C86,'Test Period - May 2013'!$G$10:$G$406) -> 7407060.35 | G86: =SUMIF('Test Period - May 2013'!$E$10:$E$406,$C86,'Test Period - May 2013'!$H$10:$H$406) -> 0 | H86: =SUMIF('Test Period - May 2013'!$E$10:$E$406,$C86,'Test Period - May 2013'!$I$10:$I$406) -> 0 | I86: =SUMIF('Test Period - May 2013'!$E$10:$E$406,$C86,'Test Period - May 2013'!$J$10:$J$406) -> -3445833.622 | J86: =SUMIF('Test Period - May 2013'!$E$10:$E$406,$C86,'Test Period - May 2013'!$K$10:$K$406) -> 0 | K86: =SUMIF('Test Period - May 2013'!$E$10:$E$406,$C86,'Test Period - May 2013'!$L$10:$L$406) -> 0 | L86: =SUMIF('Test Period - May 2013'!$E$10:$E$406,$C86,'Test Period - May 2013'!$M$10:$M$406) -> 0 | M86: =SUMIF('Test Period - May 2013'!$E$10:$E$406,$C86,'Test Period - May 2013'!$N$10:$N$406) -> 0 | N86: =SUMIF('Test Period - May 2013'!$E$10:$E$406,$C86,'Test Period - May 2013'!$O$10:$O$406) -> 0 | O86: =SUMIF('Test Period - May 2013'!$E$10:$E$406,$C86,'Test Period - May 2013'!$P$10:$P$406) -> 0 | P86: =SUMIF('Test Period - May 2013'!$E$10:$E$406,$C86,'Test Period - May 2013'!$Q$10:$Q$406) -> 0 | Q86: =SUMIF('Test Period - May 2013'!$E$10:$E$406,$C86,'Test Period - May 2013'!$R$10:$R$406) -> 0 | R86: =SUMIF('Test Period - May 2013'!$E$10:$E$406,$C86,'Test Period - May 2013'!$S$10:$S$406) -> 0 | S86: 3961226.728 | T86: 0.06361957525 | U86: 252011.5619 | V86: 4213238.289
C87: Distribution MaintenanceOR | E87: OR | F87: =SUMIF('Test Period - May 2013'!$E$10:$E$406,$C87,'Test Period - May 2013'!$G$10:$G$406) -> 42889767.26 | G87: =SUMIF('Test Period - May 2013'!$E$10:$E$406,$C87,'Test Period - May 2013'!$H$10:$H$406) -> 0 | H87: =SUMIF('Test Period - May 2013'!$E$10:$E$406,$C87,'Test Period - May 2013'!$I$10:$I$406) -> 0 | I87: =SUMIF('Test Period - May 2013'!$E$10:$E$406,$C87,'Test Period - May 2013'!$J$10:$J$406) -> -18114147.89 | J87: =SUMIF('Test Period - May 2013'!$E$10:$E$406,$C87,'Test Period - May 2013'!$K$10:$K$406) -> 0 | K87: =SUMIF('Test Period - May 2013'!$E$10:$E$406,$C87,'Test Period - May 2013'!$L$10:$L$406) -> 0 | L87: =SUMIF('Test Period - May 2013'!$E$10:$E$406,$C87,'Test Period - May 2013'!$M$10:$M$406) -> 0 | M87: =SUMIF('Test Period - May 2013'!$E$10:$E$406,$C87,'Test Period - May 2013'!$N$10:$N$406) -> 0 | N87: =SUMIF('Test Period - May 2013'!$E$10:$E$406,$C87,'Test Period - May 2013'!$O$10:$O$406) -> 0 | O87: =SUMIF('Test Period - May 2013'!$E$10:$E$406,$C87,'Test Period - May 2013'!$P$10:$P$406) -> 0 | P87: =SUMIF('Test Period - May 2013'!$E$10:$E$406,$C87,'Test Period - May 2013'!$Q$10:$Q$406) -> 0 | Q87: =SUMIF('Test Period - May 2013'!$E$10:$E$406,$C87,'Test Period - May 2013'!$R$10:$R$406) -> 0 | R87: =SUMIF('Test Period - May 2013'!$E$10:$E$406,$C87,'Test Period - May 2013'!$S$10:$S$406) -> 0 | S87: 24775619.37 | T87: 0.06361957525 | U87: 1576214.381 | V87: 26351833.75
C88: Distribution MaintenanceSNPD | E88: SNPD | F88: =SUMIF('Test Period - May 2013'!$E$10:$E$406,$C88,'Test Period - May 2013'!$G$10:$G$406) -> 8019637.4 | G88: =SUMIF('Test Period - May 2013'!$E$10:$E$406,$C88,'Test Period - May 2013'!$H$10:$H$406) -> 0 | H88: =SUMIF('Test Period - May 2013'!$E$10:$E$406,$C88,'Test Period - May 2013'!$I$10:$I$406) -> 0 | I88: =SUMIF('Test Period - May 2013'!$E$10:$E$406,$C88,'Test Period - May 2013'!$J$10:$J$406) -> -8201961.112 | J88: =SUMIF('Test Period - May 2013'!$E$10:$E$406,$C88,'Test Period - May 2013'!$K$10:$K$406) -> 0 | K88: =SUMIF('Test Period - May 2013'!$E$10:$E$406,$C88,'Test Period - May 2013'!$L$10:$L$406) -> 143.5 | L88: =SUMIF('Test Period - May 2013'!$E$10:$E$406,$C88,'Test Period - May 2013'!$M$10:$M$406) -> 0 | M88: =SUMIF('Test Period - May 2013'!$E$10:$E$406,$C88,'Test Period - May 2013'!$N$10:$N$406) -> 0 | N88: =SUMIF('Test Period - May 2013'!$E$10:$E$406,$C88,'Test Period - May 2013'!$O$10:$O$406) -> 0 | O88: =SUMIF('Test Period - May 2013'!$E$10:$E$406,$C88,'Test Period - May 2013'!$P$10:$P$406) -> 0 | P88: =SUMIF('Test Period - May 2013'!$E$10:$E$406,$C88,'Test Period - May 2013'!$Q$10:$Q$406) -> 0 | Q88: =SUMIF('Test Period - May 2013'!$E$10:$E$406,$C88,'Test Period - May 2013'!$R$10:$R$406) -> 0 | R88: =SUMIF('Test Period - May 2013'!$E$10:$E$406,$C88,'Test Period - May 2013'!$S$10:$S$406) -> 0 | S88: -182180.2116 | T88: 0.06361957525 | U88: -11590.22768 | V88: -193770.4393
C89: Distribution MaintenanceUT | E89: UT | F89: =SUMIF('Test Period - May 2013'!$E$10:$E$406,$C89,'Test Period - May 2013'!$G$10:$G$406) -> 60174197.39 | G89: =SUMIF('Test Period - May 2013'!$E$10:$E$406,$C89,'Test Period - May 2013'!$H$10:$H$406) -> 0 | H89: =SUMIF('Test Period - May 2013'!$E$10:$E$406,$C89,'Test Period - May 2013'!$I$10:$I$406) -> 0 | I89: =SUMIF('Test Period - May 2013'!$E$10:$E$406,$C89,'Test Period - May 2013'!$J$10:$J$406) -> -22922770.25 | J89: =SUMIF('Test Period - May 2013'!$E$10:$E$406,$C89,'Test Period - May 2013'!$K$10:$K$406) -> 0 | K89: =SUMIF('Test Period - May 2013'!$E$10:$E$406,$C89,'Test Period - May 2013'!$L$10:$L$406) -> 0 | L89: =SUMIF('Test Period - May 2013'!$E$10:$E$406,$C89,'Test Period - May 2013'!$M$10:$M$406) -> 0 | M89: =SUMIF('Test Period - May 2013'!$E$10:$E$406,$C89,'Test Period - May 2013'!$N$10:$N$406) -> 0 | N89: =SUMIF('Test Period - May 2013'!$E$10:$E$406,$C89,'Test Period - May 2013'!$O$10:$O$406) -> 0 | O89: =SUMIF('Test Period - May 2013'!$E$10:$E$406,$C89,'Test Period - May 2013'!$P$10:$P$406) -> 0 | P89: =SUMIF('Test Period - May 2013'!$E$10:$E$406,$C89,'Test Period - May 2013'!$Q$10:$Q$406) -> 0 | Q89: =SUMIF('Test Period - May 2013'!$E$10:$E$406,$C89,'Test Period - May 2013'!$R$10:$R$406) -> 0 | R89: =SUMIF('Test Period - May 2013'!$E$10:$E$406,$C89,'Test Period - May 2013'!$S$10:$S$406) -> 0 | S89: 37251427.14 | T89: 0.06361957525 | U89: 2369919.972 | V89: 39621347.11
C90: Distribution MaintenanceWA | E90: WA | F90: =SUMIF('Test Period - May 2013'!$E$10:$E$406,$C90,'Test Period - May 2013'!$G$10:$G$406) -> 7099799.5 | G90: =SUMIF('Test Period - May 2013'!$E$10:$E$406,$C90,'Test Period - May 2013'!$H$10:$H$406) -> 0 | H90: =SUMIF('Test Period - May 2013'!$E$10:$E$406,$C90,'Test Period - May 2013'!$I$10:$I$406) -> 0 | I90: =SUMIF('Test Period - May 2013'!$E$10:$E$406,$C90,'Test Period - May 2013'!$J$10:$J$406) -> -2474095.304 | J90: =SUMIF('Test Period - May 2013'!$E$10:$E$406,$C90,'Test Period - May 2013'!$K$10:$K$406) -> 0 | K90: =SUMIF('Test Period - May 2013'!$E$10:$E$406,$C90,'Test Period - May 2013'!$L$10:$L$406) -> 0 | L90: =SUMIF('Test Period - May 2013'!$E$10:$E$406,$C90,'Test Period - May 2013'!$M$10:$M$406) -> 0 | M90: =SUMIF('Test Period - May 2013'!$E$10:$E$406,$C90,'Test Period - May 2013'!$N$10:$N$406) -> 0 | N90: =SUMIF('Test Period - May 2013'!$E$10:$E$406,$C90,'Test Period - May 2013'!$O$10:$O$406) -> 0 | O90: =SUMIF('Test Period - May 2013'!$E$10:$E$406,$C90,'Test Period - May 2013'!$P$10:$P$406) -> 0 | P90: =SUMIF('Test Period - May 2013'!$E$10:$E$406,$C90,'Test Period - May 2013'!$Q$10:$Q$406) -> 0 | Q90: =SUMIF('Test Period - May 2013'!$E$10:$E$406,$C90,'Test Period - May 2013'!$R$10:$R$406) -> 0 | R90: =SUMIF('Test Period - May 2013'!$E$10:$E$406,$C90,'Test Period - May 2013'!$S$10:$S$406) -> 0 | S90: 4625704.196 | T90: 0.06361957525 | U90: 294285.3362 | V90: 4919989.532
C91: Distribution MaintenanceWYP | E91: WYP | F91: =SUMIF('Test Period - May 2013'!$E$10:$E$406,$C91,'Test Period - May 2013'!$G$10:$G$406) -> 10900634.65 | G91: =SUMIF('Test Period - May 2013'!$E$10:$E$406,$C91,'Test Period - May 2013'!$H$10:$H$406) -> 0 | H91: =SUMIF('Test Period - May 2013'!$E$10:$E$406,$C91,'Test Period - May 2013'!$I$10:$I$406) -> 0 | I91: =SUMIF('Test Period - May 2013'!$E$10:$E$406,$C91,'Test Period - May 2013'!$J$10:$J$406) -> -3812506.3 | J91: =SUMIF('Test Period - May 2013'!$E$10:$E$406,$C91,'Test Period - May 2013'!$K$10:$K$406) -> 0 | K91: =SUMIF('Test Period - May 2013'!$E$10:$E$406,$C91,'Test Period - May 2013'!$L$10:$L$406) -> 0 | L91: =SUMIF('Test Period - May 2013'!$E$10:$E$406,$C91,'Test Period - May 2013'!$M$10:$M$406) -> 0 | M91: =SUMIF('Test Period - May 2013'!$E$10:$E$406,$C91,'Test Period - May 2013'!$N$10:$N$406) -> 0 | N91: =SUMIF('Test Period - May 2013'!$E$10:$E$406,$C91,'Test Period - May 2013'!$O$10:$O$406) -> 0 | O91: =SUMIF('Test Period - May 2013'!$E$10:$E$406,$C91,'Test Period - May 2013'!$P$10:$P$406) -> 0 | P91: =SUMIF('Test Period - May 2013'!$E$10:$E$406,$C91,'Test Period - May 2013'!$Q$10:$Q$406) -> 0 | Q91: =SUMIF('Test Period - May 2013'!$E$10:$E$406,$C91,'Test Period - May 2013'!$R$10:$R$406) -> 0 | R91: =SUMIF('Test Period - May 2013'!$E$10:$E$406,$C91,'Test Period - May 2013'!$S$10:$S$406) -> 0 | S91: 7088128.35 | T91: 0.06361957525 | U91: 450943.715 | V91: 7539072.065
C92: Distribution MaintenanceWYU | E92: WYU | F92: =SUMIF('Test Period - May 2013'!$E$10:$E$406,$C92,'Test Period - May 2013'!$G$10:$G$406) -> 1854359.93 | G92: =SUMIF('Test Period - May 2013'!$E$10:$E$406,$C92,'Test Period - May 2013'!$H$10:$H$406) -> 0 | H92: =SUMIF('Test Period - May 2013'!$E$10:$E$406,$C92,'Test Period - May 2013'!$I$10:$I$406) -> 0 | I92: =SUMIF('Test Period - May 2013'!$E$10:$E$406,$C92,'Test Period - May 2013'!$J$10:$J$406) -> -432359.9086 | J92: =SUMIF('Test Period - May 2013'!$E$10:$E$406,$C92,'Test Period - May 2013'!$K$10:$K$406) -> 0 | K92: =SUMIF('Test Period - May 2013'!$E$10:$E$406,$C92,'Test Period - May 2013'!$L$10:$L$406) -> 0 | L92: =SUMIF('Test Period - May 2013'!$E$10:$E$406,$C92,'Test Period - May 2013'!$M$10:$M$406) -> 0 | M92: =SUMIF('Test Period - May 2013'!$E$10:$E$406,$C92,'Test Period - May 2013'!$N$10:$N$406) -> 0 | N92: =SUMIF('Test Period - May 2013'!$E$10:$E$406,$C92,'Test Period - May 2013'!$O$10:$O$406) -> 0 | O92: =SUMIF('Test Period - May 2013'!$E$10:$E$406,$C92,'Test Period - May 2013'!$P$10:$P$406) -> 0 | P92: =SUMIF('Test Period - May 2013'!$E$10:$E$406,$C92,'Test Period - May 2013'!$Q$10:$Q$406) -> 0 | Q92: =SUMIF('Test Period - May 2013'!$E$10:$E$406,$C92,'Test Period - May 2013'!$R$10:$R$406) -> 0 | R92: =SUMIF('Test Period - May 2013'!$E$10:$E$406,$C92,'Test Period - May 2013'!$S$10:$S$406) -> 0 | S92: 1422000.021 | T92: 0.06361957525 | U92: 90467.03737 | V92: 1512467.059
E93: Distribution Maintenance Total | F93: =SUBTOTAL(9,F85:F92) -> 145718157.9 | G93: =SUBTOTAL(9,G85:G92) -> 0 | H93: 0 | I93: -62033968.07 | J93: =SUBTOTAL(9,J85:J92) -> 0 | K93: 143.5 | L93: =SUBTOTAL(9,L85:L92) -> 0 | M93: 0 | N93: 0 | O93: 0 | P93: =SUBTOTAL(9,P85:P92) -> 0 | Q93: 0 | R93: 0 | S93: =SUBTOTAL(9,S85:S92) -> 83684333.36 | U93: =SUBTOTAL(9,U85:U92) -> 5323961.744 | V93: =SUBTOTAL(9,V85:V92) -> 89008295.1
D95: Customer Accounts Operations
C96: =+$D$95&E96 -> Customer Accounts OperationsCA | E96: CA | F96: =SUMIF('Test Period - May 2013'!$E$10:$E$406,$C96,'Test Period - May 2013'!$G$10:$G$406) -> 1597043.49 | G96: =SUMIF('Test Period - May 2013'!$E$10:$E$406,$C96,'Test Period - May 2013'!$H$10:$H$406) -> 0 | H96: =SUMIF('Test Period - May 2013'!$E$10:$E$406,$C96,'Test Period - May 2013'!$I$10:$I$406) -> 0 | I96: =SUMIF('Test Period - May 2013'!$E$10:$E$406,$C96,'Test Period - May 2013'!$J$10:$J$406) -> -910469.5469 | J96: =SUMIF('Test Period - May 2013'!$E$10:$E$406,$C96,'Test Period - May 2013'!$K$10:$K$406) -> 0 | K96: =SUMIF('Test Period - May 2013'!$E$10:$E$406,$C96,'Test Period - May 2013'!$L$10:$L$406) -> 0 | L96: =SUMIF('Test Period - May 2013'!$E$10:$E$406,$C96,'Test Period - May 2013'!$M$10:$M$406) -> 0 | M96: =SUMIF('Test Period - May 2013'!$E$10:$E$406,$C96,'Test Period - May 2013'!$N$10:$N$406) -> 0 | N96: =SUMIF('Test Period - May 2013'!$E$10:$E$406,$C96,'Test Period - May 2013'!$O$10:$O$406) -> 0 | O96: =SUMIF('Test Period - May 2013'!$E$10:$E$406,$C96,'Test Period - May 2013'!$P$10:$P$406) -> 0 | P96: =SUMIF('Test Period - May 2013'!$E$10:$E$406,$C96,'Test Period - May 2013'!$Q$10:$Q$406) -> 0 | Q96: =SUMIF('Test Period - May 2013'!$E$10:$E$406,$C96,'Test Period - May 2013'!$R$10:$R$406) -> 0 | R96: =SUMIF('Test Period - May 2013'!$E$10:$E$406,$C96,'Test Period - May 2013'!$S$10:$S$406) -> 0 | S96: =SUM(F96:R96) -> 686573.9431 | T96: 0.04864566059 | U96: =S96*T96 -> 33398.843 | V96: =S96+U96 -> 719972.7861
C97: Customer Accounts OperationsCN | E97: CN | F97: =SUMIF('Test Period - May 2013'!$E$10:$E$406,$C97,'Test Period - May 2013'!$G$10:$G$406) -> 54083087.7 | G97: =SUMIF('Test Period - May 2013'!$E$10:$E$406,$C97,'Test Period - May 2013'!$H$10:$H$406) -> 0 | H97: =SUMIF('Test Period - May 2013'!$E$10:$E$406,$C97,'Test Period - May 2013'!$I$10:$I$406) -> -11057.66 | I97: =SUMIF('Test Period - May 2013'!$E$10:$E$406,$C97,'Test Period - May 2013'!$J$10:$J$406) -> -37188956.18 | J97: =SUMIF('Test Period - May 2013'!$E$10:$E$406,$C97,'Test Period - May 2013'!$K$10:$K$406) -> 0 | K97: =SUMIF('Test Period - May 2013'!$E$10:$E$406,$C97,'Test Period - May 2013'!$L$10:$L$406) -> 0 | L97: =SUMIF('Test Period - May 2013'!$E$10:$E$406,$C97,'Test Period - May 2013'!$M$10:$M$406) -> 0 | M97: =SUMIF('Test Period - May 2013'!$E$10:$E$406,$C97,'Test Period - May 2013'!$N$10:$N$406) -> 0 | N97: =SUMIF('Test Period - May 2013'!$E$10:$E$406,$C97,'Test Period - May 2013'!$O$10:$O$406) -> 0 | O97: =SUMIF('Test Period - May 2013'!$E$10:$E$406,$C97,'Test Period - May 2013'!$P$10:$P$406) -> 0 | P97: =SUMIF('Test Period - May 2013'!$E$10:$E$406,$C97,'Test Period - May 2013'!$Q$10:$Q$406) -> 0 | Q97: =SUMIF('Test Period - May 2013'!$E$10:$E$406,$C97,'Test Period - May 2013'!$R$10:$R$406) -> 0 | R97: =SUMIF('Test Period - May 2013'!$E$10:$E$406,$C97,'Test Period - May 2013'!$S$10:$S$406) -> 0 | S97: 16883073.86 | T97: 0.04864566059 | U97: 821288.2804 | V97: 17704362.14
C98: Customer Accounts OperationsID | E98: ID | F98: =SUMIF('Test Period - May 2013'!$E$10:$E$406,$C98,'Test Period - May 2013'!$G$10:$G$406) -> 2477027.91 | G98: =SUMIF('Test Period - May 2013'!$E$10:$E$406,$C98,'Test Period - May 2013'!$H$10:$H$406) -> 0 | H98: =SUMIF('Test Period - May 2013'!$E$10:$E$406,$C98,'Test Period - May 2013'!$I$10:$I$406) -> 0 | I98: =SUMIF('Test Period - May 2013'!$E$10:$E$406,$C98,'Test Period - May 2013'!$J$10:$J$406) -> -1616415.677 | J98: =SUMIF('Test Period - May 2013'!$E$10:$E$406,$C98,'Test Period - May 2013'!$K$10:$K$406) -> 0 | K98: =SUMIF('Test Period - May 2013'!$E$10:$E$406,$C98,'Test Period - May 2013'!$L$10:$L$406) -> 0 | L98: =SUMIF('Test Period - May 2013'!$E$10:$E$406,$C98,'Test Period - May 2013'!$M$10:$M$406) -> 0 | M98: =SUMIF('Test Period - May 2013'!$E$10:$E$406,$C98,'Test Period - May 2013'!$N$10:$N$406) -> 0 | N98: =SUMIF('Test Period - May 2013'!$E$10:$E$406,$C98,'Test Period - May 2013'!$O$10:$O$406) -> 0 | O98: =SUMIF('Test Period - May 2013'!$E$10:$E$406,$C98,'Test Period - May 2013'!$P$10:$P$406) -> 0 | P98: =SUMIF('Test Period - May 2013'!$E$10:$E$406,$C98,'Test Period - May 2013'!$Q$10:$Q$406) -> 0 | Q98: =SUMIF('Test Period - May 2013'!$E$10:$E$406,$C98,'Test Period - May 2013'!$R$10:$R$406) -> 0 | R98: =SUMIF('Test Period - May 2013'!$E$10:$E$406,$C98,'Test Period - May 2013'!$S$10:$S$406) -> 0 | S98: 860612.233 | T98: 0.04864566059 | U98: 41865.05058 | V98: 902477.2836
C99: Customer Accounts OperationsOR | E99: OR | F99: =SUMIF('Test Period - May 2013'!$E$10:$E$406,$C99,'Test Period - May 2013'!$G$10:$G$406) -> 18053657.79 | G99: =SUMIF('Test Period - May 2013'!$E$10:$E$406,$C99,'Test Period - May 2013'!$H$10:$H$406) -> 0 | H99: =SUMIF('Test Period - May 2013'!$E$10:$E$406,$C99,'Test Period - May 2013'!$I$10:$I$406) -> 0 | I99: =SUMIF('Test Period - May 2013'!$E$10:$E$406,$C99,'Test Period - May 2013'!$J$10:$J$406) -> -9884739.461 | J99: =SUMIF('Test Period - May 2013'!$E$10:$E$406,$C99,'Test Period - May 2013'!$K$10:$K$406) -> 0 | K99: =SUMIF('Test Period - May 2013'!$E$10:$E$406,$C99,'Test Period - May 2013'!$L$10:$L$406) -> 0 | L99: =SUMIF('Test Period - May 2013'!$E$10:$E$406,$C99,'Test Period - May 2013'!$M$10:$M$406) -> 0 | M99: =SUMIF('Test Period - May 2013'!$E$10:$E$406,$C99,'Test Period - May 2013'!$N$10:$N$406) -> 0 | N99: =SUMIF('Test Period - May 2013'!$E$10:$E$406,$C99,'Test Period - May 2013'!$O$10:$O$406) -> 0 | O99: =SUMIF('Test Period - May 2013'!$E$10:$E$406,$C99,'Test Period - May 2013'!$P$10:$P$406) -> 0 | P99: =SUMIF('Test Period - May 2013'!$E$10:$E$406,$C99,'Test Period - May 2013'!$Q$10:$Q$406) -> 0 | Q99: =SUMIF('Test Period - May 2013'!$E$10:$E$406,$C99,'Test Period - May 2013'!$R$10:$R$406) -> 0 | R99: =SUMIF('Test Period - May 2013'!$E$10:$E$406,$C99,'Test Period - May 2013'!$S$10:$S$406) -> 0 | S99: 8168918.329 | T99: 0.04864566059 | U99: 397382.4284 | V99: 8566300.758
C100: Customer Accounts OperationsUT | E100: UT | F100: =SUMIF('Test Period - May 2013'!$E$10:$E$406,$C100,'Test Period - May 2013'!$G$10:$G$406) -> 11788892.51 | G100: =SUMIF('Test Period - May 2013'!$E$10:$E$406,$C100,'Test Period - May 2013'!$H$10:$H$406) -> 0 | H100: =SUMIF('Test Period - May 2013'!$E$10:$E$406,$C100,'Test Period - May 2013'!$I$10:$I$406) -> 0 | I100: =SUMIF('Test Period - May 2013'!$E$10:$E$406,$C100,'Test Period - May 2013'!$J$10:$J$406) -> -6566999.505 | J100: =SUMIF('Test Period - May 2013'!$E$10:$E$406,$C100,'Test Period - May 2013'!$K$10:$K$406) -> 0 | K100: =SUMIF('Test Period - May 2013'!$E$10:$E$406,$C100,'Test Period - May 2013'!$L$10:$L$406) -> 0 | L100: =SUMIF('Test Period - May 2013'!$E$10:$E$406,$C100,'Test Period - May 2013'!$M$10:$M$406) -> 0 | M100: =SUMIF('Test Period - May 2013'!$E$10:$E$406,$C100,'Test Period - May 2013'!$N$10:$N$406) -> 0 | N100: =SUMIF('Test Period - May 2013'!$E$10:$E$406,$C100,'Test Period - May 2013'!$O$10:$O$406) -> 0 | O100: =SUMIF('Test Period - May 2013'!$E$10:$E$406,$C100,'Test Period - May 2013'!$P$10:$P$406) -> 0 | P100: =SUMIF('Test Period - May 2013'!$E$10:$E$406,$C100,'Test Period - May 2013'!$Q$10:$Q$406) -> 0 | Q100: =SUMIF('Test Period - May 2013'!$E$10:$E$406,$C100,'Test Period - May 2013'!$R$10:$R$406) -> 0 | R100: =SUMIF('Test Period - May 2013'!$E$10:$E$406,$C100,'Test Period - May 2013'!$S$10:$S$406) -> 0 | S100: 5221893.005 | T100: 0.04864566059 | U100: 254022.4348 | V100: 5475915.44
C101: Customer Accounts OperationsWA | E101: WA | F101: =SUMIF('Test Period - May 2013'!$E$10:$E$406,$C101,'Test Period - May 2013'!$G$10:$G$406) -> 3902736.11 | G101: =SUMIF('Test Period - May 2013'!$E$10:$E$406,$C101,'Test Period - May 2013'!$H$10:$H$406) -> 0 | H101: =SUMIF('Test Period - May 2013'!$E$10:$E$406,$C101,'Test Period - May 2013'!$I$10:$I$406) -> 0 | I101: =SUMIF('Test Period - May 2013'!$E$10:$E$406,$C101,'Test Period - May 2013'!$J$10:$J$406) -> -1790267.962 | J101: =SUMIF('Test Period - May 2013'!$E$10:$E$406,$C101,'Test Period - May 2013'!$K$10:$K$406) -> 0 | K101: =SUMIF('Test Period - May 2013'!$E$10:$E$406,$C101,'Test Period - May 2013'!$L$10:$L$406) -> 0 | L101: =SUMIF('Test Period - May 2013'!$E$10:$E$406,$C101,'Test Period - May 2013'!$M$10:$M$406) -> 0 | M101: =SUMIF('Test Period - May 2013'!$E$10:$E$406,$C101,'Test Period - May 2013'!$N$10:$N$406) -> 0 | N101: =SUMIF('Test Period - May 2013'!$E$10:$E$406,$C101,'Test Period - May 2013'!$O$10:$O$406) -> 0 | O101: =SUMIF('Test Period - May 2013'!$E$10:$E$406,$C101,'Test Period - May 2013'!$P$10:$P$406) -> 0 | P101: =SUMIF('Test Period - May 2013'!$E$10:$E$406,$C101,'Test Period - May 2013'!$Q$10:$Q$406) -> 0 | Q101: =SUMIF('Test Period - May 2013'!$E$10:$E$406,$C101,'Test Period - May 2013'!$R$10:$R$406) -> 0 | R101: =SUMIF('Test Period - May 2013'!$E$10:$E$406,$C101,'Test Period - May 2013'!$S$10:$S$406) -> 0 | S101: 2112468.148 | T101: 0.04864566059 | U101: 102762.4085 | V101: 2215230.556
C102: Customer Accounts OperationsWYP | E102: WYP | F102: =SUMIF('Test Period - May 2013'!$E$10:$E$406,$C102,'Test Period - May 2013'!$G$10:$G$406) -> 2898314.74 | G102: =SUMIF('Test Period - May 2013'!$E$10:$E$406,$C102,'Test Period - May 2013'!$H$10:$H$406) -> 0 | H102: =SUMIF('Test Period - May 2013'!$E$10:$E$406,$C102,'Test Period - May 2013'!$I$10:$I$406) -> 0 | I102: =SUMIF('Test Period - May 2013'!$E$10:$E$406,$C102,'Test Period - May 2013'!$J$10:$J$406) -> -1704700.522 | J102: =SUMIF('Test Period - May 2013'!$E$10:$E$406,$C102,'Test Period - May 2013'!$K$10:$K$406) -> 0 | K102: =SUMIF('Test Period - May 2013'!$E$10:$E$406,$C102,'Test Period - May 2013'!$L$10:$L$406) -> 0 | L102: =SUMIF('Test Period - May 2013'!$E$10:$E$406,$C102,'Test Period - May 2013'!$M$10:$M$406) -> 0 | M102: =SUMIF('Test Period - May 2013'!$E$10:$E$406,$C102,'Test Period - May 2013'!$N$10:$N$406) -> 0 | N102: =SUMIF('Test Period - May 2013'!$E$10:$E$406,$C102,'Test Period - May 2013'!$O$10:$O$406) -> 0 | O102: =SUMIF('Test Period - May 2013'!$E$10:$E$406,$C102,'Test Period - May 2013'!$P$10:$P$406) -> 0 | P102: =SUMIF('Test Period - May 2013'!$E$10:$E$406,$C102,'Test Period - May 2013'!$Q$10:$Q$406) -> 0 | Q102: =SUMIF('Test Period - May 2013'!$E$10:$E$406,$C102,'Test Period - May 2013'!$R$10:$R$406) -> 0 | R102: =SUMIF('Test Period - May 2013'!$E$10:$E$406,$C102,'Test Period - May 2013'!$S$10:$S$406) -> 0 | S102: 1193614.218 | T102: 0.04864566059 | U102: 58064.1521 | V102: 1251678.37
C103: Customer Accounts OperationsWYU | E103: WYU | F103: =SUMIF('Test Period - May 2013'!$E$10:$E$406,$C103,'Test Period - May 2013'!$G$10:$G$406) -> 408601.49 | G103: =SUMIF('Test Period - May 2013'!$E$10:$E$406,$C103,'Test Period - May 2013'!$H$10:$H$406) -> 0 | H103: =SUMIF('Test Period - May 2013'!$E$10:$E$406,$C103,'Test Period - May 2013'!$I$10:$I$406) -> 0 | I103: =SUMIF('Test Period - May 2013'!$E$10:$E$406,$C103,'Test Period - May 2013'!$J$10:$J$406) -> -324719.5701 | J103: =SUMIF('Test Period - May 2013'!$E$10:$E$406,$C103,'Test Period - May 2013'!$K$10:$K$406) -> 0 | K103: =SUMIF('Test Period - May 2013'!$E$10:$E$406,$C103,'Test Period - May 2013'!$L$10:$L$406) -> 0 | L103: =SUMIF('Test Period - May 2013'!$E$10:$E$406,$C103,'Test Period - May 2013'!$M$10:$M$406) -> 0 | M103: =SUMIF('Test Period - May 2013'!$E$10:$E$406,$C103,'Test Period - May 2013'!$N$10:$N$406) -> 0 | N103: =SUMIF('Test Period - May 2013'!$E$10:$E$406,$C103,'Test Period - May 2013'!$O$10:$O$406) -> 0 | O103: =SUMIF('Test Period - May 2013'!$E$10:$E$406,$C103,'Test Period - May 2013'!$P$10:$P$406) -> 0 | P103: =SUMIF('Test Period - May 2013'!$E$10:$E$406,$C103,'Test Period - May 2013'!$Q$10:$Q$406) -> 0 | Q103: =SUMIF('Test Period - May 2013'!$E$10:$E$406,$C103,'Test Period - May 2013'!$R$10:$R$406) -> 0 | R103: =SUMIF('Test Period - May 2013'!$E$10:$E$406,$C103,'Test Period - May 2013'!$S$10:$S$406) -> 0 | S103: 83881.91995 | T103: 0.04864566059 | U103: 4080.491407 | V103: 87962.41135
E104: Customer Accounts Operations Total | F104: =SUBTOTAL(9,F96:F103) -> 95209361.74 | G104: =SUBTOTAL(9,G96:G103) -> 0 | H104: -11057.66 | I104: -59987268.43 | J104: =SUBTOTAL(9,J96:J103) -> 0 | K104: 0 | L104: =SUBTOTAL(9,L96:L103) -> 0 | M104: 0 | N104: 0 | O104: 0 | P104: =SUBTOTAL(9,P96:P103) -> 0 | Q104: 0 | R104: 0 | S104: =SUBTOTAL(9,S96:S103) -> 35211035.65 | U104: =SUBTOTAL(9,U96:U103) -> 1712864.089 | V104: =SUBTOTAL(9,V96:V103) -> 36923899.74
D106: Customer Service Operations
C107: =+$D$106&E107 -> Customer Service OperationsCA | E107: CA | F107: =SUMIF('Test Period - May 2013'!$E$10:$E$406,$C107,'Test Period - May 2013'!$G$10:$G$406) -> 1377187.72 | G107: =SUMIF('Test Period - May 2013'!$E$10:$E$406,$C107,'Test Period - May 2013'!$H$10:$H$406) -> 0 | H107: =SUMIF('Test Period - May 2013'!$E$10:$E$406,$C107,'Test Period - May 2013'!$I$10:$I$406) -> 0 | I107: =SUMIF('Test Period - May 2013'!$E$10:$E$406,$C107,'Test Period - May 2013'!$J$10:$J$406) -> -38984.90226 | J107: =SUMIF('Test Period - May 2013'!$E$10:$E$406,$C107,'Test Period - May 2013'!$K$10:$K$406) -> 0 | K107: =SUMIF('Test Period - May 2013'!$E$10:$E$406,$C107,'Test Period - May 2013'!$L$10:$L$406) -> 0 | L107: =SUMIF('Test Period - May 2013'!$E$10:$E$406,$C107,'Test Period - May 2013'!$M$10:$M$406) -> -1085527.86 | M107: =SUMIF('Test Period - May 2013'!$E$10:$E$406,$C107,'Test Period - May 2013'!$N$10:$N$406) -> 0 | N107: =SUMIF('Test Period - May 2013'!$E$10:$E$406,$C107,'Test Period - May 2013'!$O$10:$O$406) -> 0 | O107: =SUMIF('Test Period - May 2013'!$E$10:$E$406,$C107,'Test Period - May 2013'!$P$10:$P$406) -> 0 | P107: =SUMIF('Test Period - May 2013'!$E$10:$E$406,$C107,'Test Period - May 2013'!$Q$10:$Q$406) -> 0 | Q107: =SUMIF('Test Period - May 2013'!$E$10:$E$406,$C107,'Test Period - May 2013'!$R$10:$R$406) -> 0 | R107: =SUMIF('Test Period - May 2013'!$E$10:$E$406,$C107,'Test Period - May 2013'!$S$10:$S$406) -> 0 | S107: =SUM(F107:R107) -> 252674.9577 | T107: 0.04841595622 | U107: =S107*T107 -> 12233.49969 | V107: =S107+U107 -> 264908.4574
C108: Customer Service OperationsCN | E108: CN | F108: =SUMIF('Test Period - May 2013'!$E$10:$E$406,$C108,'Test Period - May 2013'!$G$10:$G$406) -> 7171566.03 | G108: =SUMIF('Test Period - May 2013'!$E$10:$E$406,$C108,'Test Period - May 2013'!$H$10:$H$406) -> 0 | H108: =SUMIF('Test Period - May 2013'!$E$10:$E$406,$C108,'Test Period - May 2013'!$I$10:$I$406) -> -3607.66 | I108: =SUMIF('Test Period - May 2013'!$E$10:$E$406,$C108,'Test Period - May 2013'!$J$10:$J$406) -> -3135527.031 | J108: =SUMIF('Test Period - May 2013'!$E$10:$E$406,$C108,'Test Period - May 2013'!$K$10:$K$406) -> 0 | K108: =SUMIF('Test Period - May 2013'!$E$10:$E$406,$C108,'Test Period - May 2013'!$L$10:$L$406) -> 0 | L108: =SUMIF('Test Period - May 2013'!$E$10:$E$406,$C108,'Test Period - May 2013'!$M$10:$M$406) -> 0 | M108: =SUMIF('Test Period - May 2013'!$E$10:$E$406,$C108,'Test Period - May 2013'!$N$10:$N$406) -> 0 | N108: =SUMIF('Test Period - May 2013'!$E$10:$E$406,$C108,'Test Period - May 2013'!$O$10:$O$406) -> 0 | O108: =SUMIF('Test Period - May 2013'!$E$10:$E$406,$C108,'Test Period - May 2013'!$P$10:$P$406) -> 0 | P108: =SUMIF('Test Period - May 2013'!$E$10:$E$406,$C108,'Test Period - May 2013'!$Q$10:$Q$406) -> 0 | Q108: =SUMIF('Test Period - May 2013'!$E$10:$E$406,$C108,'Test Period - May 2013'!$R$10:$R$406) -> 0 | R108: =SUMIF('Test Period - May 2013'!$E$10:$E$406,$C108,'Test Period - May 2013'!$S$10:$S$406) -> 0 | S108: 4032431.339 | T108: 0.04841595622 | U108: 195234.0192 | V108: 4227665.358
C109: Customer Service OperationsID | E109: ID | F109: =SUMIF('Test Period - May 2013'!$E$10:$E$406,$C109,'Test Period - May 2013'!$G$10:$G$406) -> 6926879.27 | G109: =SUMIF('Test Period - May 2013'!$E$10:$E$406,$C109,'Test Period - May 2013'!$H$10:$H$406) -> 0 | H109: =SUMIF('Test Period - May 2013'!$E$10:$E$406,$C109,'Test Period - May 2013'!$I$10:$I$406) -> 0 | I109: =SUMIF('Test Period - May 2013'!$E$10:$E$406,$C109,'Test Period - May 2013'!$J$10:$J$406) -> -449738.5337 | J109: =SUMIF('Test Period - May 2013'!$E$10:$E$406,$C109,'Test Period - May 2013'!$K$10:$K$406) -> -26041.89 | K109: =SUMIF('Test Period - May 2013'!$E$10:$E$406,$C109,'Test Period - May 2013'!$L$10:$L$406) -> 0 | L109: =SUMIF('Test Period - May 2013'!$E$10:$E$406,$C109,'Test Period - May 2013'!$M$10:$M$406) -> -6003419.41 | M109: =SUMIF('Test Period - May 2013'!$E$10:$E$406,$C109,'Test Period - May 2013'!$N$10:$N$406) -> 0 | N109: =SUMIF('Test Period - May 2013'!$E$10:$E$406,$C109,'Test Period - May 2013'!$O$10:$O$406) -> 0 | O109: =SUMIF('Test Period - May 2013'!$E$10:$E$406,$C109,'Test Period - May 2013'!$P$10:$P$406) -> 0 | P109: =SUMIF('Test Period - May 2013'!$E$10:$E$406,$C109,'Test Period - May 2013'!$Q$10:$Q$406) -> 0 | Q109: =SUMIF('Test Period - May 2013'!$E$10:$E$406,$C109,'Test Period - May 2013'!$R$10:$R$406) -> 0 | R109: =SUMIF('Test Period - May 2013'!$E$10:$E$406,$C109,'Test Period - May 2013'!$S$10:$S$406) -> 0 | S109: 447679.4363 | T109: 0.04841595622 | U109: 21674.82799 | V109: 469354.2643
C110: Customer Service OperationsOR | E110: OR | F110: =SUMIF('Test Period - May 2013'!$E$10:$E$406,$C110,'Test Period - May 2013'!$G$10:$G$406) -> 23200318.89 | G110: =SUMIF('Test Period - May 2013'!$E$10:$E$406,$C110,'Test Period - May 2013'!$H$10:$H$406) -> 0 | H110: =SUMIF('Test Period - May 2013'!$E$10:$E$406,$C110,'Test Period - May 2013'!$I$10:$I$406) -> -306.17 | I110: =SUMIF('Test Period - May 2013'!$E$10:$E$406,$C110,'Test Period - May 2013'!$J$10:$J$406) -> -1509796.599 | J110: =SUMIF('Test Period - May 2013'!$E$10:$E$406,$C110,'Test Period - May 2013'!$K$10:$K$406) -> 0 | K110: =SUMIF('Test Period - May 2013'!$E$10:$E$406,$C110,'Test Period - May 2013'!$L$10:$L$406) -> 0 | L110: =SUMIF('Test Period - May 2013'!$E$10:$E$406,$C110,'Test Period - May 2013'!$M$10:$M$406) -> -21405214.71 | M110: =SUMIF('Test Period - May 2013'!$E$10:$E$406,$C110,'Test Period - May 2013'!$N$10:$N$406) -> 0 | N110: =SUMIF('Test Period - May 2013'!$E$10:$E$406,$C110,'Test Period - May 2013'!$O$10:$O$406) -> 0 | O110: =SUMIF('Test Period - May 2013'!$E$10:$E$406,$C110,'Test Period - May 2013'!$P$10:$P$406) -> 0 | P110: =SUMIF('Test Period - May 2013'!$E$10:$E$406,$C110,'Test Period - May 2013'!$Q$10:$Q$406) -> 0 | Q110: =SUMIF('Test Period - May 2013'!$E$10:$E$406,$C110,'Test Period - May 2013'!$R$10:$R$406) -> 0 | R110: =SUMIF('Test Period - May 2013'!$E$10:$E$406,$C110,'Test Period - May 2013'!$S$10:$S$406) -> 0 | S110: 285001.4109 | T110: 0.04841595622 | U110: 13798.61583 | V110: 298800.0267
C111: Customer Service OperationsOTHER | E111: OTHER | F111: =SUMIF('Test Period - May 2013'!$E$10:$E$406,$C111,'Test Period - May 2013'!$G$10:$G$406) -> 4988538.1 | G111: =SUMIF('Test Period - May 2013'!$E$10:$E$406,$C111,'Test Period - May 2013'!$H$10:$H$406) -> 0 | H111: =SUMIF('Test Period - May 2013'!$E$10:$E$406,$C111,'Test Period - May 2013'!$I$10:$I$406) -> 0 | I111: =SUMIF('Test Period - May 2013'!$E$10:$E$406,$C111,'Test Period - May 2013'!$J$10:$J$406) -> -35791.79092 | J111: =SUMIF('Test Period - May 2013'!$E$10:$E$406,$C111,'Test Period - May 2013'!$K$10:$K$406) -> 0 | K111: =SUMIF('Test Period - May 2013'!$E$10:$E$406,$C111,'Test Period - May 2013'!$L$10:$L$406) -> 0 | L111: =SUMIF('Test Period - May 2013'!$E$10:$E$406,$C111,'Test Period - May 2013'!$M$10:$M$406) -> 0 | M111: =SUMIF('Test Period - May 2013'!$E$10:$E$406,$C111,'Test Period - May 2013'!$N$10:$N$406) -> 0 | N111: =SUMIF('Test Period - May 2013'!$E$10:$E$406,$C111,'Test Period - May 2013'!$O$10:$O$406) -> 0 | O111: =SUMIF('Test Period - May 2013'!$E$10:$E$406,$C111,'Test Period - May 2013'!$P$10:$P$406) -> 0 | P111: =SUMIF('Test Period - May 2013'!$E$10:$E$406,$C111,'Test Period - May 2013'!$Q$10:$Q$406) -> 0 | Q111: =SUMIF('Test Period - May 2013'!$E$10:$E$406,$C111,'Test Period - May 2013'!$R$10:$R$406) -> 0 | R111: =SUMIF('Test Period - May 2013'!$E$10:$E$406,$C111,'Test Period - May 2013'!$S$10:$S$406) -> 0 | S111: 4952746.309 | T111: 0.04841595622 | U111: 239791.9484 | V111: 5192538.258
C112: Customer Service OperationsUT | E112: UT | F112: =SUMIF('Test Period - May 2013'!$E$10:$E$406,$C112,'Test Period - May 2013'!$G$10:$G$406) -> 56671512.9 | G112: =SUMIF('Test Period - May 2013'!$E$10:$E$406,$C112,'Test Period - May 2013'!$H$10:$H$406) -> 0 | H112: =SUMIF('Test Period - May 2013'!$E$10:$E$406,$C112,'Test Period - May 2013'!$I$10:$I$406) -> 0 | I112: =SUMIF('Test Period - May 2013'!$E$10:$E$406,$C112,'Test Period - May 2013'!$J$10:$J$406) -> -2292750.839 | J112: =SUMIF('Test Period - May 2013'!$E$10:$E$406,$C112,'Test Period - May 2013'!$K$10:$K$406) -> 0 | K112: =SUMIF('Test Period - May 2013'!$E$10:$E$406,$C112,'Test Period - May 2013'!$L$10:$L$406) -> 0 | L112: =SUMIF('Test Period - May 2013'!$E$10:$E$406,$C112,'Test Period - May 2013'!$M$10:$M$406) -> -53697393.5 | M112: =SUMIF('Test Period - May 2013'!$E$10:$E$406,$C112,'Test Period - May 2013'!$N$10:$N$406) -> 0 | N112: =SUMIF('Test Period - May 2013'!$E$10:$E$406,$C112,'Test Period - May 2013'!$O$10:$O$406) -> 0 | O112: =SUMIF('Test Period - May 2013'!$E$10:$E$406,$C112,'Test Period - May 2013'!$P$10:$P$406) -> 138001.59 | P112: =SUMIF('Test Period - May 2013'!$E$10:$E$406,$C112,'Test Period - May 2013'!$Q$10:$Q$406) -> 0 | Q112: =SUMIF('Test Period - May 2013'!$E$10:$E$406,$C112,'Test Period - May 2013'!$R$10:$R$406) -> 0 | R112: =SUMIF('Test Period - May 2013'!$E$10:$E$406,$C112,'Test Period - May 2013'!$S$10:$S$406) -> 0 | S112: 819370.1512 | T112: 0.04841595622 | U112: 39670.58936 | V112: 859040.7405
C113: Customer Service OperationsWA | E113: WA | F113: =SUMIF('Test Period - May 2013'!$E$10:$E$406,$C113,'Test Period - May 2013'!$G$10:$G$406) -> 9063084.37 | G113: =SUMIF('Test Period - May 2013'!$E$10:$E$406,$C113,'Test Period - May 2013'!$H$10:$H$406) -> 0 | H113: =SUMIF('Test Period - May 2013'!$E$10:$E$406,$C113,'Test Period - May 2013'!$I$10:$I$406) -> 0 | I113: =SUMIF('Test Period - May 2013'!$E$10:$E$406,$C113,'Test Period - May 2013'!$J$10:$J$406) -> -215732.1054 | J113: =SUMIF('Test Period - May 2013'!$E$10:$E$406,$C113,'Test Period - May 2013'!$K$10:$K$406) -> 0 | K113: =SUMIF('Test Period - May 2013'!$E$10:$E$406,$C113,'Test Period - May 2013'!$L$10:$L$406) -> 0 | L113: =SUMIF('Test Period - May 2013'!$E$10:$E$406,$C113,'Test Period - May 2013'!$M$10:$M$406) -> -8762731 | M113: =SUMIF('Test Period - May 2013'!$E$10:$E$406,$C113,'Test Period - May 2013'!$N$10:$N$406) -> 0 | N113: =SUMIF('Test Period - May 2013'!$E$10:$E$406,$C113,'Test Period - May 2013'!$O$10:$O$406) -> 0 | O113: =SUMIF('Test Period - May 2013'!$E$10:$E$406,$C113,'Test Period - May 2013'!$P$10:$P$406) -> 0 | P113: =SUMIF('Test Period - May 2013'!$E$10:$E$406,$C113,'Test Period - May 2013'!$Q$10:$Q$406) -> 0 | Q113: =SUMIF('Test Period - May 2013'!$E$10:$E$406,$C113,'Test Period - May 2013'!$R$10:$R$406) -> 0 | R113: =SUMIF('Test Period - May 2013'!$E$10:$E$406,$C113,'Test Period - May 2013'!$S$10:$S$406) -> 0 | S113: 84621.26456 | T113: 0.04841595622 | U113: 4097.01944 | V113: 88718.284
C114: =+$D$106&E114 -> Customer Service OperationsWYP | E114: WYP | F114: =SUMIF('Test Period - May 2013'!$E$10:$E$406,$C114,'Test Period - May 2013'!$G$10:$G$406) -> 4570789.76 | G114: =SUMIF('Test Period - May 2013'!$E$10:$E$406,$C114,'Test Period - May 2013'!$H$10:$H$406) -> 0 | H114: =SUMIF('Test Period - May 2013'!$E$10:$E$406,$C114,'Test Period - May 2013'!$I$10:$I$406) -> 0 | I114: =SUMIF('Test Period - May 2013'!$E$10:$E$406,$C114,'Test Period - May 2013'!$J$10:$J$406) -> -933774.3376 | J114: =SUMIF('Test Period - May 2013'!$E$10:$E$406,$C114,'Test Period - May 2013'!$K$10:$K$406) -> 0 | K114: =SUMIF('Test Period - May 2013'!$E$10:$E$406,$C114,'Test Period - May 2013'!$L$10:$L$406) -> 0 | L114: =SUMIF('Test Period - May 2013'!$E$10:$E$406,$C114,'Test Period - May 2013'!$M$10:$M$406) -> -3341257.08 | M114: =SUMIF('Test Period - May 2013'!$E$10:$E$406,$C114,'Test Period - May 2013'!$N$10:$N$406) -> 0 | N114: =SUMIF('Test Period - May 2013'!$E$10:$E$406,$C114,'Test Period - May 2013'!$O$10:$O$406) -> 0 | O114: =SUMIF('Test Period - May 2013'!$E$10:$E$406,$C114,'Test Period - May 2013'!$P$10:$P$406) -> 0 | P114: =SUMIF('Test Period - May 2013'!$E$10:$E$406,$C114,'Test Period - May 2013'!$Q$10:$Q$406) -> 0 | Q114: =SUMIF('Test Period - May 2013'!$E$10:$E$406,$C114,'Test Period - May 2013'!$R$10:$R$406) -> 0 | R114: =SUMIF('Test Period - May 2013'!$E$10:$E$406,$C114,'Test Period - May 2013'!$S$10:$S$406) -> 0 | S114: 295758.3424 | T114: 0.04841595622 | U114: 14319.42296 | V114: 310077.7653
C115: Customer Service OperationsWYU | E115: WYU | F115: =SUMIF('Test Period - May 2013'!$E$10:$E$406,$C115,'Test Period - May 2013'!$G$10:$G$406) -> 0 | G115: =SUMIF('Test Period - May 2013'!$E$10:$E$406,$C115,'Test Period - May 2013'!$H$10:$H$406) -> 0 | H115: =SUMIF('Test Period - May 2013'!$E$10:$E$406,$C115,'Test Period - May 2013'!$I$10:$I$406) -> 0 | I115: =SUMIF('Test Period - May 2013'!$E$10:$E$406,$C115,'Test Period - May 2013'!$J$10:$J$406) -> 0 | J115: =SUMIF('Test Period - May 2013'!$E$10:$E$406,$C115,'Test Period - May 2013'!$K$10:$K$406) -> 0 | K115: =SUMIF('Test Period - May 2013'!$E$10:$E$406,$C115,'Test Period - May 2013'!$L$10:$L$406) -> 0 | L115: =SUMIF('Test Period - May 2013'!$E$10:$E$406,$C115,'Test Period - May 2013'!$M$10:$M$406) -> 0 | M115: =SUMIF('Test Period - May 2013'!$E$10:$E$406,$C115,'Test Period - May 2013'!$N$10:$N$406) -> 0 | N115: =SUMIF('Test Period - May 2013'!$E$10:$E$406,$C115,'Test Period - May 2013'!$O$10:$O$406) -> 0 | O115: =SUMIF('Test Period - May 2013'!$E$10:$E$406,$C115,'Test Period - May 2013'!$P$10:$P$406) -> 0 | P115: =SUMIF('Test Period - May 2013'!$E$10:$E$406,$C115,'Test Period - May 2013'!$Q$10:$Q$406) -> 0 | Q115: =SUMIF('Test Period - May 2013'!$E$10:$E$406,$C115,'Test Period - May 2013'!$R$10:$R$406) -> 0 | R115: =SUMIF('Test Period - May 2013'!$E$10:$E$406,$C115,'Test Period - May 2013'!$S$10:$S$406) -> 0 | S115: 0 | T115: 0.04841595622 | U115: 0 | V115: 0
E116: Customer Service Operations Total | F116: =SUBTOTAL(9,F107:F115) -> 113969877 | G116: =SUBTOTAL(9,G107:G115) -> 0 | H116: -3913.83 | I116: -8612096.139 | J116: =SUBTOTAL(9,J107:J115) -> -26041.89 | K116: 0 | L116: =SUBTOTAL(9,L107:L115) -> -94295543.56 | M116: 0 | N116: 0 | O116: 138001.59 | P116: =SUBTOTAL(9,P107:P115) -> 0 | Q116: 0 | R116: 0 | S116: =SUBTOTAL(9,S107:S115) -> 11170283.21 | U116: =SUBTOTAL(9,U107:U115) -> 540819.9429 | V116: =SUBTOTAL(9,V107:V115) -> 11711103.15
D118: A&G Operations & Maintenance
C119: =+$D$118&E119 -> A&G Operations & Maintenance920 | E119: 920 | F119: =SUMIF('Test Period - May 2013'!$A$337:$A$406,'4.12.4-4.12.7'!$E$119:$E$130,'Test Period - May 2013'!$G$337:$G$406) -> 70168201.77 | G119: =SUMIF('Test Period - May 2013'!$A$337:$A$406,'4.12.4-4.12.7'!E119,'Test Period - May 2013'!H$337:H$406) -> 0 | H119: =SUMIF('Test Period - May 2013'!$A$337:$A$406,'4.12.4-4.12.7'!E119,'Test Period - May 2013'!I$337:I$406) -> -1570.5 | I119: =SUMIF('Test Period - May 2013'!$A$337:$A$406,'4.12.4-4.12.7'!E119,'Test Period - May 2013'!J$337:J$406) -> -78131421.05 | J119: =SUMIF('Test Period - May 2013'!$A$337:$A$406,'4.12.4-4.12.7'!E119,'Test Period - May 2013'!K$337:K$406) -> 0 | K119: =SUMIF('Test Period - May 2013'!$A$337:$A$406,'4.12.4-4.12.7'!E119,'Test Period - May 2013'!L$337:L$406) -> 222772 | L119: =SUMIF('Test Period - May 2013'!$A$337:$A$406,'4.12.4-4.12.7'!E119,'Test Period - May 2013'!M$337:M$406) -> 0 | M119: =SUMIF('Test Period - May 2013'!$A$337:$A$406,'4.12.4-4.12.7'!E119,'Test Period - May 2013'!N$337:N$406) -> 0 | N119: =SUMIF('Test Period - May 2013'!$A$337:$A$406,'4.12.4-4.12.7'!E119,'Test Period - May 2013'!O$337:O$406) -> 0 | O119: =SUMIF('Test Period - May 2013'!$A$337:$A$406,'4.12.4-4.12.7'!E119,'Test Period - May 2013'!P$337:P$406) -> 0 | P119: =SUMIF('Test Period - May 2013'!$A$337:$A$406,'4.12.4-4.12.7'!F119,'Test Period - May 2013'!Q$337:Q$406) -> 0 | Q119: =SUMIF('Test Period - May 2013'!$A$337:$A$406,'4.12.4-4.12.7'!E119,'Test Period - May 2013'!R$337:R$406) -> 0 | R119: =SUMIF('Test Period - May 2013'!$A$337:$A$406,'4.12.4-4.12.7'!E119,'Test Period - May 2013'!S$337:S$406) -> 0 | S119: =SUM(F119:R119) -> -7742017.782 | T119: 0.05405762622 | U119: =S119*T119 -> -418515.1035 | V119: =S119+U119 -> -8160532.886
C120: A&G Operations & Maintenance921 | E120: 921 | F120: =SUMIF('Test Period - May 2013'!$A$337:$A$406,'4.12.4-4.12.7'!$E$119:$E$130,'Test Period - May 2013'!$G$337:$G$406) -> 9641195.38 | G120: =SUMIF('Test Period - May 2013'!$A$337:$A$406,'4.12.4-4.12.7'!E120,'Test Period - May 2013'!H$337:H$406) -> 0 | H120: =SUMIF('Test Period - May 2013'!$A$337:$A$406,'4.12.4-4.12.7'!E120,'Test Period - May 2013'!I$337:I$406) -> -33192.14224 | I120: =SUMIF('Test Period - May 2013'!$A$337:$A$406,'4.12.4-4.12.7'!E120,'Test Period - May 2013'!J$337:J$406) -> 266350.9469 | J120: =SUMIF('Test Period - May 2013'!$A$337:$A$406,'4.12.4-4.12.7'!E120,'Test Period - May 2013'!K$337:K$406) -> 0 | K120: =SUMIF('Test Period - May 2013'!$A$337:$A$406,'4.12.4-4.12.7'!E120,'Test Period - May 2013'!L$337:L$406) -> 0 | L120: =SUMIF('Test Period - May 2013'!$A$337:$A$406,'4.12.4-4.12.7'!E120,'Test Period - May 2013'!M$337:M$406) -> 0 | M120: =SUMIF('Test Period - May 2013'!$A$337:$A$406,'4.12.4-4.12.7'!E120,'Test Period - May 2013'!N$337:N$406) -> 0 | N120: =SUMIF('Test Period - May 2013'!$A$337:$A$406,'4.12.4-4.12.7'!E120,'Test Period - May 2013'!O$337:O$406) -> 0 | O120: =SUMIF('Test Period - May 2013'!$A$337:$A$406,'4.12.4-4.12.7'!E120,'Test Period - May 2013'!P$337:P$406) -> 0 | P120: =SUMIF('Test Period - May 2013'!$A$337:$A$406,'4.12.4-4.12.7'!F120,'Test Period - May 2013'!Q$337:Q$406) -> 0 | Q120: =SUMIF('Test Period - May 2013'!$A$337:$A$406,'4.12.4-4.12.7'!E120,'Test Period - May 2013'!R$337:R$406) -> 0 | R120: =SUMIF('Test Period - May 2013'!$A$337:$A$406,'4.12.4-4.12.7'!E120,'Test Period - May 2013'!S$337:S$406) -> 0 | S120: 9874354.185 | T120: 0.04633246528 | U120: 457503.1724 | V120: 10331857.36
C121: A&G Operations & Maintenance922 | E121: 922 | F121: =SUMIF('Test Period - May 2013'!$A$337:$A$406,'4.12.4-4.12.7'!$E$119:$E$130,'Test Period - May 2013'!$G$337:$G$406) -> -31726904.85 | G121: =SUMIF('Test Period - May 2013'!$A$337:$A$406,'4.12.4-4.12.7'!E121,'Test Period - May 2013'!H$337:H$406) -> 0 | H121: =SUMIF('Test Period - May 2013'!$A$337:$A$406,'4.12.4-4.12.7'!E121,'Test Period - May 2013'!I$337:I$406) -> 0 | I121: =SUMIF('Test Period - May 2013'!$A$337:$A$406,'4.12.4-4.12.7'!E121,'Test Period - May 2013'!J$337:J$406) -> -25960274.76 | J121: =SUMIF('Test Period - May 2013'!$A$337:$A$406,'4.12.4-4.12.7'!E121,'Test Period - May 2013'!K$337:K$406) -> 0 | K121: =SUMIF('Test Period - May 2013'!$A$337:$A$406,'4.12.4-4.12.7'!E121,'Test Period - May 2013'!L$337:L$406) -> 0 | L121: =SUMIF('Test Period - May 2013'!$A$337:$A$406,'4.12.4-4.12.7'!E121,'Test Period - May 2013'!M$337:M$406) -> 0 | M121: =SUMIF('Test Period - May 2013'!$A$337:$A$406,'4.12.4-4.12.7'!E121,'Test Period - May 2013'!N$337:N$406) -> 0 | N121: =SUMIF('Test Period - May 2013'!$A$337:$A$406,'4.12.4-4.12.7'!E121,'Test Period - May 2013'!O$337:O$406) -> 0 | O121: =SUMIF('Test Period - May 2013'!$A$337:$A$406,'4.12.4-4.12.7'!E121,'Test Period - May 2013'!P$337:P$406) -> 0 | P121: =SUMIF('Test Period - May 2013'!$A$337:$A$406,'4.12.4-4.12.7'!F121,'Test Period - May 2013'!Q$337:Q$406) -> 0 | Q121: =SUMIF('Test Period - May 2013'!$A$337:$A$406,'4.12.4-4.12.7'!E121,'Test Period - May 2013'!R$337:R$406) -> 0 | R121: =SUMIF('Test Period - May 2013'!$A$337:$A$406,'4.12.4-4.12.7'!E121,'Test Period - May 2013'!S$337:S$406) -> 0 | S121: -57687179.61 | T121: 0.05405762622 | U121: -3118431.993 | V121: -60805611.61
C122: A&G Operations & Maintenance923 | E122: 923 | F122: =SUMIF('Test Period - May 2013'!$A$337:$A$406,'4.12.4-4.12.7'!$E$119:$E$130,'Test Period - May 2013'!$G$337:$G$406) -> 14146288.17 | G122: =SUMIF('Test Period - May 2013'!$A$337:$A$406,'4.12.4-4.12.7'!E122,'Test Period - May 2013'!H$337:H$406) -> 0 | H122: =SUMIF('Test Period - May 2013'!$A$337:$A$406,'4.12.4-4.12.7'!E122,'Test Period - May 2013'!I$337:I$406) -> -90860 | I122: =SUMIF('Test Period - May 2013'!$A$337:$A$406,'4.12.4-4.12.7'!E122,'Test Period - May 2013'!J$337:J$406) -> 0 | J122: =SUMIF('Test Period - May 2013'!$A$337:$A$406,'4.12.4-4.12.7'!E122,'Test Period - May 2013'!K$337:K$406) -> 0 | K122: =SUMIF('Test Period - May 2013'!$A$337:$A$406,'4.12.4-4.12.7'!E122,'Test Period - May 2013'!L$337:L$406) -> 0 | L122: =SUMIF('Test Period - May 2013'!$A$337:$A$406,'4.12.4-4.12.7'!E122,'Test Period - May 2013'!M$337:M$406) -> 0 | M122: =SUMIF('Test Period - May 2013'!$A$337:$A$406,'4.12.4-4.12.7'!E122,'Test Period - May 2013'!N$337:N$406) -> 0 | N122: =SUMIF('Test Period - May 2013'!$A$337:$A$406,'4.12.4-4.12.7'!E122,'Test Period - May 2013'!O$337:O$406) -> 0 | O122: =SUMIF('Test Period - May 2013'!$A$337:$A$406,'4.12.4-4.12.7'!E122,'Test Period - May 2013'!P$337:P$406) -> 0 | P122: =SUMIF('Test Period - May 2013'!$A$337:$A$406,'4.12.4-4.12.7'!F122,'Test Period - May 2013'!Q$337:Q$406) -> 0 | Q122: =SUMIF('Test Period - May 2013'!$A$337:$A$406,'4.12.4-4.12.7'!E122,'Test Period - May 2013'!R$337:R$406) -> 0 | R122: =SUMIF('Test Period - May 2013'!$A$337:$A$406,'4.12.4-4.12.7'!E122,'Test Period - May 2013'!S$337:S$406) -> 0 | S122: 14055428.17 | T122: 0.04395397095 | U122: 617791.8815 | V122: 14673220.05
C123: A&G Operations & Maintenance924 | E123: 924 | F123: =SUMIF('Test Period - May 2013'!$A$337:$A$406,'4.12.4-4.12.7'!$E$119:$E$130,'Test Period - May 2013'!$G$337:$G$406) -> 25385457.52 | G123: =SUMIF('Test Period - May 2013'!$A$337:$A$406,'4.12.4-4.12.7'!E123,'Test Period - May 2013'!H$337:H$406) -> 0 | H123: =SUMIF('Test Period - May 2013'!$A$337:$A$406,'4.12.4-4.12.7'!E123,'Test Period - May 2013'!I$337:I$406) -> 0 | I123: =SUMIF('Test Period - May 2013'!$A$337:$A$406,'4.12.4-4.12.7'!E123,'Test Period - May 2013'!J$337:J$406) -> 0 | J123: =SUMIF('Test Period - May 2013'!$A$337:$A$406,'4.12.4-4.12.7'!E123,'Test Period - May 2013'!K$337:K$406) -> 0 | K123: =SUMIF('Test Period - May 2013'!$A$337:$A$406,'4.12.4-4.12.7'!E123,'Test Period - May 2013'!L$337:L$406) -> 0 | L123: =SUMIF('Test Period - May 2013'!$A$337:$A$406,'4.12.4-4.12.7'!E123,'Test Period - May 2013'!M$337:M$406) -> 0 | M123: =SUMIF('Test Period - May 2013'!$A$337:$A$406,'4.12.4-4.12.7'!E123,'Test Period - May 2013'!N$337:N$406) -> 664363.32 | N123: =SUMIF('Test Period - May 2013'!$A$337:$A$406,'4.12.4-4.12.7'!E123,'Test Period - May 2013'!O$337:O$406) -> 0 | O123: =SUMIF('Test Period - May 2013'!$A$337:$A$406,'4.12.4-4.12.7'!E123,'Test Period - May 2013'!P$337:P$406) -> 0 | P123: =SUMIF('Test Period - May 2013'!$A$337:$A$406,'4.12.4-4.12.7'!F123,'Test Period - May 2013'!Q$337:Q$406) -> 0 | Q123: =SUMIF('Test Period - May 2013'!$A$337:$A$406,'4.12.4-4.12.7'!E123,'Test Period - May 2013'!R$337:R$406) -> 0 | R123: =SUMIF('Test Period - May 2013'!$A$337:$A$406,'4.12.4-4.12.7'!E123,'Test Period - May 2013'!S$337:S$406) -> 0 | S123: 26049820.84 | T123: 0 | U123: 0 | V123: 26049820.84
C124: A&G Operations & Maintenance925 | E124: 925 | F124: =SUMIF('Test Period - May 2013'!$A$337:$A$406,'4.12.4-4.12.7'!$E$119:$E$130,'Test Period - May 2013'!$G$337:$G$406) -> 8314977.19 | G124: =SUMIF('Test Period - May 2013'!$A$337:$A$406,'4.12.4-4.12.7'!E124,'Test Period - May 2013'!H$337:H$406) -> 0 | H124: =SUMIF('Test Period - May 2013'!$A$337:$A$406,'4.12.4-4.12.7'!E124,'Test Period - May 2013'!I$337:I$406) -> 0 | I124: =SUMIF('Test Period - May 2013'!$A$337:$A$406,'4.12.4-4.12.7'!E124,'Test Period - May 2013'!J$337:J$406) -> 0 | J124: =SUMIF('Test Period - May 2013'!$A$337:$A$406,'4.12.4-4.12.7'!E124,'Test Period - May 2013'!K$337:K$406) -> 0 | K124: =SUMIF('Test Period - May 2013'!$A$337:$A$406,'4.12.4-4.12.7'!E124,'Test Period - May 2013'!L$337:L$406) -> 0 | L124: =SUMIF('Test Period - May 2013'!$A$337:$A$406,'4.12.4-4.12.7'!E124,'Test Period - May 2013'!M$337:M$406) -> 0 | M124: =SUMIF('Test Period - May 2013'!$A$337:$A$406,'4.12.4-4.12.7'!E124,'Test Period - May 2013'!N$337:N$406) -> 568605.34 | N124: =SUMIF('Test Period - May 2013'!$A$337:$A$406,'4.12.4-4.12.7'!E124,'Test Period - May 2013'!O$337:O$406) -> 0 | O124: =SUMIF('Test Period - May 2013'!$A$337:$A$406,'4.12.4-4.12.7'!E124,'Test Period - May 2013'!P$337:P$406) -> 0 | P124: =SUMIF('Test Period - May 2013'!$A$337:$A$406,'4.12.4-4.12.7'!F124,'Test Period - May 2013'!Q$337:Q$406) -> 0 | Q124: =SUMIF('Test Period - May 2013'!$A$337:$A$406,'4.12.4-4.12.7'!E124,'Test Period - May 2013'!R$337:R$406) -> 0 | R124: =SUMIF('Test Period - May 2013'!$A$337:$A$406,'4.12.4-4.12.7'!E124,'Test Period - May 2013'!S$337:S$406) -> 0 | S124: 8883582.53 | T124: 0 | U124: 0 | V124: 8883582.53
C125: A&G Operations & Maintenance926 | E125: 926 | F125: =SUMIF('Test Period - May 2013'!$A$337:$A$406,'4.12.4-4.12.7'!$E$119:$E$130,'Test Period - May 2013'!$G$337:$G$406) -> 0 | G125: =SUMIF('Test Period - May 2013'!$A$337:$A$406,'4.12.4-4.12.7'!E125,'Test Period - May 2013'!H$337:H$406) -> 0 | H125: =SUMIF('Test Period - May 2013'!$A$337:$A$406,'4.12.4-4.12.7'!E125,'Test Period - May 2013'!I$337:I$406) -> 0 | I125: =SUMIF('Test Period - May 2013'!$A$337:$A$406,'4.12.4-4.12.7'!E125,'Test Period - May 2013'!J$337:J$406) -> 0 | J125: =SUMIF('Test Period - May 2013'!$A$337:$A$406,'4.12.4-4.12.7'!E125,'Test Period - May 2013'!K$337:K$406) -> 0 | K125: =SUMIF('Test Period - May 2013'!$A$337:$A$406,'4.12.4-4.12.7'!E125,'Test Period - May 2013'!L$337:L$406) -> 0 | L125: =SUMIF('Test Period - May 2013'!$A$337:$A$406,'4.12.4-4.12.7'!E125,'Test Period - May 2013'!M$337:M$406) -> 0 | M125: =SUMIF('Test Period - May 2013'!$A$337:$A$406,'4.12.4-4.12.7'!E125,'Test Period - May 2013'!N$337:N$406) -> 0 | N125: =SUMIF('Test Period - May 2013'!$A$337:$A$406,'4.12.4-4.12.7'!E125,'Test Period - May 2013'!O$337:O$406) -> 0 | O125: =SUMIF('Test Period - May 2013'!$A$337:$A$406,'4.12.4-4.12.7'!E125,'Test Period - May 2013'!P$337:P$406) -> 0 | P125: =SUMIF('Test Period - May 2013'!$A$337:$A$406,'4.12.4-4.12.7'!F125,'Test Period - May 2013'!Q$337:Q$406) -> 0 | Q125: =SUMIF('Test Period - May 2013'!$A$337:$A$406,'4.12.4-4.12.7'!E125,'Test Period - May 2013'!R$337:R$406) -> 0 | R125: =SUMIF('Test Period - May 2013'!$A$337:$A$406,'4.12.4-4.12.7'!E125,'Test Period - May 2013'!S$337:S$406) -> 0 | S125: 0 | T125: -0.04184759328 | U125: =S125*T125 -> 0 | V125: =S125+U125 -> 0
C126: A&G Operations & Maintenance928 | E126: 928 | F126: =SUMIF('Test Period - May 2013'!$A$337:$A$406,'4.12.4-4.12.7'!$E$119:$E$130,'Test Period - May 2013'!$G$337:$G$406) -> 18415884.42 | G126: =SUMIF('Test Period - May 2013'!$A$337:$A$406,'4.12.4-4.12.7'!E126,'Test Period - May 2013'!H$337:H$406) -> 0 | H126: =SUMIF('Test Period - May 2013'!$A$337:$A$406,'4.12.4-4.12.7'!E126,'Test Period - May 2013'!I$337:I$406) -> 0 | I126: =SUMIF('Test Period - May 2013'!$A$337:$A$406,'4.12.4-4.12.7'!E126,'Test Period - May 2013'!J$337:J$406) -> -3892465.751 | J126: =SUMIF('Test Period - May 2013'!$A$337:$A$406,'4.12.4-4.12.7'!E126,'Test Period - May 2013'!K$337:K$406) -> 0 | K126: =SUMIF('Test Period - May 2013'!$A$337:$A$406,'4.12.4-4.12.7'!E126,'Test Period - May 2013'!L$337:L$406) -> 0 | L126: =SUMIF('Test Period - May 2013'!$A$337:$A$406,'4.12.4-4.12.7'!E126,'Test Period - May 2013'!M$337:M$406) -> 0 | M126: =SUMIF('Test Period - May 2013'!$A$337:$A$406,'4.12.4-4.12.7'!E126,'Test Period - May 2013'!N$337:N$406) -> 0 | N126: =SUMIF('Test Period - May 2013'!$A$337:$A$406,'4.12.4-4.12.7'!E126,'Test Period - May 2013'!O$337:O$406) -> 0 | O126: =SUMIF('Test Period - May 2013'!$A$337:$A$406,'4.12.4-4.12.7'!E126,'Test Period - May 2013'!P$337:P$406) -> 0 | P126: =SUMIF('Test Period - May 2013'!$A$337:$A$406,'4.12.4-4.12.7'!F126,'Test Period - May 2013'!Q$337:Q$406) -> 0 | Q126: =SUMIF('Test Period - May 2013'!$A$337:$A$406,'4.12.4-4.12.7'!E126,'Test Period - May 2013'!R$337:R$406) -> 0 | R126: =SUMIF('Test Period - May 2013'!$A$337:$A$406,'4.12.4-4.12.7'!E126,'Test Period - May 2013'!S$337:S$406) -> 0 | S126: 14523418.67 | T126: 0.04863654864 | U126: =S126*T126 -> 706368.9585 | V126: =S126+U126 -> 15229787.63
C127: A&G Operations & Maintenance929 | E127: 929 | F127: =SUMIF('Test Period - May 2013'!$A$337:$A$406,'4.12.4-4.12.7'!$E$119:$E$130,'Test Period - May 2013'!$G$337:$G$406) -> -6811638.62 | G127: =SUMIF('Test Period - May 2013'!$A$337:$A$406,'4.12.4-4.12.7'!E127,'Test Period - May 2013'!H$337:H$406) -> 0 | H127: =SUMIF('Test Period - May 2013'!$A$337:$A$406,'4.12.4-4.12.7'!E127,'Test Period - May 2013'!I$337:I$406) -> 0 | I127: =SUMIF('Test Period - May 2013'!$A$337:$A$406,'4.12.4-4.12.7'!E127,'Test Period - May 2013'!J$337:J$406) -> 1065040.843 | J127: =SUMIF('Test Period - May 2013'!$A$337:$A$406,'4.12.4-4.12.7'!E127,'Test Period - May 2013'!K$337:K$406) -> 0 | K127: =SUMIF('Test Period - May 2013'!$A$337:$A$406,'4.12.4-4.12.7'!E127,'Test Period - May 2013'!L$337:L$406) -> 0 | L127: =SUMIF('Test Period - May 2013'!$A$337:$A$406,'4.12.4-4.12.7'!E127,'Test Period - May 2013'!M$337:M$406) -> 0 | M127: =SUMIF('Test Period - May 2013'!$A$337:$A$406,'4.12.4-4.12.7'!E127,'Test Period - May 2013'!N$337:N$406) -> 0 | N127: =SUMIF('Test Period - May 2013'!$A$337:$A$406,'4.12.4-4.12.7'!E127,'Test Period - May 2013'!O$337:O$406) -> 0 | O127: =SUMIF('Test Period - May 2013'!$A$337:$A$406,'4.12.4-4.12.7'!E127,'Test Period - May 2013'!P$337:P$406) -> 0 | P127: =SUMIF('Test Period - May 2013'!$A$337:$A$406,'4.12.4-4.12.7'!F127,'Test Period - May 2013'!Q$337:Q$406) -> 0 | Q127: =SUMIF('Test Period - May 2013'!$A$337:$A$406,'4.12.4-4.12.7'!E127,'Test Period - May 2013'!R$337:R$406) -> 0 | R127: =SUMIF('Test Period - May 2013'!$A$337:$A$406,'4.12.4-4.12.7'!E127,'Test Period - May 2013'!S$337:S$406) -> 0 | S127: -5746597.777 | T127: 0.05405762622 | U127: =S127*T127 -> -310647.4347 | V127: =S127+U127 -> -6057245.212
C128: A&G Operations & Maintenance930 | E128: 930 | F128: =SUMIF('Test Period - May 2013'!$A$337:$A$406,'4.12.4-4.12.7'!$E$119:$E$130,'Test Period - May 2013'!$G$337:$G$406) -> 16206212.34 | G128: =SUMIF('Test Period - May 2013'!$A$337:$A$406,'4.12.4-4.12.7'!E128,'Test Period - May 2013'!H$337:H$406) -> 0 | H128: =SUMIF('Test Period - May 2013'!$A$337:$A$406,'4.12.4-4.12.7'!E128,'Test Period - May 2013'!I$337:I$406) -> -164377.34 | I128: =SUMIF('Test Period - May 2013'!$A$337:$A$406,'4.12.4-4.12.7'!E128,'Test Period - May 2013'!J$337:J$406) -> 0 | J128: =SUMIF('Test Period - May 2013'!$A$337:$A$406,'4.12.4-4.12.7'!E128,'Test Period - May 2013'!K$337:K$406) -> 0 | K128: =SUMIF('Test Period - May 2013'!$A$337:$A$406,'4.12.4-4.12.7'!E128,'Test Period - May 2013'!L$337:L$406) -> 0 | L128: =SUMIF('Test Period - May 2013'!$A$337:$A$406,'4.12.4-4.12.7'!E128,'Test Period - May 2013'!M$337:M$406) -> 0 | M128: =SUMIF('Test Period - May 2013'!$A$337:$A$406,'4.12.4-4.12.7'!E128,'Test Period - May 2013'!N$337:N$406) -> 0 | N128: =SUMIF('Test Period - May 2013'!$A$337:$A$406,'4.12.4-4.12.7'!E128,'Test Period - May 2013'!O$337:O$406) -> 0 | O128: =SUMIF('Test Period - May 2013'!$A$337:$A$406,'4.12.4-4.12.7'!E128,'Test Period - May 2013'!P$337:P$406) -> 0 | P128: =SUMIF('Test Period - May 2013'!$A$337:$A$406,'4.12.4-4.12.7'!F128,'Test Period - May 2013'!Q$337:Q$406) -> 0 | Q128: =SUMIF('Test Period - May 2013'!$A$337:$A$406,'4.12.4-4.12.7'!E128,'Test Period - May 2013'!R$337:R$406) -> 0 | R128: =SUMIF('Test Period - May 2013'!$A$337:$A$406,'4.12.4-4.12.7'!E128,'Test Period - May 2013'!S$337:S$406) -> 0 | S128: 16041835 | T128: 0.04174349519 | U128: =S128*T128 -> 669642.2621 | V128: =S128+U128 -> 16711477.26
C129: A&G Operations & Maintenance931 | E129: 931 | F129: =SUMIF('Test Period - May 2013'!$A$337:$A$406,'4.12.4-4.12.7'!$E$119:$E$130,'Test Period - May 2013'!$G$337:$G$406) -> 6408303.56 | G129: =SUMIF('Test Period - May 2013'!$A$337:$A$406,'4.12.4-4.12.7'!E129,'Test Period - May 2013'!H$337:H$406) -> 0 | H129: =SUMIF('Test Period - May 2013'!$A$337:$A$406,'4.12.4-4.12.7'!E129,'Test Period - May 2013'!I$337:I$406) -> 0 | I129: =SUMIF('Test Period - May 2013'!$A$337:$A$406,'4.12.4-4.12.7'!E129,'Test Period - May 2013'!J$337:J$406) -> 0 | J129: =SUMIF('Test Period - May 2013'!$A$337:$A$406,'4.12.4-4.12.7'!E129,'Test Period - May 2013'!K$337:K$406) -> 0 | K129: =SUMIF('Test Period - May 2013'!$A$337:$A$406,'4.12.4-4.12.7'!E129,'Test Period - May 2013'!L$337:L$406) -> 0 | L129: =SUMIF('Test Period - May 2013'!$A$337:$A$406,'4.12.4-4.12.7'!E129,'Test Period - May 2013'!M$337:M$406) -> 0 | M129: =SUMIF('Test Period - May 2013'!$A$337:$A$406,'4.12.4-4.12.7'!E129,'Test Period - May 2013'!N$337:N$406) -> 0 | N129: =SUMIF('Test Period - May 2013'!$A$337:$A$406,'4.12.4-4.12.7'!E129,'Test Period - May 2013'!O$337:O$406) -> 0 | O129: =SUMIF('Test Period - May 2013'!$A$337:$A$406,'4.12.4-4.12.7'!E129,'Test Period - May 2013'!P$337:P$406) -> 0 | P129: =SUMIF('Test Period - May 2013'!$A$337:$A$406,'4.12.4-4.12.7'!F129,'Test Period - May 2013'!Q$337:Q$406) -> 0 | Q129: =SUMIF('Test Period - May 2013'!$A$337:$A$406,'4.12.4-4.12.7'!E129,'Test Period - May 2013'!R$337:R$406) -> 0 | R129: =SUMIF('Test Period - May 2013'!$A$337:$A$406,'4.12.4-4.12.7'!E129,'Test Period - May 2013'!S$337:S$406) -> 0 | S129: 6408303.56 | T129: 0.05684608121 | U129: =S129*T129 -> 364286.9446 | V129: =S129+U129 -> 6772590.505
C130: A&G Operations & Maintenance935 | E130: 935 | F130: =SUMIF('Test Period - May 2013'!$A$337:$A$406,'4.12.4-4.12.7'!$E$119:$E$130,'Test Period - May 2013'!$G$337:$G$406) -> 23814471.86 | G130: =SUMIF('Test Period - May 2013'!$A$337:$A$406,'4.12.4-4.12.7'!E130,'Test Period - May 2013'!H$337:H$406) -> 0 | H130: =SUMIF('Test Period - May 2013'!$A$337:$A$406,'4.12.4-4.12.7'!E130,'Test Period - May 2013'!I$337:I$406) -> 0 | I130: =SUMIF('Test Period - May 2013'!$A$337:$A$406,'4.12.4-4.12.7'!E130,'Test Period - May 2013'!J$337:J$406) -> -2821874.986 | J130: =SUMIF('Test Period - May 2013'!$A$337:$A$406,'4.12.4-4.12.7'!E130,'Test Period - May 2013'!K$337:K$406) -> 0 | K130: =SUMIF('Test Period - May 2013'!$A$337:$A$406,'4.12.4-4.12.7'!E130,'Test Period - May 2013'!L$337:L$406) -> 0 | L130: =SUMIF('Test Period - May 2013'!$A$337:$A$406,'4.12.4-4.12.7'!E130,'Test Period - May 2013'!M$337:M$406) -> 0 | M130: =SUMIF('Test Period - May 2013'!$A$337:$A$406,'4.12.4-4.12.7'!E130,'Test Period - May 2013'!N$337:N$406) -> 0 | N130: =SUMIF('Test Period - May 2013'!$A$337:$A$406,'4.12.4-4.12.7'!E130,'Test Period - May 2013'!O$337:O$406) -> 0 | O130: =SUMIF('Test Period - May 2013'!$A$337:$A$406,'4.12.4-4.12.7'!E130,'Test Period - May 2013'!P$337:P$406) -> 0 | P130: =SUMIF('Test Period - May 2013'!$A$337:$A$406,'4.12.4-4.12.7'!F130,'Test Period - May 2013'!Q$337:Q$406) -> 0 | Q130: =SUMIF('Test Period - May 2013'!$A$337:$A$406,'4.12.4-4.12.7'!E130,'Test Period - May 2013'!R$337:R$406) -> 0 | R130: =SUMIF('Test Period - May 2013'!$A$337:$A$406,'4.12.4-4.12.7'!E130,'Test Period - May 2013'!S$337:S$406) -> 0 | S130: 20992596.87 | T130: 0.02087435998 | U130: =S130*T130 -> 438207.0242 | V130: =S130+U130 -> 21430803.9
E131: A&G Operations & Maintenance Total | F131: =SUBTOTAL(9,F119:F130) -> 153962448.7 | G131: =SUBTOTAL(9,G119:G130) -> 0 | H131: =SUBTOTAL(9,H119:H130) -> -289999.9822 | I131: -109474644.8 | J131: 0 | K131: 222772 | L131: 0 | M131: 1232968.66 | N131: 0 | O131: 0 | P131: =SUBTOTAL(9,P119:P130) -> 0 | Q131: 0 | R131: 0 | S131: =SUBTOTAL(9,S119:S130) -> 45653544.65 | U131: =SUBTOTAL(9,U119:U130) -> -593794.2884 | V131: =SUBTOTAL(9,V119:V130) -> 45059750.37
E132: Grand Total | F132: =SUBTOTAL(9,F10:F131) -> 2709188753 | G132: -879133.07 | H132: -308282.5014 | I132: -509923098 | J132: 5.929905456e-10 | K132: -2761972.35 | L132: -94295543.56 | M132: 1232968.66 | N132: -2600536.513 | O132: 138001.59 | P132: =SUBTOTAL(9,P10:P131) -> 27567522.23 | Q132: -844878 | R132: -53958.89 | S132: 2126459843 | U132: =SUBTOTAL(9,U10:U131) -> 25016305.28 | V132: =SUBTOTAL(9,V10:V131) -> 2151476148
U133: Ref 4.12.3

Sheet 4.12.8
A1: Rocky Mountain Power | D1: Page 4.12.8
A2: Utah General Rate Case - May 2013
A3: Escalation Factors
C7: Escalation Factors
C8: June 2011 to May 2013 | D8: FERC Accounts
A9: STEAM PRODUCTION PLANT
A10: Operation: | C10: 0.07232619112 | D10: 500 - 507
A11: Maintenance: | C11: 0.03724422941 | D11: 510 - 514
A13: HYDRO PRODUCTION PLANT
A14: Operation: | C14: 0.07264115551 | D14: 535 - 540
A15: Maintenance: | C15: 0.04038662487 | D15: 541 - 545
A17: OTHER PRODUCTION PLANT
A18: Operation: | C18: 0.06639828234 | D18: 546 - 550; 556 - 557
A19: Maintenance: | C19: 0.04485516645 | D19: 551 - 554
A21: TRANSMISSION PLANT
A22: Operation: | C22: 0.05221720505 | D22: 560 - 567
A23: Maintenance: | C23: 0.05382869548 | D23: 568 - 573
A25: DISTRIBUTION PLANT
A26: Operation: | C26: 0.05037252996 | D26: 580 - 589
A27: Maintenance: | C27: 0.06361957525 | D27: 590 - 598
A29: CUSTOMER ACCOUNTS
A30: Operation: | C30: 0.04864566059 | D30: 901 - 905
A32: CUSTOMER SERVICE and INFORMATION
A33: Operation: | C33: 0.04841595622 | D33: 907 - 910
A35: SALES
A36: Operation: | C36: 0.05249225852 | D36: 911 - 916
A38: ADMINISTRATIVE and GENERAL
A39: Operation: | C39: 0.05405762622 | D39: 920, 922, 929
A40: Operation: | C40: 0.04633246528 | D40: 921
A41: Operation: | C41: 0.04395397095 | D41: 923
A42: Operation: | C42: 0.06511663247 | D42: 926
A43: Operation: | C43: 0.07103354162 | D43: 927
A44: Operation: | C44: 0.04863654864 | D44: 928
A45: Operation: | C45: 0.04174349519 | D45: 930
A46: Operation: | C46: 0.05684608121 | D46: 931
A47: Maintenance: | C47: 0.02087435998 | D47: 935
A49: Note: please see Confidential Exhibit RMP__(SRM-4) showing details of escalation factors

Sheet Test Period - May 2013
F1: Rocky Mountain Power
F2: Utah General Rate Case - May 2013
F3: O&M Expense Escalation
F4: 12 months ending May 2013
H5: 3.2 | I5: 4.1 | J5: 4.2 | K5: 4.3 | L5: 4.4 | M5: 4.6 | N5: 4.7 | O5: 4.8 | P5: 4.10 | Q5: 5.1 | R5: 8.9 | S5: 8.12 | T5: 4.12 | V5: May 2013
G6: Jun 2011 | I6: Miscellaneous | J6: Remove | K6: Idaho Irrigation | L6: Remove | O6: Generation | P6: Solar | Q6: Net | R6: Regulatory | S6: Misc. Asset | V6: Escalated
G7: Unadjusted | H7: Wheeling | I7: General | J7: Unadjusted | K7: Load Control | L7: Non-Recurring | M7: DSM Revenue | N7: Insurance | O7: Overhaul | P7: Photovoltaic | Q7: Power Cost | R7: Asset | S7: Sales and | T7: O&M | U7: Escalation | V7: Non-Labor
A8: FERC | B8: JAM Indicator | C8: Function | F8: Revised Protocol Accounts | G8: O&M | H8: Revenue | I8: Expense | J8: Labor | K8: Program | L8: Entries | M8: and Expense | N8: Expense | O8: Expense | P8: Program | Q8: Study | R8: Amortization | S8: Removals | T8: Escalation | U8: Percentages | V8: O&M
B9: Steam Power Generation | F9: Steam Power Generation
B10: 500SNPPS | C10: Steam Operation | D10: =MID(F10,4,12) -> SG | E10: =+C10&D10 -> Steam OperationSG | F10: 500SG | G10: 17434919.41 | J10: =-IF(ISERROR(VLOOKUP(F10,Labor!$A$7:$B$222,2,0)),0,VLOOKUP(F10,Labor!$A$7:$B$222,2,0)) -> -15136007.48 | T10: =SUM(G10:S10)*U10 -> 166271.5434 | U10: 0.07232619112 | V10: =SUM(G10:T10) -> 2465183.471
B11: 500SSGCH | C11: Steam Operation | D11: =MID(F11,4,12) -> SSGCH | E11: =+C11&D11 -> Steam OperationSSGCH | F11: 500SSGCH | G11: 2217592.67 | J11: =-IF(ISERROR(VLOOKUP(F11,Labor!$A$7:$B$222,2,0)),0,VLOOKUP(F11,Labor!$A$7:$B$222,2,0)) -> 0 | T11: 160390.0313 | U11: 0.07232619112 | V11: 2377982.701
B12: 501NPCID | C12: Steam Operation | D12: =MID(F12,4,12) -> NPCID | E12: =+C12&D12 -> Steam OperationNPCID | F12: 501NPCID | G12: -103365.08 | J12: =-IF(ISERROR(VLOOKUP(F12,Labor!$A$7:$B$222,2,0)),0,VLOOKUP(F12,Labor!$A$7:$B$222,2,0)) -> 0 | T12: 0 | V12: -103365.08
B13: 501SE | C13: Steam Operation | D13: SE | E13: Steam OperationSE | F13: 501SE | G13: 18028764.55 | J13: =-IF(ISERROR(VLOOKUP(F13,Labor!$A$7:$B$222,2,0)),0,VLOOKUP(F13,Labor!$A$7:$B$222,2,0)) -> 12711.5081 | T13: 1304871.246 | U13: 0.07232619112 | V13: 19346347.3
B14: 501SSECH | C14: Steam Operation | D14: SSECH | E14: Steam OperationSSECH | F14: 501SSECH | G14: 3225440.5 | J14: =-IF(ISERROR(VLOOKUP(F14,Labor!$A$7:$B$222,2,0)),0,VLOOKUP(F14,Labor!$A$7:$B$222,2,0)) -> 0 | T14: 233283.8261 | U14: 0.07232619112 | V14: 3458724.326
B15: 501NPCSE | C15: Steam Operation | D15: NPCSE | E15: Steam OperationNPCSE | F15: 501NPCSE | G15: 614495568 | J15: =-IF(ISERROR(VLOOKUP(F15,Labor!$A$7:$B$222,2,0)),0,VLOOKUP(F15,Labor!$A$7:$B$222,2,0)) -> 0 | T15: 0 | V15: 614495568
B16: 501NPCWYP | C16: Steam Operation | D16: =MID(F16,4,12) -> NPCWYP | E16: =+C16&D16 -> Steam OperationNPCWYP | F16: 501NPCWYP | G16: -305916.84 | J16: =-IF(ISERROR(VLOOKUP(F16,Labor!$A$7:$B$222,2,0)),0,VLOOKUP(F16,Labor!$A$7:$B$222,2,0)) -> 0 | T16: 0 | V16: -305916.84
B17: 501NPCSSECH | C17: Steam Operation | D17: NPCSSECH | E17: Steam OperationNPCSSECH | F17: 501NPCSSECH | G17: 49297564.45 | J17: =-IF(ISERROR(VLOOKUP(F17,Labor!$A$7:$B$222,2,0)),0,VLOOKUP(F17,Labor!$A$7:$B$222,2,0)) -> 0 | T17: 0 | V17: 49297564.45
B18: 502SNPPS | C18: Steam Operation | D18: SG | E18: Steam OperationSG | F18: 502SG | G18: 31637198.82 | J18: =-IF(ISERROR(VLOOKUP(F18,Labor!$A$7:$B$222,2,0)),0,VLOOKUP(F18,Labor!$A$7:$B$222,2,0)) -> -16840474.2 | T18: 1070190.733 | U18: 0.07232619112 | V18: 15866915.35
B19: 502SSGCH | C19: Steam Operation | D19: SSGCH | E19: Steam OperationSSGCH | F19: 502SSGCH | G19: 7646027.18 | J19: =-IF(ISERROR(VLOOKUP(F19,Labor!$A$7:$B$222,2,0)),0,VLOOKUP(F19,Labor!$A$7:$B$222,2,0)) -> 0 | T19: 553008.0231 | U19: 0.07232619112 | V19: 8199035.203
B20: 503SE | C20: Steam Operation | D20: SE | E20: Steam OperationSE | F20: 503SE | G20: 0 | J20: =-IF(ISERROR(VLOOKUP(F20,Labor!$A$7:$B$222,2,0)),0,VLOOKUP(F20,Labor!$A$7:$B$222,2,0)) -> -70523.41571 | T20: -5100.690043 | U20: 0.07232619112 | V20: -75624.10575
B21: 503NPCSE | C21: Steam Operation | D21: NPCSE | E21: Steam OperationNPCSE | F21: 503NPCSE | G21: 3321607.72 | J21: =-IF(ISERROR(VLOOKUP(F21,Labor!$A$7:$B$222,2,0)),0,VLOOKUP(F21,Labor!$A$7:$B$222,2,0)) -> 0 | T21: 0 | V21: 3321607.72
B22: 505SNPPS | C22: Steam Operation | D22: SG | E22: Steam OperationSG | F22: 505SG | G22: 3108225.72 | J22: =-IF(ISERROR(VLOOKUP(F22,Labor!$A$7:$B$222,2,0)),0,VLOOKUP(F22,Labor!$A$7:$B$222,2,0)) -> -1783112.588 | T22: 95840.38565 | U22: 0.07232619112 | V22: 1420953.518
B23: 505SSGCH | C23: Steam Operation | D23: SSGCH | E23: Steam OperationSSGCH | F23: 505SSGCH | G23: 1137585.74 | J23: =-IF(ISERROR(VLOOKUP(F23,Labor!$A$7:$B$222,2,0)),0,VLOOKUP(F23,Labor!$A$7:$B$222,2,0)) -> 0 | T23: 82277.24365 | U23: 0.07232619112 | V23: 1219862.984
B24: 506SNPPS | C24: Steam Operation | D24: SG | E24: Steam OperationSG | F24: 506SG | G24: 48802848.39 | J24: =-IF(ISERROR(VLOOKUP(F24,Labor!$A$7:$B$222,2,0)),0,VLOOKUP(F24,Labor!$A$7:$B$222,2,0)) -> -44406936.39 | L24: 48112.15 | T24: 321419.34 | U24: 0.07232619112 | V24: 4765443.489
B25: 506SSGCH | C25: Steam Operation | D25: SSGCH | E25: Steam OperationSSGCH | F25: 506SSGCH | G25: 1904601.72 | J25: =-IF(ISERROR(VLOOKUP(F25,Labor!$A$7:$B$222,2,0)),0,VLOOKUP(F25,Labor!$A$7:$B$222,2,0)) -> 2156.076512 | T25: 137908.5288 | U25: 0.07232619112 | V25: 2044666.325
B26: 507SNPPS | C26: Steam Operation | D26: SG | E26: Steam OperationSG | F26: 507SG | G26: 286514.49 | J26: =-IF(ISERROR(VLOOKUP(F26,Labor!$A$7:$B$222,2,0)),0,VLOOKUP(F26,Labor!$A$7:$B$222,2,0)) -> 0 | T26: 20722.50176 | U26: 0.07232619112 | V26: 307236.9918
B27: 507SSGCH | C27: Steam Operation | D27: SSGCH | E27: Steam OperationSSGCH | F27: 507SSGCH | G27: 623.22 | J27: =-IF(ISERROR(VLOOKUP(F27,Labor!$A$7:$B$222,2,0)),0,VLOOKUP(F27,Labor!$A$7:$B$222,2,0)) -> 0 | T27: 45.07512883 | U27: 0.07232619112 | V27: 668.2951288
B28: 510SNPPS | C28: Steam Maintenance | D28: SG | E28: Steam MaintenanceSG | F28: 510SG | G28: 4593089.07 | J28: =-IF(ISERROR(VLOOKUP(F28,Labor!$A$7:$B$222,2,0)),0,VLOOKUP(F28,Labor!$A$7:$B$222,2,0)) -> -2789979.123 | O28: -4260121.537 | T28: -91509.50331 | U28: 0.03724422941 | V28: =SUM(G28:T28) -> -2548521.093
B29: 510SSGCH | C29: Steam Maintenance | D29: SSGCH | E29: Steam MaintenanceSSGCH | F29: 510SSGCH | G29: 1999842.65 | J29: =-IF(ISERROR(VLOOKUP(F29,Labor!$A$7:$B$222,2,0)),0,VLOOKUP(F29,Labor!$A$7:$B$222,2,0)) -> 0 | O29: 1882803.239 | T29: 144606.1542 | U29: 0.03724422941 | V29: 4027252.043
B30: 511SNPPS | C30: Steam Maintenance | D30: SG | E30: Steam MaintenanceSG | F30: 511SG | G30: 23720364.13 | J30: =-IF(ISERROR(VLOOKUP(F30,Labor!$A$7:$B$222,2,0)),0,VLOOKUP(F30,Labor!$A$7:$B$222,2,0)) -> -6583208.908 | T30: 638260.1406 | U30: 0.03724422941 | V30: 17775415.36
B31: 511SSGCH | C31: Steam Maintenance | D31: SSGCH | E31: Steam MaintenanceSSGCH | F31: 511SSGCH | G31: 424328.55 | J31: =-IF(ISERROR(VLOOKUP(F31,Labor!$A$7:$B$222,2,0)),0,VLOOKUP(F31,Labor!$A$7:$B$222,2,0)) -> 247.3889548 | T31: 15813.00367 | U31: 0.03724422941 | V31: 440388.9426
B32: 512SNPPS | C32: Steam Maintenance | D32: SG | E32: Steam MaintenanceSG | F32: 512SG | G32: 101673678.2 | J32: =-IF(ISERROR(VLOOKUP(F32,Labor!$A$7:$B$222,2,0)),0,VLOOKUP(F32,Labor!$A$7:$B$222,2,0)) -> -25850505.77 | T32: 2823975.63 | U32: 0.03724422941 | V32: 78647148.1
B33: 512SSGCH | C33: Steam Maintenance | D33: SSGCH | E33: Steam MaintenanceSSGCH | F33: 512SSGCH | G33: 4835272 | J33: =-IF(ISERROR(VLOOKUP(F33,Labor!$A$7:$B$222,2,0)),0,VLOOKUP(F33,Labor!$A$7:$B$222,2,0)) -> 146287.3647 | T33: 185534.3398 | U33: 0.03724422941 | V33: 5167093.705
B34: 513SNPPS | C34: Steam Maintenance | D34: SG | E34: Steam MaintenanceSG | F34: 513SG | G34: 38873334.61 | J34: =-IF(ISERROR(VLOOKUP(F34,Labor!$A$7:$B$222,2,0)),0,VLOOKUP(F34,Labor!$A$7:$B$222,2,0)) -> -10656550.79 | T34: 1050912.37 | U34: 0.03724422941 | V34: 29267696.18
B35: 513SSGCH | C35: Steam Maintenance | D35: SSGCH | E35: Steam MaintenanceSSGCH | F35: 513SSGCH | G35: 643842.37 | J35: =-IF(ISERROR(VLOOKUP(F35,Labor!$A$7:$B$222,2,0)),0,VLOOKUP(F35,Labor!$A$7:$B$222,2,0)) -> 0 | T35: 23979.41293 | U35: 0.03724422941 | V35: 667821.7829
B36: 514SNPPS | C36: Steam Maintenance | D36: SG | E36: Steam MaintenanceSG | F36: 514SG | G36: 10067965.22 | J36: =-IF(ISERROR(VLOOKUP(F36,Labor!$A$7:$B$222,2,0)),0,VLOOKUP(F36,Labor!$A$7:$B$222,2,0)) -> -2567842.817 | T36: 279336.2794 | U36: 0.03724422941 | V36: 7779458.683
B37: 514SSGCH | C37: Steam Maintenance | D37: SSGCH | E37: Steam MaintenanceSSGCH | F37: 514SSGCH | G37: 2034629.39 | J37: =-IF(ISERROR(VLOOKUP(F37,Labor!$A$7:$B$222,2,0)),0,VLOOKUP(F37,Labor!$A$7:$B$222,2,0)) -> 2879.557208 | T37: 75885.45066 | U37: 0.03724422941 | V37: 2113394.398
B38: Total Steam Power Expenses | F38: Total Steam Power Expenses | G38: =SUM(G10:G37) -> 991002146.9 | H38: =SUM(H10:H37) -> 0 | I38: =SUM(I10:I37) -> 0 | J38: -126520859.6 | K38: 0 | L38: 48112.15 | M38: 0 | N38: 0 | O38: -2377318.298 | P38: 0 | Q38: =SUM(Q10:Q37) -> 0 | R38: 0 | S38: 0 | T38: =SUM(T10:T37) -> 9287921.065 | V38: =SUM(V10:V37) -> 871440002.2
B40: Hydro Power Generation | F40: Hydro Power Generation
B41: 535SNPPH-P | C41: Hydro Operations | D41: SG-P | E41: Hydro OperationsSG-P | F41: 535SG-P | G41: 5436999.086 | J41: =-IF(ISERROR(VLOOKUP(F41,Labor!$A$7:$B$222,2,0)),0,VLOOKUP(F41,Labor!$A$7:$B$222,2,0)) -> -2331651.092 | T41: =SUM(G41:S41)*U41 -> 225576.0666 | U41: 0.07264115551 | V41: =SUM(G41:T41) -> 3330924.061
B42: 535SNPPH-U | C42: Hydro Operations | D42: SG-U | E42: Hydro OperationsSG-U | F42: 535SG-U | G42: -924195.8689 | J42: =-IF(ISERROR(VLOOKUP(F42,Labor!$A$7:$B$222,2,0)),0,VLOOKUP(F42,Labor!$A$7:$B$222,2,0)) -> -1456817.59 | T42: -172959.5689 | U42: 0.07264115551 | V42: =SUM(G42:T42) -> -2553973.028
B43: 536SNPPH-P | C43: Hydro Operations | D43: SG-P | E43: Hydro OperationsSG-P | F43: 536SG-P | G43: 199929.81 | J43: =-IF(ISERROR(VLOOKUP(F43,Labor!$A$7:$B$222,2,0)),0,VLOOKUP(F43,Labor!$A$7:$B$222,2,0)) -> -79258.11033 | T43: 8765.731701 | U43: 0.07264115551 | V43: 129437.4314
B44: 536SNPPH-U | C44: Hydro Operations | D44: SG-U | E44: Hydro OperationsSG-U | F44: 536SG-U | G44: 0 | J44: =-IF(ISERROR(VLOOKUP(F44,Labor!$A$7:$B$222,2,0)),0,VLOOKUP(F44,Labor!$A$7:$B$222,2,0)) -> 0 | T44: 0 | U44: 0.07264115551 | V44: 0
B45: 537SNPPH-P | C45: Hydro Operations | D45: SG-P | E45: Hydro OperationsSG-P | F45: 537SG-P | G45: 3376625.51 | J45: =-IF(ISERROR(VLOOKUP(F45,Labor!$A$7:$B$222,2,0)),0,VLOOKUP(F45,Labor!$A$7:$B$222,2,0)) -> -403193.0571 | T45: 215993.5692 | U45: 0.07264115551 | V45: 3189426.022
B46: 537SNPPH-U | C46: Hydro Operations | D46: SG-U | E46: Hydro OperationsSG-U | F46: 537SG-U | G46: 259907.1413 | J46: =-IF(ISERROR(VLOOKUP(F46,Labor!$A$7:$B$222,2,0)),0,VLOOKUP(F46,Labor!$A$7:$B$222,2,0)) -> -52702.21556 | T46: 15051.60523 | U46: 0.07264115551 | V46: 222256.531
B47: 538SNPPH-P | C47: Hydro Operations | D47: SG-P | E47: Hydro OperationsSG-P | F47: 538SG-P | G47: 0 | J47: =-IF(ISERROR(VLOOKUP(F47,Labor!$A$7:$B$222,2,0)),0,VLOOKUP(F47,Labor!$A$7:$B$222,2,0)) -> 0 | T47: 0 | U47: 0.07264115551 | V47: 0
B48: 538SNPPH-U | C48: Hydro Operations | D48: SG-U | E48: Hydro OperationsSG-U | F48: 538SG-U | G48: 0 | J48: =-IF(ISERROR(VLOOKUP(F48,Labor!$A$7:$B$222,2,0)),0,VLOOKUP(F48,Labor!$A$7:$B$222,2,0)) -> 0 | T48: 0 | U48: 0.07264115551 | V48: 0
B49: 539SNPPH-P | C49: Hydro Operations | D49: SG-P | E49: Hydro OperationsSG-P | F49: 539SG-P | G49: 19787088.66 | J49: =-IF(ISERROR(VLOOKUP(F49,Labor!$A$7:$B$222,2,0)),0,VLOOKUP(F49,Labor!$A$7:$B$222,2,0)) -> -6190567.411 | T49: 987667.0144 | U49: 0.07264115551 | V49: 14584188.26
B50: 539SNPPH-U | C50: Hydro Operations | D50: SG-U | E50: Hydro OperationsSG-U | F50: 539SG-U | G50: 7388752.933 | J50: =-IF(ISERROR(VLOOKUP(F50,Labor!$A$7:$B$222,2,0)),0,VLOOKUP(F50,Labor!$A$7:$B$222,2,0)) -> -4723081.956 | T50: 193637.42 | U50: 0.07264115551 | V50: 2859308.398
B51: 540SNPPH-P | C51: Hydro Operations | D51: SG-P | E51: Hydro OperationsSG-P | F51: 540SG-P | G51: 158963.43 | J51: =-IF(ISERROR(VLOOKUP(F51,Labor!$A$7:$B$222,2,0)),0,VLOOKUP(F51,Labor!$A$7:$B$222,2,0)) -> 161317.9458 | T51: 23265.60923 | U51: 0.07264115551 | V51: 343546.9851
B52: 540SNPPH-U | C52: Hydro Operations | D52: SG-U | E52: Hydro OperationsSG-U | F52: 540SG-U | G52: 983.33 | J52: =-IF(ISERROR(VLOOKUP(F52,Labor!$A$7:$B$222,2,0)),0,VLOOKUP(F52,Labor!$A$7:$B$222,2,0)) -> 0 | T52: 71.43022744 | U52: 0.07264115551 | V52: 1054.760227
B53: 541SNPPH-P | C53: Hydro Maintenance | D53: =MID(F53,4,12) -> SG-P | E53: =+C53&D53 -> Hydro MaintenanceSG-P | F53: 541SG-P | G53: 1691.4 | J53: =-IF(ISERROR(VLOOKUP(F53,Labor!$A$7:$B$222,2,0)),0,VLOOKUP(F53,Labor!$A$7:$B$222,2,0)) -> -1311.194421 | T53: 15.35522011 | U53: 0.04038662487 | V53: =SUM(G53:T53) -> 395.5607995
B54: 541SNPPH-U | C54: Hydro Maintenance | D54: =MID(F54,4,12) -> SG-U | E54: =+C54&D54 -> Hydro MaintenanceSG-U | F54: 541SG-U | G54: 0 | J54: =-IF(ISERROR(VLOOKUP(F54,Labor!$A$7:$B$222,2,0)),0,VLOOKUP(F54,Labor!$A$7:$B$222,2,0)) -> 0 | T54: 0 | U54: 0.04038662487 | V54: =SUM(G54:T54) -> 0
B55: 542SNPPH-P | C55: Hydro Maintenance | D55: SG-P | E55: Hydro MaintenanceSG-P | F55: 542SG-P | G55: 1028907.6 | J55: =-IF(ISERROR(VLOOKUP(F55,Labor!$A$7:$B$222,2,0)),0,VLOOKUP(F55,Labor!$A$7:$B$222,2,0)) -> -452155.9303 | T55: 23293.05333 | U55: 0.04038662487 | V55: 600044.723
B56: 542SNPPH-U | C56: Hydro Maintenance | D56: SG-U | E56: Hydro MaintenanceSG-U | F56: 542SG-U | G56: 22385.71 | J56: =-IF(ISERROR(VLOOKUP(F56,Labor!$A$7:$B$222,2,0)),0,VLOOKUP(F56,Labor!$A$7:$B$222,2,0)) -> -79742.95868 | T56: -2316.465686 | U56: 0.04038662487 | V56: -59673.71437
B57: 543SNPPH-P | C57: Hydro Maintenance | D57: SG-P | E57: Hydro MaintenanceSG-P | F57: 543SG-P | G57: 1391013.23 | J57: =-IF(ISERROR(VLOOKUP(F57,Labor!$A$7:$B$222,2,0)),0,VLOOKUP(F57,Labor!$A$7:$B$222,2,0)) -> -367736.7467 | T57: 41326.68347 | U57: 0.04038662487 | V57: 1064603.167
B58: 543SNPPH-U | C58: Hydro Maintenance | D58: SG-U | E58: Hydro MaintenanceSG-U | F58: 543SG-U | G58: 637040.91 | J58: =-IF(ISERROR(VLOOKUP(F58,Labor!$A$7:$B$222,2,0)),0,VLOOKUP(F58,Labor!$A$7:$B$222,2,0)) -> -467801.4589 | T58: 6835.010223 | U58: 0.04038662487 | V58: 176074.4613
B59: 544SNPPH-P | C59: Hydro Maintenance | D59: SG-P | E59: Hydro MaintenanceSG-P | F59: 544SG-P | G59: 1280143.29 | J59: =-IF(ISERROR(VLOOKUP(F59,Labor!$A$7:$B$222,2,0)),0,VLOOKUP(F59,Labor!$A$7:$B$222,2,0)) -> -812686.8952 | T59: 18878.98606 | U59: 0.04038662487 | V59: 486335.3808
B60: 544SNPPH-U | C60: Hydro Maintenance | D60: SG-U | E60: Hydro MaintenanceSG-U | F60: 544SG-U | G60: 361513.8 | J60: =-IF(ISERROR(VLOOKUP(F60,Labor!$A$7:$B$222,2,0)),0,VLOOKUP(F60,Labor!$A$7:$B$222,2,0)) -> -269689.6085 | T60: 3708.469175 | U60: 0.04038662487 | V60: 95532.66065
B61: 545SNPPH-P | C61: Hydro Maintenance | D61: SG-P | E61: Hydro MaintenanceSG-P | F61: 545SG-P | G61: 1978265.22 | J61: =-IF(ISERROR(VLOOKUP(F61,Labor!$A$7:$B$222,2,0)),0,VLOOKUP(F61,Labor!$A$7:$B$222,2,0)) -> -786296.1482 | T61: 48139.60776 | U61: 0.04038662487 | V61: 1240108.68
B62: 545SNPPH-U | C62: Hydro Maintenance | D62: SG-U | E62: Hydro MaintenanceSG-U | F62: 545SG-U | G62: 863439.1479 | J62: =-IF(ISERROR(VLOOKUP(F62,Labor!$A$7:$B$222,2,0)),0,VLOOKUP(F62,Labor!$A$7:$B$222,2,0)) -> -266722.1802 | T62: 24099.38433 | U62: 0.04038662487 | V62: 620816.352
B63: Total Hydro Power Generation | F63: Total Hydro Power Generation | G63: =SUM(G41:G62) -> 43249454.34 | H63: =SUM(H41:H62) -> 0 | I63: =SUM(I41:I62) -> 0 | J63: -18580096.61 | K63: 0 | L63: =SUM(L41:L62) -> 0 | M63: 0 | N63: 0 | O63: 0 | P63: 0 | Q63: =SUM(Q41:Q62) -> 0 | R63: 0 | S63: 0 | T63: =SUM(T41:T62) -> 1661048.962 | V63: =SUM(V41:V62) -> 26330406.69
B65: Other Production Expense | F65: Other Production Expense
B66: 546SNPPO | C66: Other Operations | D66: SG | E66: Other OperationsSG | F66: 546SG | G66: 398438.84 | J66: =-IF(ISERROR(VLOOKUP(F66,Labor!$A$7:$B$222,2,0)),0,VLOOKUP(F66,Labor!$A$7:$B$222,2,0)) -> -1247.655688 | T66: =SUM(G66:S66)*U66 -> 26372.8124 | U66: 0.06639828234 | V66: =SUM(G66:T66) -> 423563.9967
B67: 547SE | C67: Other Operations | D67: SE | E67: Other OperationsSE | F67: 547SE | G67: 0 | J67: =-IF(ISERROR(VLOOKUP(F67,Labor!$A$7:$B$222,2,0)),0,VLOOKUP(F67,Labor!$A$7:$B$222,2,0)) -> 0 | T67: 0 | U67: 0.06639828234 | V67: 0
B68: 547SSECT | C68: Other Operations | D68: SSECT | E68: Other OperationsSSECT | F68: 547SSECT | G68: 0 | J68: =-IF(ISERROR(VLOOKUP(F68,Labor!$A$7:$B$222,2,0)),0,VLOOKUP(F68,Labor!$A$7:$B$222,2,0)) -> 0 | T68: 0 | U68: 0.06639828234 | V68: 0
B69: 547NPCSE | C69: Other Operations | D69: NPCSE | E69: Other OperationsNPCSE | F69: 547NPCSE | G69: 365731150.6 | J69: =-IF(ISERROR(VLOOKUP(F69,Labor!$A$7:$B$222,2,0)),0,VLOOKUP(F69,Labor!$A$7:$B$222,2,0)) -> 0 | T69: 0 | V69: 365731150.6
B70: 547NPCSSECT | C70: Other Operations | D70: NPCSSECT | E70: Other OperationsNPCSSECT | F70: 547NPCSSECT | G70: 16065664.24 | J70: =-IF(ISERROR(VLOOKUP(F70,Labor!$A$7:$B$222,2,0)),0,VLOOKUP(F70,Labor!$A$7:$B$222,2,0)) -> 0 | T70: 0 | V70: 16065664.24
B71: 548SNPPO | C71: Other Operations | D71: SG | E71: Other OperationsSG | F71: 548SG | G71: 12707630.51 | J71: =-IF(ISERROR(VLOOKUP(F71,Labor!$A$7:$B$222,2,0)),0,VLOOKUP(F71,Labor!$A$7:$B$222,2,0)) -> -4661860.937 | T71: 534225.2797 | U71: 0.06639828234 | V71: 8579994.852
B72: 548SSGCT | C72: Other Operations | D72: SSGCT | E72: Other OperationsSSGCT | F72: 548SSGCT | G72: 1195094.84 | J72: =-IF(ISERROR(VLOOKUP(F72,Labor!$A$7:$B$222,2,0)),0,VLOOKUP(F72,Labor!$A$7:$B$222,2,0)) -> -546197.7203 | T72: 43085.65416 | U72: 0.06639828234 | V72: 691982.7739
B73: 549SNPPO | C73: Other Operations | D73: SG | E73: Other OperationsSG | F73: 549SG | G73: 3963096.73 | J73: =-IF(ISERROR(VLOOKUP(F73,Labor!$A$7:$B$222,2,0)),0,VLOOKUP(F73,Labor!$A$7:$B$222,2,0)) -> -2853050.672 | T73: 73705.1516 | U73: 0.06639828234 | V73: 1183751.21
B74: 549SNPPO-W | C74: Other Operations | D74: =MID(F74,4,12) -> SG-W | E74: =+C74&D74 -> Other OperationsSG-W | F74: 549SG-W | G74: 17518956.52 | J74: =-IF(ISERROR(VLOOKUP(F74,Labor!$A$7:$B$222,2,0)),0,VLOOKUP(F74,Labor!$A$7:$B$222,2,0)) -> 0 | T74: 1163228.621 | U74: 0.06639828234 | V74: 18682185.14
B75: 549SSGCT | C75: Other Operations | D75: SSGCT | E75: Other OperationsSSGCT | F75: 549SSGCT | G75: 0 | J75: =-IF(ISERROR(VLOOKUP(F75,Labor!$A$7:$B$222,2,0)),0,VLOOKUP(F75,Labor!$A$7:$B$222,2,0)) -> 0 | T75: 0 | U75: 0.06639828234 | V75: 0
B76: 550SNPPO | C76: Other Operations | D76: SG | E76: Other OperationsSG | F76: 550SG | G76: 61133.85 | J76: =-IF(ISERROR(VLOOKUP(F76,Labor!$A$7:$B$222,2,0)),0,VLOOKUP(F76,Labor!$A$7:$B$222,2,0)) -> 0 | T76: 4059.182633 | U76: 0.06639828234 | V76: 65193.03263
B77: 550SNPPO-W | C77: Other Operations | D77: SG-W | E77: Other OperationsSG-W | F77: 550SG-W | G77: 3785801.72 | J77: =-IF(ISERROR(VLOOKUP(F77,Labor!$A$7:$B$222,2,0)),0,VLOOKUP(F77,Labor!$A$7:$B$222,2,0)) -> 0 | T77: 251370.7315 | U77: 0.06639828234 | V77: 4037172.451
B78: 550SSGCT | C78: Other Operations | D78: SSGCT | E78: Other OperationsSSGCT | F78: 550SSGCT | G78: 0 | J78: =-IF(ISERROR(VLOOKUP(F78,Labor!$A$7:$B$222,2,0)),0,VLOOKUP(F78,Labor!$A$7:$B$222,2,0)) -> 0 | T78: 0 | U78: 0.06639828234 | V78: 0
B79: 552SNPPO | C79: Other Maintenance | D79: SG | E79: Other MaintenanceSG | F79: 552SG | G79: 2539067.65 | J79: =-IF(ISERROR(VLOOKUP(F79,Labor!$A$7:$B$222,2,0)),0,VLOOKUP(F79,Labor!$A$7:$B$222,2,0)) -> -222558.2934 | T79: 103907.4128 | U79: 0.04485516645 | V79: 2420416.769
B80: 552SSGCT | C80: Other Maintenance | D80: SSGCT | E80: Other MaintenanceSSGCT | F80: 552SSGCT | G80: 141862.53 | J80: =-IF(ISERROR(VLOOKUP(F80,Labor!$A$7:$B$222,2,0)),0,VLOOKUP(F80,Labor!$A$7:$B$222,2,0)) -> -62106.49693 | T80: 3577.470139 | U80: 0.04485516645 | V80: 83333.50321
B81: 553SNPPO | C81: Other Maintenance | D81: =MID(F81,4,12) -> SG | E81: =+C81&D81 -> Other MaintenanceSG | F81: 553SG | G81: 6888102.38 | J81: =-IF(ISERROR(VLOOKUP(F81,Labor!$A$7:$B$222,2,0)),0,VLOOKUP(F81,Labor!$A$7:$B$222,2,0)) -> -2169402.113 | O81: -223218.2157 | T81: 201645.5957 | U81: 0.04485516645 | V81: 4697127.647
B82: 553SNPPO-W | C82: Other Maintenance | D82: =MID(F82,4,12) -> SG-W | E82: =+C82&D82 -> Other MaintenanceSG-W | F82: 553SG-W | G82: 2618036.22 | J82: =-IF(ISERROR(VLOOKUP(F82,Labor!$A$7:$B$222,2,0)),0,VLOOKUP(F82,Labor!$A$7:$B$222,2,0)) -> 0 | T82: 117432.4504 | U82: 0.04485516645 | V82: =SUM(G82:T82) -> 2735468.67
B83: 553SSGCT | C83: Other Maintenance | D83: SSGCT | E83: Other MaintenanceSSGCT | F83: 553SSGCT | G83: 517184.52 | J83: =-IF(ISERROR(VLOOKUP(F83,Labor!$A$7:$B$222,2,0)),0,VLOOKUP(F83,Labor!$A$7:$B$222,2,0)) -> -141098.8513 | T83: 16869.38527 | U83: 0.04485516645 | V83: 392955.054
B84: 554SNPPO | C84: Other Maintenance | D84: SG | E84: Other MaintenanceSG | F84: 554SG | G84: 269227.78 | J84: =-IF(ISERROR(VLOOKUP(F84,Labor!$A$7:$B$222,2,0)),0,VLOOKUP(F84,Labor!$A$7:$B$222,2,0)) -> -28186.03579 | T84: 10811.96756 | U84: 0.04485516645 | V84: 251853.7118
B85: 554SNPPO-W | C85: Other Maintenance | D85: =MID(F85,4,12) -> SG-W | E85: =+C85&D85 -> Other MaintenanceSG-W | F85: 554SG-W | G85: 2314385.41 | J85: =-IF(ISERROR(VLOOKUP(F85,Labor!$A$7:$B$222,2,0)),0,VLOOKUP(F85,Labor!$A$7:$B$222,2,0)) -> 0 | T85: 103812.1428 | U85: 0.04485516645 | V85: =SUM(G85:T85) -> 2418197.553
B86: 554SSGCT | C86: Other Maintenance | D86: SSGCT | E86: Other MaintenanceSSGCT | F86: 554SSGCT | G86: 133251.47 | J86: =-IF(ISERROR(VLOOKUP(F86,Labor!$A$7:$B$222,2,0)),0,VLOOKUP(F86,Labor!$A$7:$B$222,2,0)) -> -70449.34425 | T86: 2816.999804 | U86: 0.04485516645 | V86: 65619.12555
B87: Total Other Production Expense | F87: Total Other Production Expense | G87: =SUM(G66:G86) -> 436848085.8 | H87: =SUM(H66:H86) -> 0 | I87: =SUM(I66:I86) -> 0 | J87: -10756158.12 | K87: 0 | L87: =SUM(L66:L86) -> 0 | M87: 0 | N87: 0 | O87: -223218.2157 | P87: 0 | Q87: =SUM(Q66:Q86) -> 0 | R87: 0 | S87: 0 | T87: =SUM(T66:T86) -> 2656920.858 | V87: =SUM(V66:V86) -> 428525630.3
B89: Power Supply Expense | F89: Power Supply Expense
B90: 555ID | C90: Purchased Power | D90: ID | E90: Purchased PowerID | F90: 555ID | G90: 83840.19 | J90: =-IF(ISERROR(VLOOKUP(F90,Labor!$A$7:$B$222,2,0)),0,VLOOKUP(F90,Labor!$A$7:$B$222,2,0)) -> 0 | T90: =SUM(G90:S90)*U90 -> 0 | V90: =SUM(G90:T90) -> 83840.19
B91: 555OR | C91: Purchased Power | D91: OR | E91: Purchased PowerOR | F91: 555OR | G91: -22356044.34 | J91: =-IF(ISERROR(VLOOKUP(F91,Labor!$A$7:$B$222,2,0)),0,VLOOKUP(F91,Labor!$A$7:$B$222,2,0)) -> 0 | T91: 0 | V91: -22356044.34
B92: 555SE | C92: Purchased Power | D92: SE | E92: Purchased PowerSE | F92: 555SE | G92: 0 | J92: =-IF(ISERROR(VLOOKUP(F92,Labor!$A$7:$B$222,2,0)),0,VLOOKUP(F92,Labor!$A$7:$B$222,2,0)) -> 0 | T92: 0 | V92: 0
B93: 555SG | C93: Purchased Power | D93: SG | E93: Purchased PowerSG | F93: 555SG | G93: 0 | J93: =-IF(ISERROR(VLOOKUP(F93,Labor!$A$7:$B$222,2,0)),0,VLOOKUP(F93,Labor!$A$7:$B$222,2,0)) -> 0 | T93: 0 | V93: 0
B94: 555WA | C94: Purchased Power | D94: WA | E94: Purchased PowerWA | F94: 555WA | G94: -8714605.31 | J94: =-IF(ISERROR(VLOOKUP(F94,Labor!$A$7:$B$222,2,0)),0,VLOOKUP(F94,Labor!$A$7:$B$222,2,0)) -> 0 | T94: 0 | V94: -8714605.31
B95: 555NPCSE | C95: Purchased Power | D95: NPCSE | E95: Purchased PowerNPCSE | F95: 555NPCSE | G95: 23644780.14 | J95: =-IF(ISERROR(VLOOKUP(F95,Labor!$A$7:$B$222,2,0)),0,VLOOKUP(F95,Labor!$A$7:$B$222,2,0)) -> 0 | T95: 0 | V95: 23644780.14
B96: 555NPCSG | C96: Purchased Power | D96: NPCSG | E96: Purchased PowerNPCSG | F96: 555NPCSG | G96: 402775435.9 | J96: =-IF(ISERROR(VLOOKUP(F96,Labor!$A$7:$B$222,2,0)),0,VLOOKUP(F96,Labor!$A$7:$B$222,2,0)) -> 0 | Q96: 27567522.23 | T96: 0 | V96: 430342958.1
B97: 555NPCSSGC | C97: Purchased Power | D97: NPCSSGC | E97: Purchased PowerNPCSSGC | F97: 555NPCSSGC | G97: 0 | J97: =-IF(ISERROR(VLOOKUP(F97,Labor!$A$7:$B$222,2,0)),0,VLOOKUP(F97,Labor!$A$7:$B$222,2,0)) -> 0 | T97: 0 | V97: 0
B98: 556SG | C98: Other Operations | D98: SG | E98: Other OperationsSG | F98: 556SG | G98: 1200429.92 | J98: =-IF(ISERROR(VLOOKUP(F98,Labor!$A$7:$B$222,2,0)),0,VLOOKUP(F98,Labor!$A$7:$B$222,2,0)) -> -558052.5423 | T98: 42652.75449 | U98: 0.06639828234 | V98: 685030.1322
B99: 557CA | C99: Other Operations | D99: CA | E99: Other OperationsCA | F99: 557CA | G99: 0 | T99: 0 | U99: 0.06639828234 | V99: 0
B100: 557ID | C100: Other Operations | D100: ID | E100: Other OperationsID | F100: 557ID | G100: -32973.24 | J100: =-IF(ISERROR(VLOOKUP(F100,Labor!$A$7:$B$222,2,0)),0,VLOOKUP(F100,Labor!$A$7:$B$222,2,0)) -> 0 | K100: 9028930.37 | T100: 597316.1014 | U100: 0.06639828234 | V100: 9593273.231
B101: 557OR | C101: Other Operations | D101: OR | E101: Other OperationsOR | F101: 557OR | G101: -53813.04 | J101: =-IF(ISERROR(VLOOKUP(F101,Labor!$A$7:$B$222,2,0)),0,VLOOKUP(F101,Labor!$A$7:$B$222,2,0)) -> 0 | T101: -3573.093424 | U101: 0.06639828234 | V101: -57386.13342
B102: 557SG | C102: Other Operations | D102: SG | E102: Other OperationsSG | F102: 557SG | G102: 62079483.21 | I102: -2953.849537 | J102: =-IF(ISERROR(VLOOKUP(F102,Labor!$A$7:$B$222,2,0)),0,VLOOKUP(F102,Labor!$A$7:$B$222,2,0)) -> -33407093.33 | K102: -9002888.48 | L102: -3033000 | R102: -844878 | T102: 1048340.539 | U102: 0.06639828234 | V102: 16837010.09
B103: 557SE | C103: Other Operations | D103: SE | E103: Other OperationsSE | F103: 557SE | G103: 4302803 | L103: -4302803 | T103: 0 | U103: 0.06639828234 | V103: =SUM(G103:T103) -> 0
B104: 557SGCT | C104: Other Operations | D104: SGCT | E104: Other OperationsSGCT | F104: 557SGCT | G104: 1122425.04 | J104: =-IF(ISERROR(VLOOKUP(F104,Labor!$A$7:$B$222,2,0)),0,VLOOKUP(F104,Labor!$A$7:$B$222,2,0)) -> 0 | T104: 74527.09471 | U104: 0.06639828234 | V104: 1196952.135
B105: 557SSGCT | C105: Other Operations | D105: SSGCT | E105: Other OperationsSSGCT | F105: 557SSGCT | G105: 0 | J105: =-IF(ISERROR(VLOOKUP(F105,Labor!$A$7:$B$222,2,0)),0,VLOOKUP(F105,Labor!$A$7:$B$222,2,0)) -> 0 | T105: 0 | U105: 0.06639828234 | V105: 0
B106: 557UT | C106: Other Operations | D106: UT | E106: Other OperationsUT | F106: 557UT | G106: 0 | T106: 0 | U106: 0.06639828234
B107: 557WYP | C107: Other Operations | D107: WYP | E107: Other OperationsWYP | F107: 557WYP | G107: 0 | T107: 0 | U107: 0.06639828234 | V107: 0
B108: 557WA | C108: Other Operations | D108: WA | E108: Other OperationsWA | F108: 557WA | G108: -97006.2 | J108: =-IF(ISERROR(VLOOKUP(F108,Labor!$A$7:$B$222,2,0)),0,VLOOKUP(F108,Labor!$A$7:$B$222,2,0)) -> 0 | T108: -6441.045056 | U108: 0.06639828234 | V108: -103447.2451
B109: Total Power Supply Expense | F109: Total Power Supply Expense | G109: =SUM(G90:G108) -> 463954755.3 | H109: 0 | I109: -2953.849537 | J109: -33965145.87 | K109: 26041.89 | L109: -7335803 | M109: 0 | N109: 0 | O109: 0 | P109: 0 | Q109: =SUM(Q90:Q108) -> 27567522.23 | R109: -844878 | S109: 0 | T109: =SUM(T90:T108) -> 1752822.351 | V109: =SUM(V90:V108) -> 451152361
B111: Transmission Expense | F111: Transmission Expense
B112: 560SNPT | C112: Transmission Operations | D112: SG | E112: Transmission OperationsSG | F112: 560SG | G112: 6080103.05 | J112: =-IF(ISERROR(VLOOKUP(F112,Labor!$A$7:$B$222,2,0)),0,VLOOKUP(F112,Labor!$A$7:$B$222,2,0)) -> -5257515.542 | L112: -600 | S112: -53958.89 | T112: =SUM(G112:S112)*U112 -> 40104.30782 | U112: 0.05221720505 | V112: =SUM(G112:T112) -> 808132.9257
B113: 561SNPT | C113: Transmission Operations | D113: SG | E113: Transmission OperationsSG | F113: 561SG | G113: 10809557.07 | J113: =-IF(ISERROR(VLOOKUP(F113,Labor!$A$7:$B$222,2,0)),0,VLOOKUP(F113,Labor!$A$7:$B$222,2,0)) -> -9237884.688 | T113: 82068.33904 | U113: 0.05221720505 | V113: 1653740.721
B114: 562SNPT | C114: Transmission Operations | D114: SG | E114: Transmission OperationsSG | F114: 562SG | G114: 2821129.45 | J114: =-IF(ISERROR(VLOOKUP(F114,Labor!$A$7:$B$222,2,0)),0,VLOOKUP(F114,Labor!$A$7:$B$222,2,0)) -> -1261363.034 | T114: 81446.64275 | U114: 0.05221720505 | V114: 1641213.058
B115: 563SNPT | C115: Transmission Operations | D115: SG | E115: Transmission OperationsSG | F115: 563SG | G115: 117236.44 | J115: =-IF(ISERROR(VLOOKUP(F115,Labor!$A$7:$B$222,2,0)),0,VLOOKUP(F115,Labor!$A$7:$B$222,2,0)) -> -87128.56533 | T115: 1572.149065 | U115: 0.05221720505 | V115: 31680.02374
B116: 565SE | C116: Transmission Operations | D116: SE | E116: Transmission OperationsSE | F116: 565SE | G116: 0 | J116: =-IF(ISERROR(VLOOKUP(F116,Labor!$A$7:$B$222,2,0)),0,VLOOKUP(F116,Labor!$A$7:$B$222,2,0)) -> 0 | T116: 0 | U116: 0.05221720505 | V116: 0
B117: 565SG | C117: Transmission Operations | D117: SG | E117: Transmission OperationsSG | F117: 565SG | G117: 0 | J117: =-IF(ISERROR(VLOOKUP(F117,Labor!$A$7:$B$222,2,0)),0,VLOOKUP(F117,Labor!$A$7:$B$222,2,0)) -> 0 | T117: 0 | U117: 0.05221720505 | V117: 0
B118: 565NPCSE | C118: Transmission Operations | D118: NPCSE | E118: Transmission OperationsNPCSE | F118: 565NPCSE | G118: 6292489.88 | J118: =-IF(ISERROR(VLOOKUP(F118,Labor!$A$7:$B$222,2,0)),0,VLOOKUP(F118,Labor!$A$7:$B$222,2,0)) -> 0 | T118: 0 | V118: 6292489.88
B119: 565NPCSG | C119: Transmission Operations | D119: NPCSG | E119: Transmission OperationsNPCSG | F119: 565NPCSG | G119: 131608085.8 | J119: =-IF(ISERROR(VLOOKUP(F119,Labor!$A$7:$B$222,2,0)),0,VLOOKUP(F119,Labor!$A$7:$B$222,2,0)) -> 0 | T119: 0 | V119: 131608085.8
B120: 566SNPT | C120: Transmission Operations | D120: SG | E120: Transmission OperationsSG | F120: 566SG | G120: 4256726.84 | H120: -879133.07 | J120: =-IF(ISERROR(VLOOKUP(F120,Labor!$A$7:$B$222,2,0)),0,VLOOKUP(F120,Labor!$A$7:$B$222,2,0)) -> -350055.4852 | T120: 158089.5874 | U120: 0.05221720505 | V120: 3185627.872
B121: 567SNPT | C121: Transmission Operations | D121: SG | E121: Transmission OperationsSG | F121: 567SG | G121: 1837477.56 | J121: =-IF(ISERROR(VLOOKUP(F121,Labor!$A$7:$B$222,2,0)),0,VLOOKUP(F121,Labor!$A$7:$B$222,2,0)) -> -178675.7081 | T121: 86617.99644 | U121: 0.05221720505 | V121: 1745419.848
B122: 568SNPT | C122: Transmission Maintenance | D122: SG | E122: Transmission MaintenanceSG | F122: 568SG | G122: 2286817.16 | J122: =-IF(ISERROR(VLOOKUP(F122,Labor!$A$7:$B$222,2,0)),0,VLOOKUP(F122,Labor!$A$7:$B$222,2,0)) -> -1924960.852 | T122: 19478.25301 | U122: 0.05382869548 | V122: =SUM(G122:T122) -> 381334.5611
B123: 569SNPT | C123: Transmission Maintenance | D123: SG | E123: Transmission MaintenanceSG | F123: 569SG | G123: 4806787.97 | J123: =-IF(ISERROR(VLOOKUP(F123,Labor!$A$7:$B$222,2,0)),0,VLOOKUP(F123,Labor!$A$7:$B$222,2,0)) -> -2606785.935 | T123: 118423.2396 | U123: 0.05382869548 | V123: 2318425.274
B124: 570SNPT | C124: Transmission Maintenance | D124: SG | E124: Transmission MaintenanceSG | F124: 570SG | G124: 11187554.81 | J124: =-IF(ISERROR(VLOOKUP(F124,Labor!$A$7:$B$222,2,0)),0,VLOOKUP(F124,Labor!$A$7:$B$222,2,0)) -> -7714681.872 | T124: 186940.2198 | U124: 0.05382869548 | V124: 3659813.158
B125: 571SNPT | C125: Transmission Maintenance | D125: SG | E125: Transmission MaintenanceSG | F125: 571SG | G125: 20881691.76 | J125: =-IF(ISERROR(VLOOKUP(F125,Labor!$A$7:$B$222,2,0)),0,VLOOKUP(F125,Labor!$A$7:$B$222,2,0)) -> 2097660.713 | T125: 1236948.567 | U125: 0.05382869548 | V125: 24216301.04
B126: 572SNPT | C126: Transmission Maintenance | D126: SG | E126: Transmission MaintenanceSG | F126: 572SG | G126: 140682.62 | J126: =-IF(ISERROR(VLOOKUP(F126,Labor!$A$7:$B$222,2,0)),0,VLOOKUP(F126,Labor!$A$7:$B$222,2,0)) -> -75551.55702 | T126: 3505.920155 | U126: 0.05382869548 | V126: 68636.98313
B127: 573SNPT | C127: Transmission Maintenance | D127: SG | E127: Transmission MaintenanceSG | F127: 573SG | G127: 269056.34 | J127: =-IF(ISERROR(VLOOKUP(F127,Labor!$A$7:$B$222,2,0)),0,VLOOKUP(F127,Labor!$A$7:$B$222,2,0)) -> -3093.59747 | T127: 14316.42748 | U127: 0.05382869548 | V127: 280279.17
B128: Total Transmission Expense | F128: Total Transmission Expense | G128: =SUM(G112:G127) -> 203395396.8 | H128: =SUM(H112:H127) -> -879133.07 | I128: =SUM(I112:I127) -> 0 | J128: -26600036.12 | K128: =SUM(K112:K127) -> 0 | L128: -600 | M128: 0 | N128: 0 | O128: 0 | P128: 0 | Q128: =SUM(Q112:Q127) -> 0 | R128: 0 | S128: -53958.89 | T128: =SUM(T112:T127) -> 2029511.649 | V128: =SUM(V112:V127) -> 177891180.3
B130: Distribution Expense | F130: Distribution Expense
B131: 580CA | C131: Distribution Operations | D131: CA | E131: Distribution OperationsCA | F131: 580CA | G131: 30479.16 | J131: =-IF(ISERROR(VLOOKUP(F131,Labor!$A$7:$B$222,2,0)),0,VLOOKUP(F131,Labor!$A$7:$B$222,2,0)) -> 275.3792123 | T131: =SUM(G131:S131)*U131 -> 1549.183948 | U131: 0.05037252996 | V131: =SUM(G131:T131) -> 32303.72316
B132: 580ID | C132: Distribution Operations | D132: ID | E132: Distribution OperationsID | F132: 580ID | G132: -32903.9 | J132: =-IF(ISERROR(VLOOKUP(F132,Labor!$A$7:$B$222,2,0)),0,VLOOKUP(F132,Labor!$A$7:$B$222,2,0)) -> 0 | T132: -1657.452689 | U132: 0.05037252996 | V132: -34561.35269
B133: 580OR | C133: Distribution Operations | D133: OR | E133: Distribution OperationsOR | F133: 580OR | G133: 0 | J133: =-IF(ISERROR(VLOOKUP(F133,Labor!$A$7:$B$222,2,0)),0,VLOOKUP(F133,Labor!$A$7:$B$222,2,0)) -> -827.0345105 | T133: -41.65982066 | U133: 0.05037252996 | V133: -868.6943311
B134: 580SNPD | C134: Distribution Operations | D134: SNPD | E134: Distribution OperationsSNPD | F134: 580SNPD | G134: 13876911.7 | I134: -357.1796429 | J134: =-IF(ISERROR(VLOOKUP(F134,Labor!$A$7:$B$222,2,0)),0,VLOOKUP(F134,Labor!$A$7:$B$222,2,0)) -> -13614704.34 | L134: 600 | T134: 13220.27962 | U134: 0.05037252996 | V134: 275670.4609
B135: 580UT | C135: Distribution Operations | D135: UT | E135: Distribution OperationsUT | F135: 580UT | G135: 45314.45 | J135: =-IF(ISERROR(VLOOKUP(F135,Labor!$A$7:$B$222,2,0)),0,VLOOKUP(F135,Labor!$A$7:$B$222,2,0)) -> 0 | T135: 2282.60349 | U135: 0.05037252996 | V135: 47597.05349
B136: 580WA | C136: Distribution Operations | D136: WA | E136: Distribution OperationsWA | F136: 580WA | G136: 13985.97 | J136: =-IF(ISERROR(VLOOKUP(F136,Labor!$A$7:$B$222,2,0)),0,VLOOKUP(F136,Labor!$A$7:$B$222,2,0)) -> 4275.436745 | T136: 919.8732584 | U136: 0.05037252996 | V136: 19181.28
B137: 580WYP | C137: Distribution Operations | D137: WYP | E137: Distribution OperationsWYP | F137: 580WYP | G137: -14871.23 | J137: =-IF(ISERROR(VLOOKUP(F137,Labor!$A$7:$B$222,2,0)),0,VLOOKUP(F137,Labor!$A$7:$B$222,2,0)) -> 0 | T137: -749.1014788 | U137: 0.05037252996 | V137: -15620.33148
B138: 580WYU | C138: Distribution Operations | D138: WYU | E138: =+C137&D137 -> Distribution OperationsWYP | F138: 580WYU | G138: 0 | T138: 0 | U138: 0.05037252996 | V138: =SUM(G138:T138) -> 0
B139: 581OR | C139: Distribution Operations | D139: =MID(F139,4,12) -> OR | E139: =+C139&D139 -> Distribution OperationsOR | F139: 581OR | G139: 0 | J139: =-IF(ISERROR(VLOOKUP(F139,Labor!$A$7:$B$222,2,0)),0,VLOOKUP(F139,Labor!$A$7:$B$222,2,0)) -> 1.801546248 | T139: 0.09074844238 | U139: 0.05037252996 | V139: =SUM(G139:T139) -> 1.892294691
B140: 581SNPD | C140: Distribution Operations | D140: SNPD | E140: Distribution OperationsSNPD | F140: 581SNPD | G140: 13794409.9 | J140: =-IF(ISERROR(VLOOKUP(F140,Labor!$A$7:$B$222,2,0)),0,VLOOKUP(F140,Labor!$A$7:$B$222,2,0)) -> -13325693.75 | T140: 23610.41816 | U140: 0.05037252996 | V140: 492326.5651
B141: 582CA | C141: Distribution Operations | D141: CA | E141: Distribution OperationsCA | F141: 582CA | G141: 118135.93 | J141: =-IF(ISERROR(VLOOKUP(F141,Labor!$A$7:$B$222,2,0)),0,VLOOKUP(F141,Labor!$A$7:$B$222,2,0)) -> -74306.38543 | T141: 2207.805047 | U141: 0.05037252996 | V141: 46037.34962
B142: 582ID | C142: Distribution Operations | D142: ID | E142: Distribution OperationsID | F142: 582ID | G142: 265728.05 | J142: =-IF(ISERROR(VLOOKUP(F142,Labor!$A$7:$B$222,2,0)),0,VLOOKUP(F142,Labor!$A$7:$B$222,2,0)) -> -112541.4841 | T142: 7716.394882 | U142: 0.05037252996 | V142: 160902.9608
B143: 582OR | C143: Distribution Operations | D143: OR | E143: Distribution OperationsOR | F143: 582OR | G143: 1101897.17 | J143: =-IF(ISERROR(VLOOKUP(F143,Labor!$A$7:$B$222,2,0)),0,VLOOKUP(F143,Labor!$A$7:$B$222,2,0)) -> -685628.9232 | T143: 20968.48473 | U143: 0.05037252996 | V143: 437236.7315
B144: 582SNPD | C144: Distribution Operations | D144: SNPD | E144: Distribution OperationsSNPD | F144: 582SNPD | G144: 33604.92 | J144: =-IF(ISERROR(VLOOKUP(F144,Labor!$A$7:$B$222,2,0)),0,VLOOKUP(F144,Labor!$A$7:$B$222,2,0)) -> -26885.30375 | T144: 338.4840709 | U144: 0.05037252996 | V144: 7058.100322
B145: 582UT | C145: Distribution Operations | D145: UT | E145: Distribution OperationsUT | F145: 582UT | G145: 1637670.87 | J145: =-IF(ISERROR(VLOOKUP(F145,Labor!$A$7:$B$222,2,0)),0,VLOOKUP(F145,Labor!$A$7:$B$222,2,0)) -> -762439.9775 | T145: 44087.59436 | U145: 0.05037252996 | V145: 919318.4869
B146: 582WA | C146: Distribution Operations | D146: WA | E146: Distribution OperationsWA | F146: 582WA | G146: 295235.55 | J146: =-IF(ISERROR(VLOOKUP(F146,Labor!$A$7:$B$222,2,0)),0,VLOOKUP(F146,Labor!$A$7:$B$222,2,0)) -> -166503.6399 | T146: 6484.552001 | U146: 0.05037252996 | V146: 135216.4621
B147: 582WYP | C147: Distribution Operations | D147: WYP | E147: Distribution OperationsWYP | F147: 582WYP | G147: 621031.32 | J147: =-IF(ISERROR(VLOOKUP(F147,Labor!$A$7:$B$222,2,0)),0,VLOOKUP(F147,Labor!$A$7:$B$222,2,0)) -> -398651.3416 | T147: 11201.84212 | U147: 0.05037252996 | V147: 233581.8205
B148: 583CA | C148: Distribution Operations | D148: CA | E148: Distribution OperationsCA | F148: 583CA | G148: 360382.23 | J148: =-IF(ISERROR(VLOOKUP(F148,Labor!$A$7:$B$222,2,0)),0,VLOOKUP(F148,Labor!$A$7:$B$222,2,0)) -> -322791.028 | T148: 1893.563948 | U148: 0.05037252996 | V148: 39484.76592
B149: 583ID | C149: Distribution Operations | D149: ID | E149: Distribution OperationsID | F149: 583ID | G149: 209693.76 | J149: =-IF(ISERROR(VLOOKUP(F149,Labor!$A$7:$B$222,2,0)),0,VLOOKUP(F149,Labor!$A$7:$B$222,2,0)) -> -179362.0638 | T149: 1527.884277 | U149: 0.05037252996 | V149: 31859.58051
B150: 583OR | C150: Distribution Operations | D150: OR | E150: Distribution OperationsOR | F150: 583OR | G150: 2969037.84 | J150: =-IF(ISERROR(VLOOKUP(F150,Labor!$A$7:$B$222,2,0)),0,VLOOKUP(F150,Labor!$A$7:$B$222,2,0)) -> -2553634.397 | T150: 20924.92238 | U150: 0.05037252996 | V150: 436328.3654
B151: 583SNPD | C151: Distribution Operations | D151: SNPD | E151: Distribution OperationsSNPD | F151: 583SNPD | G151: 30144.76 | J151: =-IF(ISERROR(VLOOKUP(F151,Labor!$A$7:$B$222,2,0)),0,VLOOKUP(F151,Labor!$A$7:$B$222,2,0)) -> -23019.13228 | T151: 358.9358956 | U151: 0.05037252996 | V151: 7484.563611
B152: 583UT | C152: Distribution Operations | D152: UT | E152: Distribution OperationsUT | F152: 583UT | G152: 1627686.65 | J152: =-IF(ISERROR(VLOOKUP(F152,Labor!$A$7:$B$222,2,0)),0,VLOOKUP(F152,Labor!$A$7:$B$222,2,0)) -> -1333477.622 | T152: 14820.05309 | U152: 0.05037252996 | V152: 309029.0814
B153: 583WA | C153: Distribution Operations | D153: =MID(F153,4,12) -> WA | E153: =+C153&D153 -> Distribution OperationsWA | F153: 583WA | G153: 342833.05 | J153: =-IF(ISERROR(VLOOKUP(F153,Labor!$A$7:$B$222,2,0)),0,VLOOKUP(F153,Labor!$A$7:$B$222,2,0)) -> -295369.599 | T153: 2390.854107 | U153: 0.05037252996 | V153: 49854.3051
B154: 583WYP | C154: Distribution Operations | D154: WYP | E154: Distribution OperationsWYP | F154: 583WYP | G154: 294073.03 | J154: =-IF(ISERROR(VLOOKUP(F154,Labor!$A$7:$B$222,2,0)),0,VLOOKUP(F154,Labor!$A$7:$B$222,2,0)) -> -213188.5156 | T154: 4074.357626 | U154: 0.05037252996 | V154: 84958.87204
B155: 583WYU | C155: Distribution Operations | D155: WYU | E155: Distribution OperationsWYU | F155: 583WYU | G155: 178420.3 | J155: =-IF(ISERROR(VLOOKUP(F155,Labor!$A$7:$B$222,2,0)),0,VLOOKUP(F155,Labor!$A$7:$B$222,2,0)) -> -151952.9166 | T155: 1333.229061 | U155: 0.05037252996 | V155: 27800.61241
B156: 584CA | C156: Distribution Operations | D156: CA | E156: Distribution OperationsCA | F156: 584CA | G156: 0 | J156: =-IF(ISERROR(VLOOKUP(F156,Labor!$A$7:$B$222,2,0)),0,VLOOKUP(F156,Labor!$A$7:$B$222,2,0)) -> 0 | T156: 0 | U156: 0.05037252996 | V156: 0
B157: 584ID | C157: Distribution Operations | D157: ID | E157: Distribution OperationsID | F157: 584ID | G157: 11.46 | J157: =-IF(ISERROR(VLOOKUP(F157,Labor!$A$7:$B$222,2,0)),0,VLOOKUP(F157,Labor!$A$7:$B$222,2,0)) -> 0 | T157: 0.5772691934 | U157: 0.05037252996 | V157: 12.03726919
B158: 584OR | C158: Distribution Operations | D158: OR | E158: Distribution OperationsOR | F158: 584OR | G158: 0 | J158: =-IF(ISERROR(VLOOKUP(F158,Labor!$A$7:$B$222,2,0)),0,VLOOKUP(F158,Labor!$A$7:$B$222,2,0)) -> 0 | T158: 0 | U158: 0.05037252996 | V158: 0
B159: 584SNPD | C159: Distribution Operations | D159: SNPD | E159: Distribution OperationsSNPD | F159: 584SNPD | G159: 0 | J159: =-IF(ISERROR(VLOOKUP(F159,Labor!$A$7:$B$222,2,0)),0,VLOOKUP(F159,Labor!$A$7:$B$222,2,0)) -> 0 | T159: 0 | U159: 0.05037252996 | V159: 0
B160: 584UT | C160: Distribution Operations | D160: UT | E160: Distribution OperationsUT | F160: 584UT | G160: 266.29 | J160: =-IF(ISERROR(VLOOKUP(F160,Labor!$A$7:$B$222,2,0)),0,VLOOKUP(F160,Labor!$A$7:$B$222,2,0)) -> 0 | T160: 13.413701 | U160: 0.05037252996 | V160: 279.703701
B161: 584WA | C161: Distribution Operations | D161: WA | E161: Distribution OperationsWA | F161: 584WA | G161: 0 | J161: =-IF(ISERROR(VLOOKUP(F161,Labor!$A$7:$B$222,2,0)),0,VLOOKUP(F161,Labor!$A$7:$B$222,2,0)) -> 0 | T161: 0 | U161: 0.05037252996 | V161: 0
B162: 584WYP | C162: Distribution Operations | D162: WYP | E162: Distribution OperationsWYP | F162: 584WYP | G162: 0 | J162: =-IF(ISERROR(VLOOKUP(F162,Labor!$A$7:$B$222,2,0)),0,VLOOKUP(F162,Labor!$A$7:$B$222,2,0)) -> 0 | T162: 0 | U162: 0.05037252996 | V162: 0
B163: 584WYU | C163: Distribution Operations | D163: WYU | E163: Distribution OperationsWYU | F163: 584WYU | G163: 0 | J163: =-IF(ISERROR(VLOOKUP(F163,Labor!$A$7:$B$222,2,0)),0,VLOOKUP(F163,Labor!$A$7:$B$222,2,0)) -> 0 | T163: =SUM(G163:S163)*U163 -> 0 | U163: 0.05037252996 | V163: 0
B164: 585SNPD | C164: Distribution Operations | D164: SNPD | E164: Distribution OperationsSNPD | F164: 585SNPD | G164: 221437.93 | J164: =-IF(ISERROR(VLOOKUP(F164,Labor!$A$7:$B$222,2,0)),0,VLOOKUP(F164,Labor!$A$7:$B$222,2,0)) -> -223278.3811 | T164: -92.70818048 | U164: 0.05037252996 | V164: -1933.159326
B165: 586CA | C165: Distribution Operations | D165: CA | E165: Distribution OperationsCA | F165: 586CA | G165: 222911.35 | J165: =-IF(ISERROR(VLOOKUP(F165,Labor!$A$7:$B$222,2,0)),0,VLOOKUP(F165,Labor!$A$7:$B$222,2,0)) -> -187695.7955 | T165: 1773.896573 | U165: 0.05037252996 | V165: 36989.45105
B166: 586ID | C166: Distribution Operations | D166: ID | E166: Distribution OperationsID | F166: 586ID | G166: 311691.23 | J166: =-IF(ISERROR(VLOOKUP(F166,Labor!$A$7:$B$222,2,0)),0,VLOOKUP(F166,Labor!$A$7:$B$222,2,0)) -> -262871.2623 | T166: 2459.185286 | U166: 0.05037252996 | V166: 51279.15298
B167: 586OR | C167: Distribution Operations | D167: OR | E167: Distribution OperationsOR | F167: 586OR | G167: 2841469.5 | J167: =-IF(ISERROR(VLOOKUP(F167,Labor!$A$7:$B$222,2,0)),0,VLOOKUP(F167,Labor!$A$7:$B$222,2,0)) -> -2380920.511 | T167: 23199.01775 | U167: 0.05037252996 | V167: 483748.0068
B168: 586SNPD | C168: Distribution Operations | D168: SNPD | E168: Distribution OperationsSNPD | F168: 586SNPD | G168: 1338371.82 | J168: =-IF(ISERROR(VLOOKUP(F168,Labor!$A$7:$B$222,2,0)),0,VLOOKUP(F168,Labor!$A$7:$B$222,2,0)) -> -1081581.549 | T168: 12935.17561 | U168: 0.05037252996 | V168: 269725.4463
B169: 586UT | C169: Distribution Operations | D169: UT | E169: Distribution OperationsUT | F169: 586UT | G169: 1391579.68 | J169: =-IF(ISERROR(VLOOKUP(F169,Labor!$A$7:$B$222,2,0)),0,VLOOKUP(F169,Labor!$A$7:$B$222,2,0)) -> -1168280.913 | T169: 11248.12384 | U169: 0.05037252996 | V169: 234546.8911
B170: 586WA | C170: Distribution Operations | D170: WA | E170: Distribution OperationsWA | F170: 586WA | G170: 431476.24 | J170: =-IF(ISERROR(VLOOKUP(F170,Labor!$A$7:$B$222,2,0)),0,VLOOKUP(F170,Labor!$A$7:$B$222,2,0)) -> -355521.8932 | T170: 3826.012611 | U170: 0.05037252996 | V170: 79780.35942
B171: 586WYP | C171: Distribution Operations | D171: WYP | E171: Distribution OperationsWYP | F171: 586WYP | G171: 492158.48 | J171: =-IF(ISERROR(VLOOKUP(F171,Labor!$A$7:$B$222,2,0)),0,VLOOKUP(F171,Labor!$A$7:$B$222,2,0)) -> -413488.0273 | T171: 3962.829737 | U171: 0.05037252996 | V171: 82633.28245
B172: 586WYU | C172: Distribution Operations | D172: WYU | E172: Distribution OperationsWYU | F172: 586WYU | G172: 55998.68 | J172: =-IF(ISERROR(VLOOKUP(F172,Labor!$A$7:$B$222,2,0)),0,VLOOKUP(F172,Labor!$A$7:$B$222,2,0)) -> -47763.66985 | T172: 414.8182957 | U172: 0.05037252996 | V172: 8649.828449
B173: 587CA | C173: Distribution Operations | D173: CA | E173: Distribution OperationsCA | F173: 587CA | G173: 596802.21 | J173: =-IF(ISERROR(VLOOKUP(F173,Labor!$A$7:$B$222,2,0)),0,VLOOKUP(F173,Labor!$A$7:$B$222,2,0)) -> -508016.8104 | T173: 4472.3452 | U173: 0.05037252996 | V173: 93257.74476
B174: 587ID | C174: Distribution Operations | D174: ID | E174: Distribution OperationsID | F174: 587ID | G174: 377949.83 | J174: =-IF(ISERROR(VLOOKUP(F174,Labor!$A$7:$B$222,2,0)),0,VLOOKUP(F174,Labor!$A$7:$B$222,2,0)) -> -319313.267 | T174: 2953.672025 | U174: 0.05037252996 | V174: 61590.23499
B175: 587OR | C175: Distribution Operations | D175: OR | E175: Distribution OperationsOR | F175: 587OR | G175: 4336385.06 | J175: =-IF(ISERROR(VLOOKUP(F175,Labor!$A$7:$B$222,2,0)),0,VLOOKUP(F175,Labor!$A$7:$B$222,2,0)) -> -3688001.027 | T175: 32660.74414 | U175: 0.05037252996 | V175: 681044.7774
B176: 587SNPD | C176: Distribution Operations | D176: =MID(F176,4,12) -> SNPD | E176: =+C176&D176 -> Distribution OperationsSNPD | F176: 587SNPD | G176: 0 | J176: =-IF(ISERROR(VLOOKUP(F176,Labor!$A$7:$B$222,2,0)),0,VLOOKUP(F176,Labor!$A$7:$B$222,2,0)) -> 0 | T176: 0 | U176: 0.05037252996 | V176: 0
B177: 587UT | C177: Distribution Operations | D177: UT | E177: Distribution OperationsUT | F177: 587UT | G177: 5412382.56 | J177: =-IF(ISERROR(VLOOKUP(F177,Labor!$A$7:$B$222,2,0)),0,VLOOKUP(F177,Labor!$A$7:$B$222,2,0)) -> -4497278.348 | T177: 46096.11436 | U177: 0.05037252996 | V177: 961200.3268
B178: 587WA | C178: Distribution Operations | D178: WA | E178: Distribution OperationsWA | F178: 587WA | G178: 1023381.21 | J178: =-IF(ISERROR(VLOOKUP(F178,Labor!$A$7:$B$222,2,0)),0,VLOOKUP(F178,Labor!$A$7:$B$222,2,0)) -> -866346.0319 | T178: 7910.259216 | U178: 0.05037252996 | V178: 164945.4374
B179: 587WYP | C179: Distribution Operations | D179: WYP | E179: Distribution OperationsWYP | F179: 587WYP | G179: 898818.32 | J179: =-IF(ISERROR(VLOOKUP(F179,Labor!$A$7:$B$222,2,0)),0,VLOOKUP(F179,Labor!$A$7:$B$222,2,0)) -> -744543.2626 | T179: 7771.224951 | U179: 0.05037252996 | V179: 162046.2823
B180: 587WYU | C180: Distribution Operations | D180: WYU | E180: Distribution OperationsWYU | F180: 587WYU | G180: 61239.64 | J180: =-IF(ISERROR(VLOOKUP(F180,Labor!$A$7:$B$222,2,0)),0,VLOOKUP(F180,Labor!$A$7:$B$222,2,0)) -> -51644.1827 | T180: 483.3474606 | U180: 0.05037252996 | V180: 10078.80477
B181: 588CA | C181: Distribution Operations | D181: CA | E181: Distribution OperationsCA | F181: 588CA | G181: 40018 | J181: =-IF(ISERROR(VLOOKUP(F181,Labor!$A$7:$B$222,2,0)),0,VLOOKUP(F181,Labor!$A$7:$B$222,2,0)) -> -7765.926126 | T181: 1624.618558 | U181: 0.05037252996 | V181: 33876.69243
B182: 588ID | C182: Distribution Operations | D182: ID | E182: Distribution OperationsID | F182: 588ID | G182: -15920.16 | J182: =-IF(ISERROR(VLOOKUP(F182,Labor!$A$7:$B$222,2,0)),0,VLOOKUP(F182,Labor!$A$7:$B$222,2,0)) -> -8291.06586 | T182: -1219.5807 | U182: 0.05037252996 | V182: -25430.80656
B183: 588OR | C183: Distribution Operations | D183: OR | E183: Distribution OperationsOR | F183: 588OR | G183: 271373.17 | J183: =-IF(ISERROR(VLOOKUP(F183,Labor!$A$7:$B$222,2,0)),0,VLOOKUP(F183,Labor!$A$7:$B$222,2,0)) -> -84795.33436 | T183: 9398.397617 | U183: 0.05037252996 | V183: 195976.2333
B184: 588SNPD | C184: Distribution Operations | D184: SNPD | E184: Distribution OperationsSNPD | F184: 588SNPD | G184: 4035066.82 | J184: =-IF(ISERROR(VLOOKUP(F184,Labor!$A$7:$B$222,2,0)),0,VLOOKUP(F184,Labor!$A$7:$B$222,2,0)) -> -1594710.119 | T184: 122926.941 | U184: 0.05037252996 | V184: 2563283.642
B185: 588UT | C185: Distribution Operations | D185: UT | E185: Distribution OperationsUT | F185: 588UT | G185: 840393.09 | J185: =-IF(ISERROR(VLOOKUP(F185,Labor!$A$7:$B$222,2,0)),0,VLOOKUP(F185,Labor!$A$7:$B$222,2,0)) -> -518358.9927 | T185: 16221.67222 | U185: 0.05037252996 | V185: 338255.7696
B186: 588WA | C186: Distribution Operations | D186: WA | E186: Distribution OperationsWA | F186: 588WA | G186: 51796.9 | J186: =-IF(ISERROR(VLOOKUP(F186,Labor!$A$7:$B$222,2,0)),0,VLOOKUP(F186,Labor!$A$7:$B$222,2,0)) -> -6398.703024 | T186: 2286.822037 | U186: 0.05037252996 | V186: 47685.01901
B187: 588WYP | C187: Distribution Operations | D187: WYP | E187: Distribution OperationsWYP | F187: 588WYP | G187: 20975.95 | J187: =-IF(ISERROR(VLOOKUP(F187,Labor!$A$7:$B$222,2,0)),0,VLOOKUP(F187,Labor!$A$7:$B$222,2,0)) -> -53696.5137 | T187: -1648.217576 | U187: 0.05037252996 | V187: -34368.78128
B188: 588WYU | C188: Distribution Operations | D188: WYU | E188: Distribution OperationsWYU | F188: 588WYU | G188: -45266.36 | J188: =-IF(ISERROR(VLOOKUP(F188,Labor!$A$7:$B$222,2,0)),0,VLOOKUP(F188,Labor!$A$7:$B$222,2,0)) -> 40933.18268 | T188: -218.2731044 | U188: 0.05037252996 | V188: -4551.450425
B189: 589CA | C189: Distribution Operations | D189: CA | E189: Distribution OperationsCA | F189: 589CA | G189: 82403.87 | J189: =-IF(ISERROR(VLOOKUP(F189,Labor!$A$7:$B$222,2,0)),0,VLOOKUP(F189,Labor!$A$7:$B$222,2,0)) -> -13148.01319 | T189: 3488.592723 | U189: 0.05037252996 | V189: 72744.44954
B190: 589ID | C190: Distribution Operations | D190: ID | E190: Distribution OperationsID | F190: 589ID | G190: 15437.34 | J190: =-IF(ISERROR(VLOOKUP(F190,Labor!$A$7:$B$222,2,0)),0,VLOOKUP(F190,Labor!$A$7:$B$222,2,0)) -> 0 | T190: 777.6178717 | U190: 0.05037252996 | V190: 16214.95787
B191: 589OR | C191: Distribution Operations | D191: OR | E191: Distribution OperationsOR | F191: 589OR | G191: 1725843.86 | J191: =-IF(ISERROR(VLOOKUP(F191,Labor!$A$7:$B$222,2,0)),0,VLOOKUP(F191,Labor!$A$7:$B$222,2,0)) -> -61081.33238 | T191: 83858.30031 | U191: 0.05037252996 | V191: 1748620.828
B192: 589SNPD | C192: Distribution Operations | D192: SNPD | E192: Distribution OperationsSNPD | F192: 589SNPD | G192: 64337.38 | J192: =-IF(ISERROR(VLOOKUP(F192,Labor!$A$7:$B$222,2,0)),0,VLOOKUP(F192,Labor!$A$7:$B$222,2,0)) -> 0 | T192: 3240.836602 | U192: 0.05037252996 | V192: 67578.2166
B193: 589UT | C193: Distribution Operations | D193: UT | E193: Distribution OperationsUT | F193: 589UT | G193: 588162.69 | J193: =-IF(ISERROR(VLOOKUP(F193,Labor!$A$7:$B$222,2,0)),0,VLOOKUP(F193,Labor!$A$7:$B$222,2,0)) -> -32273.85414 | T193: 28001.52704 | U193: 0.05037252996 | V193: 583890.3629
B194: 589WA | C194: Distribution Operations | D194: WA | E194: Distribution OperationsWA | F194: 589WA | G194: 123051.74 | J194: =-IF(ISERROR(VLOOKUP(F194,Labor!$A$7:$B$222,2,0)),0,VLOOKUP(F194,Labor!$A$7:$B$222,2,0)) -> -10306.23316 | T194: 5679.276422 | U194: 0.05037252996 | V194: 118424.7833
B195: 589WYP | C195: Distribution Operations | D195: WYP | E195: Distribution OperationsWYP | F195: 589WYP | G195: 520954.07 | J195: =-IF(ISERROR(VLOOKUP(F195,Labor!$A$7:$B$222,2,0)),0,VLOOKUP(F195,Labor!$A$7:$B$222,2,0)) -> -10090.50375 | T195: =SUM(G195:S195)*U195 -> 25733.4903 | U195: 0.05037252996 | V195: 536597.0565
B196: 589WYU | C196: Distribution Operations | D196: WYU | E196: Distribution OperationsWYU | F196: 589WYU | G196: 50010.29 | J196: =-IF(ISERROR(VLOOKUP(F196,Labor!$A$7:$B$222,2,0)),0,VLOOKUP(F196,Labor!$A$7:$B$222,2,0)) -> 128.9405783 | T196: 2525.639895 | U196: 0.05037252996 | V196: 52664.87047
B197: 590CA | C197: Distribution Maintenance | D197: CA | E197: Distribution MaintenanceCA | F197: 590CA | G197: 20807.99 | J197: =-IF(ISERROR(VLOOKUP(F197,Labor!$A$7:$B$222,2,0)),0,VLOOKUP(F197,Labor!$A$7:$B$222,2,0)) -> -16793.44557 | T197: 255.4036117 | U197: 0.06361957525 | V197: 4269.948045
B198: 590ID | C198: Distribution Maintenance | D198: ID | E198: Distribution MaintenanceID | F198: 590ID | G198: 45504.72 | J198: =-IF(ISERROR(VLOOKUP(F198,Labor!$A$7:$B$222,2,0)),0,VLOOKUP(F198,Labor!$A$7:$B$222,2,0)) -> -36638.86596 | T198: 564.0418685 | U198: 0.06361957525 | V198: =SUM(G198:T198) -> 9429.895912
B199: 590OR | C199: Distribution Maintenance | D199: OR | E199: Distribution MaintenanceOR | F199: 590OR | G199: 318747.22 | J199: =-IF(ISERROR(VLOOKUP(F199,Labor!$A$7:$B$222,2,0)),0,VLOOKUP(F199,Labor!$A$7:$B$222,2,0)) -> -250899.2337 | T199: 4316.460067 | U199: 0.06361957525 | V199: 72164.44632
B200: 590SNPD | C200: Distribution Maintenance | D200: SNPD | E200: Distribution MaintenanceSNPD | F200: 590SNPD | G200: 3963420.27 | J200: =-IF(ISERROR(VLOOKUP(F200,Labor!$A$7:$B$222,2,0)),0,VLOOKUP(F200,Labor!$A$7:$B$222,2,0)) -> -3913386.126 | T200: 3183.150972 | U200: 0.06361957525 | V200: 53217.2947
B201: 590UT | C201: Distribution Maintenance | D201: UT | E201: Distribution MaintenanceUT | F201: 590UT | G201: 323181.87 | J201: =-IF(ISERROR(VLOOKUP(F201,Labor!$A$7:$B$222,2,0)),0,VLOOKUP(F201,Labor!$A$7:$B$222,2,0)) -> -273291.7486 | T201: 3173.988336 | U201: 0.06361957525 | V201: 53064.10978
B202: 590WA | C202: Distribution Maintenance | D202: WA | E202: Distribution MaintenanceWA | F202: 590WA | G202: 13853.44 | J202: =-IF(ISERROR(VLOOKUP(F202,Labor!$A$7:$B$222,2,0)),0,VLOOKUP(F202,Labor!$A$7:$B$222,2,0)) -> -9199.705454 | T202: 296.0686152 | U202: 0.06361957525 | V202: 4949.803162
B203: 590WYP | C203: Distribution Maintenance | D203: WYP | E203: Distribution MaintenanceWYP | F203: 590WYP | G203: 100366.15 | J203: =-IF(ISERROR(VLOOKUP(F203,Labor!$A$7:$B$222,2,0)),0,VLOOKUP(F203,Labor!$A$7:$B$222,2,0)) -> -81013.62373 | T203: 1231.199501 | U203: 0.06361957525 | V203: 20583.72577
B204: 591CA | C204: Distribution Maintenance | D204: CA | E204: Distribution MaintenanceCA | F204: 591CA | G204: 25456.88 | J204: =-IF(ISERROR(VLOOKUP(F204,Labor!$A$7:$B$222,2,0)),0,VLOOKUP(F204,Labor!$A$7:$B$222,2,0)) -> 0 | T204: 1619.555893 | U204: 0.06361957525 | V204: 27076.43589
B205: 591ID | C205: Distribution Maintenance | D205: ID | E205: Distribution MaintenanceID | F205: 591ID | G205: 128761.48 | J205: =-IF(ISERROR(VLOOKUP(F205,Labor!$A$7:$B$222,2,0)),0,VLOOKUP(F205,Labor!$A$7:$B$222,2,0)) -> 0 | T205: 8191.750667 | U205: 0.06361957525 | V205: 136953.2307
... 203 more rows

Sheet Labor
A1: Rocky Mountain Power
A2: Utah General Rate Case - May 2013
A3: Wage and Employee Benefit Adjustment
A4: Adjustment by FERC Account and Revised Protocol Factor
A7: Indicator | B7: Actual 12 Months Ended June 2011
A8: 500SG | B8: 15136007.48
A9: 501SE | B9: -12711.5081
A10: 502SG | B10: 16840474.2
A11: 503SE | B11: 70523.41571
A12: 505SG | B12: 1783112.588
A13: 506SG | B13: 44406936.39
A14: 506SSGCH | B14: -2156.076512
A15: 510SG | B15: 2789979.123
A16: 511SG | B16: 6583208.908
A17: 511SSGCH | B17: -247.3889548
A18: 512SG | B18: 25850505.77
A19: 512SSGCH | B19: -146287.3647
A20: 513SG | B20: 10656550.79
A21: 514SG | B21: 2567842.817
A22: 514SSGCH | B22: -2879.557208
A23: 535SG-P | B23: 2331651.092
A24: 535SG-U | B24: 1456817.59
A25: 536SG-P | B25: 79258.11033
A26: 537SG-P | B26: 403193.0571
A27: 537SG-U | B27: 52702.21556
A28: 539SG-P | B28: 6190567.411
A29: 539SG-U | B29: 4723081.956
A30: 540SG-P | B30: -161317.9458
A31: 541SG-P | B31: 1311.194421
A32: 542SG-P | B32: 452155.9303
A33: 542SG-U | B33: 79742.95868
A34: 543SG-P | B34: 367736.7467
A35: 543SG-U | B35: 467801.4589
A36: 544SG-P | B36: 812686.8952
A37: 544SG-U | B37: 269689.6085
A38: 545SG-P | B38: 786296.1482
A39: 545SG-U | B39: 266722.1802
A40: 546SG | B40: 1247.655688
A41: 548SG | B41: 4661860.937
A42: 548SSGCT | B42: 546197.7203
A43: 549SG | B43: 2853050.672
A44: 552SG | B44: 222558.2934
A45: 552SSGCT | B45: 62106.49693
A46: 553SG | B46: 2169402.113
A47: 553SSGCT | B47: 141098.8513
A48: 554SG | B48: 28186.03579
A49: 554SSGCT | B49: 70449.34425
A50: 556SG | B50: 558052.5423
A51: 557SG | B51: 33407093.33
A52: 560SG | B52: 5257515.542
A53: 561SG | B53: 9237884.688
A54: 562SG | B54: 1261363.034
A55: 563SG | B55: 87128.56533
A56: 566SG | B56: 350055.4852
A57: 567SG | B57: 178675.7081
A58: 568SG | B58: 1924960.852
A59: 569SG | B59: 2606785.935
A60: 570SG | B60: 7714681.872
A61: 571SG | B61: -2097660.713
A62: 572SG | B62: 75551.55702
A63: 573SG | B63: 3093.59747
A64: 580CA | B64: -275.3792123
A65: 580OR | B65: 827.0345105
A66: 580SNPD | B66: 13614704.34
A67: 580WA | B67: -4275.436745
A68: 581OR | B68: -1.801546248
A69: 581SNPD | B69: 13325693.75
A70: 582CA | B70: 74306.38543
A71: 582ID | B71: 112541.4841
A72: 582OR | B72: 685628.9232
A73: 582SNPD | B73: 26885.30375
A74: 582UT | B74: 762439.9775
A75: 582WA | B75: 166503.6399
A76: 582WYP | B76: 398651.3416
A77: 583CA | B77: 322791.028
A78: 583ID | B78: 179362.0638
A79: 583OR | B79: 2553634.397
A80: 583SNPD | B80: 23019.13228
A81: 583UT | B81: 1333477.622
A82: 583WA | B82: 295369.599
A83: 583WYP | B83: 213188.5156
A84: 583WYU | B84: 151952.9166
A85: 585SNPD | B85: 223278.3811
A86: 586CA | B86: 187695.7955
A87: 586ID | B87: 262871.2623
A88: 586OR | B88: 2380920.511
A89: 586SNPD | B89: 1081581.549
A90: 586UT | B90: 1168280.913
A91: 586WA | B91: 355521.8932
A92: 586WYP | B92: 413488.0273
A93: 586WYU | B93: 47763.66985
A94: 587CA | B94: 508016.8104
A95: 587ID | B95: 319313.267
A96: 587OR | B96: 3688001.027
A97: 587UT | B97: 4497278.348
A98: 587WA | B98: 866346.0319
A99: 587WYP | B99: 744543.2626
A100: 587WYU | B100: 51644.1827
A101: 588CA | B101: 7765.926126
A102: 588ID | B102: 8291.06586
A103: 588OR | B103: 84795.33436
A104: 588SNPD | B104: 1594710.119
A105: 588UT | B105: 518358.9927
A106: 588WA | B106: 6398.703024
A107: 588WYP | B107: 53696.5137
A108: 588WYU | B108: -40933.18268
A109: 589CA | B109: 13148.01319
A110: 589OR | B110: 61081.33238
A111: 589UT | B111: 32273.85414
A112: 589WA | B112: 10306.23316
A113: 589WYP | B113: 10090.50375
A114: 589WYU | B114: -128.9405783
A115: 590CA | B115: 16793.44557
A116: 590ID | B116: 36638.86596
A117: 590OR | B117: 250899.2337
A118: 590SNPD | B118: 3913386.126
A119: 590UT | B119: 273291.7486
A120: 590WA | B120: 9199.705454
A121: 590WYP | B121: 81013.62373
A122: 592CA | B122: 325318.0439
A123: 592ID | B123: 463442.906
A124: 592OR | B124: 2868657.226
A125: 592SNPD | B125: 1425014.464
A126: 592UT | B126: 3006619.869
A127: 592WA | B127: 630170.3687
A128: 592WYP | B128: 993268.9116
A129: 592WYU | B129: 533.6639265
A130: 593CA | B130: 1749597.901
A131: 593ID | B131: 2103709.552
A132: 593OR | B132: 9271888.739
A133: 593SNPD | B133: 207602.5337
A134: 593UT | B134: 9877023.61
A135: 593WA | B135: 519793.4979
A136: 593WYP | B136: 1139639.966
A137: 593WYU | B137: 175379.5547
A138: 594CA | B138: 356475.796
A139: 594ID | B139: 448409.0941
A140: 594OR | B140: 3882045.711
A141: 594UT | B141: 7571149.091
A142: 594WA | B142: 766794.2112
A143: 594WYP | B143: 886369.1544
A144: 594WYU | B144: 117940.9408
A145: 595SNPD | B145: 646628.6259
A146: 596CA | B146: 108062.5261
A147: 596ID | B147: 128471.795
A148: 596OR | B148: 913817.5131
A149: 596UT | B149: 385478.0789
A150: 596WA | B150: 137642.04
A151: 596WYP | B151: 262470.6503
A152: 596WYU | B152: 55880.58084
A153: 597CA | B153: 53525.97904
A154: 597ID | B154: 265161.4099
A155: 597OR | B155: 861951.2185
A156: 597SNPD | B156: 897696.317
A157: 597UT | B157: 1803538.117
A158: 597WA | B158: 372838.0246
A159: 597WYP | B159: 449743.9944
A160: 597WYU | B160: 82625.16833
A161: 598CA | B161: 20519.9905
A162: 598OR | B162: 64888.24559
A163: 598SNPD | B163: 1111633.045
A164: 598UT | B164: 5669.739873
A165: 598WA | B165: 37657.45633
A166: 901CN | B166: 2125035.284
A167: 901OR | B167: 860.0335926
A168: 902CA | B168: 739938.4618
A169: 902CN | B169: 1738342.29
A170: 902ID | B170: 1326107.166
A171: 902OR | B171: 8302722.936
A172: 902UT | B172: 3954285.832
A173: 902WA | B173: 1324450.984
A174: 902WYP | B174: 1356994.373
A175: 902WYU | B175: 255018.0246
A176: 903CA | B176: 170531.0851
A177: 903CN | B177: 33232813.68
A178: 903ID | B178: 290308.5114
A179: 903OR | B179: 1581156.491
A180: 903UT | B180: 2612713.673
A181: 903WA | B181: 465816.9788
A182: 903WYP | B182: 347706.1499
A183: 903WYU | B183: 69701.54549
A184: 905CN | B184: 92764.93153
A185: 907CN | B185: 259843.4191
A186: 908CA | B186: 38984.90226
A187: 908CN | B187: 2378251.306
A188: 908ID | B188: 449738.5337
A189: 908OR | B189: 1509796.599
A190: 908OTHER | B190: 35791.79092
A191: 908UT | B191: 2292750.839
A192: 908WA | B192: 215732.1054
A193: 908WYP | B193: 933774.3376
A194: 909CN | B194: 495810.3362
A195: 910CN | B195: 1621.969457
A196: 920CA | B196: 222772
A197: 920OR | B197: 7.31
A198: 920SO | B198: 77908634.95
A199: 920UT | B199: 2.309999999
A200: 920WA | B200: 4.48
A201: 921SO | B201: -266373.2269
A202: 921WA | B202: 22.28
... 15 more rows

Sheet Factors
A1: BEGINNING/ENDING AVERAGE FACTORS | B1: 2010 PROTOCOL
A2: DESCRIPTION | B2: FACTOR | C2: California | D2: Oregon | E2: Washington | F2: Montana | G2: Wyo-PPL | H2: Utah | I2: Idaho | J2: Wyo-UPL | K2: FERC-UPL | L2: OTHER | M2: NON-UTILITY | N2: WY-All
A3: Situs | B3: S | C3: - | D3: - | E3: - | F3: - | G3: - | H3: - | I3: - | J3: - | K3: -
A4: System Generation | B4: SG | C4: 0.01709086647 | D4: 0.2583743211 | E4: 0.07948826342 | F4: 0 | G4: 0.1216581644 | H4: 0.4315468105 | I4: 0.05632217947 | J4: 0.03215227722 | K4: 0.003367117362 | N4: 0.1538104416
A5: System Generation (Pac. Power Costs on SG) | B5: SG-P | C5: 0.01709086647 | D5: 0.2583743211 | E5: 0.07948826342 | F5: 0 | G5: 0.1216581644 | H5: 0.4315468105 | I5: 0.05632217947 | J5: 0.03215227722 | K5: 0.003367117362 | N5: 0.1538104416
A6: System Generation (R.M.P. Costs on SG) | B6: SG-U | C6: 0.01709086647 | D6: 0.2583743211 | E6: 0.07948826342 | F6: 0 | G6: 0.1216581644 | H6: 0.4315468105 | I6: 0.05632217947 | J6: 0.03215227722 | K6: 0.003367117362 | N6: 0.1538104416
A7: Divisional Generation - Pac. Power | B7: DGP | C7: 0.03585910606 | D7: 0.5421066394 | E7: 0.1667778561 | F7: 0 | G7: 0.2552563985 | H7: 0 | I7: 0 | J7: 0 | K7: 0 | N7: 0.2552563985
A8: Divisional Generation - R.M.P. | B8: DGU | C8: 0 | D8: 0 | E8: 0 | F8: 0 | G8: 0 | H8: 0.8245250052 | I8: 0.1076106791 | J8: 0.06143101025 | K8: 0.00643330548 | N8: 0.06143101025
A9: System Capacity | B9: SC | C9: 0.01751709243 | D9: 0.2634661752 | E9: 0.08108932807 | F9: 0 | G9: 0.118097153 | H9: 0.4322178562 | I9: 0.05384653291 | J9: 0.03053373823 | K9: 0.003232124013 | N9: 0.1486308912
A10: System Energy | B10: SE | C10: 0.01581218858 | D10: 0.2430987591 | E10: 0.07468506946 | F10: 0 | G10: 0.1323411987 | H10: 0.4295336734 | I10: 0.06374911917 | J10: 0.03700789419 | K10: 0.00377209741 | N10: 0.1693490929
A11: System Energy (Pac. Power Costs on SE) | B11: SE-P | C11: 0.01581218858 | D11: 0.2430987591 | E11: 0.07468506946 | F11: 0 | G11: 0.1323411987 | H11: 0.4295336734 | I11: 0.06374911917 | J11: 0.03700789419 | K11: 0.00377209741 | N11: 0.1693490929
A12: System Energy (R.M.P. Costs on SE) | B12: SE-U | C12: 0.01581218858 | D12: 0.2430987591 | E12: 0.07468506946 | F12: 0 | G12: 0.1323411987 | H12: 0.4295336734 | I12: 0.06374911917 | J12: 0.03700789419 | K12: 0.00377209741 | N12: 0.1693490929
A13: Divisional Energy - Pac. Power | B13: DEP | C13: 0.03393630738 | D13: 0.5217414511 | E13: 0.1602899853 | F13: 0 | G13: 0.2840322562 | H13: 0 | I13: 0 | J13: 0 | K13: 0 | N13: 0.2840322562
A14: Divisional Energy - R.M.P. | B14: DEU | C14: 0 | D14: 0 | E14: 0 | F14: 0 | G14: 0 | H14: 0.8042756135 | I14: 0.1193663387 | J14: 0.06929502539 | K14: 0.007063022405 | N14: 0.06929502539
A15: System Overhead | B15: SO | C15: 0.02321893827 | D15: 0.2721931478 | E15: 0.07728801869 | F15: 0 | G15: 0.1134052417 | H15: 0.4285360611 | I15: 0.05523524595 | J15: 0.02769531889 | K15: 0.00242802753 | N15: 0.1411005606
A16: System Overhead (Pac. Power Costs on SO) | B16: SO-P | C16: 0.02321893827 | D16: 0.2721931478 | E16: 0.07728801869 | F16: 0 | G16: 0.1134052417 | H16: 0.4285360611 | I16: 0.05523524595 | J16: 0.02769531889 | K16: 0.00242802753 | N16: 0.1411005606
A17: System Overhead (R.M.P. Costs on SO) | B17: SO-U | C17: 0.02321893827 | D17: 0.2721931478 | E17: 0.07728801869 | F17: 0 | G17: 0.1134052417 | H17: 0.4285360611 | I17: 0.05523524595 | J17: 0.02769531889 | K17: 0.00242802753 | N17: 0.1411005606
A18: Divisional Overhead - Pac. Power | B18: DOP | C18: 0 | D18: 0 | E18: 0 | F18: 0 | G18: 0 | H18: 0 | I18: 0 | J18: 0 | K18: 0 | N18: 0
A19: Divisional Overhead - R.M.P. Power | B19: DOU | C19: 0 | D19: 0 | E19: 0 | F19: 0 | G19: 0 | H19: 0 | I19: 0 | J19: 0 | K19: 0 | N19: 0
A20: Gross Plant-System | B20: GPS | C20: 0.02321893827 | D20: 0.2721931478 | E20: 0.07728801869 | F20: 0 | G20: 0.1134052417 | H20: 0.4285360611 | I20: 0.05523524595 | J20: 0.02769531889 | K20: 0.00242802753 | N20: 0.1411005606
A21: System Gross Plant - Pac. Power | B21: SGPP | C21: 0 | D21: 0 | E21: 0 | F21: 0 | G21: 0 | H21: 0 | I21: 0 | J21: 0 | K21: 0 | N21: 0
A22: System Gross Plant - R.M.P. | B22: SGPU | C22: 0 | D22: 0 | E22: 0 | F22: 0 | G22: 0 | H22: 0 | I22: 0 | J22: 0 | K22: 0 | N22: 0
A23: System Net Plant | B23: SNP | C23: 0.02157145817 | D23: 0.2625434631 | E23: 0.07556409793 | F23: 0 | G23: 0.1139361603 | H23: 0.4409947244 | I23: 0.05479428517 | J23: 0.02807094366 | K23: 0.002524867239 | N23: 0.142007104
A24: Seasonal System Capacity Combustion Turbine | B24: SSCCT | C24: 0.01750792668 | D24: 0.2632029815 | E24: 0.08110162983 | F24: 0 | G24: 0.1180670778 | H24: 0.4325353913 | I24: 0.05384833662 | J24: 0.03050303179 | K24: 0.003233624526 | N24: 0.1485701096
A25: Seasonal System Energy Combustion Turbine | B25: SSECT | C25: 0.01580959565 | D25: 0.2429805338 | E25: 0.07466544541 | F25: 0 | G25: 0.1322964453 | H25: 0.4296728924 | I25: 0.06381947713 | J25: 0.03698116834 | K25: 0.003774441943 | N25: 0.1692776137
A26: Seasonal System Capacity Cholla | B26: SSCCH | C26: 0.01786642347 | D26: 0.2730334703 | E26: 0.08362457918 | F26: 0 | G26: 0.1198878374 | H26: 0.4176978261 | I26: 0.05360312883 | J26: 0.03125163348 | K26: 0.003035101187 | N26: 0.1511394709
A27: Seasonal System Energy Cholla | B27: SSECH | C27: 0.01583578884 | D27: 0.24913211 | E27: 0.07745649962 | F27: 0 | G27: 0.1336737541 | H27: 0.4224233888 | I27: 0.06042929385 | J27: 0.03737772342 | K27: 0.003671441383 | N27: 0.1710514775
A28: Seasonal System Generation Cholla | B28: SSGCH | C28: 0.01735876481 | D28: 0.2670581302 | E28: 0.08208255929 | F28: 0 | G28: 0.1233343166 | H28: 0.4188792168 | I28: 0.05530967009 | J28: 0.03278315596 | K28: 0.003194186236 | N28: 0.1561174725
A29: Seasonal System Capacity Purchases | B29: SSCP | C29: 0 | D29: 0 | E29: 0 | F29: 0 | G29: 0 | H29: 0 | I29: 0 | J29: 0 | K29: 0 | N29: 0
A30: Seasonal System Energy Purchases | B30: SSEP | C30: 0 | D30: 0 | E30: 0 | F30: 0 | G30: 0 | H30: 0 | I30: 0 | J30: 0 | K30: 0 | N30: 0
A31: Seasonal System Generation Contracts | B31: SSGC | C31: 0 | D31: 0 | E31: 0 | F31: 0 | G31: 0 | H31: 0 | I31: 0 | J31: 0 | K31: 0 | N31: 0
A32: Seasonal System Generation Combustion Turbine | B32: SSGCT | C32: 0.01708334392 | D32: 0.2581473696 | E32: 0.07949258372 | F32: 0 | G32: 0.1216244197 | H32: 0.4318197666 | I32: 0.05634112175 | J32: 0.03212256593 | K32: 0.00336882888 | N32: 0.1537469856
A33: Mid-Columbia | B33: MC | C33: 0.01198224822 | D33: 0.4388082001 | E33: 0.0969733892 | F33: 0 | G33: 0.08529341255 | H33: 0.3025534728 | I33: 0.0394869585 | J33: 0.02254166384 | K33: 0.002360654804 | N33: 0.1078350764
A34: Division Net Plant Distribution | B34: SNPD | C34: 0.03532196758 | D34: 0.2697702171 | E34: 0.06334473386 | F34: 0 | G34: 0.08787806978 | H34: 0.4809193371 | I34: 0.0473946897 | J34: 0.01537098486 | K34: 0 | N34: 0.1032490546
A35: Divisional Generation - Huntington | B35: DGUH | C35: 0 | D35: 0 | E35: 0 | F35: 0 | G35: 0 | H35: 0.8245250052 | I35: 0.1076106791 | J35: 0.06143101025 | K35: 0.00643330548 | N35: 0.06143101025
A36: Divisional Energy - Huntington | B36: DEUH | C36: 0 | D36: 0 | E36: 0 | F36: 0 | G36: 0 | H36: 0.8042756135 | I36: 0.1193663387 | J36: 0.06929502539 | K36: 0.007063022405 | N36: 0.06929502539
A37: Division Net Plant General-Mine - Pac. Power | B37: DNPGMP | C37: 0 | D37: 0 | E37: 0 | F37: 0 | G37: 0 | H37: 0 | I37: 0 | J37: 0 | K37: 0 | N37: 0
A38: Division Net Plant General-Mine - R.M.P. | B38: DNPGMU | C38: 0.01581218858 | D38: 0.2430987591 | E38: 0.07468506946 | F38: 0 | G38: 0.1323411987 | H38: 0.4295336734 | I38: 0.06374911917 | J38: 0.03700789419 | K38: 0.00377209741 | N38: 0.1693490929
A39: Division Net Plant Intangible - Pac. Power | B39: DNPIP | C39: 0 | D39: 0 | E39: 0 | F39: 0 | G39: 0 | H39: 0 | I39: 0 | J39: 0 | K39: 0 | N39: 0
A40: Division Net Plant Intangible - R.M.P. | B40: DNPIU | C40: 0 | D40: 0 | E40: 0 | F40: 0 | G40: 0 | H40: 0 | I40: 0 | J40: 0 | K40: 0 | N40: 0
A41: Division Net Plant Steam - Pac. Power | B41: DNPPSP | C41: 0 | D41: 0 | E41: 0 | F41: 0 | G41: 0 | H41: 0 | I41: 0 | J41: 0 | K41: 0 | N41: 0
A42: Division Net Plant Steam - R.M.P. | B42: DNPPSU | C42: 0 | D42: 0 | E42: 0 | F42: 0 | G42: 0 | H42: 0 | I42: 0 | J42: 0 | K42: 0 | N42: 0
A43: Division Net Plant Hydro - Pac. Power | B43: DNPPHP | C43: 0 | D43: 0 | E43: 0 | F43: 0 | G43: 0 | H43: 0 | I43: 0 | J43: 0 | K43: 0 | N43: 0
A44: Division Net Plant Hydro - R.M.P. | B44: DNPPHU | C44: 0 | D44: 0 | E44: 0 | F44: 0 | G44: 0 | H44: 0 | I44: 0 | J44: 0 | K44: 0 | N44: 0
A45: System Net Hydro Plant-Pac. Power | B45: SNPPH-P | C45: 0.01709086647 | D45: 0.2583743211 | E45: 0.07948826342 | F45: 0 | G45: 0.1216581644 | H45: 0.4315468105 | I45: 0.05632217947 | J45: 0.03215227722 | K45: 0.003367117362 | N45: 0.1538104416
A46: System Net Hydro Plant-R.M.P. | B46: SNPPH-U | C46: 0.01709086647 | D46: 0.2583743211 | E46: 0.07948826342 | F46: 0 | G46: 0.1216581644 | H46: 0.4315468105 | I46: 0.05632217947 | J46: 0.03215227722 | K46: 0.003367117362 | N46: 0.1538104416
A47: Customer - System | B47: CN | C47: 0.02433920055 | D47: 0.297218712 | E47: 0.06796752917 | F47: 0 | G47: 0.06518434251 | H47: 0.4989276546 | I47: 0.03792045405 | J47: 0.008442107181 | K47: 0 | L47: 0 | M47: 0 | N47: 0.07362644969
A48: Customer - Pac. Power | B48: CNP | C48: 0.05352688989 | D48: 0.6536448572 | E48: 0.1494745254 | F48: 0 | G48: 0.1433537275 | H48: 0 | I48: 0 | J48: 0 | K48: 0 | L48: 0 | M48: 0 | N48: 0.1433537275
A49: Customer - R.M.P. | B49: CNU | C49: 0 | D49: 0 | E49: 0 | F49: 0 | G49: 0 | H49: 0.9149763559 | I49: 0.06954178334 | J49: 0.01548186073 | K49: 0 | L49: 0 | M49: 0 | N49: 0.01548186073
A50: Washington Business Tax | B50: WBTAX | C50: 0 | D50: 0 | E50: 1 | F50: 0 | G50: 0 | H50: 0 | I50: 0 | J50: 0 | K50: 0 | L50: 0 | M50: 0 | N50: 0
A51: Operating Revenue - Idaho | B51: OPRV-ID | C51: 0 | D51: 0 | E51: 0 | F51: 0 | G51: 0 | H51: 0 | I51: 0 | J51: 0 | K51: 0 | N51: 0
A52: Operating Revenue - Wyoming | B52: OPRVWY | C52: 0 | D52: 0 | E52: 0 | F52: 0 | G52: 0 | H52: 0 | I52: 0 | J52: 0 | K52: 0 | N52: 0
A53: Excise Tax - superfund | B53: EXCTAX | C53: 0.08961565595 | D53: 0.438549429 | E53: 0.1108718572 | F53: 0 | G53: 0.2629971605 | H53: 0.3229948239 | I53: 0.01295342972 | J53: -0.1622154158 | K53: -0.02111359503 | L53: 0.004126675052 | M53: -0.05878002047 | N53: 0.1007817447
A54: Interest | B54: INT | C54: 0.02157145817 | D54: 0.2625434631 | E54: 0.07556409793 | F54: 0 | G54: 0.1139361603 | H54: 0.4409947244 | I54: 0.05479428517 | J54: 0.02807094366 | K54: 0.002524867239 | M54: 0 | N54: 0.142007104
A55: CIAC | B55: CIAC | C55: 0.03532196758 | D55: 0.2697702171 | E55: 0.06334473386 | F55: 0 | G55: 0.08787806978 | H55: 0.4809193371 | I55: 0.0473946897 | J55: 0.01537098486 | K55: 0 | N55: 0.1032490546
A56: Idaho State Income Tax | B56: IDSIT | C56: 0 | D56: 0 | E56: 0 | F56: 0 | G56: 0 | H56: 0 | I56: 1 | J56: 0 | K56: 0 | M56: 0 | N56: 0
A57: Blank | B57: DONOTUSE | C57: 0 | D57: 0 | E57: 0 | F57: 0 | G57: 0 | H57: 0 | I57: 0 | J57: 0 | K57: 0 | N57: 0
A58: Bad Debt Expense | B58: BADDEBT | C58: 0.03923449181 | D58: 0.4617507728 | E58: 0.128006645 | F58: 0 | G58: 0.04975473786 | H58: 0.2881949268 | I58: 0.03280920103 | J58: 0.0002492247337 | K58: 0 | L58: 0 | M58: 0 | N58: 0.0500039626
A59: Blank | B59: DONOTUSE | C59: 0 | D59: 0 | E59: 0 | F59: 0 | G59: 0 | H59: 0 | I59: 0 | J59: 0 | K59: 0 | L59: 0 | M59: 0 | N59: 0
A60: Blank | B60: DONOTUSE | C60: 0 | D60: 0 | E60: 0 | F60: 0 | G60: 0 | H60: 0 | I60: 0 | J60: 0 | K60: 0 | L60: 0 | M60: 0 | N60: 0
A61: Accumulated Investment Tax Credit 1984 | B61: ITC84 | C61: 0.03287 | D61: 0.70976 | E61: 0.1418 | F61: 0 | G61: 0.10946 | M61: 0.00611 | N61: 0.10946
A62: Accumulated Investment Tax Credit 1985 | B62: ITC85 | C62: 0.0542 | D62: 0.6769 | E62: 0.1336 | F62: 0 | G62: 0.1161 | M62: 0.0192 | N62: 0.1161
A63: Accumulated Investment Tax Credit 1986 | B63: ITC86 | C63: 0.04789 | D63: 0.64608 | E63: 0.13126 | F63: 0 | G63: 0.155 | M63: 0.01977 | N63: 0.155
A64: Accumulated Investment Tax Credit 1988 | B64: ITC88 | C64: 0.0427 | D64: 0.612 | E64: 0.1496 | F64: 0 | G64: 0.1671 | M64: 0.0286 | N64: 0.1671
A65: Accumulated Investment Tax Credit 1989 | B65: ITC89 | C65: 0.048806 | D65: 0.563558 | E65: 0.152688 | F65: 0 | G65: 0.206776 | M65: 0.028172 | N65: 0.206776
A66: Accumulated Investment Tax Credit 1990 | B66: ITC90 | C66: 0.015047 | D66: 0.159356 | E66: 0.039132 | F66: 0 | G66: 0.038051 | H66: 0.469355 | I66: 0.139815 | J66: 0.135384 | M66: 0.00386 | N66: 0.173435
A67: Other Electric | B67: OTHER | C67: 0 | D67: 0 | E67: 0 | F67: 0 | G67: 0 | H67: 0 | I67: 0 | J67: 0 | K67: 0 | L67: 1 | M67: 0 | N67: 0
A68: Non-Utility | B68: NUTIL | C68: 0 | D68: 0 | E68: 0 | F68: 0 | G68: 0 | H68: 0 | I68: 0 | J68: 0 | K68: 0 | L68: 0 | M68: 1 | N68: 0
A69: System Net Steam Plant | B69: SNPPS | C69: 0.01709086647 | D69: 0.2583743211 | E69: 0.07948826342 | F69: 0 | G69: 0.1216581644 | H69: 0.4315468105 | I69: 0.05632217947 | J69: 0.03215227722 | K69: 0.003367117362 | N69: 0.1538104416
A70: System Net Transmission Plant | B70: SNPT | C70: 0.01709086647 | D70: 0.2583743211 | E70: 0.07948826342 | F70: 0 | G70: 0.1216581644 | H70: 0.4315468105 | I70: 0.05632217947 | J70: 0.03215227722 | K70: 0.003367117362 | N70: 0.1538104416
A71: System Net Production Plant | B71: SNPP | C71: 0.01709086647 | D71: 0.2583743211 | E71: 0.07948826342 | F71: 0 | G71: 0.1216581644 | H71: 0.4315468105 | I71: 0.05632217947 | J71: 0.03215227722 | K71: 0.003367117362 | N71: 0.1538104416
A72: System Net Hydro Plant | B72: SNPPH | C72: 0.01709086647 | D72: 0.2583743211 | E72: 0.07948826342 | F72: 0 | G72: 0.1216581644 | H72: 0.4315468105 | I72: 0.05632217947 | J72: 0.03215227722 | K72: 0.003367117362 | N72: 0.1538104416
A73: System Net Nuclear Plant | B73: SNPPN | C73: 0.01709086647 | D73: 0.2583743211 | E73: 0.07948826342 | F73: 0 | G73: 0.1216581644 | H73: 0.4315468105 | I73: 0.05632217947 | J73: 0.03215227722 | K73: 0.003367117362 | N73: 0.1538104416
A74: System Net Other Production Plant | B74: SNPPO | C74: 0.01709086647 | D74: 0.2583743211 | E74: 0.07948826342 | F74: 0 | G74: 0.1216581644 | H74: 0.4315468105 | I74: 0.05632217947 | J74: 0.03215227722 | K74: 0.003367117362 | N74: 0.1538104416
A75: System Net General Plant | B75: SNPG | C75: 0.02627070925 | D75: 0.3004329481 | E75: 0.07461896695 | F75: 0 | G75: 0.1141945144 | H75: 0.3963216408 | I75: 0.06354430507 | J75: 0.02333886823 | K75: 0.001278047238 | N75: 0.1375333826
A76: System Net Intangible Plant | B76: SNPI | C76: 0.01925864833 | D76: 0.2633973193 | E76: 0.07858029602 | F76: 0 | G76: 0.1173607748 | H76: 0.4330997227 | I76: 0.05594681326 | J76: 0.02943539067 | K76: 0.002921034982 | N76: 0.1467961654
A77: Trojan Plant Allocator | B77: TROJP | C77: 0.01689662551 | D77: 0.2560538464 | E77: 0.0787586215 | F77: 0 | G77: 0.1232809991 | H77: 0.4312409996 | I77: 0.05745038845 | J77: 0.0328898826 | K77: 0.003428636931 | N77: 0.1561708817
A78: Trojan Decommissioning Allocator | B78: TROJD | C78: 0.01686231863 | D78: 0.2556440036 | E78: 0.07862975199 | F78: 0 | G78: 0.1235676245 | H78: 0.4311869872 | I78: 0.05764965296 | J78: 0.03302015861 | K78: 0.00343950253 | N78: 0.1565877831
A79: Income Before Taxes | B79: IBT | C79: 0.08984478352 | D79: 0.4387407047 | E79: 0.1108448121 | F79: 0 | G79: 0.2632890378 | H79: 0.3218516902 | I79: 0.01269993501 | J79: -0.1629659409 | K79: -0.02120692941 | L79: 0.005881774476 | M79: -0.05897986737 | N79: 0.1003230969
A80: DIT Expense | B80: DITEXP | C80: 0.01914195559 | D80: 0.2739803646 | E80: 0.03210005984 | F80: 0 | G80: 0.1211794826 | H80: 0.4176994953 | I80: 0.04935500614 | J80: 0.02650889802 | K80: 0.00322473118 | L80: 0 | M80: 0.05681000677 | N80: 0.1476883806
A81: DIT Balance | B81: DITBAL | C81: 0.02253683086 | D81: 0.2747313427 | E81: 0.0602294388 | F81: 0 | G81: 0.1146768243 | H81: 0.4287824642 | I81: 0.05637436893 | J81: 0.02404758932 | K81: 0.002826943873 | L81: 0 | M81: 0.0157941971 | N81: 0.1387244136
A82: Tax Depreciation | B82: TAXDEPR | C82: 0.02110816763 | D82: 0.2636199175 | E82: 0.06779227365 | F82: 0 | G82: 0.1132751595 | H82: 0.4399640168 | I82: 0.05421516245 | J82: 0.0285791334 | K82: 0.002613802745 | L82: 0 | M82: 0.008832366363 | N82: 0.1418542929
A83: Blank | B83: DONOTUSE | C83: 0 | D83: 0 | E83: 0 | F83: 0 | G83: 0 | H83: 0 | I83: 0 | J83: 0 | K83: 0 | L83: 0 | M83: 0 | N83: 0
A84: Blank | B84: DONOTUSE | C84: 0 | D84: 0 | E84: 0 | F84: 0 | G84: 0 | H84: 0 | I84: 0 | J84: 0 | K84: 0 | L84: 0 | M84: 0 | N84: 0
A85: Blank | B85: DONOTUSE | C85: 0 | D85: 0 | E85: 0 | F85: 0 | G85: 0 | H85: 0 | I85: 0 | J85: 0 | K85: 0 | L85: 0 | M85: 0 | N85: 0
A86: SCHMAT Depreciation Expense | B86: SCHMDEXP | C86: 0.02452843001 | D86: 0.2782083007 | E86: 0.08081998641 | F86: 0 | G86: 0.1147002016 | H86: 0.4177286889 | I86: 0.05413316523 | J86: 0.02755567703 | K86: 0.002325550141 | L86: 0 | M86: 0 | N86: 0.1422558787
A87: SCHMDT Amortization Expense | B87: SCHMAEXP | C87: 0.021592218 | D87: 0.2688627024 | E87: 0.0754496895 | F87: 0 | G87: 0.1251378678 | H87: 0.4255955712 | I87: 0.05346977213 | J87: 0.02733379328 | K87: 0.002558385599 | L87: 0 | M87: 0 | N87: 0.1524716611
A88: System Generation Cholla Transaction | B88: SGCT | C88: 0.01714860784 | D88: 0.259247237 | E88: 0.07975681397 | F88: 0 | G88: 0.1220691857 | H88: 0.4330047884 | I88: 0.05651246357 | J88: 0.03226090347 | N88: 0.1543300892
B89: SNPPO-W | C89: 0.01709086647 | D89: 0.2583743211 | E89: 0.07948826342 | F89: 0 | G89: 0.1216581644 | H89: 0.4315468105 | I89: 0.05632217947 | J89: 0.03215227722 | K89: 0.003367117362 | L89: 0 | M89: 0 | N89: 0.1538104416
B90: WYP | N90: 1
B91: WYU | N91: 1
B92: SG-W | N92: 0.1538104416
